Workbook

Sheet Jan22
A1: %,LACTUALS,UPOSTED_TRAN_AMT | B1: %,ATF,FDESCR,UDESCR | C1: %,ATT,FACCOUNT | D1: %,LACTUALS,UPOSTED_TRAN_AMT,SPER,FBOOK_CODE,VR | E1: %,C | F1: %,LACTUALS,UPOSTED_TRAN_AMT,SYTD,FBOOK_CODE,VR | H1: %,LACTUALS,UPOSTED_TRAN_AMT,SPER-1,FBOOK_CODE,VR
B2: NiSource Corporate Services Co | H2: FOR
B3: Income Statement-FERC | H3: CALC
B4: Regulatory View - FERC Account
B5: For the Month Ended January 31, 2022 | H5: PURPOSES
D7: Current | E7: Change from | F7: Year-To- | H7: Prior
D8: Month | E8: Prior Month | F8: Date | H8: Month
B10: Operating Revenues
A12: %,R,FACCOUNT,TNI_ACCOUNT_FERC,XBYYYYY01,NGAS_RESID_REV | B12: Gas Residential Sales | D12: 0 | E12: =D12-H12 -> 0 | F12: 0
A13: %,R,FACCOUNT,TNI_ACCOUNT_FERC,XBYYYYY01,NGAS_COMM_INDUST_REV | B13: Gas Comm & Indust Revenues | D13: 0 | E13: =D13-H13 -> 0 | F13: 0
A14: %,R,FACCOUNT,TNI_ACCOUNT_FERC,XBYYYYY01,NGAS_SALES_RESALE | B14: Gas Sales for Resale | D14: 0 | E14: =D14-H14 -> 0 | F14: 0
A15: %,R,FACCOUNT,TNI_ACCOUNT_FERC,XBYYYYY01,NGAS_INTERDEPT_SALES | B15: Gas Interdepartmental Sales | D15: 0 | E15: =D15-H15 -> 0 | F15: 0
A16: %,R,FACCOUNT,TNI_ACCOUNT_FERC,XBYYYYY01,NGAS_INTRACO_TRANSFER | B16: Gas Intercompany Transfers | D16: 0 | E16: =D16-H16 -> 0 | F16: 0
A17: xx | B17: Total Sales of Gas | D17: =D12+D13+D14+D15+D16 -> 0 | E17: =E12+E13+E14+E15+E16 -> 0 | F17: =F12+F13+F14+F15+F16 -> 0
A19: %,R,FACCOUNT,TNI_ACCOUNT_FERC,XBYYYYY01,NELE_RESID_REV | B19: Electric Residential Revenues | D19: 0 | E19: =D19-H19 -> 0 | F19: 0
A20: %,R,FACCOUNT,TNI_ACCOUNT_FERC,XBYYYYY01,NELE_COMM_IND_REV | B20: Elec Comm & Indust Rev | D20: 0 | E20: 0 | F20: 0
A21: %,R,FACCOUNT,TNI_ACCOUNT_FERC,XBYYYYY01,NELE_STREET_HWY_LIGHT | B21: Public Street & Hwy Lighting | D21: 0 | E21: 0 | F21: 0
A22: %,R,FACCOUNT,TNI_ACCOUNT_FERC,XBYYYYY01,NELE_OTH_SALES_PUBLIC | B22: Elec Oth Sales to Public Auth | D22: 0 | E22: 0 | F22: 0
A23: %,R,FACCOUNT,TNI_ACCOUNT_FERC,XBYYYYY01,NELE_RAILROAD | B23: Sales to Railroads & Railways | D23: 0 | E23: 0 | F23: 0
A24: %,R,FACCOUNT,TNI_ACCOUNT_FERC,XBYYYYY01,NELE_SALES_RESALE | B24: Electric Sales for Resale | D24: 0 | E24: 0 | F24: 0
A25: %,R,FACCOUNT,TNI_ACCOUNT_FERC,XBYYYYY01,NELE_INTERDEPT_SALES | B25: Elec Interdepartmental Sales | D25: 0 | E25: 0 | F25: 0
A26: xx | B26: Total Sales of Electricity | D26: =D19+D20+D21+D22+D23+D24+D25 -> 0 | E26: =E19+E20+E21+E22+E23+E24+E25 -> 0 | F26: =F19+F20+F21+F22+F23+F24+F25 -> 0
A28: %,R,FACCOUNT,TNI_ACCOUNT_FERC,XBYYYYY01,NFORFEITED_DISC_GAS | B28: Forfeited Discounts - Gas | D28: 0 | E28: =D28-H28 -> 0 | F28: 0
A29: %,R,FACCOUNT,TNI_ACCOUNT_FERC,XBYYYYY01,NFORFEITED_DISC_ELE | B29: Forfeited Discounts - Ele | D29: 0 | E29: =D29-H29 -> 0 | F29: 0
B30: Total Forfeited Discounts | D30: =D28+D29 -> 0 | E30: =E28+E29 -> 0 | F30: =F28+F29 -> 0
A32: %,R,FACCOUNT,TNI_ACCOUNT_FERC,XBYYYYY01,NMISC_SERV_REVS_GAS | B32: Misc Service Revenues - Gas | D32: 0 | E32: =D32-H32 -> 0 | F32: 0
A33: %,R,FACCOUNT,TNI_ACCOUNT_FERC,XBYYYYY01,NMISC_SERV_REVS_ELE | B33: Misc Service Revenues - Ele | D33: 0 | E33: =D33-H33 -> 0 | F33: 0
B34: Total Miscellaneous Service Revenues | D34: =D32+D33 -> 0 | E34: =E32+E33 -> 0 | F34: =F32+F33 -> 0
A36: %,R,FACCOUNT,TNI_ACCOUNT_FERC,XBYYYYY01,NRENT_ELE_PROP | B36: Rent from Electricity Property | D36: 0 | E36: =D36-H36 -> 0 | F36: 0
A37: %,R,FACCOUNT,TNI_ACCOUNT_FERC,XBYYYYY01,NOTH_ELE_REV | B37: Other Electric Revenues | D37: 0 | E37: 0 | F37: 0
A38: %,R,FACCOUNT,TNI_ACCOUNT_FERC,XBYYYYY01,NOTH_ELE_TRANS_REV | B38: Rev Transm of Elec of Oth | D38: 0 | E38: 0 | F38: 0
A39: %,V45700000 | B39: Non Util IC Rev Direct | C39: 45700000 | D39: 16532002.12 | E39: 862213.01 | F39: 16532002.12 | H39: 15669789.11
A40: %,V45700030 | B40: Non Util IC Rev Indirect | C40: 45700030 | D40: 5953805.38 | E40: -31888789.93 | F40: 5953805.38 | H40: 37842595.31
A41: %,V45700040 | B41: Non Util IC Rev Interest | C41: 45700040 | D41: 152540.33 | E41: -10750.97 | F41: 152540.33 | H41: 163291.3
A42: %,V45810000 | B42: Non Util Non-Affill Revenue | C42: 45810000 | D42: 1991961.78 | E42: -1018493.78 | F42: 1991961.78 | H42: 3010455.56
A43: %,R,FACCOUNT,TNI_ACCOUNT_FERC,XBYYYYY01,NOTH_REV_SERVICE_CO | B43: Nonutility Revenues - Serv Co | D43: 24630309.61 | E43: -32055821.67 | F43: 24630309.61 | H43: 56686131.28
A44: %,R,FACCOUNT,TNI_ACCOUNT_FERC,XBYYYYY01,NREG_ELE_TRANS_REV | B44: Regional Transm Service Rev | D44: 0 | E44: 0 | F44: 0
A45: %,R,FACCOUNT,TNI_ACCOUNT_FERC,XBYYYYY01,NTRANSPORT_GATH_REV | B45: Rev Transp Gas of Oth - Gather | D45: 0 | E45: 0 | F45: 0
A46: %,R,FACCOUNT,TNI_ACCOUNT_FERC,XBYYYYY01,NTRANSPORT_TRANS_REV | B46: Rev Transp Gas of Oth - Transm | D46: 0 | E46: 0 | F46: 0
A47: %,R,FACCOUNT,TNI_ACCOUNT_FERC,XBYYYYY01,NTRANSPORT_DISTR_REV | B47: Rev Transp Gas of Oth - Distr | D47: 0 | E47: 0 | F47: 0
A48: %,R,FACCOUNT,TNI_ACCOUNT_FERC,XBYYYYY01,NSTORE_GAS_REV | B48: Rev from Storing Gas of Oth | D48: 0 | E48: 0 | F48: 0
A49: %,R,FACCOUNT,TNI_ACCOUNT_FERC,XBYYYYY01,NSALES_EXTRACT_GAS | B49: Sales - Prod Extracted from NG | D49: 0 | E49: 0 | F49: 0
A50: %,R,FACCOUNT,TNI_ACCOUNT_FERC,XBYYYYY01,NGAS_OIL_SALES | B50: Incidental Gasoline & Oil Sale | D50: 0 | E50: 0 | F50: 0
A51: %,R,FACCOUNT,TNI_ACCOUNT_FERC,XBYYYYY01,NRENT_GAS_PROP | B51: Rent from Gas Property | D51: 0 | E51: 0 | F51: 0
A52: %,R,FACCOUNT,TNI_ACCOUNT_FERC,XBYYYYY01,NOTH_GAS_REV | B52: Other Gas Revenues | D52: 0 | E52: 0 | F52: 0
A53: %,R,FACCOUNT,TNI_ACCOUNT_FERC,XBYYYYY01,NGAS_PROV_RATE_REFUND | B53: Gas Provision of Rate Refunds | D53: 0 | E53: 0 | F53: 0
B54: Total Other Operating Revenues | D54: =D30+D34+D36+D37+D38+D43+D44+D45+D46+D47+D48+D49+D50+D51+D52+D53 -> 24630309.61 | E54: =E30+E34+E36+E37+E38+E43+E44+E45+E46+E47+E48+E49+E50+E51+E52+E53 -> -32055821.67 | F54: =F30+F34+F36+F37+F38+F43+F44+F45+F46+F47+F48+F49+F50+F51+F52+F53 -> 24630309.61
A55: xx | B55: Total Operating Revenues | D55: =D17+D26+D54 -> 24630309.61 | E55: =E17+E26+E54 -> -32055821.67 | F55: =F17+F26+F54 -> 24630309.61
B57: Operating Expenses
B59: Operation Expenses
A61: %,FACCOUNT,TNI_ACCOUNT_FERC,XBYYYYY01,NOP_MANUF_GAS | B61: Manufac Gas Production - Oper | D61: 0 | E61: =D61-H61 -> 0 | F61: 0
A62: %,FACCOUNT,TNI_ACCOUNT_FERC,XBYYYYY01,NOP_NTRLGAS_PROD_GTH | B62: NG Production & Gather - Oper | D62: 0 | E62: =D62-H62 -> 0 | F62: 0
A63: %,FACCOUNT,TNI_ACCOUNT_FERC,XBYYYYY01,NOP_PROD_EXTRACT | B63: Products Extraction - Oper | D63: 0 | E63: =D63-H63 -> 0 | F63: 0
A65: %,V80500100 | B65: Propane Purchases | C65: 80500100 | D65: 0 | E65: =D65-H65 -> 0 | F65: 0 | H65: 0
A66: %,NOP_NG_PURCH_OTHER | B66: Other Gas Purchases | D66: 0 | E66: 0 | F66: 0 | H66: 0
A67: %,V80720000 | B67: Oper-Purch Gas Measrg Stations | C67: 80720000 | D67: 453215.35 | E67: 62545.01 | F67: 453215.35 | H67: 390670.34
A68: %,V80751000 | B68: Purch Gas Exp - Mgmt Fee | C68: 80751000 | D68: 90467.48 | E68: 10878.68 | F68: 90467.48 | H68: 79588.8
A69: %,NOP_NG_PURCH_EXPENSE | B69: Purchased Gas Expenses | D69: 543682.83 | E69: 73423.69 | F69: 543682.83 | H69: 470259.14
A70: %,FACCOUNT,TNI_ACCOUNT_FERC,XBYYYYY01,NOP_OTH_GAS_SUPPLY | B70: Other Gas Supply - Operations | D70: 543682.83 | E70: 73423.69 | F70: 543682.83 | H70: 470259.14
A71: %,V50000000 | B71: Op Superv_Eng-Steam | C71: 50000000 | D71: 6021.19 | E71: 1600.01 | F71: 6021.19 | H71: 4421.18
A72: %,FACCOUNT,TNI_ACCOUNT_FERC,XBYYYYY01,NOP_STEAM_POWER | B72: Steam Power - Operations | D72: 6021.19 | E72: 1600.01 | F72: 6021.19 | H72: 4421.18
A73: %,FACCOUNT,TNI_ACCOUNT_FERC,XBYYYYY01,NOP_HYDRAULIC_POWER | B73: Hydraulic Power - Operations | D73: 0 | E73: 0 | F73: 0
A74: %,FACCOUNT,TNI_ACCOUNT_FERC,XBYYYYY01,NOP_SOLAR_GENERATION | B74: Solar Generation - Operations | D74: 0 | E74: 0 | F74: 0
A75: %,FACCOUNT,TNI_ACCOUNT_FERC,XBYYYYY01,NOP_OTHER_POWER | B75: Other Power - Operations | D75: 0 | E75: 0 | F75: 0
A76: %,V55700000 | B76: Other Exp | C76: 55700000 | D76: 386.76 | E76: 7990.54 | F76: 386.76 | H76: -7603.78
A77: %,FACCOUNT,TNI_ACCOUNT_FERC,XBYYYYY01,NOP_OTH_POWER_SUPPLY | B77: Other Power Supply - Oper | D77: 386.76 | E77: 7990.54 | F77: 386.76 | H77: -7603.78
A78: %,FACCOUNT,TNI_ACCOUNT_FERC,XBYYYYY01,NOP_NG_STOR_TERM_PROC | B78: NG Stor, Term & Proc - Oper | D78: 0 | E78: 0 | F78: 0
A79: %,FACCOUNT,TNI_ACCOUNT_FERC,XBYYYYY01,NOP_TRANS_EXP | B79: Transmission Exp - Oper | D79: 0 | E79: 0 | F79: 0
A80: %,FACCOUNT,TNI_ACCOUNT_FERC,XBYYYYY01,NOP_REG_MARKET_EXP | B80: Regional Market Exp - Oper | D80: 0 | E80: 0 | F80: 0
A81: %,FACCOUNT,TNI_ACCOUNT_FERC,XBYYYYY01,NOP_ENERGY_STORAGE | B81: Energy Storage - Oper | D81: 0 | E81: 0 | F81: 0
A83: %,V58000000 | B83: Op Superv_Eng-Elec Distr | C83: 58000000 | D83: 17889.9 | E83: =D83-H83 -> 2726.92 | F83: 17889.9 | H83: 15162.98
A84: %,NOP_ELEC_DISTR_EXP | B84: Distribution Exp - Oper - Elec | D84: 17889.9 | E84: 2726.92 | F84: 17889.9 | H84: 15162.98
A85: %,V87000000 | B85: Op Superv-Eng-Gas Distr | C85: 87000000 | D85: 965319.58 | E85: -269509.39 | F85: 965319.58 | H85: 1234828.97
A86: %,V87400000 | B86: Mains and Services Exp | C86: 87400000 | D86: 189778.66 | E86: 24981.33 | F86: 189778.66 | H86: 164797.33
A87: %,V87500000 | B87: Measur-Reg Statn Exp Gen | C87: 87500000 | D87: 29200.06 | E87: -9309.83 | F87: 29200.06 | H87: 38509.89
A88: %,V87600000 | B88: Measur-Reg Statn Exp-Indus | C88: 87600000 | D88: 23891.25 | E88: -7616.47 | F88: 23891.25 | H88: 31507.72
A89: %,V87800000 | B89: Meter and House Regulator Exp | C89: 87800000 | D89: 130384.55 | E89: 9616.91 | F89: 130384.55 | H89: 120767.64
A90: %,V87900000 | B90: Oper Installation Service Exp | C90: 87900000 | D90: 126144.21 | E90: 10585.91 | F90: 126144.21 | H90: 115558.3
A91: %,V88000000 | B91: Operations Exp Other | C91: 88000000 | D91: 24571.43 | E91: 826.04 | F91: 24571.43 | H91: 23745.39
A92: %,NOP_GAS_DISTR_EXP | B92: Distribution Exp - Oper - Gas | D92: 1489289.74 | E92: -240425.5 | F92: 1489289.74 | H92: 1729715.24
A93: %,FACCOUNT,TNI_ACCOUNT_FERC,XBYYYYY01,NOP_DISTR_EXP | B93: Distribution Exp - Oper | D93: 1507179.64 | E93: -237698.58 | F93: 1507179.64 | H93: 1744878.22
A94: %,V90100000 | B94: Customer Acnt Supervision | C94: 90100000 | D94: 115.84 | E94: 85.76 | F94: 115.84 | H94: 30.08
A95: %,V90300000 | B95: Cust Records Collection Exp | C95: 90300000 | D95: 2066044.05 | E95: -206990.48 | F95: 2066044.05 | H95: 2273034.53
A96: %,FACCOUNT,TNI_ACCOUNT_FERC,XBYYYYY01,NOP_CUST_ACCTS_EXP | B96: Customer Accounts - Oper | D96: 2066159.89 | E96: -206904.72 | F96: 2066159.89 | H96: 2273064.61
A97: %,V90700000 | B97: Cust Serv Info Exp Supv | C97: 90700000 | D97: 0 | E97: 0 | F97: 0 | H97: 0
A98: %,V90800000 | B98: Customer Assistance Exp | C98: 90800000 | D98: 0 | E98: -286.1 | F98: 0 | H98: 286.1
A99: %,V91000000 | B99: Misc Cust Serv and Info Exp | C99: 91000000 | D99: 355578.76 | E99: -22829.98 | F99: 355578.76 | H99: 378408.74
A100: %,FACCOUNT,TNI_ACCOUNT_FERC,XBYYYYY01,NOP_CUSTOMER_SERV_EXP | B100: Cust Serv & Info Exp - Oper | D100: 355578.76 | E100: -23116.08 | F100: 355578.76 | H100: 378694.84
A101: %,V91200000 | B101: Demonstrating and Selling Exp | C101: 91200000 | D101: 781.98 | E101: -442.14 | F101: 781.98 | H101: 1224.12
A102: %,V91300000 | B102: Sales Advertising Exp | C102: 91300000 | D102: -46492.63 | E102: -516901.22 | F102: -46492.63 | H102: 470408.59
A103: %,V91600000 | B103: Misc Sales Exp | C103: 91600000 | D103: 304.01 | E103: 304.01 | F103: 304.01 | H103: 0
A104: %,FACCOUNT,TNI_ACCOUNT_FERC,XBYYYYY01,NOP_SALES_EXP | B104: Sales Expenses - Oper | D104: -45406.64 | E104: -517039.35 | F104: -45406.64 | H104: 471632.71
A105: %,V92000000 | B105: A_G Salaries | C105: 92000000 | D105: 10882747.01 | E105: -722184.79 | F105: 10882747.01 | H105: 11604931.8
A106: %,V92001000 | B106: Discretionary and Spot Awards | C106: 92001000 | D106: 402090 | E106: 60340 | F106: 402090 | H106: 341750
A107: %,V92002000 | B107: Stock Compensation Expense | C107: 92002000 | D107: 1491822 | E107: 1572374 | F107: 1491822 | H107: -80552
A108: %,V92100000 | B108: Office Supplies and Exp | C108: 92100000 | D108: 476388.67 | E108: -1564399.35 | F108: 476388.67 | H108: 2040788.02
A109: %,V92101000 | B109: Employee Expenses | C109: 92101000 | D109: 91986.73 | E109: -209437.46 | F109: 91986.73 | H109: 301424.19
A110: %,V92300000 | B110: Outside Service Employed | C110: 92300000 | D110: 11599264.11 | E110: -9397429.81 | F110: 11599264.11 | H110: 20996693.92
A111: %,V92400000 | B111: Property Insurance | C111: 92400000 | D111: 4127.12 | E111: 0 | F111: 4127.12 | H111: 4127.12
A112: %,V92500000 | B112: Injuries and Damages | C112: 92500000 | D112: 172877.3 | E112: -9629.9 | F112: 172877.3 | H112: 182507.2
A113: %,V92600000 | B113: Employee Pensions and Benefits | C113: 92600000 | D113: 3707219.16 | E113: 1198393.12 | F113: 3707219.16 | H113: 2508826.04
A114: %,V92601000 | B114: Non Service Pension & OPEB | C114: 92601000 | D114: -217056.01 | E114: -205107.32 | F114: -217056.01 | H114: -11948.69
A115: %,V92800000 | B115: Regulatory Commission Exp | C115: 92800000 | D115: 46.38 | E115: -984.75 | F115: 46.38 | H115: 1031.13
A116: %,V93010000 | B116: General Advertising Exp | C116: 93010000 | D116: 49006.03 | E116: -8029.96 | F116: 49006.03 | H116: 57035.99
A117: %,V93020000 | B117: Misc General Exp | C117: 93020000 | D117: 185941.71 | E117: 71857.04 | F117: 185941.71 | H117: 114084.67
A118: %,V93100000 | B118: Rents Admin and General | C118: 93100000 | D118: 1283642.84 | E118: -73364.99 | F118: 1283642.84 | H118: 1357007.83
A119: %,FACCOUNT,TNI_ACCOUNT_FERC,XBYYYYY01,NOP_ADMIN_GEN | B119: Admin & General Exp - Oper | D119: 30130103.05 | E119: -9287604.17 | F119: 30130103.05 | H119: 39417707.22
B120: Total Operation Expenses | D120: =D61+D62+D63+D70+D72+D73+D74+D75+D77+D78+D79+D81+D80+D93+D96+D100+D104+D119 -> 34563705.48 | E120: =E61+E62+E63+E70+E72+E73+E74+E75+E77+E78+E79+E81+E80+E93+E96+E100+E104+E119 -> -10189348.66 | F120: =F61+F62+F63+F70+F72+F73+F74+F75+F77+F78+F79+F81+F80+F93+F96+F100+F104+F119 -> 34563705.48
B122: Maintenance Expenses
A124: %,FACCOUNT,TNI_ACCOUNT_FERC,XBYYYYY01,NMAINT_PROD_EXP | B124: Production Expenses - Maint | D124: 0 | E124: =D124-H124 -> 0 | F124: 0
A125: %,FACCOUNT,TNI_ACCOUNT_FERC,XBYYYYY01,NMAINT_NG_STOR_PROC | B125: NG Stor, Term & Proc - Maint | D125: 0 | E125: =D125-H125 -> 0 | F125: 0
A127: %,V56910000 | B127: Maint of Computer Hardware | C127: 56910000 | D127: 0 | E127: =D127-H127 -> 0 | F127: 0 | H127: 0
A128: %,V56920000 | B128: Maint of Computer Software | C128: 56920000 | D128: 412.8 | E128: =D128-H128 -> 391.69 | F128: 412.8 | H128: 21.11
A129: %,NMAINT_ELEC_TRANS_EXP | B129: Transmission Exp - Maint-Elec | D129: 412.8 | E129: =D129-H129 -> 391.69 | F129: 412.8 | H129: 21.11
A130: %,FACCOUNT,TNI_ACCOUNT_FERC,XBYYYYY01,NMAINT_TRANS_EXP | B130: Transmission Exp - Maint | D130: 412.8 | E130: =D130-H130 -> 391.69 | F130: 412.8 | H130: 21.11
A131: %,FACCOUNT,TNI_ACCOUNT_FERC,XBYYYYY01,NMAINT_ENERGY_STORAGE | B131: Energy Storage - Maint | D131: 0 | E131: =D131-H131 -> 0 | F131: 0
A133: %,V88700000 | B133: Maint of Mains | C133: 88700000 | D133: 80108.12 | E133: =D133-H133 -> 11559.21 | F133: 80108.12 | H133: 68548.91
A134: %,V88900000 | B134: Maint Msr-Reg Statn Equi Gen | C134: 88900000 | D134: 29200.06 | E134: -9309.96 | F134: 29200.06 | H134: 38510.02
A135: %,V89000000 | B135: Maint Meas_Reg Stn Equip-Distr | C135: 89000000 | D135: 25051.76 | E135: -10219.34 | F135: 25051.76 | H135: 35271.1
A136: %,V89200000 | B136: Maint of Services | C136: 89200000 | D136: 28473.98 | E136: -9826.14 | F136: 28473.98 | H136: 38300.12
A137: %,V89300000 | B137: Maint Meters_House Regulators | C137: 89300000 | D137: 8773.38 | E137: 774.42 | F137: 8773.38 | H137: 7998.96
A138: %,V89400000 | B138: Other Maint Equipment | C138: 89400000 | D138: 79647.07 | E138: 13447.95 | F138: 79647.07 | H138: 66199.12
A139: %,NMAINT_GAS_DISTR_EXP | B139: Distribution Exp - Maint-Gas | D139: 251254.37 | E139: -3573.86 | F139: 251254.37 | H139: 254828.23
A140: %,FACCOUNT,TNI_ACCOUNT_FERC,XBYYYYY01,NMAINT_DISTR_EXP | B140: Distribution Exp - Maint | D140: 251254.37 | E140: -3573.86 | F140: 251254.37 | H140: 254828.23
A141: %,V93200000 | B141: Maint General Plant | C141: 93200000 | D141: 2798425.09 | E141: -2668412.17 | F141: 2798425.09 | H141: 5466837.26
A142: %,FACCOUNT,TNI_ACCOUNT_FERC,XBYYYYY01,NMAINT_ADMIN_GEN | B142: Maintenance Gen and Admin | D142: 2798425.09 | E142: -2668412.17 | F142: 2798425.09 | H142: 5466837.26
B143: Total Maintenance Expenses | D143: =D124+D125+D130+D131+D140+D142 -> 3050092.26 | E143: =E124+E125+E130+E131+E140+E142 -> -2671594.34 | F143: =F124+F125+F130+F131+F140+F142 -> 3050092.26
A145: %,V40300000 | B145: Dep Exp | C145: 40300000 | D145: 2466927.69 | E145: =D145-H145 -> -250992.22 | F145: 2466927.69 | H145: 2717919.91
A146: %,FACCOUNT,TNI_ACCOUNT_FERC,XBYYYYY01,NDEPRECIATION_EXPENSE | B146: Depreciation Expense | D146: 2466927.69 | E146: =D146-H146 -> -250992.22 | F146: 2466927.69 | H146: 2717919.91
A147: %,FACCOUNT,TNI_ACCOUNT_FERC,XBYYYYY01,NDEPRECIATION_ARO_EXP | B147: Depreciation Expense for AROs | D147: 0 | E147: =D147-H147 -> 0 | F147: 0
A149: %,V40434000 | B149: Cloude Amortizaiton Expense | C149: 40434000 | D149: 96527.48 | E149: =D149-H149 -> -0.05 | F149: 96527.48 | H149: 96527.53
A150: %,NAMORT_LMT_TERM_PROP | B150: Amort of Limited-Term Property | D150: 96527.48 | E150: -0.05 | F150: 96527.48 | H150: 96527.53
A151: %,V40500000 | B151: Amortization of Oth Plant | C151: 40500000 | D151: 332573.58 | E151: 558.05 | F151: 332573.58 | H151: 332015.53
A152: %,NAMORT_OTH_PROP | B152: Amort of Other Property | D152: 332573.58 | E152: 558.05 | F152: 332573.58 | H152: 332015.53
A153: %,FACCOUNT,TNI_ACCOUNT_FERC,XBYYYYY01,NAMORT_DEPL_UTIL | B153: Amort & Deplet of Util Plant | D153: 429101.06 | E153: 558 | F153: 429101.06 | H153: 428543.06
A154: %,FACCOUNT,TNI_ACCOUNT_FERC,XBYYYYY01,NAMORT_UTIL_ADJ | B154: Amort of Gas Plant Acq Adj | D154: 0 | E154: 0 | F154: 0
A155: %,FACCOUNT,TNI_ACCOUNT_FERC,XBYYYYY01,NAMORT_CONV_EXP | B155: Amort of Conversion Exp | D155: 0 | E155: 0 | F155: 0
A156: %,FACCOUNT,TNI_ACCOUNT_FERC,XBYYYYY01,NREG_DEBITS | B156: Reg Debits | D156: 0 | E156: 0 | F156: 0
A157: %,FACCOUNT,TNI_ACCOUNT_FERC,XBYYYYY01,NREG_CREDITS | B157: Reg Credits | D157: 0 | E157: 0 | F157: 0
A158: %,V40813200 | B158: Tax Exp-Property | C158: 40813200 | D158: 20000 | E158: 1917 | F158: 20000 | H158: 18083
A159: %,V40813600 | B159: Tax Exp-State and Local-Oth | C159: 40813600 | D159: 412.46 | E159: 412.46 | F159: 412.46 | H159: 0
A160: %,V40814500 | B160: Tax Exp-Payroll FICA-OASDI | C160: 40814500 | D160: 845620.03 | E160: -73181.19 | F160: 845620.03 | H160: 918801.22
A161: %,V40814600 | B161: Tax Exp-Payroll FICA-Medicar | C161: 40814600 | D161: 172848.9 | E161: -49704.92 | F161: 172848.9 | H161: 222553.82
A162: %,V40814700 | B162: Tax Exp-FUTA Employer | C162: 40814700 | D162: -19.74 | E162: -2275.83 | F162: -19.74 | H162: 2256.09
A163: %,V40814800 | B163: Tax Exp-SUTA Employer | C163: 40814800 | D163: 157174.92 | E163: 149295.17 | F163: 157174.92 | H163: 7879.75
A164: %,FACCOUNT,TNI_ACCOUNT_FERC,XBYYYYY01,NOTHER_TAXES_FERC | B164: Other Taxes FERC | D164: 1196036.57 | E164: 26462.69 | F164: 1196036.57 | H164: 1169573.88
A166: %,V40912000 | B166: Util Cur ST Exp | C166: 40912000 | D166: 4709 | E166: =D166-H166 -> -140018 | F166: 4709 | H166: 144727
A167: %,FACCOUNT,TNI_ACCOUNT_FERC,XBYYYYY01,NINC_TAX_EXP_ST | B167: Income Taxes - State | D167: 4709 | E167: =D167-H167 -> -140018 | F167: 4709 | H167: 144727
A168: %,V40911000 | B168: Util Cur Fed Exp | C168: 40911000 | D168: -2268264 | E168: =D168-H168 -> -1831213 | F168: -2268264 | H168: -437051
A169: %,FACCOUNT,TNI_ACCOUNT_FERC,XBYYYYY01,NINC_TAX_EXP_FED | B169: Income Taxes - Federal | D169: -2268264 | E169: =D169-H169 -> -1831213 | F169: -2268264 | H169: -437051
B170: Total Utilities Current Fed State | D170: =D167+D169 -> -2263555 | E170: =E167+E169 -> -1971231 | F170: =F167+F169 -> -2263555
A172: %,V41011000 | B172: Util Def Fed Exp-Dr | C172: 41011000 | D172: 3809972 | E172: =D172-H172 -> 2384582 | F172: 3809972 | H172: 1425390
A173: %,V41012000 | B173: Util Def ST Exp-Dr | C173: 41012000 | D173: 541781 | E173: =D173-H173 -> 260653 | F173: 541781 | H173: 281128
A174: %,FACCOUNT,TNI_ACCOUNT_FERC,XBYYYYY01,NDEFERRED_INC_TAX | B174: Deferred Income Taxes | D174: 4351753 | E174: =D174-H174 -> 2645235 | F174: 4351753 | H174: 1706518
A176: %,V41111000 | B176: Util Def Fed Exp-Cr | C176: 41111000 | D176: -18933239 | E176: =D176-H176 -> -16738787 | F176: -18933239 | H176: -2194452
A177: %,V41112000 | B177: Util Def ST Exp-Cr | C177: 41112000 | D177: -553785 | E177: -104144 | F177: -553785 | H177: -449641
A178: %,FACCOUNT,TNI_ACCOUNT_FERC,XBYYYYY01,NDEFERRED_INC_TAX_CR | B178: Prov Deferred Inc Tax - Cr | D178: -19487024 | E178: -16842931 | F178: -19487024 | H178: -2644093
A179: %,FACCOUNT,TNI_ACCOUNT_FERC,XBYYYYY01,NTAX_CRED_ADJ_INVEST | B179: Investment Tax Credit Adj | D179: 0 | E179: 0 | F179: 0
A180: %,FACCOUNT,TNI_ACCOUNT_FERC,XBYYYYY01,NTAX_CRED_GAIN_DISP | B180: Gain from Disposition of Plant | D180: 0 | E180: 0 | F180: 0
A181: %,FACCOUNT,TNI_ACCOUNT_FERC,XBYYYYY01,NTAX_CRED_LOSS_DISP | B181: Loss from Disposition of Plant | D181: 0 | E181: 0 | F181: 0
A182: %,FACCOUNT,TNI_ACCOUNT_FERC,XBYYYYY01,NACCRETION_EXP | B182: Accretion Expenses | D182: 0 | E182: 0 | F182: 0
B183: Total Operating Expenses | D183: =D120+D143+D146+D147+D153+D154+D155+D156+D157+D164+D170+D174+D178+D179+D180+D181+D182 -> 24307037.06 | E183: =E120+E143+E146+E147+E153+E154+E155+E156+E157+E164+E170+E174+E178+E179+E180+E181+E182 -> -29253841.53 | F183: =F120+F143+F146+F147+F153+F154+F155+F156+F157+F164+F170+F174+F178+F179+F180+F181+F182 -> 24307037.06
B186: Net Utility Operating Income(Loss) | D186: =D55-D183 -> 323272.55 | E186: =E55-E183 -> -2801980.14 | F186: =F55-F183 -> 323272.55
B189: Other Income & Deductions
A191: %,R,FACCOUNT,TNI_ACCOUNT_FERC,XBYYYYY01,NMERCH_REV | B191: Revenues from Merchandising | D191: 0 | E191: =D191-H191 -> 0 | F191: 0
A192: %,R,FACCOUNT,TNI_ACCOUNT_FERC,XBYYYYY01,NMERCH_EXP | B192: Costs and Exp Merch Job | D192: 0 | E192: 0 | F192: 0
A193: %,R,FACCOUNT,TNI_ACCOUNT_FERC,XBYYYYY01,NOPS_NON_UTIL_REV | B193: NonUtility Revenues | D193: 0 | E193: 0 | F193: 0
A194: %,R,FACCOUNT,TNI_ACCOUNT_FERC,XBYYYYY01,NOPS_NON_UTIL_EXP | B194: NonUtility Unaffil | D194: 0 | E194: 0 | F194: 0
A195: %,R,FACCOUNT,TNI_ACCOUNT_FERC,XBYYYYY01,NRENT_REV_NONOPS | B195: Nonoperating Rental Revenue | D195: 0 | E195: 0 | F195: 0
A196: %,R,FACCOUNT,TNI_ACCOUNT_FERC,XBYYYYY01,NEARNINGS_OF_SUBS | B196: Earnings of Subsidiaries | D196: 0 | E196: 0 | F196: 0
A197: %,V41902000 | B197: Interest Income Money Pool | C197: 41902000 | D197: 398.27 | E197: -294.78 | F197: 398.27 | H197: 693.05
A198: %,R,FACCOUNT,TNI_ACCOUNT_FERC,XBYYYYY01,NINT_DIV_INCOME | B198: Interest and Dividend Income | D198: 398.27 | E198: -294.78 | F198: 398.27 | H198: 693.05
A199: %,R,FACCOUNT,TNI_ACCOUNT_FERC,XBYYYYY01,NFUNDS_UDC | B199: Allow for Other FUDC | D199: 0 | E199: 0 | F199: 0
A200: %,V42100000 | B200: Misc Non Operating Income | C200: 42100000 | D200: 0 | E200: -356.25 | F200: 0 | H200: 356.25
A201: %,R,FACCOUNT,TNI_ACCOUNT_FERC,XBYYYYY01,NMISC_NONOP_INCOME | B201: Misc Nonoperating Income | D201: 0 | E201: -356.25 | F201: 0 | H201: 356.25
A202: %,R,FACCOUNT,TNI_ACCOUNT_FERC,XBYYYYY01,NDISP_PROP_GAIN | B202: Gain Disposition of Property | D202: 0 | E202: 0 | F202: 0
B203: Total Other Income | D203: =D191+D192+D193+D194+D195+D196+D198+D199+D201+D202 -> 398.27 | E203: =E191+E192+E193+E194+E195+E196+E198+E199+E201+E202 -> -651.03 | F203: =F191+F192+F193+F194+F195+F196+F198+F199+F201+F202 -> 398.27
A205: %,V42121000 | B205: Loss on Disposition of Asset | C205: 42121000 | D205: 10819.68 | E205: =D205-H205 -> 10819.68 | F205: 10819.68 | H205: 0
A206: %,V42122000 | B206: Loss on Impairment | C206: 42122000 | D206: 0 | E206: -1041091.78 | F206: 0 | H206: 1041091.78
A207: %,FACCOUNT,TNI_ACCOUNT_FERC,XBYYYYY01,NDISP_PROP_LOSS | B207: Loss on Disposal of Property | D207: 10819.68 | E207: -1030272.1 | F207: 10819.68 | H207: 1041091.78
A208: %,FACCOUNT,TNI_ACCOUNT_FERC,XBYYYYY01,NAMORT_MISC | B208: Misc Amortization | D208: 0 | E208: 0 | F208: 0
A209: %,V42610000 | B209: Other Inc_Exp-Donations | C209: 42610000 | D209: 10296.72 | E209: -161213.35 | F209: 10296.72 | H209: 171510.07
A210: %,FACCOUNT,TNI_ACCOUNT_FERC,XBYYYYY01,NDONATIONS | B210: Other Inc Exp Donations | D210: 10296.72 | E210: -161213.35 | F210: 10296.72 | H210: 171510.07
A211: %,FACCOUNT,TNI_ACCOUNT_FERC,XBYYYYY01,NINSURANCE_LIFE | B211: Corporate Owned Life Ins | D211: 0 | E211: 0 | F211: 0
A212: %,FACCOUNT,TNI_ACCOUNT_FERC,XBYYYYY01,NPENALTIES | B212: Penalties | D212: 0 | E212: 0 | F212: 0
A213: %,FACCOUNT,TNI_ACCOUNT_FERC,XBYYYYY01,NCIVIC_POL_EXP | B213: Other Inc Exp PoliticalContrib | D213: 0 | E213: 0 | F213: 0
A214: %,V42654000 | B214: Other Misc Exp Deduction | C214: 42654000 | D214: 344.31 | E214: -347615.37 | F214: 344.31 | H214: 347959.68
A215: %,FACCOUNT,TNI_ACCOUNT_FERC,XBYYYYY01,NOTHER_DEDUCTIONS | B215: Other Inc Deductions | D215: 344.31 | E215: -347615.37 | F215: 344.31 | H215: 347959.68
B216: Total Other Income Deductions | D216: =D207+D208+D210+D211+D212+D213+D215 -> 21460.71 | E216: =E207+E208+E210+E211+E212+E213+E215 -> -1539100.82 | F216: =F207+F208+F210+F211+F212+F213+F215 -> 21460.71
A218: %,V40823300 | B218: Non Util Sales and Use Tax | C218: 40823300 | D218: 0 | E218: =D218-H218 -> -10000 | F218: 0 | H218: 10000
A219: %,FACCOUNT,TNI_ACCOUNT_FERC,XBYYYYY01,NTAX_NON_INC | B219: NonUtility Taxes | D219: 0 | E219: =D219-H219 -> -10000 | F219: 0 | H219: 10000
A221: %,V40921000 | B221: Non Util Cur Fed Exp | C221: 40921000 | D221: -30976 | E221: =D221-H221 -> -1368821 | F221: -30976 | H221: 1337845
A222: %,FACCOUNT,TNI_ACCOUNT_FERC,XBYYYYY01,NOTH_TAX_EXP_FED | B222: Income Taxes - Federal | D222: -30976 | E222: =D222-H222 -> -1368821 | F222: -30976 | H222: 1337845
A223: %,V40922000 | B223: Non Util Cur ST Exp | C223: 40922000 | D223: -4718 | E223: =D223-H223 -> 40321 | F223: -4718 | H223: -45039
A224: %,FACCOUNT,TNI_ACCOUNT_FERC,XBYYYYY01,NOTH_TAX_EXP_ST | B224: Income Taxes - State | D224: -4718 | E224: =D224-H224 -> 40321 | F224: -4718 | H224: -45039
B225: Total Income Taxes Federal Other | D225: =D222+D224 -> -35694 | E225: =E222+E224 -> -1328500 | F225: =F222+F224 -> -35694
A227: %,FACCOUNT,TNI_ACCOUNT_FERC,XBYYYYY01,NOTH_DEFERRED_TAXES | B227: Other Deferred Income Taxes | D227: 0 | E227: =D227-H227 -> 0 | F227: 0
A228: %,V41121000 | B228: Non Util Def Fed Exp-Cr | C228: 41121000 | D228: 0 | E228: =D228-H228 -> 0 | F228: 0 | H228: 0
A229: %,FACCOUNT,TNI_ACCOUNT_FERC,XBYYYYY01,NOTH_DEFERRED_TAX_CR | B229: Prov Defer Inc Tax - Oth - Cr | D229: 0 | E229: =D229-H229 -> 0 | F229: 0 | H229: 0
A230: %,FACCOUNT,TNI_ACCOUNT_FERC,XBYYYYY01,NTAX_INVEST_CR_ADJ | B230: Invest Tax Credits Adjust -Net | D230: 0 | E230: =D230-H230 -> 0 | F230: 0
... 25 more rows

Sheet Feb22
A1: %,LACTUALS,UPOSTED_TRAN_AMT | B1: %,ATF,FDESCR,UDESCR | C1: %,ATT,FACCOUNT | D1: %,LACTUALS,UPOSTED_TRAN_AMT,SPER,FBOOK_CODE,VR | E1: %,C | F1: %,LACTUALS,UPOSTED_TRAN_AMT,SYTD,FBOOK_CODE,VR | H1: %,LACTUALS,UPOSTED_TRAN_AMT,SPER-1,FBOOK_CODE,VR
B2: NiSource Corporate Services Co | H2: FOR
B3: Income Statement-FERC | H3: CALC
B4: Regulatory View - FERC Account
B5: For the Month Ended February 28, 2022 | H5: PURPOSES
D7: Current | E7: Change from | F7: Year-To- | H7: Prior
D8: Month | E8: Prior Month | F8: Date | H8: Month
B10: Operating Revenues
A12: %,R,FACCOUNT,TNI_ACCOUNT_FERC,XBYYYYY01,NGAS_RESID_REV | B12: Gas Residential Sales | D12: 0 | E12: =D12-H12 -> 0 | F12: 0
A13: %,R,FACCOUNT,TNI_ACCOUNT_FERC,XBYYYYY01,NGAS_COMM_INDUST_REV | B13: Gas Comm & Indust Revenues | D13: 0 | E13: =D13-H13 -> 0 | F13: 0
A14: %,R,FACCOUNT,TNI_ACCOUNT_FERC,XBYYYYY01,NGAS_SALES_RESALE | B14: Gas Sales for Resale | D14: 0 | E14: =D14-H14 -> 0 | F14: 0
A15: %,R,FACCOUNT,TNI_ACCOUNT_FERC,XBYYYYY01,NGAS_INTERDEPT_SALES | B15: Gas Interdepartmental Sales | D15: 0 | E15: =D15-H15 -> 0 | F15: 0
A16: %,R,FACCOUNT,TNI_ACCOUNT_FERC,XBYYYYY01,NGAS_INTRACO_TRANSFER | B16: Gas Intercompany Transfers | D16: 0 | E16: =D16-H16 -> 0 | F16: 0
A17: xx | B17: Total Sales of Gas | D17: =D12+D13+D14+D15+D16 -> 0 | E17: =E12+E13+E14+E15+E16 -> 0 | F17: =F12+F13+F14+F15+F16 -> 0
A19: %,R,FACCOUNT,TNI_ACCOUNT_FERC,XBYYYYY01,NELE_RESID_REV | B19: Electric Residential Revenues | D19: 0 | E19: =D19-H19 -> 0 | F19: 0
A20: %,R,FACCOUNT,TNI_ACCOUNT_FERC,XBYYYYY01,NELE_COMM_IND_REV | B20: Elec Comm & Indust Rev | D20: 0 | E20: 0 | F20: 0
A21: %,R,FACCOUNT,TNI_ACCOUNT_FERC,XBYYYYY01,NELE_STREET_HWY_LIGHT | B21: Public Street & Hwy Lighting | D21: 0 | E21: 0 | F21: 0
A22: %,R,FACCOUNT,TNI_ACCOUNT_FERC,XBYYYYY01,NELE_OTH_SALES_PUBLIC | B22: Elec Oth Sales to Public Auth | D22: 0 | E22: 0 | F22: 0
A23: %,R,FACCOUNT,TNI_ACCOUNT_FERC,XBYYYYY01,NELE_RAILROAD | B23: Sales to Railroads & Railways | D23: 0 | E23: 0 | F23: 0
A24: %,R,FACCOUNT,TNI_ACCOUNT_FERC,XBYYYYY01,NELE_SALES_RESALE | B24: Electric Sales for Resale | D24: 0 | E24: 0 | F24: 0
A25: %,R,FACCOUNT,TNI_ACCOUNT_FERC,XBYYYYY01,NELE_INTERDEPT_SALES | B25: Elec Interdepartmental Sales | D25: 0 | E25: 0 | F25: 0
A26: xx | B26: Total Sales of Electricity | D26: =D19+D20+D21+D22+D23+D24+D25 -> 0 | E26: =E19+E20+E21+E22+E23+E24+E25 -> 0 | F26: =F19+F20+F21+F22+F23+F24+F25 -> 0
A28: %,R,FACCOUNT,TNI_ACCOUNT_FERC,XBYYYYY01,NFORFEITED_DISC_GAS | B28: Forfeited Discounts - Gas | D28: 0 | E28: =D28-H28 -> 0 | F28: 0
A29: %,R,FACCOUNT,TNI_ACCOUNT_FERC,XBYYYYY01,NFORFEITED_DISC_ELE | B29: Forfeited Discounts - Ele | D29: 0 | E29: =D29-H29 -> 0 | F29: 0
B30: Total Forfeited Discounts | D30: =D28+D29 -> 0 | E30: =E28+E29 -> 0 | F30: =F28+F29 -> 0
A32: %,R,FACCOUNT,TNI_ACCOUNT_FERC,XBYYYYY01,NMISC_SERV_REVS_GAS | B32: Misc Service Revenues - Gas | D32: 0 | E32: =D32-H32 -> 0 | F32: 0
A33: %,R,FACCOUNT,TNI_ACCOUNT_FERC,XBYYYYY01,NMISC_SERV_REVS_ELE | B33: Misc Service Revenues - Ele | D33: 0 | E33: =D33-H33 -> 0 | F33: 0
B34: Total Miscellaneous Service Revenues | D34: =D32+D33 -> 0 | E34: =E32+E33 -> 0 | F34: =F32+F33 -> 0
A36: %,R,FACCOUNT,TNI_ACCOUNT_FERC,XBYYYYY01,NRENT_ELE_PROP | B36: Rent from Electricity Property | D36: 0 | E36: =D36-H36 -> 0 | F36: 0
A37: %,R,FACCOUNT,TNI_ACCOUNT_FERC,XBYYYYY01,NOTH_ELE_REV | B37: Other Electric Revenues | D37: 0 | E37: 0 | F37: 0
A38: %,R,FACCOUNT,TNI_ACCOUNT_FERC,XBYYYYY01,NOTH_ELE_TRANS_REV | B38: Rev Transm of Elec of Oth | D38: 0 | E38: 0 | F38: 0
A39: %,V45700000 | B39: Non Util IC Rev Direct | C39: 45700000 | D39: 11741329.56 | E39: -4790672.56 | F39: 28273331.68 | H39: 16532002.12
A40: %,V45700030 | B40: Non Util IC Rev Indirect | C40: 45700030 | D40: 40950504.1 | E40: 34996698.72 | F40: 46904309.48 | H40: 5953805.38
A41: %,V45700040 | B41: Non Util IC Rev Interest | C41: 45700040 | D41: 136263.37 | E41: -16276.96 | F41: 288803.7 | H41: 152540.33
A42: %,V45810000 | B42: Non Util Non-Affill Revenue | C42: 45810000 | D42: 1856727.47 | E42: -135234.31 | F42: 3848689.25 | H42: 1991961.78
A43: %,R,FACCOUNT,TNI_ACCOUNT_FERC,XBYYYYY01,NOTH_REV_SERVICE_CO | B43: Nonutility Revenues - Serv Co | D43: 54684824.5 | E43: 30054514.89 | F43: 79315134.11 | H43: 24630309.61
A44: %,R,FACCOUNT,TNI_ACCOUNT_FERC,XBYYYYY01,NREG_ELE_TRANS_REV | B44: Regional Transm Service Rev | D44: 0 | E44: 0 | F44: 0
A45: %,R,FACCOUNT,TNI_ACCOUNT_FERC,XBYYYYY01,NTRANSPORT_GATH_REV | B45: Rev Transp Gas of Oth - Gather | D45: 0 | E45: 0 | F45: 0
A46: %,R,FACCOUNT,TNI_ACCOUNT_FERC,XBYYYYY01,NTRANSPORT_TRANS_REV | B46: Rev Transp Gas of Oth - Transm | D46: 0 | E46: 0 | F46: 0
A47: %,R,FACCOUNT,TNI_ACCOUNT_FERC,XBYYYYY01,NTRANSPORT_DISTR_REV | B47: Rev Transp Gas of Oth - Distr | D47: 0 | E47: 0 | F47: 0
A48: %,R,FACCOUNT,TNI_ACCOUNT_FERC,XBYYYYY01,NSTORE_GAS_REV | B48: Rev from Storing Gas of Oth | D48: 0 | E48: 0 | F48: 0
A49: %,R,FACCOUNT,TNI_ACCOUNT_FERC,XBYYYYY01,NSALES_EXTRACT_GAS | B49: Sales - Prod Extracted from NG | D49: 0 | E49: 0 | F49: 0
A50: %,R,FACCOUNT,TNI_ACCOUNT_FERC,XBYYYYY01,NGAS_OIL_SALES | B50: Incidental Gasoline & Oil Sale | D50: 0 | E50: 0 | F50: 0
A51: %,R,FACCOUNT,TNI_ACCOUNT_FERC,XBYYYYY01,NRENT_GAS_PROP | B51: Rent from Gas Property | D51: 0 | E51: 0 | F51: 0
A52: %,R,FACCOUNT,TNI_ACCOUNT_FERC,XBYYYYY01,NOTH_GAS_REV | B52: Other Gas Revenues | D52: 0 | E52: 0 | F52: 0
A53: %,R,FACCOUNT,TNI_ACCOUNT_FERC,XBYYYYY01,NGAS_PROV_RATE_REFUND | B53: Gas Provision of Rate Refunds | D53: 0 | E53: 0 | F53: 0
B54: Total Other Operating Revenues | D54: =D30+D34+D36+D37+D38+D43+D44+D45+D46+D47+D48+D49+D50+D51+D52+D53 -> 54684824.5 | E54: =E30+E34+E36+E37+E38+E43+E44+E45+E46+E47+E48+E49+E50+E51+E52+E53 -> 30054514.89 | F54: =F30+F34+F36+F37+F38+F43+F44+F45+F46+F47+F48+F49+F50+F51+F52+F53 -> 79315134.11
A55: xx | B55: Total Operating Revenues | D55: =D17+D26+D54 -> 54684824.5 | E55: =E17+E26+E54 -> 30054514.89 | F55: =F17+F26+F54 -> 79315134.11
B57: Operating Expenses
B59: Operation Expenses
A61: %,FACCOUNT,TNI_ACCOUNT_FERC,XBYYYYY01,NOP_MANUF_GAS | B61: Manufac Gas Production - Oper | D61: 0 | E61: =D61-H61 -> 0 | F61: 0
A62: %,FACCOUNT,TNI_ACCOUNT_FERC,XBYYYYY01,NOP_NTRLGAS_PROD_GTH | B62: NG Production & Gather - Oper | D62: 0 | E62: =D62-H62 -> 0 | F62: 0
A63: %,FACCOUNT,TNI_ACCOUNT_FERC,XBYYYYY01,NOP_PROD_EXTRACT | B63: Products Extraction - Oper | D63: 0 | E63: =D63-H63 -> 0 | F63: 0
A65: %,V80500100 | B65: Propane Purchases | C65: 80500100 | D65: 0 | E65: =D65-H65 -> 0 | F65: 0 | H65: 0
A66: %,NOP_NG_PURCH_OTHER | B66: Other Gas Purchases | D66: 0 | E66: 0 | F66: 0 | H66: 0
A67: %,V80720000 | B67: Oper-Purch Gas Measrg Stations | C67: 80720000 | D67: 428614.2 | E67: -24601.15 | F67: 881829.55 | H67: 453215.35
A68: %,V80751000 | B68: Purch Gas Exp - Mgmt Fee | C68: 80751000 | D68: 80856.15 | E68: -9611.33 | F68: 171323.63 | H68: 90467.48
A69: %,NOP_NG_PURCH_EXPENSE | B69: Purchased Gas Expenses | D69: 509470.35 | E69: -34212.48 | F69: 1053153.18 | H69: 543682.83
A70: %,FACCOUNT,TNI_ACCOUNT_FERC,XBYYYYY01,NOP_OTH_GAS_SUPPLY | B70: Other Gas Supply - Operations | D70: 509470.35 | E70: -34212.48 | F70: 1053153.18 | H70: 543682.83
A71: %,V50000000 | B71: Op Superv_Eng-Steam | C71: 50000000 | D71: 4626.98 | E71: -1394.21 | F71: 10648.17 | H71: 6021.19
A72: %,FACCOUNT,TNI_ACCOUNT_FERC,XBYYYYY01,NOP_STEAM_POWER | B72: Steam Power - Operations | D72: 4626.98 | E72: -1394.21 | F72: 10648.17 | H72: 6021.19
A73: %,FACCOUNT,TNI_ACCOUNT_FERC,XBYYYYY01,NOP_HYDRAULIC_POWER | B73: Hydraulic Power - Operations | D73: 0 | E73: 0 | F73: 0
A74: %,FACCOUNT,TNI_ACCOUNT_FERC,XBYYYYY01,NOP_SOLAR_GENERATION | B74: Solar Generation - Operations | D74: 0 | E74: 0 | F74: 0
A75: %,FACCOUNT,TNI_ACCOUNT_FERC,XBYYYYY01,NOP_OTHER_POWER | B75: Other Power - Operations | D75: 0 | E75: 0 | F75: 0
A76: %,V55700000 | B76: Other Exp | C76: 55700000 | D76: -386.76 | E76: -773.52 | F76: 0 | H76: 386.76
A77: %,FACCOUNT,TNI_ACCOUNT_FERC,XBYYYYY01,NOP_OTH_POWER_SUPPLY | B77: Other Power Supply - Oper | D77: -386.76 | E77: -773.52 | F77: 0 | H77: 386.76
A78: %,FACCOUNT,TNI_ACCOUNT_FERC,XBYYYYY01,NOP_NG_STOR_TERM_PROC | B78: NG Stor, Term & Proc - Oper | D78: 0 | E78: 0 | F78: 0
A80: %,V85900000 | B80: Gas Transmission Exp | C80: 85900000 | D80: 0 | E80: =D80-H80 -> 0 | F80: 0 | H80: 0
A81: %,NOP_GAS_TRANS_EXP | B81: Transmission Exp - Oper - Gas | D81: 0 | E81: =D81-H81 -> 0 | F81: 0 | H81: 0
A82: %,FACCOUNT,TNI_ACCOUNT_FERC,XBYYYYY01,NOP_TRANS_EXP | B82: Transmission Exp - Oper | D82: 0 | E82: =D82-H82 -> 0 | F82: 0 | H82: 0
A83: %,FACCOUNT,TNI_ACCOUNT_FERC,XBYYYYY01,NOP_REG_MARKET_EXP | B83: Regional Market Exp - Oper | D83: 0 | E83: =D83-H83 -> 0 | F83: 0
A84: %,FACCOUNT,TNI_ACCOUNT_FERC,XBYYYYY01,NOP_ENERGY_STORAGE | B84: Energy Storage - Oper | D84: 0 | E84: =D84-H84 -> 0 | F84: 0
A86: %,V58000000 | B86: Op Superv_Eng-Elec Distr | C86: 58000000 | D86: 3959.34 | E86: =D86-H86 -> -13930.56 | F86: 21849.24 | H86: 17889.9
A87: %,NOP_ELEC_DISTR_EXP | B87: Distribution Exp - Oper - Elec | D87: 3959.34 | E87: -13930.56 | F87: 21849.24 | H87: 17889.9
A88: %,V87000000 | B88: Op Superv-Eng-Gas Distr | C88: 87000000 | D88: 1226101.71 | E88: 260782.13 | F88: 2191421.29 | H88: 965319.58
A89: %,V87400000 | B89: Mains and Services Exp | C89: 87400000 | D89: 165857.59 | E89: -23921.07 | F89: 355636.25 | H89: 189778.66
A90: %,V87500000 | B90: Measur-Reg Statn Exp Gen | C90: 87500000 | D90: 38056.76 | E90: 8856.7 | F90: 67256.82 | H90: 29200.06
A91: %,V87600000 | B91: Measur-Reg Statn Exp-Indus | C91: 87600000 | D91: 31138.06 | E91: 7246.81 | F91: 55029.31 | H91: 23891.25
A92: %,V87800000 | B92: Meter and House Regulator Exp | C92: 87800000 | D92: 115254.25 | E92: -15130.3 | F92: 245638.8 | H92: 130384.55
A93: %,V87900000 | B93: Oper Installation Service Exp | C93: 87900000 | D93: 107790.49 | E93: -18353.72 | F93: 233934.7 | H93: 126144.21
A94: %,V88000000 | B94: Operations Exp Other | C94: 88000000 | D94: 21067.31 | E94: -3504.12 | F94: 45638.74 | H94: 24571.43
A95: %,NOP_GAS_DISTR_EXP | B95: Distribution Exp - Oper - Gas | D95: 1705266.17 | E95: 215976.43 | F95: 3194555.91 | H95: 1489289.74
A96: %,FACCOUNT,TNI_ACCOUNT_FERC,XBYYYYY01,NOP_DISTR_EXP | B96: Distribution Exp - Oper | D96: 1709225.51 | E96: 202045.87 | F96: 3216405.15 | H96: 1507179.64
A97: %,V90100000 | B97: Customer Acnt Supervision | C97: 90100000 | D97: 674.1 | E97: 558.26 | F97: 789.94 | H97: 115.84
A98: %,V90300000 | B98: Cust Records Collection Exp | C98: 90300000 | D98: 1970025.46 | E98: -96018.59 | F98: 4036069.51 | H98: 2066044.05
A99: %,FACCOUNT,TNI_ACCOUNT_FERC,XBYYYYY01,NOP_CUST_ACCTS_EXP | B99: Customer Accounts - Oper | D99: 1970699.56 | E99: -95460.33 | F99: 4036859.45 | H99: 2066159.89
A100: %,V90700000 | B100: Cust Serv Info Exp Supv | C100: 90700000 | D100: 0 | E100: 0 | F100: 0 | H100: 0
A101: %,V90800000 | B101: Customer Assistance Exp | C101: 90800000 | D101: -1549.09 | E101: -1549.09 | F101: -1549.09 | H101: 0
A102: %,V91000000 | B102: Misc Cust Serv and Info Exp | C102: 91000000 | D102: 325745.96 | E102: -29832.8 | F102: 681324.72 | H102: 355578.76
A103: %,FACCOUNT,TNI_ACCOUNT_FERC,XBYYYYY01,NOP_CUSTOMER_SERV_EXP | B103: Cust Serv & Info Exp - Oper | D103: 324196.87 | E103: -31381.89 | F103: 679775.63 | H103: 355578.76
A104: %,V91200000 | B104: Demonstrating and Selling Exp | C104: 91200000 | D104: 235.18 | E104: -546.8 | F104: 1017.16 | H104: 781.98
A105: %,V91300000 | B105: Sales Advertising Exp | C105: 91300000 | D105: 7.38 | E105: 46500.01 | F105: -46485.25 | H105: -46492.63
A106: %,V91600000 | B106: Misc Sales Exp | C106: 91600000 | D106: 0 | E106: -304.01 | F106: 304.01 | H106: 304.01
A107: %,FACCOUNT,TNI_ACCOUNT_FERC,XBYYYYY01,NOP_SALES_EXP | B107: Sales Expenses - Oper | D107: 242.56 | E107: 45649.2 | F107: -45164.08 | H107: -45406.64
A108: %,V92000000 | B108: A_G Salaries | C108: 92000000 | D108: 10949302.36 | E108: 66555.35 | F108: 21832049.37 | H108: 10882747.01
A109: %,V92001000 | B109: Discretionary and Spot Awards | C109: 92001000 | D109: 594260 | E109: 192170 | F109: 996350 | H109: 402090
A110: %,V92002000 | B110: Stock Compensation Expense | C110: 92002000 | D110: 370798 | E110: -1121024 | F110: 1862620 | H110: 1491822
A111: %,V92100000 | B111: Office Supplies and Exp | C111: 92100000 | D111: 215838.04 | E111: -260550.63 | F111: 692226.71 | H111: 476388.67
A112: %,V92101000 | B112: Employee Expenses | C112: 92101000 | D112: 194941.52 | E112: 102954.79 | F112: 286928.25 | H112: 91986.73
A113: %,V92300000 | B113: Outside Service Employed | C113: 92300000 | D113: 8798587.93 | E113: -2800676.18 | F113: 20397852.04 | H113: 11599264.11
A114: %,V92400000 | B114: Property Insurance | C114: 92400000 | D114: 4127.12 | E114: 0 | F114: 8254.24 | H114: 4127.12
A115: %,V92500000 | B115: Injuries and Damages | C115: 92500000 | D115: 181139.57 | E115: 8262.27 | F115: 354016.87 | H115: 172877.3
A116: %,V92600000 | B116: Employee Pensions and Benefits | C116: 92600000 | D116: 2918412.9 | E116: -788806.26 | F116: 6625632.06 | H116: 3707219.16
A117: %,V92601000 | B117: Non Service Pension & OPEB | C117: 92601000 | D117: -217056.01 | E117: 0 | F117: -434112.02 | H117: -217056.01
A118: %,V92800000 | B118: Regulatory Commission Exp | C118: 92800000 | D118: 0 | E118: -46.38 | F118: 46.38 | H118: 46.38
A119: %,V93010000 | B119: General Advertising Exp | C119: 93010000 | D119: 29389.67 | E119: -19616.36 | F119: 78395.7 | H119: 49006.03
A120: %,V93020000 | B120: Misc General Exp | C120: 93020000 | D120: 206254.7 | E120: 20312.99 | F120: 392196.41 | H120: 185941.71
A121: %,V93100000 | B121: Rents Admin and General | C121: 93100000 | D121: 1140688.99 | E121: -142953.85 | F121: 2424331.83 | H121: 1283642.84
A122: %,FACCOUNT,TNI_ACCOUNT_FERC,XBYYYYY01,NOP_ADMIN_GEN | B122: Admin & General Exp - Oper | D122: 25386684.79 | E122: -4743418.26 | F122: 55516787.84 | H122: 30130103.05
B123: Total Operation Expenses | D123: =D61+D62+D63+D70+D72+D73+D74+D75+D77+D78+D82+D84+D83+D96+D99+D103+D107+D122 -> 29904759.86 | E123: =E61+E62+E63+E70+E72+E73+E74+E75+E77+E78+E82+E84+E83+E96+E99+E103+E107+E122 -> -4658945.62 | F123: =F61+F62+F63+F70+F72+F73+F74+F75+F77+F78+F82+F84+F83+F96+F99+F103+F107+F122 -> 64468465.34
B125: Maintenance Expenses
A127: %,FACCOUNT,TNI_ACCOUNT_FERC,XBYYYYY01,NMAINT_PROD_EXP | B127: Production Expenses - Maint | D127: 0 | E127: =D127-H127 -> 0 | F127: 0
A128: %,FACCOUNT,TNI_ACCOUNT_FERC,XBYYYYY01,NMAINT_NG_STOR_PROC | B128: NG Stor, Term & Proc - Maint | D128: 0 | E128: =D128-H128 -> 0 | F128: 0
A130: %,V56920000 | B130: Maint of Computer Software | C130: 56920000 | D130: -412.8 | E130: =D130-H130 -> -825.6 | F130: 0 | H130: 412.8
A131: %,NMAINT_ELEC_TRANS_EXP | B131: Transmission Exp - Maint-Elec | D131: -412.8 | E131: =D131-H131 -> -825.6 | F131: 0 | H131: 412.8
A132: %,FACCOUNT,TNI_ACCOUNT_FERC,XBYYYYY01,NMAINT_TRANS_EXP | B132: Transmission Exp - Maint | D132: -412.8 | E132: =D132-H132 -> -825.6 | F132: 0 | H132: 412.8
A133: %,FACCOUNT,TNI_ACCOUNT_FERC,XBYYYYY01,NMAINT_ENERGY_STORAGE | B133: Energy Storage - Maint | D133: 0 | E133: =D133-H133 -> 0 | F133: 0
A135: %,V88700000 | B135: Maint of Mains | C135: 88700000 | D135: 54684.2 | E135: =D135-H135 -> -25423.92 | F135: 134792.32 | H135: 80108.12
A136: %,V88900000 | B136: Maint Msr-Reg Statn Equi Gen | C136: 88900000 | D136: 38056.76 | E136: 8856.7 | F136: 67256.82 | H136: 29200.06
A137: %,V89000000 | B137: Maint Meas_Reg Stn Equip-Distr | C137: 89000000 | D137: 33963.87 | E137: 8912.11 | F137: 59015.63 | H137: 25051.76
A138: %,V89200000 | B138: Maint of Services | C138: 89200000 | D138: 14560.43 | E138: -13913.55 | F138: 43034.41 | H138: 28473.98
A139: %,V89300000 | B139: Maint Meters_House Regulators | C139: 89300000 | D139: 6838.65 | E139: -1934.73 | F139: 15612.03 | H139: 8773.38
A140: %,V89400000 | B140: Other Maint Equipment | C140: 89400000 | D140: 60977.44 | E140: -18669.63 | F140: 140624.51 | H140: 79647.07
A141: %,NMAINT_GAS_DISTR_EXP | B141: Distribution Exp - Maint-Gas | D141: 209081.35 | E141: -42173.02 | F141: 460335.72 | H141: 251254.37
A142: %,FACCOUNT,TNI_ACCOUNT_FERC,XBYYYYY01,NMAINT_DISTR_EXP | B142: Distribution Exp - Maint | D142: 209081.35 | E142: -42173.02 | F142: 460335.72 | H142: 251254.37
A143: %,V93200000 | B143: Maint General Plant | C143: 93200000 | D143: 2890058.92 | E143: 91633.83 | F143: 5688484.01 | H143: 2798425.09
A144: %,FACCOUNT,TNI_ACCOUNT_FERC,XBYYYYY01,NMAINT_ADMIN_GEN | B144: Maintenance Gen and Admin | D144: 2890058.92 | E144: 91633.83 | F144: 5688484.01 | H144: 2798425.09
B145: Total Maintenance Expenses | D145: =D127+D128+D132+D133+D142+D144 -> 3098727.47 | E145: =E127+E128+E132+E133+E142+E144 -> 48635.21 | F145: =F127+F128+F132+F133+F142+F144 -> 6148819.73
A147: %,V40300000 | B147: Dep Exp | C147: 40300000 | D147: 2467630.96 | E147: =D147-H147 -> 703.27 | F147: 4934558.65 | H147: 2466927.69
A148: %,FACCOUNT,TNI_ACCOUNT_FERC,XBYYYYY01,NDEPRECIATION_EXPENSE | B148: Depreciation Expense | D148: 2467630.96 | E148: =D148-H148 -> 703.27 | F148: 4934558.65 | H148: 2466927.69
A149: %,FACCOUNT,TNI_ACCOUNT_FERC,XBYYYYY01,NDEPRECIATION_ARO_EXP | B149: Depreciation Expense for AROs | D149: 0 | E149: =D149-H149 -> 0 | F149: 0
A151: %,V40434000 | B151: Cloude Amortizaiton Expense | C151: 40434000 | D151: 130048.21 | E151: =D151-H151 -> 33520.73 | F151: 226575.69 | H151: 96527.48
A152: %,NAMORT_LMT_TERM_PROP | B152: Amort of Limited-Term Property | D152: 130048.21 | E152: 33520.73 | F152: 226575.69 | H152: 96527.48
A153: %,V40500000 | B153: Amortization of Oth Plant | C153: 40500000 | D153: 376140.56 | E153: 43566.98 | F153: 708714.14 | H153: 332573.58
A154: %,NAMORT_OTH_PROP | B154: Amort of Other Property | D154: 376140.56 | E154: 43566.98 | F154: 708714.14 | H154: 332573.58
A155: %,FACCOUNT,TNI_ACCOUNT_FERC,XBYYYYY01,NAMORT_DEPL_UTIL | B155: Amort & Deplet of Util Plant | D155: 506188.77 | E155: 77087.71 | F155: 935289.83 | H155: 429101.06
A156: %,FACCOUNT,TNI_ACCOUNT_FERC,XBYYYYY01,NAMORT_UTIL_ADJ | B156: Amort of Gas Plant Acq Adj | D156: 0 | E156: 0 | F156: 0
A157: %,FACCOUNT,TNI_ACCOUNT_FERC,XBYYYYY01,NAMORT_CONV_EXP | B157: Amort of Conversion Exp | D157: 0 | E157: 0 | F157: 0
A158: %,FACCOUNT,TNI_ACCOUNT_FERC,XBYYYYY01,NREG_DEBITS | B158: Reg Debits | D158: 0 | E158: 0 | F158: 0
A159: %,FACCOUNT,TNI_ACCOUNT_FERC,XBYYYYY01,NREG_CREDITS | B159: Reg Credits | D159: 0 | E159: 0 | F159: 0
A160: %,V40813200 | B160: Tax Exp-Property | C160: 40813200 | D160: 20000 | E160: 0 | F160: 40000 | H160: 20000
A161: %,V40813600 | B161: Tax Exp-State and Local-Oth | C161: 40813600 | D161: 1508.53 | E161: 1096.07 | F161: 1920.99 | H161: 412.46
A162: %,V40814500 | B162: Tax Exp-Payroll FICA-OASDI | C162: 40814500 | D162: 273854.97 | E162: -571765.06 | F162: 1119475 | H162: 845620.03
A163: %,V40814600 | B163: Tax Exp-Payroll FICA-Medicar | C163: 40814600 | D163: 500516.09 | E163: 327667.19 | F163: 673364.99 | H163: 172848.9
A164: %,V40814700 | B164: Tax Exp-FUTA Employer | C164: 40814700 | D164: 3949.11 | E164: 3968.85 | F164: 3929.37 | H164: -19.74
A165: %,V40814800 | B165: Tax Exp-SUTA Employer | C165: 40814800 | D165: 57529.34 | E165: -99645.58 | F165: 214704.26 | H165: 157174.92
A166: %,FACCOUNT,TNI_ACCOUNT_FERC,XBYYYYY01,NOTHER_TAXES_FERC | B166: Other Taxes FERC | D166: 857358.04 | E166: -338678.53 | F166: 2053394.61 | H166: 1196036.57
A168: %,V40912000 | B168: Util Cur ST Exp | C168: 40912000 | D168: 889 | E168: =D168-H168 -> -3820 | F168: 5598 | H168: 4709
A169: %,FACCOUNT,TNI_ACCOUNT_FERC,XBYYYYY01,NINC_TAX_EXP_ST | B169: Income Taxes - State | D169: 889 | E169: =D169-H169 -> -3820 | F169: 5598 | H169: 4709
A170: %,V40911000 | B170: Util Cur Fed Exp | C170: 40911000 | D170: 2305026 | E170: =D170-H170 -> 4573290 | F170: 36762 | H170: -2268264
A171: %,FACCOUNT,TNI_ACCOUNT_FERC,XBYYYYY01,NINC_TAX_EXP_FED | B171: Income Taxes - Federal | D171: 2305026 | E171: =D171-H171 -> 4573290 | F171: 36762 | H171: -2268264
B172: Total Utilities Current Fed State | D172: =D169+D171 -> 2305915 | E172: =E169+E171 -> 4569470 | F172: =F169+F171 -> 42360
A174: %,V41011000 | B174: Util Def Fed Exp-Dr | C174: 41011000 | D174: 7382267 | E174: =D174-H174 -> 3572295 | F174: 11192239 | H174: 3809972
A175: %,V41012000 | B175: Util Def ST Exp-Dr | C175: 41012000 | D175: 1045744 | E175: =D175-H175 -> 503963 | F175: 1587525 | H175: 541781
A176: %,FACCOUNT,TNI_ACCOUNT_FERC,XBYYYYY01,NDEFERRED_INC_TAX | B176: Deferred Income Taxes | D176: 8428011 | E176: =D176-H176 -> 4076258 | F176: 12779764 | H176: 4351753
A178: %,V41111000 | B178: Util Def Fed Exp-Cr | C178: 41111000 | D178: 7805561 | E178: =D178-H178 -> 26738800 | F178: -11127678 | H178: -18933239
A179: %,V41112000 | B179: Util Def ST Exp-Cr | C179: 41112000 | D179: -1041751 | E179: -487966 | F179: -1595536 | H179: -553785
A180: %,FACCOUNT,TNI_ACCOUNT_FERC,XBYYYYY01,NDEFERRED_INC_TAX_CR | B180: Prov Deferred Inc Tax - Cr | D180: 6763810 | E180: 26250834 | F180: -12723214 | H180: -19487024
A181: %,FACCOUNT,TNI_ACCOUNT_FERC,XBYYYYY01,NTAX_CRED_ADJ_INVEST | B181: Investment Tax Credit Adj | D181: 0 | E181: 0 | F181: 0
A182: %,FACCOUNT,TNI_ACCOUNT_FERC,XBYYYYY01,NTAX_CRED_GAIN_DISP | B182: Gain from Disposition of Plant | D182: 0 | E182: 0 | F182: 0
A183: %,FACCOUNT,TNI_ACCOUNT_FERC,XBYYYYY01,NTAX_CRED_LOSS_DISP | B183: Loss from Disposition of Plant | D183: 0 | E183: 0 | F183: 0
A184: %,FACCOUNT,TNI_ACCOUNT_FERC,XBYYYYY01,NACCRETION_EXP | B184: Accretion Expenses | D184: 0 | E184: 0 | F184: 0
B185: Total Operating Expenses | D185: =D123+D145+D148+D149+D155+D156+D157+D158+D159+D166+D172+D176+D180+D181+D182+D183+D184 -> 54332401.1 | E185: =E123+E145+E148+E149+E155+E156+E157+E158+E159+E166+E172+E176+E180+E181+E182+E183+E184 -> 30025364.04 | F185: =F123+F145+F148+F149+F155+F156+F157+F158+F159+F166+F172+F176+F180+F181+F182+F183+F184 -> 78639438.16
B188: Net Utility Operating Income(Loss) | D188: =D55-D185 -> 352423.4 | E188: =E55-E185 -> 29150.85 | F188: =F55-F185 -> 675695.95
B191: Other Income & Deductions
A193: %,R,FACCOUNT,TNI_ACCOUNT_FERC,XBYYYYY01,NMERCH_REV | B193: Revenues from Merchandising | D193: 0 | E193: =D193-H193 -> 0 | F193: 0
A194: %,R,FACCOUNT,TNI_ACCOUNT_FERC,XBYYYYY01,NMERCH_EXP | B194: Costs and Exp Merch Job | D194: 0 | E194: 0 | F194: 0
A195: %,R,FACCOUNT,TNI_ACCOUNT_FERC,XBYYYYY01,NOPS_NON_UTIL_REV | B195: NonUtility Revenues | D195: 0 | E195: 0 | F195: 0
A196: %,R,FACCOUNT,TNI_ACCOUNT_FERC,XBYYYYY01,NOPS_NON_UTIL_EXP | B196: NonUtility Unaffil | D196: 0 | E196: 0 | F196: 0
A197: %,R,FACCOUNT,TNI_ACCOUNT_FERC,XBYYYYY01,NRENT_REV_NONOPS | B197: Nonoperating Rental Revenue | D197: 0 | E197: 0 | F197: 0
A198: %,R,FACCOUNT,TNI_ACCOUNT_FERC,XBYYYYY01,NEARNINGS_OF_SUBS | B198: Earnings of Subsidiaries | D198: 0 | E198: 0 | F198: 0
A199: %,V41902000 | B199: Interest Income Money Pool | C199: 41902000 | D199: 82.47 | E199: -315.8 | F199: 480.74 | H199: 398.27
A200: %,R,FACCOUNT,TNI_ACCOUNT_FERC,XBYYYYY01,NINT_DIV_INCOME | B200: Interest and Dividend Income | D200: 82.47 | E200: -315.8 | F200: 480.74 | H200: 398.27
A201: %,R,FACCOUNT,TNI_ACCOUNT_FERC,XBYYYYY01,NFUNDS_UDC | B201: Allow for Other FUDC | D201: 0 | E201: 0 | F201: 0
A202: %,V42100000 | B202: Misc Non Operating Income | C202: 42100000 | D202: 729.35 | E202: 729.35 | F202: 729.35 | H202: 0
A203: %,R,FACCOUNT,TNI_ACCOUNT_FERC,XBYYYYY01,NMISC_NONOP_INCOME | B203: Misc Nonoperating Income | D203: 729.35 | E203: 729.35 | F203: 729.35 | H203: 0
A204: %,R,FACCOUNT,TNI_ACCOUNT_FERC,XBYYYYY01,NDISP_PROP_GAIN | B204: Gain Disposition of Property | D204: 0 | E204: 0 | F204: 0
B205: Total Other Income | D205: =D193+D194+D195+D196+D197+D198+D200+D201+D203+D204 -> 811.82 | E205: =E193+E194+E195+E196+E197+E198+E200+E201+E203+E204 -> 413.55 | F205: =F193+F194+F195+F196+F197+F198+F200+F201+F203+F204 -> 1210.09
A207: %,V42121000 | B207: Loss on Disposition of Asset | C207: 42121000 | D207: 10833.32 | E207: =D207-H207 -> 13.64 | F207: 21653 | H207: 10819.68
A208: %,FACCOUNT,TNI_ACCOUNT_FERC,XBYYYYY01,NDISP_PROP_LOSS | B208: Loss on Disposal of Property | D208: 10833.32 | E208: 13.64 | F208: 21653 | H208: 10819.68
A209: %,FACCOUNT,TNI_ACCOUNT_FERC,XBYYYYY01,NAMORT_MISC | B209: Misc Amortization | D209: 0 | E209: 0 | F209: 0
A210: %,V42610000 | B210: Other Inc_Exp-Donations | C210: 42610000 | D210: 50000 | E210: 39703.28 | F210: 60296.72 | H210: 10296.72
A211: %,FACCOUNT,TNI_ACCOUNT_FERC,XBYYYYY01,NDONATIONS | B211: Other Inc Exp Donations | D211: 50000 | E211: 39703.28 | F211: 60296.72 | H211: 10296.72
A212: %,FACCOUNT,TNI_ACCOUNT_FERC,XBYYYYY01,NINSURANCE_LIFE | B212: Corporate Owned Life Ins | D212: 0 | E212: 0 | F212: 0
A213: %,FACCOUNT,TNI_ACCOUNT_FERC,XBYYYYY01,NPENALTIES | B213: Penalties | D213: 0 | E213: 0 | F213: 0
A214: %,FACCOUNT,TNI_ACCOUNT_FERC,XBYYYYY01,NCIVIC_POL_EXP | B214: Other Inc Exp PoliticalContrib | D214: 0 | E214: 0 | F214: 0
A215: %,V42654000 | B215: Other Misc Exp Deduction | C215: 42654000 | D215: 166.45 | E215: -177.86 | F215: 510.76 | H215: 344.31
A216: %,FACCOUNT,TNI_ACCOUNT_FERC,XBYYYYY01,NOTHER_DEDUCTIONS | B216: Other Inc Deductions | D216: 166.45 | E216: -177.86 | F216: 510.76 | H216: 344.31
B217: Total Other Income Deductions | D217: =D208+D209+D211+D212+D213+D214+D216 -> 60999.77 | E217: =E208+E209+E211+E212+E213+E214+E216 -> 39539.06 | F217: =F208+F209+F211+F212+F213+F214+F216 -> 82460.48
A219: %,FACCOUNT,TNI_ACCOUNT_FERC,XBYYYYY01,NTAX_NON_INC | B219: NonUtility Taxes | D219: 0 | E219: =D219-H219 -> 0 | F219: 0
A221: %,V40921000 | B221: Non Util Cur Fed Exp | C221: 40921000 | D221: -5786 | E221: =D221-H221 -> 25190 | F221: -36762 | H221: -30976
A222: %,FACCOUNT,TNI_ACCOUNT_FERC,XBYYYYY01,NOTH_TAX_EXP_FED | B222: Income Taxes - Federal | D222: -5786 | E222: =D222-H222 -> 25190 | F222: -36762 | H222: -30976
A223: %,V40922000 | B223: Non Util Cur ST Exp | C223: 40922000 | D223: -880 | E223: =D223-H223 -> 3838 | F223: -5598 | H223: -4718
A224: %,FACCOUNT,TNI_ACCOUNT_FERC,XBYYYYY01,NOTH_TAX_EXP_ST | B224: Income Taxes - State | D224: -880 | E224: =D224-H224 -> 3838 | F224: -5598 | H224: -4718
B225: Total Income Taxes Federal Other | D225: =D222+D224 -> -6666 | E225: =E222+E224 -> 29028 | F225: =F222+F224 -> -42360
A227: %,FACCOUNT,TNI_ACCOUNT_FERC,XBYYYYY01,NOTH_DEFERRED_TAXES | B227: Other Deferred Income Taxes | D227: 0 | E227: =D227-H227 -> 0 | F227: 0
A228: %,FACCOUNT,TNI_ACCOUNT_FERC,XBYYYYY01,NOTH_DEFERRED_TAX_CR | B228: Prov Defer Inc Tax - Oth - Cr | D228: 0 | E228: =D228-H228 -> 0 | F228: 0
A229: %,FACCOUNT,TNI_ACCOUNT_FERC,XBYYYYY01,NTAX_INVEST_CR_ADJ | B229: Invest Tax Credits Adjust -Net | D229: 0 | E229: =D229-H229 -> 0 | F229: 0
A230: %,FACCOUNT,TNI_ACCOUNT_FERC,XBYYYYY01,NTAX_INVEST_CREDITS | B230: Amortization of ITC | D230: 0 | E230: =D230-H230 -> 0 | F230: 0
B231: Total Taxes Other Income & Deduct | D231: =D219+D225+D227+D228+D229+D230 -> -6666 | E231: =E219+E225+E227+E228+E229+E230 -> 29028 | F231: =F219+F225+F227+F228+F229+F230 -> -42360
... 23 more rows

Sheet Mar22
A1: %,LACTUALS,UPOSTED_TRAN_AMT | B1: %,ATF,FDESCR,UDESCR | C1: %,ATT,FACCOUNT | D1: %,LACTUALS,UPOSTED_TRAN_AMT,SPER,FBOOK_CODE,VR | E1: %,C | F1: %,LACTUALS,UPOSTED_TRAN_AMT,SYTD,FBOOK_CODE,VR | H1: %,LACTUALS,UPOSTED_TRAN_AMT,SPER-1,FBOOK_CODE,VR
B2: NiSource Corporate Services Co | H2: FOR
B3: Income Statement-FERC | H3: CALC
B4: Regulatory View - FERC Account
B5: For the Month Ended March 31, 2022 | H5: PURPOSES
D7: Current | E7: Change from | F7: Year-To- | H7: Prior
D8: Month | E8: Prior Month | F8: Date | H8: Month
B10: Operating Revenues
A12: %,R,FACCOUNT,TNI_ACCOUNT_FERC,XBYYYYY01,NGAS_RESID_REV | B12: Gas Residential Sales | D12: 0 | E12: =D12-H12 -> 0 | F12: 0
A13: %,R,FACCOUNT,TNI_ACCOUNT_FERC,XBYYYYY01,NGAS_COMM_INDUST_REV | B13: Gas Comm & Indust Revenues | D13: 0 | E13: =D13-H13 -> 0 | F13: 0
A14: %,R,FACCOUNT,TNI_ACCOUNT_FERC,XBYYYYY01,NGAS_SALES_RESALE | B14: Gas Sales for Resale | D14: 0 | E14: =D14-H14 -> 0 | F14: 0
A15: %,R,FACCOUNT,TNI_ACCOUNT_FERC,XBYYYYY01,NGAS_INTERDEPT_SALES | B15: Gas Interdepartmental Sales | D15: 0 | E15: =D15-H15 -> 0 | F15: 0
A16: %,R,FACCOUNT,TNI_ACCOUNT_FERC,XBYYYYY01,NGAS_INTRACO_TRANSFER | B16: Gas Intercompany Transfers | D16: 0 | E16: =D16-H16 -> 0 | F16: 0
A17: xx | B17: Total Sales of Gas | D17: =D12+D13+D14+D15+D16 -> 0 | E17: =E12+E13+E14+E15+E16 -> 0 | F17: =F12+F13+F14+F15+F16 -> 0
A19: %,R,FACCOUNT,TNI_ACCOUNT_FERC,XBYYYYY01,NELE_RESID_REV | B19: Electric Residential Revenues | D19: 0 | E19: =D19-H19 -> 0 | F19: 0
A20: %,R,FACCOUNT,TNI_ACCOUNT_FERC,XBYYYYY01,NELE_COMM_IND_REV | B20: Elec Comm & Indust Rev | D20: 0 | E20: 0 | F20: 0
A21: %,R,FACCOUNT,TNI_ACCOUNT_FERC,XBYYYYY01,NELE_STREET_HWY_LIGHT | B21: Public Street & Hwy Lighting | D21: 0 | E21: 0 | F21: 0
A22: %,R,FACCOUNT,TNI_ACCOUNT_FERC,XBYYYYY01,NELE_OTH_SALES_PUBLIC | B22: Elec Oth Sales to Public Auth | D22: 0 | E22: 0 | F22: 0
A23: %,R,FACCOUNT,TNI_ACCOUNT_FERC,XBYYYYY01,NELE_RAILROAD | B23: Sales to Railroads & Railways | D23: 0 | E23: 0 | F23: 0
A24: %,R,FACCOUNT,TNI_ACCOUNT_FERC,XBYYYYY01,NELE_SALES_RESALE | B24: Electric Sales for Resale | D24: 0 | E24: 0 | F24: 0
A25: %,R,FACCOUNT,TNI_ACCOUNT_FERC,XBYYYYY01,NELE_INTERDEPT_SALES | B25: Elec Interdepartmental Sales | D25: 0 | E25: 0 | F25: 0
A26: xx | B26: Total Sales of Electricity | D26: =D19+D20+D21+D22+D23+D24+D25 -> 0 | E26: =E19+E20+E21+E22+E23+E24+E25 -> 0 | F26: =F19+F20+F21+F22+F23+F24+F25 -> 0
A28: %,R,FACCOUNT,TNI_ACCOUNT_FERC,XBYYYYY01,NFORFEITED_DISC_GAS | B28: Forfeited Discounts - Gas | D28: 0 | E28: =D28-H28 -> 0 | F28: 0
A29: %,R,FACCOUNT,TNI_ACCOUNT_FERC,XBYYYYY01,NFORFEITED_DISC_ELE | B29: Forfeited Discounts - Ele | D29: 0 | E29: =D29-H29 -> 0 | F29: 0
B30: Total Forfeited Discounts | D30: =D28+D29 -> 0 | E30: =E28+E29 -> 0 | F30: =F28+F29 -> 0
A32: %,R,FACCOUNT,TNI_ACCOUNT_FERC,XBYYYYY01,NMISC_SERV_REVS_GAS | B32: Misc Service Revenues - Gas | D32: 0 | E32: =D32-H32 -> 0 | F32: 0
A33: %,R,FACCOUNT,TNI_ACCOUNT_FERC,XBYYYYY01,NMISC_SERV_REVS_ELE | B33: Misc Service Revenues - Ele | D33: 0 | E33: =D33-H33 -> 0 | F33: 0
B34: Total Miscellaneous Service Revenues | D34: =D32+D33 -> 0 | E34: =E32+E33 -> 0 | F34: =F32+F33 -> 0
A36: %,R,FACCOUNT,TNI_ACCOUNT_FERC,XBYYYYY01,NRENT_ELE_PROP | B36: Rent from Electricity Property | D36: 0 | E36: =D36-H36 -> 0 | F36: 0
A37: %,R,FACCOUNT,TNI_ACCOUNT_FERC,XBYYYYY01,NOTH_ELE_REV | B37: Other Electric Revenues | D37: 0 | E37: 0 | F37: 0
A38: %,R,FACCOUNT,TNI_ACCOUNT_FERC,XBYYYYY01,NOTH_ELE_TRANS_REV | B38: Rev Transm of Elec of Oth | D38: 0 | E38: 0 | F38: 0
A39: %,V45700000 | B39: Non Util IC Rev Direct | C39: 45700000 | D39: 14538952.06 | E39: 2797622.5 | F39: 42812283.74 | H39: 11741329.56
A40: %,V45700030 | B40: Non Util IC Rev Indirect | C40: 45700030 | D40: 27918272.72 | E40: -13032231.38 | F40: 74822582.2 | H40: 40950504.1
A41: %,V45700040 | B41: Non Util IC Rev Interest | C41: 45700040 | D41: 169345.09 | E41: 33081.72 | F41: 458148.79 | H41: 136263.37
A42: %,V45810000 | B42: Non Util Non-Affill Revenue | C42: 45810000 | D42: 2099193.67 | E42: 242466.2 | F42: 5947882.92 | H42: 1856727.47
A43: %,R,FACCOUNT,TNI_ACCOUNT_FERC,XBYYYYY01,NOTH_REV_SERVICE_CO | B43: Nonutility Revenues - Serv Co | D43: 44725763.54 | E43: -9959060.96 | F43: 124040897.7 | H43: 54684824.5
A44: %,R,FACCOUNT,TNI_ACCOUNT_FERC,XBYYYYY01,NREG_ELE_TRANS_REV | B44: Regional Transm Service Rev | D44: 0 | E44: 0 | F44: 0
A45: %,R,FACCOUNT,TNI_ACCOUNT_FERC,XBYYYYY01,NTRANSPORT_GATH_REV | B45: Rev Transp Gas of Oth - Gather | D45: 0 | E45: 0 | F45: 0
A46: %,R,FACCOUNT,TNI_ACCOUNT_FERC,XBYYYYY01,NTRANSPORT_TRANS_REV | B46: Rev Transp Gas of Oth - Transm | D46: 0 | E46: 0 | F46: 0
A47: %,R,FACCOUNT,TNI_ACCOUNT_FERC,XBYYYYY01,NTRANSPORT_DISTR_REV | B47: Rev Transp Gas of Oth - Distr | D47: 0 | E47: 0 | F47: 0
A48: %,R,FACCOUNT,TNI_ACCOUNT_FERC,XBYYYYY01,NSTORE_GAS_REV | B48: Rev from Storing Gas of Oth | D48: 0 | E48: 0 | F48: 0
A49: %,R,FACCOUNT,TNI_ACCOUNT_FERC,XBYYYYY01,NSALES_EXTRACT_GAS | B49: Sales - Prod Extracted from NG | D49: 0 | E49: 0 | F49: 0
A50: %,R,FACCOUNT,TNI_ACCOUNT_FERC,XBYYYYY01,NGAS_OIL_SALES | B50: Incidental Gasoline & Oil Sale | D50: 0 | E50: 0 | F50: 0
A51: %,R,FACCOUNT,TNI_ACCOUNT_FERC,XBYYYYY01,NRENT_GAS_PROP | B51: Rent from Gas Property | D51: 0 | E51: 0 | F51: 0
A52: %,R,FACCOUNT,TNI_ACCOUNT_FERC,XBYYYYY01,NOTH_GAS_REV | B52: Other Gas Revenues | D52: 0 | E52: 0 | F52: 0
A53: %,R,FACCOUNT,TNI_ACCOUNT_FERC,XBYYYYY01,NGAS_PROV_RATE_REFUND | B53: Gas Provision of Rate Refunds | D53: 0 | E53: 0 | F53: 0
B54: Total Other Operating Revenues | D54: =D30+D34+D36+D37+D38+D43+D44+D45+D46+D47+D48+D49+D50+D51+D52+D53 -> 44725763.54 | E54: =E30+E34+E36+E37+E38+E43+E44+E45+E46+E47+E48+E49+E50+E51+E52+E53 -> -9959060.96 | F54: =F30+F34+F36+F37+F38+F43+F44+F45+F46+F47+F48+F49+F50+F51+F52+F53 -> 124040897.7
A55: xx | B55: Total Operating Revenues | D55: =D17+D26+D54 -> 44725763.54 | E55: =E17+E26+E54 -> -9959060.96 | F55: =F17+F26+F54 -> 124040897.7
B57: Operating Expenses
B59: Operation Expenses
A61: %,FACCOUNT,TNI_ACCOUNT_FERC,XBYYYYY01,NOP_MANUF_GAS | B61: Manufac Gas Production - Oper | D61: 0 | E61: =D61-H61 -> 0 | F61: 0
A62: %,FACCOUNT,TNI_ACCOUNT_FERC,XBYYYYY01,NOP_NTRLGAS_PROD_GTH | B62: NG Production & Gather - Oper | D62: 0 | E62: =D62-H62 -> 0 | F62: 0
A63: %,FACCOUNT,TNI_ACCOUNT_FERC,XBYYYYY01,NOP_PROD_EXTRACT | B63: Products Extraction - Oper | D63: 0 | E63: =D63-H63 -> 0 | F63: 0
A65: %,V80500100 | B65: Propane Purchases | C65: 80500100 | D65: 0 | E65: =D65-H65 -> 0 | F65: 0 | H65: 0
A66: %,NOP_NG_PURCH_OTHER | B66: Other Gas Purchases | D66: 0 | E66: 0 | F66: 0 | H66: 0
A67: %,V80720000 | B67: Oper-Purch Gas Measrg Stations | C67: 80720000 | D67: 400142.35 | E67: -28471.85 | F67: 1281971.9 | H67: 428614.2
A68: %,V80751000 | B68: Purch Gas Exp - Mgmt Fee | C68: 80751000 | D68: 90562.06 | E68: 9705.91 | F68: 261885.69 | H68: 80856.15
A69: %,NOP_NG_PURCH_EXPENSE | B69: Purchased Gas Expenses | D69: 490704.41 | E69: -18765.94 | F69: 1543857.59 | H69: 509470.35
A70: %,FACCOUNT,TNI_ACCOUNT_FERC,XBYYYYY01,NOP_OTH_GAS_SUPPLY | B70: Other Gas Supply - Operations | D70: 490704.41 | E70: -18765.94 | F70: 1543857.59 | H70: 509470.35
A71: %,V50000000 | B71: Op Superv_Eng-Steam | C71: 50000000 | D71: 14736.36 | E71: 10109.38 | F71: 25384.53 | H71: 4626.98
A72: %,FACCOUNT,TNI_ACCOUNT_FERC,XBYYYYY01,NOP_STEAM_POWER | B72: Steam Power - Operations | D72: 14736.36 | E72: 10109.38 | F72: 25384.53 | H72: 4626.98
A73: %,FACCOUNT,TNI_ACCOUNT_FERC,XBYYYYY01,NOP_HYDRAULIC_POWER | B73: Hydraulic Power - Operations | D73: 0 | E73: 0 | F73: 0
A74: %,FACCOUNT,TNI_ACCOUNT_FERC,XBYYYYY01,NOP_SOLAR_GENERATION | B74: Solar Generation - Operations | D74: 0 | E74: 0 | F74: 0
A75: %,FACCOUNT,TNI_ACCOUNT_FERC,XBYYYYY01,NOP_OTHER_POWER | B75: Other Power - Operations | D75: 0 | E75: 0 | F75: 0
A76: %,V55700000 | B76: Other Exp | C76: 55700000 | D76: -273.74 | E76: 113.02 | F76: -273.74 | H76: -386.76
A77: %,FACCOUNT,TNI_ACCOUNT_FERC,XBYYYYY01,NOP_OTH_POWER_SUPPLY | B77: Other Power Supply - Oper | D77: -273.74 | E77: 113.02 | F77: -273.74 | H77: -386.76
A78: %,FACCOUNT,TNI_ACCOUNT_FERC,XBYYYYY01,NOP_NG_STOR_TERM_PROC | B78: NG Stor, Term & Proc - Oper | D78: 0 | E78: 0 | F78: 0
A80: %,V85900000 | B80: Gas Transmission Exp | C80: 85900000 | D80: 0 | E80: =D80-H80 -> 0 | F80: 0 | H80: 0
A81: %,NOP_GAS_TRANS_EXP | B81: Transmission Exp - Oper - Gas | D81: 0 | E81: =D81-H81 -> 0 | F81: 0 | H81: 0
A82: %,FACCOUNT,TNI_ACCOUNT_FERC,XBYYYYY01,NOP_TRANS_EXP | B82: Transmission Exp - Oper | D82: 0 | E82: =D82-H82 -> 0 | F82: 0 | H82: 0
A83: %,FACCOUNT,TNI_ACCOUNT_FERC,XBYYYYY01,NOP_REG_MARKET_EXP | B83: Regional Market Exp - Oper | D83: 0 | E83: =D83-H83 -> 0 | F83: 0
A84: %,FACCOUNT,TNI_ACCOUNT_FERC,XBYYYYY01,NOP_ENERGY_STORAGE | B84: Energy Storage - Oper | D84: 0 | E84: =D84-H84 -> 0 | F84: 0
A86: %,V58000000 | B86: Op Superv_Eng-Elec Distr | C86: 58000000 | D86: 2962.68 | E86: =D86-H86 -> -996.66 | F86: 24811.92 | H86: 3959.34
A87: %,NOP_ELEC_DISTR_EXP | B87: Distribution Exp - Oper - Elec | D87: 2962.68 | E87: -996.66 | F87: 24811.92 | H87: 3959.34
A88: %,V87000000 | B88: Op Superv-Eng-Gas Distr | C88: 87000000 | D88: 1424271.76 | E88: 198170.05 | F88: 3615693.05 | H88: 1226101.71
A89: %,V87400000 | B89: Mains and Services Exp | C89: 87400000 | D89: 146237.38 | E89: -19620.21 | F89: 501873.63 | H89: 165857.59
A90: %,V87500000 | B90: Measur-Reg Statn Exp Gen | C90: 87500000 | D90: 41263.37 | E90: 3206.61 | F90: 108520.19 | H90: 38056.76
A91: %,V87600000 | B91: Measur-Reg Statn Exp-Indus | C91: 87600000 | D91: 33760.23 | E91: 2622.17 | F91: 88789.54 | H91: 31138.06
A92: %,V87800000 | B92: Meter and House Regulator Exp | C92: 87800000 | D92: 86807.9 | E92: -28446.35 | F92: 332446.7 | H92: 115254.25
A93: %,V87900000 | B93: Oper Installation Service Exp | C93: 87900000 | D93: 83639.54 | E93: -24150.95 | F93: 317574.24 | H93: 107790.49
A94: %,V88000000 | B94: Operations Exp Other | C94: 88000000 | D94: 18452.34 | E94: -2614.97 | F94: 64091.08 | H94: 21067.31
A95: %,NOP_GAS_DISTR_EXP | B95: Distribution Exp - Oper - Gas | D95: 1834432.52 | E95: 129166.35 | F95: 5028988.43 | H95: 1705266.17
A96: %,FACCOUNT,TNI_ACCOUNT_FERC,XBYYYYY01,NOP_DISTR_EXP | B96: Distribution Exp - Oper | D96: 1837395.2 | E96: 128169.69 | F96: 5053800.35 | H96: 1709225.51
A97: %,V90100000 | B97: Customer Acnt Supervision | C97: 90100000 | D97: 331.83 | E97: -342.27 | F97: 1121.77 | H97: 674.1
A98: %,V90300000 | B98: Cust Records Collection Exp | C98: 90300000 | D98: 2613859.04 | E98: 643833.58 | F98: 6649928.55 | H98: 1970025.46
A99: %,FACCOUNT,TNI_ACCOUNT_FERC,XBYYYYY01,NOP_CUST_ACCTS_EXP | B99: Customer Accounts - Oper | D99: 2614190.87 | E99: 643491.31 | F99: 6651050.32 | H99: 1970699.56
A100: %,V90700000 | B100: Cust Serv Info Exp Supv | C100: 90700000 | D100: 0 | E100: 0 | F100: 0 | H100: 0
A101: %,V90800000 | B101: Customer Assistance Exp | C101: 90800000 | D101: -208.34 | E101: 1340.75 | F101: -1757.43 | H101: -1549.09
A102: %,V91000000 | B102: Misc Cust Serv and Info Exp | C102: 91000000 | D102: 369174.76 | E102: 43428.8 | F102: 1050499.48 | H102: 325745.96
A103: %,FACCOUNT,TNI_ACCOUNT_FERC,XBYYYYY01,NOP_CUSTOMER_SERV_EXP | B103: Cust Serv & Info Exp - Oper | D103: 368966.42 | E103: 44769.55 | F103: 1048742.05 | H103: 324196.87
A104: %,V91200000 | B104: Demonstrating and Selling Exp | C104: 91200000 | D104: 472.13 | E104: 236.95 | F104: 1489.29 | H104: 235.18
A105: %,V91300000 | B105: Sales Advertising Exp | C105: 91300000 | D105: 11337.51 | E105: 11330.13 | F105: -35147.74 | H105: 7.38
A106: %,V91600000 | B106: Misc Sales Exp | C106: 91600000 | D106: 0 | E106: 0 | F106: 304.01 | H106: 0
A107: %,FACCOUNT,TNI_ACCOUNT_FERC,XBYYYYY01,NOP_SALES_EXP | B107: Sales Expenses - Oper | D107: 11809.64 | E107: 11567.08 | F107: -33354.44 | H107: 242.56
A108: %,V92000000 | B108: A_G Salaries | C108: 92000000 | D108: 10037618.19 | E108: -911684.17 | F108: 31869667.56 | H108: 10949302.36
A109: %,V92001000 | B109: Discretionary and Spot Awards | C109: 92001000 | D109: 342196.13 | E109: -252063.87 | F109: 1338546.13 | H109: 594260
A110: %,V92002000 | B110: Stock Compensation Expense | C110: 92002000 | D110: 2304384.25 | E110: 1933586.25 | F110: 4167004.25 | H110: 370798
A111: %,V92100000 | B111: Office Supplies and Exp | C111: 92100000 | D111: 870996.38 | E111: 655158.34 | F111: 1563223.09 | H111: 215838.04
A112: %,V92101000 | B112: Employee Expenses | C112: 92101000 | D112: 223958.14 | E112: 29016.62 | F112: 510886.39 | H112: 194941.52
A113: %,V92300000 | B113: Outside Service Employed | C113: 92300000 | D113: 12574828.16 | E113: 3776240.23 | F113: 32972680.2 | H113: 8798587.93
A114: %,V92400000 | B114: Property Insurance | C114: 92400000 | D114: 4127.12 | E114: 0 | F114: 12381.36 | H114: 4127.12
A115: %,V92500000 | B115: Injuries and Damages | C115: 92500000 | D115: 157721.73 | E115: -23417.84 | F115: 511738.6 | H115: 181139.57
A116: %,V92600000 | B116: Employee Pensions and Benefits | C116: 92600000 | D116: 2486841.41 | E116: -431571.49 | F116: 9112473.47 | H116: 2918412.9
A117: %,V92601000 | B117: Non Service Pension & OPEB | C117: 92601000 | D117: -217056.01 | E117: 0 | F117: -651168.03 | H117: -217056.01
A118: %,V92800000 | B118: Regulatory Commission Exp | C118: 92800000 | D118: 582.93 | E118: 582.93 | F118: 629.31 | H118: 0
A119: %,V93010000 | B119: General Advertising Exp | C119: 93010000 | D119: 82406.8 | E119: 53017.13 | F119: 160802.5 | H119: 29389.67
A120: %,V93020000 | B120: Misc General Exp | C120: 93020000 | D120: -74254.52 | E120: -280509.22 | F120: 317941.89 | H120: 206254.7
A121: %,V93100000 | B121: Rents Admin and General | C121: 93100000 | D121: 1410427.92 | E121: 269738.93 | F121: 3834759.75 | H121: 1140688.99
A122: %,FACCOUNT,TNI_ACCOUNT_FERC,XBYYYYY01,NOP_ADMIN_GEN | B122: Admin & General Exp - Oper | D122: 30204778.63 | E122: 4818093.84 | F122: 85721566.47 | H122: 25386684.79
B123: Total Operation Expenses | D123: =D61+D62+D63+D70+D72+D73+D74+D75+D77+D78+D82+D84+D83+D96+D99+D103+D107+D122 -> 35542307.79 | E123: =E61+E62+E63+E70+E72+E73+E74+E75+E77+E78+E82+E84+E83+E96+E99+E103+E107+E122 -> 5637547.93 | F123: =F61+F62+F63+F70+F72+F73+F74+F75+F77+F78+F82+F84+F83+F96+F99+F103+F107+F122 -> 100010773.1
B125: Maintenance Expenses
A127: %,FACCOUNT,TNI_ACCOUNT_FERC,XBYYYYY01,NMAINT_PROD_EXP | B127: Production Expenses - Maint | D127: 0 | E127: =D127-H127 -> 0 | F127: 0
A128: %,FACCOUNT,TNI_ACCOUNT_FERC,XBYYYYY01,NMAINT_NG_STOR_PROC | B128: NG Stor, Term & Proc - Maint | D128: 0 | E128: =D128-H128 -> 0 | F128: 0
A130: %,V56920000 | B130: Maint of Computer Software | C130: 56920000 | D130: 0 | E130: =D130-H130 -> 412.8 | F130: 0 | H130: -412.8
A131: %,NMAINT_ELEC_TRANS_EXP | B131: Transmission Exp - Maint-Elec | D131: 0 | E131: =D131-H131 -> 412.8 | F131: 0 | H131: -412.8
A132: %,FACCOUNT,TNI_ACCOUNT_FERC,XBYYYYY01,NMAINT_TRANS_EXP | B132: Transmission Exp - Maint | D132: 0 | E132: =D132-H132 -> 412.8 | F132: 0 | H132: -412.8
A133: %,FACCOUNT,TNI_ACCOUNT_FERC,XBYYYYY01,NMAINT_ENERGY_STORAGE | B133: Energy Storage - Maint | D133: 0 | E133: =D133-H133 -> 0 | F133: 0
A135: %,V88700000 | B135: Maint of Mains | C135: 88700000 | D135: 61888.35 | E135: =D135-H135 -> 7204.15 | F135: 196680.67 | H135: 54684.2
A136: %,V88900000 | B136: Maint Msr-Reg Statn Equi Gen | C136: 88900000 | D136: 41263.37 | E136: 3206.61 | F136: 108520.19 | H136: 38056.76
A137: %,V89000000 | B137: Maint Meas_Reg Stn Equip-Distr | C137: 89000000 | D137: 39501.08 | E137: 5537.21 | F137: 98516.71 | H137: 33963.87
A138: %,V89200000 | B138: Maint of Services | C138: 89200000 | D138: 50889.25 | E138: 36328.82 | F138: 93923.66 | H138: 14560.43
A139: %,V89300000 | B139: Maint Meters_House Regulators | C139: 89300000 | D139: 10523.66 | E139: 3685.01 | F139: 26135.69 | H139: 6838.65
A140: %,V89400000 | B140: Other Maint Equipment | C140: 89400000 | D140: 69603.2 | E140: 8625.76 | F140: 210227.71 | H140: 60977.44
A141: %,NMAINT_GAS_DISTR_EXP | B141: Distribution Exp - Maint-Gas | D141: 273668.91 | E141: 64587.56 | F141: 734004.63 | H141: 209081.35
A142: %,FACCOUNT,TNI_ACCOUNT_FERC,XBYYYYY01,NMAINT_DISTR_EXP | B142: Distribution Exp - Maint | D142: 273668.91 | E142: 64587.56 | F142: 734004.63 | H142: 209081.35
A143: %,V93200000 | B143: Maint General Plant | C143: 93200000 | D143: 3984112.96 | E143: 1094054.04 | F143: 9672596.97 | H143: 2890058.92
A144: %,FACCOUNT,TNI_ACCOUNT_FERC,XBYYYYY01,NMAINT_ADMIN_GEN | B144: Maintenance Gen and Admin | D144: 3984112.96 | E144: 1094054.04 | F144: 9672596.97 | H144: 2890058.92
B145: Total Maintenance Expenses | D145: =D127+D128+D132+D133+D142+D144 -> 4257781.87 | E145: =E127+E128+E132+E133+E142+E144 -> 1159054.4 | F145: =F127+F128+F132+F133+F142+F144 -> 10406601.6
A147: %,V40300000 | B147: Dep Exp | C147: 40300000 | D147: 2642493.26 | E147: =D147-H147 -> 174862.3 | F147: 7577051.91 | H147: 2467630.96
A148: %,FACCOUNT,TNI_ACCOUNT_FERC,XBYYYYY01,NDEPRECIATION_EXPENSE | B148: Depreciation Expense | D148: 2642493.26 | E148: =D148-H148 -> 174862.3 | F148: 7577051.91 | H148: 2467630.96
A149: %,FACCOUNT,TNI_ACCOUNT_FERC,XBYYYYY01,NDEPRECIATION_ARO_EXP | B149: Depreciation Expense for AROs | D149: 0 | E149: =D149-H149 -> 0 | F149: 0
A151: %,V40434000 | B151: Cloude Amortizaiton Expense | C151: 40434000 | D151: 88126.51 | E151: =D151-H151 -> -41921.7 | F151: 314702.2 | H151: 130048.21
A152: %,NAMORT_LMT_TERM_PROP | B152: Amort of Limited-Term Property | D152: 88126.51 | E152: -41921.7 | F152: 314702.2 | H152: 130048.21
A153: %,V40500000 | B153: Amortization of Oth Plant | C153: 40500000 | D153: 493344.18 | E153: 117203.62 | F153: 1202058.32 | H153: 376140.56
A154: %,NAMORT_OTH_PROP | B154: Amort of Other Property | D154: 493344.18 | E154: 117203.62 | F154: 1202058.32 | H154: 376140.56
A155: %,FACCOUNT,TNI_ACCOUNT_FERC,XBYYYYY01,NAMORT_DEPL_UTIL | B155: Amort & Deplet of Util Plant | D155: 581470.69 | E155: 75281.92 | F155: 1516760.52 | H155: 506188.77
A156: %,FACCOUNT,TNI_ACCOUNT_FERC,XBYYYYY01,NAMORT_UTIL_ADJ | B156: Amort of Gas Plant Acq Adj | D156: 0 | E156: 0 | F156: 0
A157: %,FACCOUNT,TNI_ACCOUNT_FERC,XBYYYYY01,NAMORT_CONV_EXP | B157: Amort of Conversion Exp | D157: 0 | E157: 0 | F157: 0
A158: %,FACCOUNT,TNI_ACCOUNT_FERC,XBYYYYY01,NREG_DEBITS | B158: Reg Debits | D158: 0 | E158: 0 | F158: 0
A159: %,FACCOUNT,TNI_ACCOUNT_FERC,XBYYYYY01,NREG_CREDITS | B159: Reg Credits | D159: 0 | E159: 0 | F159: 0
A160: %,V40813200 | B160: Tax Exp-Property | C160: 40813200 | D160: 20000 | E160: 0 | F160: 60000 | H160: 20000
A161: %,V40813600 | B161: Tax Exp-State and Local-Oth | C161: 40813600 | D161: 1823.92 | E161: 315.39 | F161: 3744.91 | H161: 1508.53
A162: %,V40814500 | B162: Tax Exp-Payroll FICA-OASDI | C162: 40814500 | D162: 809219.56 | E162: 535364.59 | F162: 1928694.56 | H162: 273854.97
A163: %,V40814600 | B163: Tax Exp-Payroll FICA-Medicar | C163: 40814600 | D163: 308500.31 | E163: -192015.78 | F163: 981865.3 | H163: 500516.09
A164: %,V40814700 | B164: Tax Exp-FUTA Employer | C164: 40814700 | D164: 2284.57 | E164: -1664.54 | F164: 6213.94 | H164: 3949.11
A165: %,V40814800 | B165: Tax Exp-SUTA Employer | C165: 40814800 | D165: 13886.6 | E165: -43642.74 | F165: 228590.86 | H165: 57529.34
A166: %,FACCOUNT,TNI_ACCOUNT_FERC,XBYYYYY01,NOTHER_TAXES_FERC | B166: Other Taxes FERC | D166: 1155714.96 | E166: 298356.92 | F166: 3209109.57 | H166: 857358.04
A168: %,V40912000 | B168: Util Cur ST Exp | C168: 40912000 | D168: 4700 | E168: =D168-H168 -> 3811 | F168: 10298 | H168: 889
A169: %,FACCOUNT,TNI_ACCOUNT_FERC,XBYYYYY01,NINC_TAX_EXP_ST | B169: Income Taxes - State | D169: 4700 | E169: =D169-H169 -> 3811 | F169: 10298 | H169: 889
A170: %,V40911000 | B170: Util Cur Fed Exp | C170: 40911000 | D170: 30909 | E170: =D170-H170 -> -2274117 | F170: 67671 | H170: 2305026
A171: %,FACCOUNT,TNI_ACCOUNT_FERC,XBYYYYY01,NINC_TAX_EXP_FED | B171: Income Taxes - Federal | D171: 30909 | E171: =D171-H171 -> -2274117 | F171: 67671 | H171: 2305026
B172: Total Utilities Current Fed State | D172: =D169+D171 -> 35609 | E172: =E169+E171 -> -2270306 | F172: =F169+F171 -> 77969
A174: %,V41011000 | B174: Util Def Fed Exp-Dr | C174: 41011000 | D174: 19194 | E174: =D174-H174 -> -7363073 | F174: 11211433 | H174: 7382267
A175: %,V41012000 | B175: Util Def ST Exp-Dr | C175: 41012000 | D175: 2416 | E175: =D175-H175 -> -1043328 | F175: 1589941 | H175: 1045744
A176: %,FACCOUNT,TNI_ACCOUNT_FERC,XBYYYYY01,NDEFERRED_INC_TAX | B176: Deferred Income Taxes | D176: 21610 | E176: =D176-H176 -> -8406401 | F176: 12801374 | H176: 8428011
A178: %,V41111000 | B178: Util Def Fed Exp-Cr | C178: 41111000 | D178: 7461 | E178: =D178-H178 -> -7798100 | F178: -11120217 | H178: 7805561
A179: %,V41112000 | B179: Util Def ST Exp-Cr | C179: 41112000 | D179: 1652 | E179: 1043403 | F179: -1593884 | H179: -1041751
A180: %,FACCOUNT,TNI_ACCOUNT_FERC,XBYYYYY01,NDEFERRED_INC_TAX_CR | B180: Prov Deferred Inc Tax - Cr | D180: 9113 | E180: -6754697 | F180: -12714101 | H180: 6763810
A181: %,FACCOUNT,TNI_ACCOUNT_FERC,XBYYYYY01,NTAX_CRED_ADJ_INVEST | B181: Investment Tax Credit Adj | D181: 0 | E181: 0 | F181: 0
A182: %,FACCOUNT,TNI_ACCOUNT_FERC,XBYYYYY01,NTAX_CRED_GAIN_DISP | B182: Gain from Disposition of Plant | D182: 0 | E182: 0 | F182: 0
A183: %,FACCOUNT,TNI_ACCOUNT_FERC,XBYYYYY01,NTAX_CRED_LOSS_DISP | B183: Loss from Disposition of Plant | D183: 0 | E183: 0 | F183: 0
A184: %,FACCOUNT,TNI_ACCOUNT_FERC,XBYYYYY01,NACCRETION_EXP | B184: Accretion Expenses | D184: 0 | E184: 0 | F184: 0
B185: Total Operating Expenses | D185: =D123+D145+D148+D149+D155+D156+D157+D158+D159+D166+D172+D176+D180+D181+D182+D183+D184 -> 44246100.57 | E185: =E123+E145+E148+E149+E155+E156+E157+E158+E159+E166+E172+E176+E180+E181+E182+E183+E184 -> -10086300.53 | F185: =F123+F145+F148+F149+F155+F156+F157+F158+F159+F166+F172+F176+F180+F181+F182+F183+F184 -> 122885538.7
B188: Net Utility Operating Income(Loss) | D188: =D55-D185 -> 479662.97 | E188: =E55-E185 -> 127239.57 | F188: =F55-F185 -> 1155358.92
B191: Other Income & Deductions
A193: %,R,FACCOUNT,TNI_ACCOUNT_FERC,XBYYYYY01,NMERCH_REV | B193: Revenues from Merchandising | D193: 0 | E193: =D193-H193 -> 0 | F193: 0
A194: %,R,FACCOUNT,TNI_ACCOUNT_FERC,XBYYYYY01,NMERCH_EXP | B194: Costs and Exp Merch Job | D194: 0 | E194: 0 | F194: 0
A195: %,R,FACCOUNT,TNI_ACCOUNT_FERC,XBYYYYY01,NOPS_NON_UTIL_REV | B195: NonUtility Revenues | D195: 0 | E195: 0 | F195: 0
A196: %,R,FACCOUNT,TNI_ACCOUNT_FERC,XBYYYYY01,NOPS_NON_UTIL_EXP | B196: NonUtility Unaffil | D196: 0 | E196: 0 | F196: 0
A197: %,R,FACCOUNT,TNI_ACCOUNT_FERC,XBYYYYY01,NRENT_REV_NONOPS | B197: Nonoperating Rental Revenue | D197: 0 | E197: 0 | F197: 0
A198: %,R,FACCOUNT,TNI_ACCOUNT_FERC,XBYYYYY01,NEARNINGS_OF_SUBS | B198: Earnings of Subsidiaries | D198: 0 | E198: 0 | F198: 0
A199: %,V41902000 | B199: Interest Income Money Pool | C199: 41902000 | D199: 0 | E199: -82.47 | F199: 480.74 | H199: 82.47
A200: %,R,FACCOUNT,TNI_ACCOUNT_FERC,XBYYYYY01,NINT_DIV_INCOME | B200: Interest and Dividend Income | D200: 0 | E200: -82.47 | F200: 480.74 | H200: 82.47
A201: %,R,FACCOUNT,TNI_ACCOUNT_FERC,XBYYYYY01,NFUNDS_UDC | B201: Allow for Other FUDC | D201: 0 | E201: 0 | F201: 0
A202: %,V42100000 | B202: Misc Non Operating Income | C202: 42100000 | D202: 0 | E202: -729.35 | F202: 729.35 | H202: 729.35
A203: %,R,FACCOUNT,TNI_ACCOUNT_FERC,XBYYYYY01,NMISC_NONOP_INCOME | B203: Misc Nonoperating Income | D203: 0 | E203: -729.35 | F203: 729.35 | H203: 729.35
A204: %,R,FACCOUNT,TNI_ACCOUNT_FERC,XBYYYYY01,NDISP_PROP_GAIN | B204: Gain Disposition of Property | D204: 0 | E204: 0 | F204: 0
B205: Total Other Income | D205: =D193+D194+D195+D196+D197+D198+D200+D201+D203+D204 -> 0 | E205: =E193+E194+E195+E196+E197+E198+E200+E201+E203+E204 -> -811.82 | F205: =F193+F194+F195+F196+F197+F198+F200+F201+F203+F204 -> 1210.09
A207: %,V42121000 | B207: Loss on Disposition of Asset | C207: 42121000 | D207: 0 | E207: =D207-H207 -> -10833.32 | F207: 21653 | H207: 10833.32
A208: %,FACCOUNT,TNI_ACCOUNT_FERC,XBYYYYY01,NDISP_PROP_LOSS | B208: Loss on Disposal of Property | D208: 0 | E208: -10833.32 | F208: 21653 | H208: 10833.32
A209: %,FACCOUNT,TNI_ACCOUNT_FERC,XBYYYYY01,NAMORT_MISC | B209: Misc Amortization | D209: 0 | E209: 0 | F209: 0
A210: %,V42610000 | B210: Other Inc_Exp-Donations | C210: 42610000 | D210: 33900 | E210: -16100 | F210: 94196.72 | H210: 50000
A211: %,FACCOUNT,TNI_ACCOUNT_FERC,XBYYYYY01,NDONATIONS | B211: Other Inc Exp Donations | D211: 33900 | E211: -16100 | F211: 94196.72 | H211: 50000
A212: %,FACCOUNT,TNI_ACCOUNT_FERC,XBYYYYY01,NINSURANCE_LIFE | B212: Corporate Owned Life Ins | D212: 0 | E212: 0 | F212: 0
A213: %,FACCOUNT,TNI_ACCOUNT_FERC,XBYYYYY01,NPENALTIES | B213: Penalties | D213: 0 | E213: 0 | F213: 0
A214: %,V42640000 | B214: Oth Inc_Exp Political Contrib | C214: 42640000 | D214: 17495.63 | E214: 17495.63 | F214: 17495.63 | H214: 0
A215: %,FACCOUNT,TNI_ACCOUNT_FERC,XBYYYYY01,NCIVIC_POL_EXP | B215: Other Inc Exp PoliticalContrib | D215: 17495.63 | E215: 17495.63 | F215: 17495.63 | H215: 0
A216: %,V42654000 | B216: Other Misc Exp Deduction | C216: 42654000 | D216: -365.2 | E216: -531.65 | F216: 145.56 | H216: 166.45
A217: %,FACCOUNT,TNI_ACCOUNT_FERC,XBYYYYY01,NOTHER_DEDUCTIONS | B217: Other Inc Deductions | D217: -365.2 | E217: -531.65 | F217: 145.56 | H217: 166.45
B218: Total Other Income Deductions | D218: =D208+D209+D211+D212+D213+D215+D217 -> 51030.43 | E218: =E208+E209+E211+E212+E213+E215+E217 -> -9969.34 | F218: =F208+F209+F211+F212+F213+F215+F217 -> 133490.91
A220: %,V40823300 | B220: Non Util Sales and Use Tax | C220: 40823300 | D220: 20000 | E220: =D220-H220 -> 20000 | F220: 20000 | H220: 0
A221: %,FACCOUNT,TNI_ACCOUNT_FERC,XBYYYYY01,NTAX_NON_INC | B221: NonUtility Taxes | D221: 20000 | E221: =D221-H221 -> 20000 | F221: 20000 | H221: 0
A223: %,V40921000 | B223: Non Util Cur Fed Exp | C223: 40921000 | D223: -30909 | E223: =D223-H223 -> -25123 | F223: -67671 | H223: -5786
A224: %,FACCOUNT,TNI_ACCOUNT_FERC,XBYYYYY01,NOTH_TAX_EXP_FED | B224: Income Taxes - Federal | D224: -30909 | E224: =D224-H224 -> -25123 | F224: -67671 | H224: -5786
A225: %,V40922000 | B225: Non Util Cur ST Exp | C225: 40922000 | D225: -4711 | E225: =D225-H225 -> -3831 | F225: -10309 | H225: -880
A226: %,FACCOUNT,TNI_ACCOUNT_FERC,XBYYYYY01,NOTH_TAX_EXP_ST | B226: Income Taxes - State | D226: -4711 | E226: =D226-H226 -> -3831 | F226: -10309 | H226: -880
B227: Total Income Taxes Federal Other | D227: =D224+D226 -> -35620 | E227: =E224+E226 -> -28954 | F227: =F224+F226 -> -77980
A229: %,FACCOUNT,TNI_ACCOUNT_FERC,XBYYYYY01,NOTH_DEFERRED_TAXES | B229: Other Deferred Income Taxes | D229: 0 | E229: =D229-H229 -> 0 | F229: 0
A230: %,FACCOUNT,TNI_ACCOUNT_FERC,XBYYYYY01,NOTH_DEFERRED_TAX_CR | B230: Prov Defer Inc Tax - Oth - Cr | D230: 0 | E230: =D230-H230 -> 0 | F230: 0
A231: %,FACCOUNT,TNI_ACCOUNT_FERC,XBYYYYY01,NTAX_INVEST_CR_ADJ | B231: Invest Tax Credits Adjust -Net | D231: 0 | E231: =D231-H231 -> 0 | F231: 0
... 25 more rows

Sheet Apr22
A1: %,LACTUALS,UPOSTED_TRAN_AMT | B1: %,ATF,FDESCR,UDESCR | C1: %,ATT,FACCOUNT | D1: %,LACTUALS,UPOSTED_TRAN_AMT,SPER,FBOOK_CODE,VR | E1: %,C | F1: %,LACTUALS,UPOSTED_TRAN_AMT,SYTD,FBOOK_CODE,VR | H1: %,LACTUALS,UPOSTED_TRAN_AMT,SPER-1,FBOOK_CODE,VR
B2: NiSource Corporate Services Co | H2: FOR
B3: Income Statement-FERC | H3: CALC
B4: Regulatory View - FERC Account
B5: For the Month Ended April 30, 2022 | H5: PURPOSES
D7: Current | E7: Change from | F7: Year-To- | H7: Prior
D8: Month | E8: Prior Month | F8: Date | H8: Month
B10: Operating Revenues
A12: %,R,FACCOUNT,TNI_ACCOUNT_FERC,XBYYYYY01,NGAS_RESID_REV | B12: Gas Residential Sales | D12: 0 | E12: =D12-H12 -> 0 | F12: 0
A13: %,R,FACCOUNT,TNI_ACCOUNT_FERC,XBYYYYY01,NGAS_COMM_INDUST_REV | B13: Gas Comm & Indust Revenues | D13: 0 | E13: =D13-H13 -> 0 | F13: 0
A14: %,R,FACCOUNT,TNI_ACCOUNT_FERC,XBYYYYY01,NGAS_SALES_RESALE | B14: Gas Sales for Resale | D14: 0 | E14: =D14-H14 -> 0 | F14: 0
A15: %,R,FACCOUNT,TNI_ACCOUNT_FERC,XBYYYYY01,NGAS_INTERDEPT_SALES | B15: Gas Interdepartmental Sales | D15: 0 | E15: =D15-H15 -> 0 | F15: 0
A16: %,R,FACCOUNT,TNI_ACCOUNT_FERC,XBYYYYY01,NGAS_INTRACO_TRANSFER | B16: Gas Intercompany Transfers | D16: 0 | E16: =D16-H16 -> 0 | F16: 0
A17: xx | B17: Total Sales of Gas | D17: =D12+D13+D14+D15+D16 -> 0 | E17: =E12+E13+E14+E15+E16 -> 0 | F17: =F12+F13+F14+F15+F16 -> 0
A19: %,R,FACCOUNT,TNI_ACCOUNT_FERC,XBYYYYY01,NELE_RESID_REV | B19: Electric Residential Revenues | D19: 0 | E19: =D19-H19 -> 0 | F19: 0
A20: %,R,FACCOUNT,TNI_ACCOUNT_FERC,XBYYYYY01,NELE_COMM_IND_REV | B20: Elec Comm & Indust Rev | D20: 0 | E20: 0 | F20: 0
A21: %,R,FACCOUNT,TNI_ACCOUNT_FERC,XBYYYYY01,NELE_STREET_HWY_LIGHT | B21: Public Street & Hwy Lighting | D21: 0 | E21: 0 | F21: 0
A22: %,R,FACCOUNT,TNI_ACCOUNT_FERC,XBYYYYY01,NELE_OTH_SALES_PUBLIC | B22: Elec Oth Sales to Public Auth | D22: 0 | E22: 0 | F22: 0
A23: %,R,FACCOUNT,TNI_ACCOUNT_FERC,XBYYYYY01,NELE_RAILROAD | B23: Sales to Railroads & Railways | D23: 0 | E23: 0 | F23: 0
A24: %,R,FACCOUNT,TNI_ACCOUNT_FERC,XBYYYYY01,NELE_SALES_RESALE | B24: Electric Sales for Resale | D24: 0 | E24: 0 | F24: 0
A25: %,R,FACCOUNT,TNI_ACCOUNT_FERC,XBYYYYY01,NELE_INTERDEPT_SALES | B25: Elec Interdepartmental Sales | D25: 0 | E25: 0 | F25: 0
A26: xx | B26: Total Sales of Electricity | D26: =D19+D20+D21+D22+D23+D24+D25 -> 0 | E26: =E19+E20+E21+E22+E23+E24+E25 -> 0 | F26: =F19+F20+F21+F22+F23+F24+F25 -> 0
A28: %,R,FACCOUNT,TNI_ACCOUNT_FERC,XBYYYYY01,NFORFEITED_DISC_GAS | B28: Forfeited Discounts - Gas | D28: 0 | E28: =D28-H28 -> 0 | F28: 0
A29: %,R,FACCOUNT,TNI_ACCOUNT_FERC,XBYYYYY01,NFORFEITED_DISC_ELE | B29: Forfeited Discounts - Ele | D29: 0 | E29: =D29-H29 -> 0 | F29: 0
B30: Total Forfeited Discounts | D30: =D28+D29 -> 0 | E30: =E28+E29 -> 0 | F30: =F28+F29 -> 0
A32: %,R,FACCOUNT,TNI_ACCOUNT_FERC,XBYYYYY01,NMISC_SERV_REVS_GAS | B32: Misc Service Revenues - Gas | D32: 0 | E32: =D32-H32 -> 0 | F32: 0
A33: %,R,FACCOUNT,TNI_ACCOUNT_FERC,XBYYYYY01,NMISC_SERV_REVS_ELE | B33: Misc Service Revenues - Ele | D33: 0 | E33: =D33-H33 -> 0 | F33: 0
B34: Total Miscellaneous Service Revenues | D34: =D32+D33 -> 0 | E34: =E32+E33 -> 0 | F34: =F32+F33 -> 0
A36: %,R,FACCOUNT,TNI_ACCOUNT_FERC,XBYYYYY01,NRENT_ELE_PROP | B36: Rent from Electricity Property | D36: 0 | E36: =D36-H36 -> 0 | F36: 0
A37: %,R,FACCOUNT,TNI_ACCOUNT_FERC,XBYYYYY01,NOTH_ELE_REV | B37: Other Electric Revenues | D37: 0 | E37: 0 | F37: 0
A38: %,R,FACCOUNT,TNI_ACCOUNT_FERC,XBYYYYY01,NOTH_ELE_TRANS_REV | B38: Rev Transm of Elec of Oth | D38: 0 | E38: 0 | F38: 0
A39: %,V45700000 | B39: Non Util IC Rev Direct | C39: 45700000 | D39: 12039939.26 | E39: -2499012.8 | F39: 54852223 | H39: 14538952.06
A40: %,V45700030 | B40: Non Util IC Rev Indirect | C40: 45700030 | D40: 27036487.36 | E40: -881785.36 | F40: 101859069.6 | H40: 27918272.72
A41: %,V45700040 | B41: Non Util IC Rev Interest | C41: 45700040 | D41: 162918.53 | E41: -6426.56 | F41: 621067.32 | H41: 169345.09
A42: %,V45810000 | B42: Non Util Non-Affill Revenue | C42: 45810000 | D42: 1980762.79 | E42: -118430.88 | F42: 7928645.71 | H42: 2099193.67
A43: %,R,FACCOUNT,TNI_ACCOUNT_FERC,XBYYYYY01,NOTH_REV_SERVICE_CO | B43: Nonutility Revenues - Serv Co | D43: 41220107.94 | E43: -3505655.6 | F43: 165261005.6 | H43: 44725763.54
A44: %,R,FACCOUNT,TNI_ACCOUNT_FERC,XBYYYYY01,NREG_ELE_TRANS_REV | B44: Regional Transm Service Rev | D44: 0 | E44: 0 | F44: 0
A45: %,R,FACCOUNT,TNI_ACCOUNT_FERC,XBYYYYY01,NTRANSPORT_GATH_REV | B45: Rev Transp Gas of Oth - Gather | D45: 0 | E45: 0 | F45: 0
A46: %,R,FACCOUNT,TNI_ACCOUNT_FERC,XBYYYYY01,NTRANSPORT_TRANS_REV | B46: Rev Transp Gas of Oth - Transm | D46: 0 | E46: 0 | F46: 0
A47: %,R,FACCOUNT,TNI_ACCOUNT_FERC,XBYYYYY01,NTRANSPORT_DISTR_REV | B47: Rev Transp Gas of Oth - Distr | D47: 0 | E47: 0 | F47: 0
A48: %,R,FACCOUNT,TNI_ACCOUNT_FERC,XBYYYYY01,NSTORE_GAS_REV | B48: Rev from Storing Gas of Oth | D48: 0 | E48: 0 | F48: 0
A49: %,R,FACCOUNT,TNI_ACCOUNT_FERC,XBYYYYY01,NSALES_EXTRACT_GAS | B49: Sales - Prod Extracted from NG | D49: 0 | E49: 0 | F49: 0
A50: %,R,FACCOUNT,TNI_ACCOUNT_FERC,XBYYYYY01,NGAS_OIL_SALES | B50: Incidental Gasoline & Oil Sale | D50: 0 | E50: 0 | F50: 0
A51: %,R,FACCOUNT,TNI_ACCOUNT_FERC,XBYYYYY01,NRENT_GAS_PROP | B51: Rent from Gas Property | D51: 0 | E51: 0 | F51: 0
A52: %,R,FACCOUNT,TNI_ACCOUNT_FERC,XBYYYYY01,NOTH_GAS_REV | B52: Other Gas Revenues | D52: 0 | E52: 0 | F52: 0
A53: %,R,FACCOUNT,TNI_ACCOUNT_FERC,XBYYYYY01,NGAS_PROV_RATE_REFUND | B53: Gas Provision of Rate Refunds | D53: 0 | E53: 0 | F53: 0
B54: Total Other Operating Revenues | D54: =D30+D34+D36+D37+D38+D43+D44+D45+D46+D47+D48+D49+D50+D51+D52+D53 -> 41220107.94 | E54: =E30+E34+E36+E37+E38+E43+E44+E45+E46+E47+E48+E49+E50+E51+E52+E53 -> -3505655.6 | F54: =F30+F34+F36+F37+F38+F43+F44+F45+F46+F47+F48+F49+F50+F51+F52+F53 -> 165261005.6
A55: xx | B55: Total Operating Revenues | D55: =D17+D26+D54 -> 41220107.94 | E55: =E17+E26+E54 -> -3505655.6 | F55: =F17+F26+F54 -> 165261005.6
B57: Operating Expenses
B59: Operation Expenses
A61: %,FACCOUNT,TNI_ACCOUNT_FERC,XBYYYYY01,NOP_MANUF_GAS | B61: Manufac Gas Production - Oper | D61: 0 | E61: =D61-H61 -> 0 | F61: 0
A62: %,FACCOUNT,TNI_ACCOUNT_FERC,XBYYYYY01,NOP_NTRLGAS_PROD_GTH | B62: NG Production & Gather - Oper | D62: 0 | E62: =D62-H62 -> 0 | F62: 0
A63: %,FACCOUNT,TNI_ACCOUNT_FERC,XBYYYYY01,NOP_PROD_EXTRACT | B63: Products Extraction - Oper | D63: 0 | E63: =D63-H63 -> 0 | F63: 0
A65: %,V80500100 | B65: Propane Purchases | C65: 80500100 | D65: 0 | E65: =D65-H65 -> 0 | F65: 0 | H65: 0
A66: %,NOP_NG_PURCH_OTHER | B66: Other Gas Purchases | D66: 0 | E66: 0 | F66: 0 | H66: 0
A67: %,V80720000 | B67: Oper-Purch Gas Measrg Stations | C67: 80720000 | D67: 492773.27 | E67: 92630.92 | F67: 1774745.17 | H67: 400142.35
A68: %,V80751000 | B68: Purch Gas Exp - Mgmt Fee | C68: 80751000 | D68: 82044.54 | E68: -8517.52 | F68: 343930.23 | H68: 90562.06
A69: %,NOP_NG_PURCH_EXPENSE | B69: Purchased Gas Expenses | D69: 574817.81 | E69: 84113.4 | F69: 2118675.4 | H69: 490704.41
A70: %,FACCOUNT,TNI_ACCOUNT_FERC,XBYYYYY01,NOP_OTH_GAS_SUPPLY | B70: Other Gas Supply - Operations | D70: 574817.81 | E70: 84113.4 | F70: 2118675.4 | H70: 490704.41
A71: %,V50000000 | B71: Op Superv_Eng-Steam | C71: 50000000 | D71: 11814.89 | E71: -2921.47 | F71: 37199.42 | H71: 14736.36
A72: %,FACCOUNT,TNI_ACCOUNT_FERC,XBYYYYY01,NOP_STEAM_POWER | B72: Steam Power - Operations | D72: 11814.89 | E72: -2921.47 | F72: 37199.42 | H72: 14736.36
A73: %,FACCOUNT,TNI_ACCOUNT_FERC,XBYYYYY01,NOP_HYDRAULIC_POWER | B73: Hydraulic Power - Operations | D73: 0 | E73: 0 | F73: 0
A74: %,FACCOUNT,TNI_ACCOUNT_FERC,XBYYYYY01,NOP_SOLAR_GENERATION | B74: Solar Generation - Operations | D74: 0 | E74: 0 | F74: 0
A75: %,V54800000 | B75: Generation Exp | C75: 54800000 | D75: 0 | E75: 0 | F75: 0 | H75: 0
A76: %,FACCOUNT,TNI_ACCOUNT_FERC,XBYYYYY01,NOP_OTHER_POWER | B76: Other Power - Operations | D76: 0 | E76: 0 | F76: 0 | H76: 0
A77: %,V55700000 | B77: Other Exp | C77: 55700000 | D77: 471.41 | E77: 745.15 | F77: 197.67 | H77: -273.74
A78: %,FACCOUNT,TNI_ACCOUNT_FERC,XBYYYYY01,NOP_OTH_POWER_SUPPLY | B78: Other Power Supply - Oper | D78: 471.41 | E78: 745.15 | F78: 197.67 | H78: -273.74
A79: %,FACCOUNT,TNI_ACCOUNT_FERC,XBYYYYY01,NOP_NG_STOR_TERM_PROC | B79: NG Stor, Term & Proc - Oper | D79: 0 | E79: 0 | F79: 0
A81: %,V85900000 | B81: Gas Transmission Exp | C81: 85900000 | D81: 0 | E81: =D81-H81 -> 0 | F81: 0 | H81: 0
A82: %,NOP_GAS_TRANS_EXP | B82: Transmission Exp - Oper - Gas | D82: 0 | E82: =D82-H82 -> 0 | F82: 0 | H82: 0
A83: %,FACCOUNT,TNI_ACCOUNT_FERC,XBYYYYY01,NOP_TRANS_EXP | B83: Transmission Exp - Oper | D83: 0 | E83: =D83-H83 -> 0 | F83: 0 | H83: 0
A84: %,FACCOUNT,TNI_ACCOUNT_FERC,XBYYYYY01,NOP_REG_MARKET_EXP | B84: Regional Market Exp - Oper | D84: 0 | E84: =D84-H84 -> 0 | F84: 0
A85: %,FACCOUNT,TNI_ACCOUNT_FERC,XBYYYYY01,NOP_ENERGY_STORAGE | B85: Energy Storage - Oper | D85: 0 | E85: =D85-H85 -> 0 | F85: 0
A87: %,V58000000 | B87: Op Superv_Eng-Elec Distr | C87: 58000000 | D87: 5887.19 | E87: =D87-H87 -> 2924.51 | F87: 30699.11 | H87: 2962.68
A88: %,NOP_ELEC_DISTR_EXP | B88: Distribution Exp - Oper - Elec | D88: 5887.19 | E88: 2924.51 | F88: 30699.11 | H88: 2962.68
A89: %,V87000000 | B89: Op Superv-Eng-Gas Distr | C89: 87000000 | D89: 1749173.05 | E89: 324901.29 | F89: 5364866.1 | H89: 1424271.76
A90: %,V87400000 | B90: Mains and Services Exp | C90: 87400000 | D90: 163779.27 | E90: 17541.89 | F90: 665652.9 | H90: 146237.38
A91: %,V87500000 | B91: Measur-Reg Statn Exp Gen | C91: 87500000 | D91: 37385.01 | E91: -3878.36 | F91: 145905.2 | H91: 41263.37
A92: %,V87600000 | B92: Measur-Reg Statn Exp-Indus | C92: 87600000 | D92: 30588.96 | E92: -3171.27 | F92: 119378.5 | H92: 33760.23
A93: %,V87800000 | B93: Meter and House Regulator Exp | C93: 87800000 | D93: 103896.45 | E93: 17088.55 | F93: 436343.15 | H93: 86807.9
A94: %,V87900000 | B94: Oper Installation Service Exp | C94: 87900000 | D94: 99526.64 | E94: 15887.1 | F94: 417100.88 | H94: 83639.54
A95: %,V88000000 | B95: Operations Exp Other | C95: 88000000 | D95: 20679.23 | E95: 2226.89 | F95: 84770.31 | H95: 18452.34
A96: %,NOP_GAS_DISTR_EXP | B96: Distribution Exp - Oper - Gas | D96: 2205028.61 | E96: 370596.09 | F96: 7234017.04 | H96: 1834432.52
A97: %,FACCOUNT,TNI_ACCOUNT_FERC,XBYYYYY01,NOP_DISTR_EXP | B97: Distribution Exp - Oper | D97: 2210915.8 | E97: 373520.6 | F97: 7264716.15 | H97: 1837395.2
A98: %,V90100000 | B98: Customer Acnt Supervision | C98: 90100000 | D98: 0 | E98: -331.83 | F98: 1121.77 | H98: 331.83
A99: %,V90300000 | B99: Cust Records Collection Exp | C99: 90300000 | D99: 2155521.97 | E99: -458337.07 | F99: 8805450.52 | H99: 2613859.04
A100: %,FACCOUNT,TNI_ACCOUNT_FERC,XBYYYYY01,NOP_CUST_ACCTS_EXP | B100: Customer Accounts - Oper | D100: 2155521.97 | E100: -458668.9 | F100: 8806572.29 | H100: 2614190.87
A101: %,V90700000 | B101: Cust Serv Info Exp Supv | C101: 90700000 | D101: 0 | E101: 0 | F101: 0 | H101: 0
A102: %,V90800000 | B102: Customer Assistance Exp | C102: 90800000 | D102: -1081.29 | E102: -872.95 | F102: -2838.72 | H102: -208.34
A103: %,V91000000 | B103: Misc Cust Serv and Info Exp | C103: 91000000 | D103: 351639.59 | E103: -17535.17 | F103: 1402139.07 | H103: 369174.76
A104: %,FACCOUNT,TNI_ACCOUNT_FERC,XBYYYYY01,NOP_CUSTOMER_SERV_EXP | B104: Cust Serv & Info Exp - Oper | D104: 350558.3 | E104: -18408.12 | F104: 1399300.35 | H104: 368966.42
A105: %,V91200000 | B105: Demonstrating and Selling Exp | C105: 91200000 | D105: 880.14 | E105: 408.01 | F105: 2369.43 | H105: 472.13
A106: %,V91300000 | B106: Sales Advertising Exp | C106: 91300000 | D106: 86501.82 | E106: 75164.31 | F106: 51354.08 | H106: 11337.51
A107: %,V91600000 | B107: Misc Sales Exp | C107: 91600000 | D107: 0 | E107: 0 | F107: 304.01 | H107: 0
A108: %,FACCOUNT,TNI_ACCOUNT_FERC,XBYYYYY01,NOP_SALES_EXP | B108: Sales Expenses - Oper | D108: 87381.96 | E108: 75572.32 | F108: 54027.52 | H108: 11809.64
A109: %,V92000000 | B109: A_G Salaries | C109: 92000000 | D109: 10997514.29 | E109: 959896.1 | F109: 42867181.85 | H109: 10037618.19
A110: %,V92001000 | B110: Discretionary and Spot Awards | C110: 92001000 | D110: 52160 | E110: -290036.13 | F110: 1390706.13 | H110: 342196.13
A111: %,V92002000 | B111: Stock Compensation Expense | C111: 92002000 | D111: 1580555 | E111: -723829.25 | F111: 5747559.25 | H111: 2304384.25
A112: %,V92100000 | B112: Office Supplies and Exp | C112: 92100000 | D112: 373192.23 | E112: -497804.15 | F112: 1936415.32 | H112: 870996.38
A113: %,V92101000 | B113: Employee Expenses | C113: 92101000 | D113: 267531.16 | E113: 43573.02 | F113: 778417.55 | H113: 223958.14
A114: %,V92300000 | B114: Outside Service Employed | C114: 92300000 | D114: 11091311.48 | E114: -1483516.68 | F114: 44063991.68 | H114: 12574828.16
A115: %,V92400000 | B115: Property Insurance | C115: 92400000 | D115: 4127.12 | E115: 0 | F115: 16508.48 | H115: 4127.12
A116: %,V92500000 | B116: Injuries and Damages | C116: 92500000 | D116: 156057.42 | E116: -1664.31 | F116: 667796.02 | H116: 157721.73
A117: %,V92600000 | B117: Employee Pensions and Benefits | C117: 92600000 | D117: 2060247.66 | E117: -426593.75 | F117: 11172721.13 | H117: 2486841.41
A118: %,V92601000 | B118: Non Service Pension & OPEB | C118: 92601000 | D118: -217056.01 | E118: 0 | F118: -868224.04 | H118: -217056.01
A119: %,V92800000 | B119: Regulatory Commission Exp | C119: 92800000 | D119: 0 | E119: -582.93 | F119: 629.31 | H119: 582.93
A120: %,V93010000 | B120: General Advertising Exp | C120: 93010000 | D120: 88181.33 | E120: 5774.53 | F120: 248983.83 | H120: 82406.8
A121: %,V93020000 | B121: Misc General Exp | C121: 93020000 | D121: 255727.05 | E121: 329981.57 | F121: 573668.94 | H121: -74254.52
A122: %,V93020495 | B122: CMA Care-Misc General Exp | C122: 93020495 | D122: 0 | E122: 0 | F122: 0 | H122: 0
A123: %,V93100000 | B123: Rents Admin and General | C123: 93100000 | D123: 1363253.76 | E123: -47174.16 | F123: 5198013.51 | H123: 1410427.92
A124: %,FACCOUNT,TNI_ACCOUNT_FERC,XBYYYYY01,NOP_ADMIN_GEN | B124: Admin & General Exp - Oper | D124: 28072802.49 | E124: -2131976.14 | F124: 113794369 | H124: 30204778.63
B125: Total Operation Expenses | D125: =D61+D62+D63+D70+D72+D73+D74+D76+D78+D79+D83+D85+D84+D97+D100+D104+D108+D124 -> 33464284.63 | E125: =E61+E62+E63+E70+E72+E73+E74+E76+E78+E79+E83+E85+E84+E97+E100+E104+E108+E124 -> -2078023.16 | F125: =F61+F62+F63+F70+F72+F73+F74+F76+F78+F79+F83+F85+F84+F97+F100+F104+F108+F124 -> 133475057.8
B127: Maintenance Expenses
A129: %,FACCOUNT,TNI_ACCOUNT_FERC,XBYYYYY01,NMAINT_PROD_EXP | B129: Production Expenses - Maint | D129: 0 | E129: =D129-H129 -> 0 | F129: 0
A130: %,FACCOUNT,TNI_ACCOUNT_FERC,XBYYYYY01,NMAINT_NG_STOR_PROC | B130: NG Stor, Term & Proc - Maint | D130: 0 | E130: =D130-H130 -> 0 | F130: 0
A132: %,V56920000 | B132: Maint of Computer Software | C132: 56920000 | D132: 0 | E132: =D132-H132 -> 0 | F132: 0 | H132: 0
A133: %,NMAINT_ELEC_TRANS_EXP | B133: Transmission Exp - Maint-Elec | D133: 0 | E133: =D133-H133 -> 0 | F133: 0 | H133: 0
A134: %,FACCOUNT,TNI_ACCOUNT_FERC,XBYYYYY01,NMAINT_TRANS_EXP | B134: Transmission Exp - Maint | D134: 0 | E134: =D134-H134 -> 0 | F134: 0 | H134: 0
A135: %,FACCOUNT,TNI_ACCOUNT_FERC,XBYYYYY01,NMAINT_ENERGY_STORAGE | B135: Energy Storage - Maint | D135: 0 | E135: =D135-H135 -> 0 | F135: 0
A137: %,V88700000 | B137: Maint of Mains | C137: 88700000 | D137: 62182.4 | E137: =D137-H137 -> 294.05 | F137: 258863.07 | H137: 61888.35
A138: %,V88900000 | B138: Maint Msr-Reg Statn Equi Gen | C138: 88900000 | D138: 37385.01 | E138: -3878.36 | F138: 145905.2 | H138: 41263.37
A139: %,V89000000 | B139: Maint Meas_Reg Stn Equip-Distr | C139: 89000000 | D139: 36366.54 | E139: -3134.54 | F139: 134883.25 | H139: 39501.08
A140: %,V89200000 | B140: Maint of Services | C140: 89200000 | D140: 58843.84 | E140: 7954.59 | F140: 152767.5 | H140: 50889.25
A141: %,V89300000 | B141: Maint Meters_House Regulators | C141: 89300000 | D141: 10333.88 | E141: -189.78 | F141: 36469.57 | H141: 10523.66
A142: %,V89400000 | B142: Other Maint Equipment | C142: 89400000 | D142: 64124.77 | E142: -5478.43 | F142: 274352.48 | H142: 69603.2
A143: %,NMAINT_GAS_DISTR_EXP | B143: Distribution Exp - Maint-Gas | D143: 269236.44 | E143: -4432.47 | F143: 1003241.07 | H143: 273668.91
A144: %,FACCOUNT,TNI_ACCOUNT_FERC,XBYYYYY01,NMAINT_DISTR_EXP | B144: Distribution Exp - Maint | D144: 269236.44 | E144: -4432.47 | F144: 1003241.07 | H144: 273668.91
A145: %,V93200000 | B145: Maint General Plant | C145: 93200000 | D145: 2969029.16 | E145: -1015083.8 | F145: 12641626.13 | H145: 3984112.96
A146: %,FACCOUNT,TNI_ACCOUNT_FERC,XBYYYYY01,NMAINT_ADMIN_GEN | B146: Maintenance Gen and Admin | D146: 2969029.16 | E146: -1015083.8 | F146: 12641626.13 | H146: 3984112.96
B147: Total Maintenance Expenses | D147: =D129+D130+D134+D135+D144+D146 -> 3238265.6 | E147: =E129+E130+E134+E135+E144+E146 -> -1019516.27 | F147: =F129+F130+F134+F135+F144+F146 -> 13644867.2
A149: %,V40300000 | B149: Dep Exp | C149: 40300000 | D149: 2734823.25 | E149: =D149-H149 -> 92329.99 | F149: 10311875.16 | H149: 2642493.26
A150: %,FACCOUNT,TNI_ACCOUNT_FERC,XBYYYYY01,NDEPRECIATION_EXPENSE | B150: Depreciation Expense | D150: 2734823.25 | E150: =D150-H150 -> 92329.99 | F150: 10311875.16 | H150: 2642493.26
A151: %,FACCOUNT,TNI_ACCOUNT_FERC,XBYYYYY01,NDEPRECIATION_ARO_EXP | B151: Depreciation Expense for AROs | D151: 0 | E151: =D151-H151 -> 0 | F151: 0
A153: %,V40434000 | B153: Cloude Amortizaiton Expense | C153: 40434000 | D153: 100058.83 | E153: =D153-H153 -> 11932.32 | F153: 414761.03 | H153: 88126.51
A154: %,NAMORT_LMT_TERM_PROP | B154: Amort of Limited-Term Property | D154: 100058.83 | E154: 11932.32 | F154: 414761.03 | H154: 88126.51
A155: %,V40500000 | B155: Amortization of Oth Plant | C155: 40500000 | D155: 364135.64 | E155: -129208.54 | F155: 1566193.96 | H155: 493344.18
A156: %,NAMORT_OTH_PROP | B156: Amort of Other Property | D156: 364135.64 | E156: -129208.54 | F156: 1566193.96 | H156: 493344.18
A157: %,FACCOUNT,TNI_ACCOUNT_FERC,XBYYYYY01,NAMORT_DEPL_UTIL | B157: Amort & Deplet of Util Plant | D157: 464194.47 | E157: -117276.22 | F157: 1980954.99 | H157: 581470.69
A158: %,FACCOUNT,TNI_ACCOUNT_FERC,XBYYYYY01,NAMORT_UTIL_ADJ | B158: Amort of Gas Plant Acq Adj | D158: 0 | E158: 0 | F158: 0
A159: %,FACCOUNT,TNI_ACCOUNT_FERC,XBYYYYY01,NAMORT_CONV_EXP | B159: Amort of Conversion Exp | D159: 0 | E159: 0 | F159: 0
A160: %,FACCOUNT,TNI_ACCOUNT_FERC,XBYYYYY01,NREG_DEBITS | B160: Reg Debits | D160: 0 | E160: 0 | F160: 0
A161: %,FACCOUNT,TNI_ACCOUNT_FERC,XBYYYYY01,NREG_CREDITS | B161: Reg Credits | D161: 0 | E161: 0 | F161: 0
A162: %,V40813100 | B162: Tax Exp-License_Franchise | C162: 40813100 | D162: 300 | E162: 300 | F162: 300 | H162: 0
A163: %,V40813200 | B163: Tax Exp-Property | C163: 40813200 | D163: 20000 | E163: 0 | F163: 80000 | H163: 20000
A164: %,V40813600 | B164: Tax Exp-State and Local-Oth | C164: 40813600 | D164: 363.24 | E164: -1460.68 | F164: 4108.15 | H164: 1823.92
A165: %,V40814500 | B165: Tax Exp-Payroll FICA-OASDI | C165: 40814500 | D165: 821662.01 | E165: 12442.45 | F165: 2750356.57 | H165: 809219.56
A166: %,V40814600 | B166: Tax Exp-Payroll FICA-Medicar | C166: 40814600 | D166: 175241.48 | E166: -133258.83 | F166: 1157106.78 | H166: 308500.31
A167: %,V40814700 | B167: Tax Exp-FUTA Employer | C167: 40814700 | D167: 1590.3 | E167: -694.27 | F167: 7804.24 | H167: 2284.57
A168: %,V40814800 | B168: Tax Exp-SUTA Employer | C168: 40814800 | D168: 6118.35 | E168: -7768.25 | F168: 234709.21 | H168: 13886.6
A169: %,FACCOUNT,TNI_ACCOUNT_FERC,XBYYYYY01,NOTHER_TAXES_FERC | B169: Other Taxes FERC | D169: 1025275.38 | E169: -130439.58 | F169: 4234384.95 | H169: 1155714.96
A171: %,V40912000 | B171: Util Cur ST Exp | C171: 40912000 | D171: -5233 | E171: =D171-H171 -> -9933 | F171: 5065 | H171: 4700
A172: %,FACCOUNT,TNI_ACCOUNT_FERC,XBYYYYY01,NINC_TAX_EXP_ST | B172: Income Taxes - State | D172: -5233 | E172: =D172-H172 -> -9933 | F172: 5065 | H172: 4700
A173: %,V40911000 | B173: Util Cur Fed Exp | C173: 40911000 | D173: -34360 | E173: =D173-H173 -> -65269 | F173: 33311 | H173: 30909
A174: %,FACCOUNT,TNI_ACCOUNT_FERC,XBYYYYY01,NINC_TAX_EXP_FED | B174: Income Taxes - Federal | D174: -34360 | E174: =D174-H174 -> -65269 | F174: 33311 | H174: 30909
B175: Total Utilities Current Fed State | D175: =D172+D174 -> -39593 | E175: =E172+E174 -> -75202 | F175: =F172+F174 -> 38376
A177: %,V41011000 | B177: Util Def Fed Exp-Dr | C177: 41011000 | D177: -2941585 | E177: =D177-H177 -> -2960779 | F177: 8269848 | H177: 19194
A178: %,V41012000 | B178: Util Def ST Exp-Dr | C178: 41012000 | D178: -421014 | E178: =D178-H178 -> -423430 | F178: 1168927 | H178: 2416
A179: %,FACCOUNT,TNI_ACCOUNT_FERC,XBYYYYY01,NDEFERRED_INC_TAX | B179: Deferred Income Taxes | D179: -3362599 | E179: =D179-H179 -> -3384209 | F179: 9438775 | H179: 21610
A181: %,V41111000 | B181: Util Def Fed Exp-Cr | C181: 41111000 | D181: 2967855 | E181: =D181-H181 -> 2960394 | F181: -8152362 | H181: 7461
A182: %,V41112000 | B182: Util Def ST Exp-Cr | C182: 41112000 | D182: 425015 | E182: 423363 | F182: -1168869 | H182: 1652
A183: %,FACCOUNT,TNI_ACCOUNT_FERC,XBYYYYY01,NDEFERRED_INC_TAX_CR | B183: Prov Deferred Inc Tax - Cr | D183: 3392870 | E183: 3383757 | F183: -9321231 | H183: 9113
A184: %,FACCOUNT,TNI_ACCOUNT_FERC,XBYYYYY01,NTAX_CRED_ADJ_INVEST | B184: Investment Tax Credit Adj | D184: 0 | E184: 0 | F184: 0
A185: %,FACCOUNT,TNI_ACCOUNT_FERC,XBYYYYY01,NTAX_CRED_GAIN_DISP | B185: Gain from Disposition of Plant | D185: 0 | E185: 0 | F185: 0
A186: %,FACCOUNT,TNI_ACCOUNT_FERC,XBYYYYY01,NTAX_CRED_LOSS_DISP | B186: Loss from Disposition of Plant | D186: 0 | E186: 0 | F186: 0
A187: %,FACCOUNT,TNI_ACCOUNT_FERC,XBYYYYY01,NACCRETION_EXP | B187: Accretion Expenses | D187: 0 | E187: 0 | F187: 0
B188: Total Operating Expenses | D188: =D125+D147+D150+D151+D157+D158+D159+D160+D161+D169+D175+D179+D183+D184+D185+D186+D187 -> 40917521.33 | E188: =E125+E147+E150+E151+E157+E158+E159+E160+E161+E169+E175+E179+E183+E184+E185+E186+E187 -> -3328579.24 | F188: =F125+F147+F150+F151+F157+F158+F159+F160+F161+F169+F175+F179+F183+F184+F185+F186+F187 -> 163803060.1
B191: Net Utility Operating Income(Loss) | D191: =D55-D188 -> 302586.61 | E191: =E55-E188 -> -177076.36 | F191: =F55-F188 -> 1457945.53
B194: Other Income & Deductions
A196: %,R,FACCOUNT,TNI_ACCOUNT_FERC,XBYYYYY01,NMERCH_REV | B196: Revenues from Merchandising | D196: 0 | E196: =D196-H196 -> 0 | F196: 0
A197: %,R,FACCOUNT,TNI_ACCOUNT_FERC,XBYYYYY01,NMERCH_EXP | B197: Costs and Exp Merch Job | D197: 0 | E197: =D197-H197 -> 0 | F197: 0
A198: %,R,FACCOUNT,TNI_ACCOUNT_FERC,XBYYYYY01,NOPS_NON_UTIL_REV | B198: NonUtility Revenues | D198: 0 | E198: =D198-H198 -> 0 | F198: 0
A200: %,V41715000 | B200: Non Util Operating Exp | C200: 41715000 | D200: 0 | E200: =D200-H200 -> 0 | F200: 0 | H200: 0
A201: %,NNON_UTIL_EXP_OPS | B201: Non-Utility Expense OPS | D201: 0 | E201: 0 | F201: 0 | H201: 0
A202: %,R,FACCOUNT,TNI_ACCOUNT_FERC,XBYYYYY01,NOPS_NON_UTIL_EXP | B202: NonUtility Unaffil | D202: 0 | E202: 0 | F202: 0 | H202: 0
A203: %,R,FACCOUNT,TNI_ACCOUNT_FERC,XBYYYYY01,NRENT_REV_NONOPS | B203: Nonoperating Rental Revenue | D203: 0 | E203: 0 | F203: 0
A204: %,R,FACCOUNT,TNI_ACCOUNT_FERC,XBYYYYY01,NEARNINGS_OF_SUBS | B204: Earnings of Subsidiaries | D204: 0 | E204: 0 | F204: 0
A205: %,V41902000 | B205: Interest Income Money Pool | C205: 41902000 | D205: 0 | E205: 0 | F205: 480.74 | H205: 0
A206: %,R,FACCOUNT,TNI_ACCOUNT_FERC,XBYYYYY01,NINT_DIV_INCOME | B206: Interest and Dividend Income | D206: 0 | E206: 0 | F206: 480.74 | H206: 0
A207: %,R,FACCOUNT,TNI_ACCOUNT_FERC,XBYYYYY01,NFUNDS_UDC | B207: Allow for Other FUDC | D207: 0 | E207: 0 | F207: 0
A208: %,V42100000 | B208: Misc Non Operating Income | C208: 42100000 | D208: 199.91 | E208: 199.91 | F208: 929.26 | H208: 0
A209: %,R,FACCOUNT,TNI_ACCOUNT_FERC,XBYYYYY01,NMISC_NONOP_INCOME | B209: Misc Nonoperating Income | D209: 199.91 | E209: 199.91 | F209: 929.26 | H209: 0
A210: %,R,FACCOUNT,TNI_ACCOUNT_FERC,XBYYYYY01,NDISP_PROP_GAIN | B210: Gain Disposition of Property | D210: 0 | E210: 0 | F210: 0
B211: Total Other Income | D211: =D196+D197+D198+D202+D203+D204+D206+D207+D209+D210 -> 199.91 | E211: =E196+E197+E198+E202+E203+E204+E206+E207+E209+E210 -> 199.91 | F211: =F196+F197+F198+F202+F203+F204+F206+F207+F209+F210 -> 1410
A213: %,V42121000 | B213: Loss on Disposition of Asset | C213: 42121000 | D213: 7137.5 | E213: =D213-H213 -> 7137.5 | F213: 28790.5 | H213: 0
A214: %,FACCOUNT,TNI_ACCOUNT_FERC,XBYYYYY01,NDISP_PROP_LOSS | B214: Loss on Disposal of Property | D214: 7137.5 | E214: 7137.5 | F214: 28790.5 | H214: 0
A215: %,FACCOUNT,TNI_ACCOUNT_FERC,XBYYYYY01,NAMORT_MISC | B215: Misc Amortization | D215: 0 | E215: 0 | F215: 0
A216: %,V42610000 | B216: Other Inc_Exp-Donations | C216: 42610000 | D216: 24000 | E216: -9900 | F216: 118196.72 | H216: 33900
A217: %,FACCOUNT,TNI_ACCOUNT_FERC,XBYYYYY01,NDONATIONS | B217: Other Inc Exp Donations | D217: 24000 | E217: -9900 | F217: 118196.72 | H217: 33900
A218: %,FACCOUNT,TNI_ACCOUNT_FERC,XBYYYYY01,NINSURANCE_LIFE | B218: Corporate Owned Life Ins | D218: 0 | E218: 0 | F218: 0
A219: %,FACCOUNT,TNI_ACCOUNT_FERC,XBYYYYY01,NPENALTIES | B219: Penalties | D219: 0 | E219: 0 | F219: 0
A220: %,V42640000 | B220: Oth Inc_Exp Political Contrib | C220: 42640000 | D220: 0 | E220: -17495.63 | F220: 17495.63 | H220: 17495.63
A221: %,FACCOUNT,TNI_ACCOUNT_FERC,XBYYYYY01,NCIVIC_POL_EXP | B221: Other Inc Exp PoliticalContrib | D221: 0 | E221: -17495.63 | F221: 17495.63 | H221: 17495.63
A222: %,V42654000 | B222: Other Misc Exp Deduction | C222: 42654000 | D222: 482.13 | E222: 847.33 | F222: 627.69 | H222: -365.2
A223: %,FACCOUNT,TNI_ACCOUNT_FERC,XBYYYYY01,NOTHER_DEDUCTIONS | B223: Other Inc Deductions | D223: 482.13 | E223: 847.33 | F223: 627.69 | H223: -365.2
B224: Total Other Income Deductions | D224: =D214+D215+D217+D218+D219+D221+D223 -> 31619.63 | E224: =E214+E215+E217+E218+E219+E221+E223 -> -19410.8 | F224: =F214+F215+F217+F218+F219+F221+F223 -> 165110.54
A226: %,V40823300 | B226: Non Util Sales and Use Tax | C226: 40823300 | D226: 0 | E226: =D226-H226 -> -20000 | F226: 20000 | H226: 20000
A227: %,FACCOUNT,TNI_ACCOUNT_FERC,XBYYYYY01,NTAX_NON_INC | B227: NonUtility Taxes | D227: 0 | E227: =D227-H227 -> -20000 | F227: 20000 | H227: 20000
A229: %,V40921000 | B229: Non Util Cur Fed Exp | C229: 40921000 | D229: 34359 | E229: =D229-H229 -> 65268 | F229: -33312 | H229: -30909
A230: %,FACCOUNT,TNI_ACCOUNT_FERC,XBYYYYY01,NOTH_TAX_EXP_FED | B230: Income Taxes - Federal | D230: 34359 | E230: =D230-H230 -> 65268 | F230: -33312 | H230: -30909
A231: %,V40922000 | B231: Non Util Cur ST Exp | C231: 40922000 | D231: 5234 | E231: =D231-H231 -> 9945 | F231: -5075 | H231: -4711
... 30 more rows

Sheet May22
A1: %,LACTUALS,UPOSTED_TRAN_AMT | B1: %,ATF,FDESCR,UDESCR | C1: %,ATT,FACCOUNT | D1: %,LACTUALS,UPOSTED_TRAN_AMT,SPER,FBOOK_CODE,VR | E1: %,C | F1: %,LACTUALS,UPOSTED_TRAN_AMT,SYTD,FBOOK_CODE,VR | H1: %,LACTUALS,UPOSTED_TRAN_AMT,SPER-1,FBOOK_CODE,VR
B2: NiSource Corporate Services Co | H2: FOR
B3: Income Statement-FERC | H3: CALC
B4: Regulatory View - FERC Account
B5: For the Month Ended May 31, 2022 | H5: PURPOSES
D7: Current | E7: Change from | F7: Year-To- | H7: Prior
D8: Month | E8: Prior Month | F8: Date | H8: Month
B10: Operating Revenues
A12: %,R,FACCOUNT,TNI_ACCOUNT_FERC,XBYYYYY01,NGAS_RESID_REV | B12: Gas Residential Sales | D12: 0 | E12: =D12-H12 -> 0 | F12: 0
A13: %,R,FACCOUNT,TNI_ACCOUNT_FERC,XBYYYYY01,NGAS_COMM_INDUST_REV | B13: Gas Comm & Indust Revenues | D13: 0 | E13: =D13-H13 -> 0 | F13: 0
A14: %,R,FACCOUNT,TNI_ACCOUNT_FERC,XBYYYYY01,NGAS_SALES_RESALE | B14: Gas Sales for Resale | D14: 0 | E14: =D14-H14 -> 0 | F14: 0
A15: %,R,FACCOUNT,TNI_ACCOUNT_FERC,XBYYYYY01,NGAS_INTERDEPT_SALES | B15: Gas Interdepartmental Sales | D15: 0 | E15: =D15-H15 -> 0 | F15: 0
A16: %,R,FACCOUNT,TNI_ACCOUNT_FERC,XBYYYYY01,NGAS_INTRACO_TRANSFER | B16: Gas Intercompany Transfers | D16: 0 | E16: =D16-H16 -> 0 | F16: 0
A17: xx | B17: Total Sales of Gas | D17: =D12+D13+D14+D15+D16 -> 0 | E17: =E12+E13+E14+E15+E16 -> 0 | F17: =F12+F13+F14+F15+F16 -> 0
A19: %,R,FACCOUNT,TNI_ACCOUNT_FERC,XBYYYYY01,NELE_RESID_REV | B19: Electric Residential Revenues | D19: 0 | E19: =D19-H19 -> 0 | F19: 0
A20: %,R,FACCOUNT,TNI_ACCOUNT_FERC,XBYYYYY01,NELE_COMM_IND_REV | B20: Elec Comm & Indust Rev | D20: 0 | E20: 0 | F20: 0
A21: %,R,FACCOUNT,TNI_ACCOUNT_FERC,XBYYYYY01,NELE_STREET_HWY_LIGHT | B21: Public Street & Hwy Lighting | D21: 0 | E21: 0 | F21: 0
A22: %,R,FACCOUNT,TNI_ACCOUNT_FERC,XBYYYYY01,NELE_OTH_SALES_PUBLIC | B22: Elec Oth Sales to Public Auth | D22: 0 | E22: 0 | F22: 0
A23: %,R,FACCOUNT,TNI_ACCOUNT_FERC,XBYYYYY01,NELE_RAILROAD | B23: Sales to Railroads & Railways | D23: 0 | E23: 0 | F23: 0
A24: %,R,FACCOUNT,TNI_ACCOUNT_FERC,XBYYYYY01,NELE_SALES_RESALE | B24: Electric Sales for Resale | D24: 0 | E24: 0 | F24: 0
A25: %,R,FACCOUNT,TNI_ACCOUNT_FERC,XBYYYYY01,NELE_INTERDEPT_SALES | B25: Elec Interdepartmental Sales | D25: 0 | E25: 0 | F25: 0
A26: xx | B26: Total Sales of Electricity | D26: =D19+D20+D21+D22+D23+D24+D25 -> 0 | E26: =E19+E20+E21+E22+E23+E24+E25 -> 0 | F26: =F19+F20+F21+F22+F23+F24+F25 -> 0
A28: %,R,FACCOUNT,TNI_ACCOUNT_FERC,XBYYYYY01,NFORFEITED_DISC_GAS | B28: Forfeited Discounts - Gas | D28: 0 | E28: =D28-H28 -> 0 | F28: 0
A29: %,R,FACCOUNT,TNI_ACCOUNT_FERC,XBYYYYY01,NFORFEITED_DISC_ELE | B29: Forfeited Discounts - Ele | D29: 0 | E29: =D29-H29 -> 0 | F29: 0
B30: Total Forfeited Discounts | D30: =D28+D29 -> 0 | E30: =E28+E29 -> 0 | F30: =F28+F29 -> 0
A32: %,R,FACCOUNT,TNI_ACCOUNT_FERC,XBYYYYY01,NMISC_SERV_REVS_GAS | B32: Misc Service Revenues - Gas | D32: 0 | E32: =D32-H32 -> 0 | F32: 0
A33: %,R,FACCOUNT,TNI_ACCOUNT_FERC,XBYYYYY01,NMISC_SERV_REVS_ELE | B33: Misc Service Revenues - Ele | D33: 0 | E33: =D33-H33 -> 0 | F33: 0
B34: Total Miscellaneous Service Revenues | D34: =D32+D33 -> 0 | E34: =E32+E33 -> 0 | F34: =F32+F33 -> 0
A36: %,R,FACCOUNT,TNI_ACCOUNT_FERC,XBYYYYY01,NRENT_ELE_PROP | B36: Rent from Electricity Property | D36: 0 | E36: =D36-H36 -> 0 | F36: 0
A37: %,R,FACCOUNT,TNI_ACCOUNT_FERC,XBYYYYY01,NOTH_ELE_REV | B37: Other Electric Revenues | D37: 0 | E37: 0 | F37: 0
A38: %,R,FACCOUNT,TNI_ACCOUNT_FERC,XBYYYYY01,NOTH_ELE_TRANS_REV | B38: Rev Transm of Elec of Oth | D38: 0 | E38: 0 | F38: 0
A39: %,V45700000 | B39: Non Util IC Rev Direct | C39: 45700000 | D39: 12582865.76 | E39: 542926.5 | F39: 67435088.76 | H39: 12039939.26
A40: %,V45700030 | B40: Non Util IC Rev Indirect | C40: 45700030 | D40: 28564508.51 | E40: 1528021.15 | F40: 130423578.1 | H40: 27036487.36
A41: %,V45700040 | B41: Non Util IC Rev Interest | C41: 45700040 | D41: 195502.93 | E41: 32584.4 | F41: 816570.25 | H41: 162918.53
A42: %,V45810000 | B42: Non Util Non-Affill Revenue | C42: 45810000 | D42: 997133.95 | E42: -983628.84 | F42: 8925779.66 | H42: 1980762.79
A43: %,R,FACCOUNT,TNI_ACCOUNT_FERC,XBYYYYY01,NOTH_REV_SERVICE_CO | B43: Nonutility Revenues - Serv Co | D43: 42340011.15 | E43: 1119903.21 | F43: 207601016.7 | H43: 41220107.94
A44: %,R,FACCOUNT,TNI_ACCOUNT_FERC,XBYYYYY01,NREG_ELE_TRANS_REV | B44: Regional Transm Service Rev | D44: 0 | E44: 0 | F44: 0
A45: %,R,FACCOUNT,TNI_ACCOUNT_FERC,XBYYYYY01,NTRANSPORT_GATH_REV | B45: Rev Transp Gas of Oth - Gather | D45: 0 | E45: 0 | F45: 0
A46: %,R,FACCOUNT,TNI_ACCOUNT_FERC,XBYYYYY01,NTRANSPORT_TRANS_REV | B46: Rev Transp Gas of Oth - Transm | D46: 0 | E46: 0 | F46: 0
A47: %,R,FACCOUNT,TNI_ACCOUNT_FERC,XBYYYYY01,NTRANSPORT_DISTR_REV | B47: Rev Transp Gas of Oth - Distr | D47: 0 | E47: 0 | F47: 0
A48: %,R,FACCOUNT,TNI_ACCOUNT_FERC,XBYYYYY01,NSTORE_GAS_REV | B48: Rev from Storing Gas of Oth | D48: 0 | E48: 0 | F48: 0
A49: %,R,FACCOUNT,TNI_ACCOUNT_FERC,XBYYYYY01,NSALES_EXTRACT_GAS | B49: Sales - Prod Extracted from NG | D49: 0 | E49: 0 | F49: 0
A50: %,R,FACCOUNT,TNI_ACCOUNT_FERC,XBYYYYY01,NGAS_OIL_SALES | B50: Incidental Gasoline & Oil Sale | D50: 0 | E50: 0 | F50: 0
A51: %,R,FACCOUNT,TNI_ACCOUNT_FERC,XBYYYYY01,NRENT_GAS_PROP | B51: Rent from Gas Property | D51: 0 | E51: 0 | F51: 0
A52: %,R,FACCOUNT,TNI_ACCOUNT_FERC,XBYYYYY01,NOTH_GAS_REV | B52: Other Gas Revenues | D52: 0 | E52: 0 | F52: 0
A53: %,R,FACCOUNT,TNI_ACCOUNT_FERC,XBYYYYY01,NGAS_PROV_RATE_REFUND | B53: Gas Provision of Rate Refunds | D53: 0 | E53: 0 | F53: 0
B54: Total Other Operating Revenues | D54: =D30+D34+D36+D37+D38+D43+D44+D45+D46+D47+D48+D49+D50+D51+D52+D53 -> 42340011.15 | E54: =E30+E34+E36+E37+E38+E43+E44+E45+E46+E47+E48+E49+E50+E51+E52+E53 -> 1119903.21 | F54: =F30+F34+F36+F37+F38+F43+F44+F45+F46+F47+F48+F49+F50+F51+F52+F53 -> 207601016.7
A55: xx | B55: Total Operating Revenues | D55: =D17+D26+D54 -> 42340011.15 | E55: =E17+E26+E54 -> 1119903.21 | F55: =F17+F26+F54 -> 207601016.7
B57: Operating Expenses
B59: Operation Expenses
A61: %,FACCOUNT,TNI_ACCOUNT_FERC,XBYYYYY01,NOP_MANUF_GAS | B61: Manufac Gas Production - Oper | D61: 0 | E61: =D61-H61 -> 0 | F61: 0
A62: %,FACCOUNT,TNI_ACCOUNT_FERC,XBYYYYY01,NOP_NTRLGAS_PROD_GTH | B62: NG Production & Gather - Oper | D62: 0 | E62: =D62-H62 -> 0 | F62: 0
A63: %,FACCOUNT,TNI_ACCOUNT_FERC,XBYYYYY01,NOP_PROD_EXTRACT | B63: Products Extraction - Oper | D63: 0 | E63: =D63-H63 -> 0 | F63: 0
A65: %,V80500100 | B65: Propane Purchases | C65: 80500100 | D65: 0 | E65: =D65-H65 -> 0 | F65: 0 | H65: 0
A66: %,NOP_NG_PURCH_OTHER | B66: Other Gas Purchases | D66: 0 | E66: 0 | F66: 0 | H66: 0
A67: %,V80720000 | B67: Oper-Purch Gas Measrg Stations | C67: 80720000 | D67: 475004.83 | E67: -17768.44 | F67: 2249750 | H67: 492773.27
A68: %,V80751000 | B68: Purch Gas Exp - Mgmt Fee | C68: 80751000 | D68: 76805.39 | E68: -5239.15 | F68: 420735.62 | H68: 82044.54
A69: %,NOP_NG_PURCH_EXPENSE | B69: Purchased Gas Expenses | D69: 551810.22 | E69: -23007.59 | F69: 2670485.62 | H69: 574817.81
A70: %,FACCOUNT,TNI_ACCOUNT_FERC,XBYYYYY01,NOP_OTH_GAS_SUPPLY | B70: Other Gas Supply - Operations | D70: 551810.22 | E70: -23007.59 | F70: 2670485.62 | H70: 574817.81
A71: %,V50000000 | B71: Op Superv_Eng-Steam | C71: 50000000 | D71: 11886.04 | E71: 71.15 | F71: 49085.46 | H71: 11814.89
A72: %,FACCOUNT,TNI_ACCOUNT_FERC,XBYYYYY01,NOP_STEAM_POWER | B72: Steam Power - Operations | D72: 11886.04 | E72: 71.15 | F72: 49085.46 | H72: 11814.89
A73: %,FACCOUNT,TNI_ACCOUNT_FERC,XBYYYYY01,NOP_HYDRAULIC_POWER | B73: Hydraulic Power - Operations | D73: 0 | E73: 0 | F73: 0
A74: %,FACCOUNT,TNI_ACCOUNT_FERC,XBYYYYY01,NOP_SOLAR_GENERATION | B74: Solar Generation - Operations | D74: 0 | E74: 0 | F74: 0
A75: %,V54800000 | B75: Generation Exp | C75: 54800000 | D75: 0 | E75: 0 | F75: 0 | H75: 0
A76: %,FACCOUNT,TNI_ACCOUNT_FERC,XBYYYYY01,NOP_OTHER_POWER | B76: Other Power - Operations | D76: 0 | E76: 0 | F76: 0 | H76: 0
A77: %,V55700000 | B77: Other Exp | C77: 55700000 | D77: 4293.37 | E77: 3821.96 | F77: 4491.04 | H77: 471.41
A78: %,FACCOUNT,TNI_ACCOUNT_FERC,XBYYYYY01,NOP_OTH_POWER_SUPPLY | B78: Other Power Supply - Oper | D78: 4293.37 | E78: 3821.96 | F78: 4491.04 | H78: 471.41
A79: %,FACCOUNT,TNI_ACCOUNT_FERC,XBYYYYY01,NOP_NG_STOR_TERM_PROC | B79: NG Stor, Term & Proc - Oper | D79: 0 | E79: 0 | F79: 0
A81: %,V85900000 | B81: Gas Transmission Exp | C81: 85900000 | D81: 0 | E81: =D81-H81 -> 0 | F81: 0 | H81: 0
A82: %,NOP_GAS_TRANS_EXP | B82: Transmission Exp - Oper - Gas | D82: 0 | E82: =D82-H82 -> 0 | F82: 0 | H82: 0
A83: %,FACCOUNT,TNI_ACCOUNT_FERC,XBYYYYY01,NOP_TRANS_EXP | B83: Transmission Exp - Oper | D83: 0 | E83: =D83-H83 -> 0 | F83: 0 | H83: 0
A84: %,FACCOUNT,TNI_ACCOUNT_FERC,XBYYYYY01,NOP_REG_MARKET_EXP | B84: Regional Market Exp - Oper | D84: 0 | E84: =D84-H84 -> 0 | F84: 0
A85: %,FACCOUNT,TNI_ACCOUNT_FERC,XBYYYYY01,NOP_ENERGY_STORAGE | B85: Energy Storage - Oper | D85: 0 | E85: =D85-H85 -> 0 | F85: 0
A87: %,V58000000 | B87: Op Superv_Eng-Elec Distr | C87: 58000000 | D87: 10759.89 | E87: =D87-H87 -> 4872.7 | F87: 41459 | H87: 5887.19
A88: %,NOP_ELEC_DISTR_EXP | B88: Distribution Exp - Oper - Elec | D88: 10759.89 | E88: 4872.7 | F88: 41459 | H88: 5887.19
A89: %,V87000000 | B89: Op Superv-Eng-Gas Distr | C89: 87000000 | D89: 1026286.26 | E89: -722886.79 | F89: 6391152.36 | H89: 1749173.05
A90: %,V87400000 | B90: Mains and Services Exp | C90: 87400000 | D90: 172606.06 | E90: 8826.79 | F90: 838258.96 | H90: 163779.27
A91: %,V87500000 | B91: Measur-Reg Statn Exp Gen | C91: 87500000 | D91: 42269.46 | E91: 4884.45 | F91: 188174.66 | H91: 37385.01
A92: %,V87600000 | B92: Measur-Reg Statn Exp-Indus | C92: 87600000 | D92: 34582.08 | E92: 3993.12 | F92: 153960.58 | H92: 30588.96
A93: %,V87800000 | B93: Meter and House Regulator Exp | C93: 87800000 | D93: 113595.45 | E93: 9699 | F93: 549938.6 | H93: 103896.45
A94: %,V87900000 | B94: Oper Installation Service Exp | C94: 87900000 | D94: 108532.94 | E94: 9006.3 | F94: 525633.82 | H94: 99526.64
A95: %,V88000000 | B95: Operations Exp Other | C95: 88000000 | D95: 21928.2 | E95: 1248.97 | F95: 106698.51 | H95: 20679.23
A96: %,NOP_GAS_DISTR_EXP | B96: Distribution Exp - Oper - Gas | D96: 1519800.45 | E96: -685228.16 | F96: 8753817.49 | H96: 2205028.61
A97: %,FACCOUNT,TNI_ACCOUNT_FERC,XBYYYYY01,NOP_DISTR_EXP | B97: Distribution Exp - Oper | D97: 1530560.34 | E97: -680355.46 | F97: 8795276.49 | H97: 2210915.8
A98: %,V90100000 | B98: Customer Acnt Supervision | C98: 90100000 | D98: 2558.37 | E98: 2558.37 | F98: 3680.14 | H98: 0
A99: %,V90300000 | B99: Cust Records Collection Exp | C99: 90300000 | D99: 2189685.63 | E99: 34163.66 | F99: 10995136.15 | H99: 2155521.97
A100: %,FACCOUNT,TNI_ACCOUNT_FERC,XBYYYYY01,NOP_CUST_ACCTS_EXP | B100: Customer Accounts - Oper | D100: 2192244 | E100: 36722.03 | F100: 10998816.29 | H100: 2155521.97
A101: %,V90700000 | B101: Cust Serv Info Exp Supv | C101: 90700000 | D101: 0 | E101: 0 | F101: 0 | H101: 0
A102: %,V90800000 | B102: Customer Assistance Exp | C102: 90800000 | D102: -0.07 | E102: 1081.22 | F102: -2838.79 | H102: -1081.29
A103: %,V91000000 | B103: Misc Cust Serv and Info Exp | C103: 91000000 | D103: 360527.12 | E103: 8887.53 | F103: 1762666.19 | H103: 351639.59
A104: %,FACCOUNT,TNI_ACCOUNT_FERC,XBYYYYY01,NOP_CUSTOMER_SERV_EXP | B104: Cust Serv & Info Exp - Oper | D104: 360527.05 | E104: 9968.75 | F104: 1759827.4 | H104: 350558.3
A105: %,V91200000 | B105: Demonstrating and Selling Exp | C105: 91200000 | D105: 1249.35 | E105: 369.21 | F105: 3618.78 | H105: 880.14
A106: %,V91300000 | B106: Sales Advertising Exp | C106: 91300000 | D106: 46507.02 | E106: -39994.8 | F106: 97861.1 | H106: 86501.82
A107: %,V91600000 | B107: Misc Sales Exp | C107: 91600000 | D107: 0 | E107: 0 | F107: 304.01 | H107: 0
A108: %,FACCOUNT,TNI_ACCOUNT_FERC,XBYYYYY01,NOP_SALES_EXP | B108: Sales Expenses - Oper | D108: 47756.37 | E108: -39625.59 | F108: 101783.89 | H108: 87381.96
A109: %,V92000000 | B109: A_G Salaries | C109: 92000000 | D109: 11414143.99 | E109: 416629.7 | F109: 54281325.84 | H109: 10997514.29
A110: %,V92001000 | B110: Discretionary and Spot Awards | C110: 92001000 | D110: 66618.88 | E110: 14458.88 | F110: 1457325.01 | H110: 52160
A111: %,V92002000 | B111: Stock Compensation Expense | C111: 92002000 | D111: 1554228 | E111: -26327 | F111: 7301787.25 | H111: 1580555
A112: %,V92100000 | B112: Office Supplies and Exp | C112: 92100000 | D112: 390558.72 | E112: 17366.49 | F112: 2326974.04 | H112: 373192.23
A113: %,V92101000 | B113: Employee Expenses | C113: 92101000 | D113: 411056.17 | E113: 143525.01 | F113: 1189473.72 | H113: 267531.16
A114: %,V92300000 | B114: Outside Service Employed | C114: 92300000 | D114: 10619498.08 | E114: -471813.4 | F114: 54683489.76 | H114: 11091311.48
A115: %,V92400000 | B115: Property Insurance | C115: 92400000 | D115: 4127.08 | E115: -0.04 | F115: 20635.56 | H115: 4127.12
A116: %,V92500000 | B116: Injuries and Damages | C116: 92500000 | D116: 152864.77 | E116: -3192.65 | F116: 820660.79 | H116: 156057.42
A117: %,V92600000 | B117: Employee Pensions and Benefits | C117: 92600000 | D117: 2191454.36 | E117: 131206.7 | F117: 13364175.49 | H117: 2060247.66
A118: %,V92601000 | B118: Non Service Pension & OPEB | C118: 92601000 | D118: -217056.01 | E118: 0 | F118: -1085280.05 | H118: -217056.01
A119: %,V92800000 | B119: Regulatory Commission Exp | C119: 92800000 | D119: 367.2 | E119: 367.2 | F119: 996.51 | H119: 0
A120: %,V93010000 | B120: General Advertising Exp | C120: 93010000 | D120: 22412.1 | E120: -65769.23 | F120: 271395.93 | H120: 88181.33
A121: %,V93020000 | B121: Misc General Exp | C121: 93020000 | D121: 232005.37 | E121: -23721.68 | F121: 805674.31 | H121: 255727.05
A122: %,V93020495 | B122: CMA Care-Misc General Exp | C122: 93020495 | D122: 0 | E122: 0 | F122: 0 | H122: 0
A123: %,V93100000 | B123: Rents Admin and General | C123: 93100000 | D123: 1300724.34 | E123: -62529.42 | F123: 6498737.85 | H123: 1363253.76
A124: %,FACCOUNT,TNI_ACCOUNT_FERC,XBYYYYY01,NOP_ADMIN_GEN | B124: Admin & General Exp - Oper | D124: 28143003.05 | E124: 70200.56 | F124: 141937372 | H124: 28072802.49
B125: Total Operation Expenses | D125: =D61+D62+D63+D70+D72+D73+D74+D76+D78+D79+D83+D85+D84+D97+D100+D104+D108+D124 -> 32842080.44 | E125: =E61+E62+E63+E70+E72+E73+E74+E76+E78+E79+E83+E85+E84+E97+E100+E104+E108+E124 -> -622204.19 | F125: =F61+F62+F63+F70+F72+F73+F74+F76+F78+F79+F83+F85+F84+F97+F100+F104+F108+F124 -> 166317138.2
B127: Maintenance Expenses
A129: %,FACCOUNT,TNI_ACCOUNT_FERC,XBYYYYY01,NMAINT_PROD_EXP | B129: Production Expenses - Maint | D129: 0 | E129: =D129-H129 -> 0 | F129: 0
A130: %,FACCOUNT,TNI_ACCOUNT_FERC,XBYYYYY01,NMAINT_NG_STOR_PROC | B130: NG Stor, Term & Proc - Maint | D130: 0 | E130: =D130-H130 -> 0 | F130: 0
A132: %,V56920000 | B132: Maint of Computer Software | C132: 56920000 | D132: 0 | E132: =D132-H132 -> 0 | F132: 0 | H132: 0
A133: %,NMAINT_ELEC_TRANS_EXP | B133: Transmission Exp - Maint-Elec | D133: 0 | E133: =D133-H133 -> 0 | F133: 0 | H133: 0
A134: %,FACCOUNT,TNI_ACCOUNT_FERC,XBYYYYY01,NMAINT_TRANS_EXP | B134: Transmission Exp - Maint | D134: 0 | E134: =D134-H134 -> 0 | F134: 0 | H134: 0
A135: %,FACCOUNT,TNI_ACCOUNT_FERC,XBYYYYY01,NMAINT_ENERGY_STORAGE | B135: Energy Storage - Maint | D135: 0 | E135: =D135-H135 -> 0 | F135: 0
A137: %,V59700000 | B137: Maint of Meters | C137: 59700000 | D137: 0 | E137: =D137-H137 -> 0 | F137: 0 | H137: 0
A138: %,NMAINT_ELEC_DISTR_EXP | B138: Distribution Exp - Maint-Elec | D138: 0 | E138: 0 | F138: 0 | H138: 0
A139: %,V88700000 | B139: Maint of Mains | C139: 88700000 | D139: 251864.74 | E139: 189682.34 | F139: 510727.81 | H139: 62182.4
A140: %,V88900000 | B140: Maint Msr-Reg Statn Equi Gen | C140: 88900000 | D140: 42269.46 | E140: 4884.45 | F140: 188174.66 | H140: 37385.01
A141: %,V89000000 | B141: Maint Meas_Reg Stn Equip-Distr | C141: 89000000 | D141: 36612.88 | E141: 246.34 | F141: 171496.13 | H141: 36366.54
A142: %,V89200000 | B142: Maint of Services | C142: 89200000 | D142: 44036.72 | E142: -14807.12 | F142: 196804.22 | H142: 58843.84
A143: %,V89300000 | B143: Maint Meters_House Regulators | C143: 89300000 | D143: 11435.13 | E143: 1101.25 | F143: 47904.7 | H143: 10333.88
A144: %,V89400000 | B144: Other Maint Equipment | C144: 89400000 | D144: 90705.79 | E144: 26581.02 | F144: 365058.27 | H144: 64124.77
A145: %,NMAINT_GAS_DISTR_EXP | B145: Distribution Exp - Maint-Gas | D145: 476924.72 | E145: 207688.28 | F145: 1480165.79 | H145: 269236.44
A146: %,FACCOUNT,TNI_ACCOUNT_FERC,XBYYYYY01,NMAINT_DISTR_EXP | B146: Distribution Exp - Maint | D146: 476924.72 | E146: 207688.28 | F146: 1480165.79 | H146: 269236.44
A147: %,V93200000 | B147: Maint General Plant | C147: 93200000 | D147: 4139508.49 | E147: 1170479.33 | F147: 16781134.62 | H147: 2969029.16
A148: %,FACCOUNT,TNI_ACCOUNT_FERC,XBYYYYY01,NMAINT_ADMIN_GEN | B148: Maintenance Gen and Admin | D148: 4139508.49 | E148: 1170479.33 | F148: 16781134.62 | H148: 2969029.16
B149: Total Maintenance Expenses | D149: =D129+D130+D134+D135+D146+D148 -> 4616433.21 | E149: =E129+E130+E134+E135+E146+E148 -> 1378167.61 | F149: =F129+F130+F134+F135+F146+F148 -> 18261300.41
A151: %,V40300000 | B151: Dep Exp | C151: 40300000 | D151: 2735036.78 | E151: =D151-H151 -> 213.53 | F151: 13046911.94 | H151: 2734823.25
A152: %,FACCOUNT,TNI_ACCOUNT_FERC,XBYYYYY01,NDEPRECIATION_EXPENSE | B152: Depreciation Expense | D152: 2735036.78 | E152: =D152-H152 -> 213.53 | F152: 13046911.94 | H152: 2734823.25
A153: %,FACCOUNT,TNI_ACCOUNT_FERC,XBYYYYY01,NDEPRECIATION_ARO_EXP | B153: Depreciation Expense for AROs | D153: 0 | E153: =D153-H153 -> 0 | F153: 0
A155: %,V40434000 | B155: Cloude Amortizaiton Expense | C155: 40434000 | D155: 107895.34 | E155: =D155-H155 -> 7836.51 | F155: 522656.37 | H155: 100058.83
A156: %,NAMORT_LMT_TERM_PROP | B156: Amort of Limited-Term Property | D156: 107895.34 | E156: 7836.51 | F156: 522656.37 | H156: 100058.83
A157: %,V40500000 | B157: Amortization of Oth Plant | C157: 40500000 | D157: 599937.17 | E157: 235801.53 | F157: 2166131.13 | H157: 364135.64
A158: %,NAMORT_OTH_PROP | B158: Amort of Other Property | D158: 599937.17 | E158: 235801.53 | F158: 2166131.13 | H158: 364135.64
A159: %,FACCOUNT,TNI_ACCOUNT_FERC,XBYYYYY01,NAMORT_DEPL_UTIL | B159: Amort & Deplet of Util Plant | D159: 707832.51 | E159: 243638.04 | F159: 2688787.5 | H159: 464194.47
A160: %,FACCOUNT,TNI_ACCOUNT_FERC,XBYYYYY01,NAMORT_UTIL_ADJ | B160: Amort of Gas Plant Acq Adj | D160: 0 | E160: 0 | F160: 0
A161: %,FACCOUNT,TNI_ACCOUNT_FERC,XBYYYYY01,NAMORT_CONV_EXP | B161: Amort of Conversion Exp | D161: 0 | E161: 0 | F161: 0
A162: %,FACCOUNT,TNI_ACCOUNT_FERC,XBYYYYY01,NREG_DEBITS | B162: Reg Debits | D162: 0 | E162: 0 | F162: 0
A163: %,FACCOUNT,TNI_ACCOUNT_FERC,XBYYYYY01,NREG_CREDITS | B163: Reg Credits | D163: 0 | E163: 0 | F163: 0
A164: %,V40813100 | B164: Tax Exp-License_Franchise | C164: 40813100 | D164: 0 | E164: -300 | F164: 300 | H164: 300
A165: %,V40813200 | B165: Tax Exp-Property | C165: 40813200 | D165: 20000 | E165: 0 | F165: 100000 | H165: 20000
A166: %,V40813600 | B166: Tax Exp-State and Local-Oth | C166: 40813600 | D166: 391.96 | E166: 28.72 | F166: 4500.11 | H166: 363.24
A167: %,V40814500 | B167: Tax Exp-Payroll FICA-OASDI | C167: 40814500 | D167: 812643.57 | E167: -9018.44 | F167: 3563000.14 | H167: 821662.01
A168: %,V40814600 | B168: Tax Exp-Payroll FICA-Medicar | C168: 40814600 | D168: 178794.1 | E168: 3552.62 | F168: 1335900.88 | H168: 175241.48
A169: %,V40814700 | B169: Tax Exp-FUTA Employer | C169: 40814700 | D169: 1829.54 | E169: 239.24 | F169: 9633.78 | H169: 1590.3
A170: %,V40814800 | B170: Tax Exp-SUTA Employer | C170: 40814800 | D170: 8743.76 | E170: 2625.41 | F170: 243452.97 | H170: 6118.35
A171: %,FACCOUNT,TNI_ACCOUNT_FERC,XBYYYYY01,NOTHER_TAXES_FERC | B171: Other Taxes FERC | D171: 1022402.93 | E171: -2872.45 | F171: 5256787.88 | H171: 1025275.38
A173: %,V40912000 | B173: Util Cur ST Exp | C173: 40912000 | D173: 3909 | E173: =D173-H173 -> 9142 | F173: 8974 | H173: -5233
A174: %,FACCOUNT,TNI_ACCOUNT_FERC,XBYYYYY01,NINC_TAX_EXP_ST | B174: Income Taxes - State | D174: 3909 | E174: =D174-H174 -> 9142 | F174: 8974 | H174: -5233
A175: %,V40911000 | B175: Util Cur Fed Exp | C175: 40911000 | D175: 25670 | E175: =D175-H175 -> 60030 | F175: 58981 | H175: -34360
A176: %,FACCOUNT,TNI_ACCOUNT_FERC,XBYYYYY01,NINC_TAX_EXP_FED | B176: Income Taxes - Federal | D176: 25670 | E176: =D176-H176 -> 60030 | F176: 58981 | H176: -34360
B177: Total Utilities Current Fed State | D177: =D174+D176 -> 29579 | E177: =E174+E176 -> 69172 | F177: =F174+F176 -> 67955
A179: %,V41011000 | B179: Util Def Fed Exp-Dr | C179: 41011000 | D179: -282063 | E179: =D179-H179 -> 2659522 | F179: 7987785 | H179: -2941585
A180: %,V41012000 | B180: Util Def ST Exp-Dr | C180: 41012000 | D180: -38868 | E180: =D180-H180 -> 382146 | F180: 1130059 | H180: -421014
A181: %,FACCOUNT,TNI_ACCOUNT_FERC,XBYYYYY01,NDEFERRED_INC_TAX | B181: Deferred Income Taxes | D181: -320931 | E181: =D181-H181 -> 3041668 | F181: 9117844 | H181: -3362599
A183: %,V41111000 | B183: Util Def Fed Exp-Cr | C183: 41111000 | D183: 308529 | E183: =D183-H183 -> -2659326 | F183: -7843833 | H183: 2967855
A184: %,V41112000 | B184: Util Def ST Exp-Cr | C184: 41112000 | D184: 42901 | E184: -382114 | F184: -1125968 | H184: 425015
A185: %,FACCOUNT,TNI_ACCOUNT_FERC,XBYYYYY01,NDEFERRED_INC_TAX_CR | B185: Prov Deferred Inc Tax - Cr | D185: 351430 | E185: -3041440 | F185: -8969801 | H185: 3392870
A186: %,FACCOUNT,TNI_ACCOUNT_FERC,XBYYYYY01,NTAX_CRED_ADJ_INVEST | B186: Investment Tax Credit Adj | D186: 0 | E186: 0 | F186: 0
A187: %,FACCOUNT,TNI_ACCOUNT_FERC,XBYYYYY01,NTAX_CRED_GAIN_DISP | B187: Gain from Disposition of Plant | D187: 0 | E187: 0 | F187: 0
A188: %,FACCOUNT,TNI_ACCOUNT_FERC,XBYYYYY01,NTAX_CRED_LOSS_DISP | B188: Loss from Disposition of Plant | D188: 0 | E188: 0 | F188: 0
A189: %,FACCOUNT,TNI_ACCOUNT_FERC,XBYYYYY01,NACCRETION_EXP | B189: Accretion Expenses | D189: 0 | E189: 0 | F189: 0
B190: Total Operating Expenses | D190: =D125+D149+D152+D153+D159+D160+D161+D162+D163+D171+D177+D181+D185+D186+D187+D188+D189 -> 41983863.87 | E190: =E125+E149+E152+E153+E159+E160+E161+E162+E163+E171+E177+E181+E185+E186+E187+E188+E189 -> 1066342.54 | F190: =F125+F149+F152+F153+F159+F160+F161+F162+F163+F171+F177+F181+F185+F186+F187+F188+F189 -> 205786923.9
B193: Net Utility Operating Income(Loss) | D193: =D55-D190 -> 356147.28 | E193: =E55-E190 -> 53560.67 | F193: =F55-F190 -> 1814092.81
B196: Other Income & Deductions
A198: %,R,FACCOUNT,TNI_ACCOUNT_FERC,XBYYYYY01,NMERCH_REV | B198: Revenues from Merchandising | D198: 0 | E198: =D198-H198 -> 0 | F198: 0
A199: %,R,FACCOUNT,TNI_ACCOUNT_FERC,XBYYYYY01,NMERCH_EXP | B199: Costs and Exp Merch Job | D199: 0 | E199: =D199-H199 -> 0 | F199: 0
A200: %,R,FACCOUNT,TNI_ACCOUNT_FERC,XBYYYYY01,NOPS_NON_UTIL_REV | B200: NonUtility Revenues | D200: 0 | E200: =D200-H200 -> 0 | F200: 0
A202: %,V41715000 | B202: Non Util Operating Exp | C202: 41715000 | D202: 0 | E202: =D202-H202 -> 0 | F202: 0 | H202: 0
A203: %,NNON_UTIL_EXP_OPS | B203: Non-Utility Expense OPS | D203: 0 | E203: 0 | F203: 0 | H203: 0
A204: %,R,FACCOUNT,TNI_ACCOUNT_FERC,XBYYYYY01,NOPS_NON_UTIL_EXP | B204: NonUtility Unaffil | D204: 0 | E204: 0 | F204: 0 | H204: 0
A205: %,R,FACCOUNT,TNI_ACCOUNT_FERC,XBYYYYY01,NRENT_REV_NONOPS | B205: Nonoperating Rental Revenue | D205: 0 | E205: 0 | F205: 0
A206: %,R,FACCOUNT,TNI_ACCOUNT_FERC,XBYYYYY01,NEARNINGS_OF_SUBS | B206: Earnings of Subsidiaries | D206: 0 | E206: 0 | F206: 0
A207: %,V41902000 | B207: Interest Income Money Pool | C207: 41902000 | D207: 0 | E207: 0 | F207: 480.74 | H207: 0
A208: %,R,FACCOUNT,TNI_ACCOUNT_FERC,XBYYYYY01,NINT_DIV_INCOME | B208: Interest and Dividend Income | D208: 0 | E208: 0 | F208: 480.74 | H208: 0
A209: %,R,FACCOUNT,TNI_ACCOUNT_FERC,XBYYYYY01,NFUNDS_UDC | B209: Allow for Other FUDC | D209: 0 | E209: 0 | F209: 0
A210: %,V42100000 | B210: Misc Non Operating Income | C210: 42100000 | D210: 127.1 | E210: -72.81 | F210: 1056.36 | H210: 199.91
A211: %,R,FACCOUNT,TNI_ACCOUNT_FERC,XBYYYYY01,NMISC_NONOP_INCOME | B211: Misc Nonoperating Income | D211: 127.1 | E211: -72.81 | F211: 1056.36 | H211: 199.91
A212: %,R,FACCOUNT,TNI_ACCOUNT_FERC,XBYYYYY01,NDISP_PROP_GAIN | B212: Gain Disposition of Property | D212: 0 | E212: 0 | F212: 0
B213: Total Other Income | D213: =D198+D199+D200+D204+D205+D206+D208+D209+D211+D212 -> 127.1 | E213: =E198+E199+E200+E204+E205+E206+E208+E209+E211+E212 -> -72.81 | F213: =F198+F199+F200+F204+F205+F206+F208+F209+F211+F212 -> 1537.1
A215: %,V42121000 | B215: Loss on Disposition of Asset | C215: 42121000 | D215: 7758.34 | E215: =D215-H215 -> 620.84 | F215: 36548.84 | H215: 7137.5
A216: %,FACCOUNT,TNI_ACCOUNT_FERC,XBYYYYY01,NDISP_PROP_LOSS | B216: Loss on Disposal of Property | D216: 7758.34 | E216: 620.84 | F216: 36548.84 | H216: 7137.5
A217: %,FACCOUNT,TNI_ACCOUNT_FERC,XBYYYYY01,NAMORT_MISC | B217: Misc Amortization | D217: 0 | E217: 0 | F217: 0
A218: %,V42610000 | B218: Other Inc_Exp-Donations | C218: 42610000 | D218: 13155 | E218: -10845 | F218: 131351.72 | H218: 24000
A219: %,FACCOUNT,TNI_ACCOUNT_FERC,XBYYYYY01,NDONATIONS | B219: Other Inc Exp Donations | D219: 13155 | E219: -10845 | F219: 131351.72 | H219: 24000
A220: %,FACCOUNT,TNI_ACCOUNT_FERC,XBYYYYY01,NINSURANCE_LIFE | B220: Corporate Owned Life Ins | D220: 0 | E220: 0 | F220: 0
A221: %,FACCOUNT,TNI_ACCOUNT_FERC,XBYYYYY01,NPENALTIES | B221: Penalties | D221: 0 | E221: 0 | F221: 0
A222: %,V42640000 | B222: Oth Inc_Exp Political Contrib | C222: 42640000 | D222: 0 | E222: 0 | F222: 17495.63 | H222: 0
A223: %,FACCOUNT,TNI_ACCOUNT_FERC,XBYYYYY01,NCIVIC_POL_EXP | B223: Other Inc Exp PoliticalContrib | D223: 0 | E223: 0 | F223: 17495.63 | H223: 0
A224: %,V42654000 | B224: Other Misc Exp Deduction | C224: 42654000 | D224: 5224.71 | E224: 4742.58 | F224: 5852.4 | H224: 482.13
A225: %,FACCOUNT,TNI_ACCOUNT_FERC,XBYYYYY01,NOTHER_DEDUCTIONS | B225: Other Inc Deductions | D225: 5224.71 | E225: 4742.58 | F225: 5852.4 | H225: 482.13
B226: Total Other Income Deductions | D226: =D216+D217+D219+D220+D221+D223+D225 -> 26138.05 | E226: =E216+E217+E219+E220+E221+E223+E225 -> -5481.58 | F226: =F216+F217+F219+F220+F221+F223+F225 -> 191248.59
A228: %,V40823300 | B228: Non Util Sales and Use Tax | C228: 40823300 | D228: 0 | E228: =D228-H228 -> 0 | F228: 20000 | H228: 0
A229: %,FACCOUNT,TNI_ACCOUNT_FERC,XBYYYYY01,NTAX_NON_INC | B229: NonUtility Taxes | D229: 0 | E229: =D229-H229 -> 0 | F229: 20000 | H229: 0
A231: %,V40921000 | B231: Non Util Cur Fed Exp | C231: 40921000 | D231: -25669 | E231: =D231-H231 -> -60028 | F231: -58981 | H231: 34359
... 32 more rows

Sheet Jun22
A1: %,LACTUALS,UPOSTED_TRAN_AMT | B1: %,ATF,FDESCR,UDESCR | C1: %,ATT,FACCOUNT | D1: %,LACTUALS,UPOSTED_TRAN_AMT,SPER,FBOOK_CODE,VR | E1: %,C | F1: %,LACTUALS,UPOSTED_TRAN_AMT,SYTD,FBOOK_CODE,VR | H1: %,LACTUALS,UPOSTED_TRAN_AMT,SPER-1,FBOOK_CODE,VR
B2: NiSource Corporate Services Co | H2: FOR
B3: Income Statement-FERC | H3: CALC
B4: Regulatory View - FERC Account
B5: For the Month Ended June 30, 2022 | H5: PURPOSES
D7: Current | E7: Change from | F7: Year-To- | H7: Prior
D8: Month | E8: Prior Month | F8: Date | H8: Month
B10: Operating Revenues
A12: %,R,FACCOUNT,TNI_ACCOUNT_FERC,XBYYYYY01,NGAS_RESID_REV | B12: Gas Residential Sales | D12: 0 | E12: =D12-H12 -> 0 | F12: 0
A13: %,R,FACCOUNT,TNI_ACCOUNT_FERC,XBYYYYY01,NGAS_COMM_INDUST_REV | B13: Gas Comm & Indust Revenues | D13: 0 | E13: =D13-H13 -> 0 | F13: 0
A14: %,R,FACCOUNT,TNI_ACCOUNT_FERC,XBYYYYY01,NGAS_SALES_RESALE | B14: Gas Sales for Resale | D14: 0 | E14: 0 | F14: 0
A15: %,R,FACCOUNT,TNI_ACCOUNT_FERC,XBYYYYY01,NGAS_INTERDEPT_SALES | B15: Gas Interdepartmental Sales | D15: 0 | E15: 0 | F15: 0
A16: %,R,FACCOUNT,TNI_ACCOUNT_FERC,XBYYYYY01,NGAS_INTRACO_TRANSFER | B16: Gas Intercompany Transfers | D16: 0 | E16: =D16-H16 -> 0 | F16: 0
A17: xx | B17: Total Sales of Gas | D17: =D12+D13+D14+D15+D16 -> 0 | E17: =E12+E13+E14+E15+E16 -> 0 | F17: =F12+F13+F14+F15+F16 -> 0
A19: %,R,FACCOUNT,TNI_ACCOUNT_FERC,XBYYYYY01,NELE_RESID_REV | B19: Electric Residential Revenues | D19: 0 | E19: =D19-H19 -> 0 | F19: 0
A20: %,R,FACCOUNT,TNI_ACCOUNT_FERC,XBYYYYY01,NELE_COMM_IND_REV | B20: Elec Comm & Indust Rev | D20: 0 | E20: =D20-H20 -> 0 | F20: 0
A21: %,R,FACCOUNT,TNI_ACCOUNT_FERC,XBYYYYY01,NELE_STREET_HWY_LIGHT | B21: Public Street & Hwy Lighting | D21: 0 | E21: 0 | F21: 0
A22: %,R,FACCOUNT,TNI_ACCOUNT_FERC,XBYYYYY01,NELE_OTH_SALES_PUBLIC | B22: Elec Oth Sales to Public Auth | D22: 0 | E22: 0 | F22: 0
A23: %,R,FACCOUNT,TNI_ACCOUNT_FERC,XBYYYYY01,NELE_RAILROAD | B23: Sales to Railroads & Railways | D23: 0 | E23: 0 | F23: 0
A24: %,R,FACCOUNT,TNI_ACCOUNT_FERC,XBYYYYY01,NELE_SALES_RESALE | B24: Electric Sales for Resale | D24: 0 | E24: 0 | F24: 0
A25: %,R,FACCOUNT,TNI_ACCOUNT_FERC,XBYYYYY01,NELE_INTERDEPT_SALES | B25: Elec Interdepartmental Sales | D25: 0 | E25: 0 | F25: 0
A26: xx | B26: Total Sales of Electricity | D26: =D19+D20+D21+D22+D23+D24+D25 -> 0 | E26: =E19+E20+E21+E22+E23+E24+E25 -> 0 | F26: 0
A28: %,R,FACCOUNT,TNI_ACCOUNT_FERC,XBYYYYY01,NFORFEITED_DISC_GAS | B28: Forfeited Discounts - Gas | D28: 0 | E28: =D28-H28 -> 0 | F28: 0
A29: %,R,FACCOUNT,TNI_ACCOUNT_FERC,XBYYYYY01,NFORFEITED_DISC_ELE | B29: Forfeited Discounts - Ele | D29: 0 | E29: 0 | F29: 0
B30: Total Forfeited Discounts | D30: =D28+D29 -> 0 | E30: =E28+E29 -> 0 | F30: 0
A32: %,R,FACCOUNT,TNI_ACCOUNT_FERC,XBYYYYY01,NMISC_SERV_REVS_GAS | B32: Misc Service Revenues - Gas | D32: 0 | E32: =D32-H32 -> 0 | F32: 0
A33: %,R,FACCOUNT,TNI_ACCOUNT_FERC,XBYYYYY01,NMISC_SERV_REVS_ELE | B33: Misc Service Revenues - Ele | D33: 0 | E33: 0 | F33: 0
B34: Total Miscellaneous Service Revenues | D34: =D32+D33 -> 0 | E34: =E32+E33 -> 0 | F34: 0
A36: %,R,FACCOUNT,TNI_ACCOUNT_FERC,XBYYYYY01,NRENT_ELE_PROP | B36: Rent from Electricity Property | D36: 0 | E36: =D36-H36 -> 0 | F36: 0
A37: %,R,FACCOUNT,TNI_ACCOUNT_FERC,XBYYYYY01,NOTH_ELE_REV | B37: Other Electric Revenues | D37: 0 | E37: 0 | F37: 0
A38: %,R,FACCOUNT,TNI_ACCOUNT_FERC,XBYYYYY01,NOTH_ELE_TRANS_REV | B38: Rev Transm of Elec of Oth | D38: 0 | E38: 0 | F38: 0
A39: %,V45700000 | B39: Non Util IC Rev Direct | C39: 45700000 | D39: 12867300.45 | E39: =D39-H39 -> 284434.69 | F39: 80302389.21 | H39: 12582865.76
A40: %,V45700030 | B40: Non Util IC Rev Indirect | C40: 45700030 | D40: 26907703.91 | E40: -1656804.6 | F40: 157331282 | H40: 28564508.51
A41: %,V45700040 | B41: Non Util IC Rev Interest | C41: 45700040 | D41: 184163.83 | E41: -11339.1 | F41: 1000734.08 | H41: 195502.93
A42: %,V45810000 | B42: Non Util Non-Affill Revenue | C42: 45810000 | D42: 710207.26 | E42: -286926.69 | F42: 9635986.92 | H42: 997133.95
A43: %,R,FACCOUNT,TNI_ACCOUNT_FERC,XBYYYYY01,NOTH_REV_SERVICE_CO | B43: Nonutility Revenues - Serv Co | D43: 40669375.45 | E43: -1670635.7 | F43: 248270392.2 | H43: 42340011.15
A44: %,R,FACCOUNT,TNI_ACCOUNT_FERC,XBYYYYY01,NREG_ELE_TRANS_REV | B44: Regional Transm Service Rev | D44: 0 | E44: 0 | F44: 0
A45: %,R,FACCOUNT,TNI_ACCOUNT_FERC,XBYYYYY01,NTRANSPORT_GATH_REV | B45: Rev Transp Gas of Oth - Gather | D45: 0 | E45: 0 | F45: 0
A46: %,R,FACCOUNT,TNI_ACCOUNT_FERC,XBYYYYY01,NTRANSPORT_TRANS_REV | B46: Rev Transp Gas of Oth - Transm | D46: 0 | E46: 0 | F46: 0
A47: %,R,FACCOUNT,TNI_ACCOUNT_FERC,XBYYYYY01,NTRANSPORT_DISTR_REV | B47: Rev Transp Gas of Oth - Distr | D47: 0 | E47: 0 | F47: 0
A48: %,R,FACCOUNT,TNI_ACCOUNT_FERC,XBYYYYY01,NSTORE_GAS_REV | B48: Rev from Storing Gas of Oth | D48: 0 | E48: 0 | F48: 0
A49: %,R,FACCOUNT,TNI_ACCOUNT_FERC,XBYYYYY01,NSALES_EXTRACT_GAS | B49: Sales - Prod Extracted from NG | D49: 0 | E49: 0 | F49: 0
A50: %,R,FACCOUNT,TNI_ACCOUNT_FERC,XBYYYYY01,NGAS_OIL_SALES | B50: Incidental Gasoline & Oil Sale | D50: 0 | E50: 0 | F50: 0
A51: %,R,FACCOUNT,TNI_ACCOUNT_FERC,XBYYYYY01,NRENT_GAS_PROP | B51: Rent from Gas Property | D51: 0 | E51: 0 | F51: 0
A52: %,R,FACCOUNT,TNI_ACCOUNT_FERC,XBYYYYY01,NOTH_GAS_REV | B52: Other Gas Revenues | D52: 0 | E52: 0 | F52: 0
A53: %,R,FACCOUNT,TNI_ACCOUNT_FERC,XBYYYYY01,NGAS_PROV_RATE_REFUND | B53: Gas Provision of Rate Refunds | D53: 0 | E53: 0 | F53: 0
B54: Total Other Operating Revenues | D54: =D30+D34+D36+D37+D38+D43+D44+D45+D46+D47+D48+D49+D50+D51+D52+D53 -> 40669375.45 | E54: =E30+E34+E36+E37+E38+E43+E44+E45+E46+E47+E48+E49+E50+E51+E52+E53 -> -1670635.7 | F54: 248270392.2
A55: xx | B55: Total Operating Revenues | D55: =D17+D26+D54 -> 40669375.45 | E55: =E17+E26+E54 -> -1670635.7 | F55: =F17+F26+F54 -> 248270392.2
B57: Operating Expenses
B59: Operation Expenses
A61: %,FACCOUNT,TNI_ACCOUNT_FERC,XBYYYYY01,NOP_MANUF_GAS | B61: Manufac Gas Production - Oper | D61: 0 | E61: =D61-H61 -> 0 | F61: 0
A62: %,FACCOUNT,TNI_ACCOUNT_FERC,XBYYYYY01,NOP_NTRLGAS_PROD_GTH | B62: NG Production & Gather - Oper | D62: 0 | E62: 0 | F62: 0
A63: %,FACCOUNT,TNI_ACCOUNT_FERC,XBYYYYY01,NOP_PROD_EXTRACT | B63: Products Extraction - Oper | D63: 0 | E63: 0 | F63: 0
A65: %,V80500100 | B65: Propane Purchases | C65: 80500100 | D65: 0 | E65: =D65-H65 -> 0 | F65: 0 | H65: 0
A66: %,NOP_NG_PURCH_OTHER | B66: Other Gas Purchases | D66: 0 | E66: 0 | F66: 0 | H66: 0
A67: %,V80720000 | B67: Oper-Purch Gas Measrg Stations | C67: 80720000 | D67: 471219.06 | E67: -3785.77 | F67: 2720969.06 | H67: 475004.83
A68: %,V80751000 | B68: Purch Gas Exp - Mgmt Fee | C68: 80751000 | D68: 77034.51 | E68: 229.12 | F68: 497770.13 | H68: 76805.39
A69: %,NOP_NG_PURCH_EXPENSE | B69: Purchased Gas Expenses | D69: 548253.57 | E69: -3556.65 | F69: 3218739.19 | H69: 551810.22
A70: %,FACCOUNT,TNI_ACCOUNT_FERC,XBYYYYY01,NOP_OTH_GAS_SUPPLY | B70: Other Gas Supply - Operations | D70: 548253.57 | E70: -3556.65 | F70: 3218739.19 | H70: 551810.22
A71: %,V50000000 | B71: Op Superv_Eng-Steam | C71: 50000000 | D71: 9706.64 | E71: =D71-H71 -> -2179.4 | F71: 58792.1 | H71: 11886.04
A72: %,FACCOUNT,TNI_ACCOUNT_FERC,XBYYYYY01,NOP_STEAM_POWER | B72: Steam Power - Operations | D72: 9706.64 | E72: -2179.4 | F72: 58792.1 | H72: 11886.04
A73: %,FACCOUNT,TNI_ACCOUNT_FERC,XBYYYYY01,NOP_HYDRAULIC_POWER | B73: Hydraulic Power - Operations | D73: 0 | E73: 0 | F73: 0
A74: %,FACCOUNT,TNI_ACCOUNT_FERC,XBYYYYY01,NOP_SOLAR_GENERATION | B74: Solar Generation - Operations | D74: 0 | E74: =D74-H74 -> 0 | F74: 0
A75: %,V54800000 | B75: Generation Exp | C75: 54800000 | D75: 0 | E75: =D75-H75 -> 0 | F75: 0 | H75: 0
A76: %,FACCOUNT,TNI_ACCOUNT_FERC,XBYYYYY01,NOP_OTHER_POWER | B76: Other Power - Operations | D76: 0 | E76: 0 | F76: 0 | H76: 0
A77: %,V55700000 | B77: Other Exp | C77: 55700000 | D77: 1451.64 | E77: =D77-H77 -> -2841.73 | F77: 5942.68 | H77: 4293.37
A78: %,FACCOUNT,TNI_ACCOUNT_FERC,XBYYYYY01,NOP_OTH_POWER_SUPPLY | B78: Other Power Supply - Oper | D78: 1451.64 | E78: =D78-H78 -> -2841.73 | F78: 5942.68 | H78: 4293.37
A79: %,FACCOUNT,TNI_ACCOUNT_FERC,XBYYYYY01,NOP_NG_STOR_TERM_PROC | B79: NG Stor, Term & Proc - Oper | D79: 0 | E79: =D79-H79 -> 0 | F79: 0
A81: %,V85900000 | B81: Gas Transmission Exp | C81: 85900000 | D81: 0 | E81: =D81-H81 -> 0 | F81: 0 | H81: 0
A82: %,NOP_GAS_TRANS_EXP | B82: Transmission Exp - Oper - Gas | D82: 0 | E82: 0 | F82: 0 | H82: 0
A83: %,FACCOUNT,TNI_ACCOUNT_FERC,XBYYYYY01,NOP_TRANS_EXP | B83: Transmission Exp - Oper | D83: 0 | E83: 0 | F83: 0 | H83: 0
A84: %,FACCOUNT,TNI_ACCOUNT_FERC,XBYYYYY01,NOP_REG_MARKET_EXP | B84: Regional Market Exp - Oper | D84: 0 | E84: 0 | F84: 0
A85: %,FACCOUNT,TNI_ACCOUNT_FERC,XBYYYYY01,NOP_ENERGY_STORAGE | B85: Energy Storage - Oper | D85: 0 | E85: =D85-H85 -> 0 | F85: 0
A87: %,V58000000 | B87: Op Superv_Eng-Elec Distr | C87: 58000000 | D87: 14548.08 | E87: =D87-H87 -> 3788.19 | F87: 56007.08 | H87: 10759.89
A88: %,NOP_ELEC_DISTR_EXP | B88: Distribution Exp - Oper - Elec | D88: 14548.08 | E88: 3788.19 | F88: 56007.08 | H88: 10759.89
A89: %,V87000000 | B89: Op Superv-Eng-Gas Distr | C89: 87000000 | D89: 1213734.46 | E89: 187448.2 | F89: 7604886.82 | H89: 1026286.26
A90: %,V87400000 | B90: Mains and Services Exp | C90: 87400000 | D90: 179726.24 | E90: 7120.18 | F90: 1017985.2 | H90: 172606.06
A91: %,V87500000 | B91: Measur-Reg Statn Exp Gen | C91: 87500000 | D91: 38192.44 | E91: -4077.02 | F91: 226367.1 | H91: 42269.46
A92: %,V87600000 | B92: Measur-Reg Statn Exp-Indus | C92: 87600000 | D92: 31247.8 | E92: -3334.28 | F92: 185208.38 | H92: 34582.08
A93: %,V87800000 | B93: Meter and House Regulator Exp | C93: 87800000 | D93: 114961.18 | E93: 1365.73 | F93: 664899.78 | H93: 113595.45
A94: %,V87900000 | B94: Oper Installation Service Exp | C94: 87900000 | D94: 110086.12 | E94: 1553.18 | F94: 635719.94 | H94: 108532.94
A95: %,V88000000 | B95: Operations Exp Other | C95: 88000000 | D95: 22792.79 | E95: 864.59 | F95: 129491.3 | H95: 21928.2
A96: %,NOP_GAS_DISTR_EXP | B96: Distribution Exp - Oper - Gas | D96: 1710741.03 | E96: 190940.58 | F96: 10464558.52 | H96: 1519800.45
A97: %,FACCOUNT,TNI_ACCOUNT_FERC,XBYYYYY01,NOP_DISTR_EXP | B97: Distribution Exp - Oper | D97: 1725289.11 | E97: 194728.77 | F97: 10520565.6 | H97: 1530560.34
A98: %,V90100000 | B98: Customer Acnt Supervision | C98: 90100000 | D98: 0 | E98: =D98-H98 -> -2558.37 | F98: 3680.14 | H98: 2558.37
A99: %,V90300000 | B99: Cust Records Collection Exp | C99: 90300000 | D99: 2078461.65 | E99: -111223.98 | F99: 13073597.8 | H99: 2189685.63
A100: %,FACCOUNT,TNI_ACCOUNT_FERC,XBYYYYY01,NOP_CUST_ACCTS_EXP | B100: Customer Accounts - Oper | D100: 2078461.65 | E100: -113782.35 | F100: 13077277.94 | H100: 2192244
A101: %,V90700000 | B101: Cust Serv Info Exp Supv | C101: 90700000 | D101: 0 | E101: =D101-H101 -> 0 | F101: 0 | H101: 0
A102: %,V90800000 | B102: Customer Assistance Exp | C102: 90800000 | D102: -1299.65 | E102: -1299.58 | F102: -4138.44 | H102: -0.07
A103: %,V91000000 | B103: Misc Cust Serv and Info Exp | C103: 91000000 | D103: 355541.27 | E103: -4985.85 | F103: 2118207.46 | H103: 360527.12
A104: %,FACCOUNT,TNI_ACCOUNT_FERC,XBYYYYY01,NOP_CUSTOMER_SERV_EXP | B104: Cust Serv & Info Exp - Oper | D104: 354241.62 | E104: =D104-H104 -> -6285.43 | F104: 2114069.02 | H104: 360527.05
A105: %,V91200000 | B105: Demonstrating and Selling Exp | C105: 91200000 | D105: 564.81 | E105: =D105-H105 -> -684.54 | F105: 4183.59 | H105: 1249.35
A106: %,V91300000 | B106: Sales Advertising Exp | C106: 91300000 | D106: 68589.28 | E106: 22082.26 | F106: 166450.38 | H106: 46507.02
A107: %,V91600000 | B107: Misc Sales Exp | C107: 91600000 | D107: 0 | E107: 0 | F107: 304.01 | H107: 0
A108: %,FACCOUNT,TNI_ACCOUNT_FERC,XBYYYYY01,NOP_SALES_EXP | B108: Sales Expenses - Oper | D108: 69154.09 | E108: 21397.72 | F108: 170937.98 | H108: 47756.37
A109: %,V92000000 | B109: A_G Salaries | C109: 92000000 | D109: 10723553.39 | E109: =D109-H109 -> -690590.6 | F109: 65004879.23 | H109: 11414143.99
A110: %,V92001000 | B110: Discretionary and Spot Awards | C110: 92001000 | D110: 51236.81 | E110: -15382.07 | F110: 1508561.82 | H110: 66618.88
A111: %,V92002000 | B111: Stock Compensation Expense | C111: 92002000 | D111: 1574774 | E111: 20546 | F111: 8876561.25 | H111: 1554228
A112: %,V92100000 | B112: Office Supplies and Exp | C112: 92100000 | D112: 535471.97 | E112: 144913.25 | F112: 2862446.01 | H112: 390558.72
A113: %,V92101000 | B113: Employee Expenses | C113: 92101000 | D113: 524041.34 | E113: 112985.17 | F113: 1713515.06 | H113: 411056.17
A114: %,V92300000 | B114: Outside Service Employed | C114: 92300000 | D114: 9206703.31 | E114: -1412794.77 | F114: 63890193.07 | H114: 10619498.08
A115: %,V92400000 | B115: Property Insurance | C115: 92400000 | D115: 4237.78 | E115: 110.7 | F115: 24873.34 | H115: 4127.08
A116: %,V92500000 | B116: Injuries and Damages | C116: 92500000 | D116: 165628.87 | E116: 12764.1 | F116: 986289.66 | H116: 152864.77
A117: %,V92600000 | B117: Employee Pensions and Benefits | C117: 92600000 | D117: 2072165.29 | E117: -119289.07 | F117: 15436340.78 | H117: 2191454.36
A118: %,V92601000 | B118: Non Service Pension & OPEB | C118: 92601000 | D118: 1007414.42 | E118: 1224470.43 | F118: -77865.63 | H118: -217056.01
A119: %,V92800000 | B119: Regulatory Commission Exp | C119: 92800000 | D119: 6856.62 | E119: 6489.42 | F119: 7853.13 | H119: 367.2
A120: %,V93010000 | B120: General Advertising Exp | C120: 93010000 | D120: 56073.53 | E120: 33661.43 | F120: 327469.46 | H120: 22412.1
A121: %,V93020000 | B121: Misc General Exp | C121: 93020000 | D121: -188168.95 | E121: -420174.32 | F121: 617505.36 | H121: 232005.37
A122: %,V93020495 | B122: CMA Care-Misc General Exp | C122: 93020495 | D122: 0 | E122: 0 | F122: 0 | H122: 0
A123: %,V93100000 | B123: Rents Admin and General | C123: 93100000 | D123: 1334302.97 | E123: 33578.63 | F123: 7833040.82 | H123: 1300724.34
A124: %,FACCOUNT,TNI_ACCOUNT_FERC,XBYYYYY01,NOP_ADMIN_GEN | B124: Admin & General Exp - Oper | D124: 27074291.35 | E124: -1068711.7 | F124: 169011663.4 | H124: 28143003.05
B125: Total Operation Expenses | D125: =D61+D62+D63+D70+D72+D73+D74+D76+D78+D79+D83+D85+D84+D97+D100+D104+D108+D124 -> 31860849.67 | E125: =E61+E62+E63+E70+E72+E73+E74+E76+E78+E79+E83+E85+E84+E97+E100+E104+E108+E124 -> -981230.77 | F125: =F61+F62+F63+F70+F72+F73+F74+F76+F78+F79+F83+F85+F84+F97+F100+F104+F108+F124 -> 198177987.9
B127: Maintenance Expenses
A129: %,FACCOUNT,TNI_ACCOUNT_FERC,XBYYYYY01,NMAINT_PROD_EXP | B129: Production Expenses - Maint | D129: 0 | E129: =D129-H129 -> 0 | F129: 0
A130: %,FACCOUNT,TNI_ACCOUNT_FERC,XBYYYYY01,NMAINT_NG_STOR_PROC | B130: NG Stor, Term & Proc - Maint | D130: 0 | E130: 0 | F130: 0
A132: %,V56920000 | B132: Maint of Computer Software | C132: 56920000 | D132: 0 | E132: =D132-H132 -> 0 | F132: 0 | H132: 0
A133: %,NMAINT_ELEC_TRANS_EXP | B133: Transmission Exp - Maint-Elec | D133: 0 | E133: 0 | F133: 0 | H133: 0
A134: %,FACCOUNT,TNI_ACCOUNT_FERC,XBYYYYY01,NMAINT_TRANS_EXP | B134: Transmission Exp - Maint | D134: 0 | E134: 0 | F134: 0 | H134: 0
A135: %,FACCOUNT,TNI_ACCOUNT_FERC,XBYYYYY01,NMAINT_ENERGY_STORAGE | B135: Energy Storage - Maint | D135: 0 | E135: =D135-H135 -> 0 | F135: 0
A137: %,V59700000 | B137: Maint of Meters | C137: 59700000 | D137: 0 | E137: =D137-H137 -> 0 | F137: 0 | H137: 0
A138: %,NMAINT_ELEC_DISTR_EXP | B138: Distribution Exp - Maint-Elec | D138: 0 | E138: 0 | F138: 0 | H138: 0
A139: %,V88700000 | B139: Maint of Mains | C139: 88700000 | D139: -126671.07 | E139: -378535.81 | F139: 384056.74 | H139: 251864.74
A140: %,V88900000 | B140: Maint Msr-Reg Statn Equi Gen | C140: 88900000 | D140: 38192.44 | E140: -4077.02 | F140: 226367.1 | H140: 42269.46
A141: %,V89000000 | B141: Maint Meas_Reg Stn Equip-Distr | C141: 89000000 | D141: 35793.95 | E141: -818.93 | F141: 207290.08 | H141: 36612.88
A142: %,V89200000 | B142: Maint of Services | C142: 89200000 | D142: 46074.16 | E142: 2037.44 | F142: 242878.38 | H142: 44036.72
A143: %,V89300000 | B143: Maint Meters_House Regulators | C143: 89300000 | D143: 13329.32 | E143: 1894.19 | F143: 61234.02 | H143: 11435.13
A144: %,V89400000 | B144: Other Maint Equipment | C144: 89400000 | D144: 57545.38 | E144: -33160.41 | F144: 422603.65 | H144: 90705.79
A145: %,NMAINT_GAS_DISTR_EXP | B145: Distribution Exp - Maint-Gas | D145: 64264.18 | E145: -412660.54 | F145: 1544429.97 | H145: 476924.72
A146: %,FACCOUNT,TNI_ACCOUNT_FERC,XBYYYYY01,NMAINT_DISTR_EXP | B146: Distribution Exp - Maint | D146: 64264.18 | E146: -412660.54 | F146: 1544429.97 | H146: 476924.72
A147: %,V93200000 | B147: Maint General Plant | C147: 93200000 | D147: 3440542.04 | E147: =D147-H147 -> -698966.45 | F147: 20221676.66 | H147: 4139508.49
A148: %,FACCOUNT,TNI_ACCOUNT_FERC,XBYYYYY01,NMAINT_ADMIN_GEN | B148: Maintenance Gen and Admin | D148: 3440542.04 | E148: -698966.45 | F148: 20221676.66 | H148: 4139508.49
B149: Total Maintenance Expenses | D149: =D129+D130+D134+D135+D146+D148 -> 3504806.22 | E149: =E129+E130+E134+E135+E146+E148 -> -1111626.99 | F149: =F129+F130+F134+F135+F146+F148 -> 21766106.63
A151: %,V40300000 | B151: Dep Exp | C151: 40300000 | D151: 3504165.75 | E151: =D151-H151 -> 769128.97 | F151: 16551077.69 | H151: 2735036.78
A152: %,FACCOUNT,TNI_ACCOUNT_FERC,XBYYYYY01,NDEPRECIATION_EXPENSE | B152: Depreciation Expense | D152: 3504165.75 | E152: =D152-H152 -> 769128.97 | F152: 16551077.69 | H152: 2735036.78
A153: %,FACCOUNT,TNI_ACCOUNT_FERC,XBYYYYY01,NDEPRECIATION_ARO_EXP | B153: Depreciation Expense for AROs | D153: 0 | E153: 0 | F153: 0
A155: %,V40434000 | B155: Cloude Amortizaiton Expense | C155: 40434000 | D155: 104669.4 | E155: =D155-H155 -> -3225.94 | F155: 627325.77 | H155: 107895.34
A156: %,NAMORT_LMT_TERM_PROP | B156: Amort of Limited-Term Property | D156: 104669.4 | E156: -3225.94 | F156: 627325.77 | H156: 107895.34
A157: %,V40500000 | B157: Amortization of Oth Plant | C157: 40500000 | D157: 314205.58 | E157: -285731.59 | F157: 2480336.71 | H157: 599937.17
A158: %,NAMORT_OTH_PROP | B158: Amort of Other Property | D158: 314205.58 | E158: -285731.59 | F158: 2480336.71 | H158: 599937.17
A159: %,FACCOUNT,TNI_ACCOUNT_FERC,XBYYYYY01,NAMORT_DEPL_UTIL | B159: Amort & Deplet of Util Plant | D159: 418874.98 | E159: -288957.53 | F159: 3107662.48 | H159: 707832.51
A160: %,FACCOUNT,TNI_ACCOUNT_FERC,XBYYYYY01,NAMORT_UTIL_ADJ | B160: Amort of Gas Plant Acq Adj | D160: 0 | E160: 0 | F160: 0
A161: %,FACCOUNT,TNI_ACCOUNT_FERC,XBYYYYY01,NAMORT_CONV_EXP | B161: Amort of Conversion Exp | D161: 0 | E161: 0 | F161: 0
A162: %,FACCOUNT,TNI_ACCOUNT_FERC,XBYYYYY01,NREG_DEBITS | B162: Reg Debits | D162: 0 | E162: 0 | F162: 0
A163: %,FACCOUNT,TNI_ACCOUNT_FERC,XBYYYYY01,NREG_CREDITS | B163: Reg Credits | D163: 0 | E163: 0 | F163: 0
A164: %,V40813100 | B164: Tax Exp-License_Franchise | C164: 40813100 | D164: 0 | E164: =D164-H164 -> 0 | F164: 300 | H164: 0
A165: %,V40813200 | B165: Tax Exp-Property | C165: 40813200 | D165: 20000 | E165: 0 | F165: 120000 | H165: 20000
A166: %,V40813600 | B166: Tax Exp-State and Local-Oth | C166: 40813600 | D166: 377.03 | E166: -14.93 | F166: 4877.14 | H166: 391.96
A167: %,V40814500 | B167: Tax Exp-Payroll FICA-OASDI | C167: 40814500 | D167: 777418.43 | E167: -35225.14 | F167: 4340418.57 | H167: 812643.57
A168: %,V40814600 | B168: Tax Exp-Payroll FICA-Medicar | C168: 40814600 | D168: 184593.62 | E168: 5799.52 | F168: 1520494.5 | H168: 178794.1
A169: %,V40814700 | B169: Tax Exp-FUTA Employer | C169: 40814700 | D169: 1532.15 | E169: -297.39 | F169: 11165.93 | H169: 1829.54
A170: %,V40814800 | B170: Tax Exp-SUTA Employer | C170: 40814800 | D170: 6255.14 | E170: -2488.62 | F170: 249708.11 | H170: 8743.76
A171: %,FACCOUNT,TNI_ACCOUNT_FERC,XBYYYYY01,NOTHER_TAXES_FERC | B171: Other Taxes FERC | D171: 990176.37 | E171: =D171-H171 -> -32226.56 | F171: 6246964.25 | H171: 1022402.93
A173: %,V40912000 | B173: Util Cur ST Exp | C173: 40912000 | D173: 505 | E173: =D173-H173 -> -3404 | F173: 9479 | H173: 3909
A174: %,FACCOUNT,TNI_ACCOUNT_FERC,XBYYYYY01,NINC_TAX_EXP_ST | B174: Income Taxes - State | D174: 505 | E174: =D174-H174 -> -3404 | F174: 9479 | H174: 3909
A175: %,V40911000 | B175: Util Cur Fed Exp | C175: 40911000 | D175: 3314 | E175: =D175-H175 -> -22356 | F175: 62295 | H175: 25670
A176: %,FACCOUNT,TNI_ACCOUNT_FERC,XBYYYYY01,NINC_TAX_EXP_FED | B176: Income Taxes - Federal | D176: 3314 | E176: -22356 | F176: 62295 | H176: 25670
B177: Total Utilities Current Fed State | D177: =D174+D176 -> 3819 | E177: =E174+E176 -> -25760 | F177: 71774
A179: %,V41011000 | B179: Util Def Fed Exp-Dr | C179: 41011000 | D179: 677963 | E179: =D179-H179 -> 960026 | F179: 8665748 | H179: -282063
A180: %,V41012000 | B180: Util Def ST Exp-Dr | C180: 41012000 | D180: 96888 | E180: 135756 | F180: 1226947 | H180: -38868
A181: %,FACCOUNT,TNI_ACCOUNT_FERC,XBYYYYY01,NDEFERRED_INC_TAX | B181: Deferred Income Taxes | D181: 774851 | E181: =D181-H181 -> 1095782 | F181: 9892695 | H181: -320931
A183: %,V41111000 | B183: Util Def Fed Exp-Cr | C183: 41111000 | D183: -651500 | E183: =D183-H183 -> -960029 | F183: -8495333 | H183: 308529
A184: %,V41112000 | B184: Util Def ST Exp-Cr | C184: 41112000 | D184: -92856 | E184: -135757 | F184: -1218824 | H184: 42901
A185: %,FACCOUNT,TNI_ACCOUNT_FERC,XBYYYYY01,NDEFERRED_INC_TAX_CR | B185: Prov Deferred Inc Tax - Cr | D185: -744356 | E185: -1095786 | F185: -9714157 | H185: 351430
A186: %,FACCOUNT,TNI_ACCOUNT_FERC,XBYYYYY01,NTAX_CRED_ADJ_INVEST | B186: Investment Tax Credit Adj | D186: 0 | E186: 0 | F186: 0
A187: %,FACCOUNT,TNI_ACCOUNT_FERC,XBYYYYY01,NTAX_CRED_GAIN_DISP | B187: Gain from Disposition of Plant | D187: 0 | E187: 0 | F187: 0
A188: %,FACCOUNT,TNI_ACCOUNT_FERC,XBYYYYY01,NTAX_CRED_LOSS_DISP | B188: Loss from Disposition of Plant | D188: 0 | E188: 0 | F188: 0
A189: %,FACCOUNT,TNI_ACCOUNT_FERC,XBYYYYY01,NACCRETION_EXP | B189: Accretion Expenses | D189: 0 | E189: 0 | F189: 0
B190: Total Operating Expenses | D190: =D125+D149+D152+D153+D159+D160+D161+D162+D163+D171+D177+D181+D185+D186+D187+D188+D189 -> 40313186.99 | E190: =E125+E149+E152+E153+E159+E160+E161+E162+E163+E171+E177+E181+E185+E186+E187+E188+E189 -> -1670676.88 | F190: =F125+F149+F152+F153+F159+F160+F161+F162+F163+F171+F177+F181+F185+F186+F187+F188+F189 -> 246100110.9
B193: Net Utility Operating Income(Loss) | D193: =D55-D190 -> 356188.46 | E193: =E55-E190 -> 41.17999999 | F193: =F55-F190 -> 2170281.27
B196: Other Income & Deductions
A198: %,R,FACCOUNT,TNI_ACCOUNT_FERC,XBYYYYY01,NMERCH_REV | B198: Revenues from Merchandising | D198: 0 | E198: =D198-H198 -> 0 | F198: 0
A199: %,R,FACCOUNT,TNI_ACCOUNT_FERC,XBYYYYY01,NMERCH_EXP | B199: Costs and Exp Merch Job | D199: 0 | E199: 0 | F199: 0
A200: %,R,FACCOUNT,TNI_ACCOUNT_FERC,XBYYYYY01,NOPS_NON_UTIL_REV | B200: NonUtility Revenues | D200: 0 | E200: 0 | F200: 0
A202: %,V41715000 | B202: Non Util Operating Exp | C202: 41715000 | D202: 0 | E202: =D202-H202 -> 0 | F202: 0 | H202: 0
A203: %,NNON_UTIL_EXP_OPS | B203: Non-Utility Expense OPS | D203: 0 | E203: 0 | F203: 0 | H203: 0
A204: %,R,FACCOUNT,TNI_ACCOUNT_FERC,XBYYYYY01,NOPS_NON_UTIL_EXP | B204: NonUtility Unaffil | D204: 0 | E204: 0 | F204: 0 | H204: 0
A205: %,R,FACCOUNT,TNI_ACCOUNT_FERC,XBYYYYY01,NRENT_REV_NONOPS | B205: Nonoperating Rental Revenue | D205: 0 | E205: 0 | F205: 0
A206: %,R,FACCOUNT,TNI_ACCOUNT_FERC,XBYYYYY01,NEARNINGS_OF_SUBS | B206: Earnings of Subsidiaries | D206: 0 | E206: 0 | F206: 0
A207: %,V41902000 | B207: Interest Income Money Pool | C207: 41902000 | D207: 0 | E207: =D207-H207 -> 0 | F207: 480.74 | H207: 0
A208: %,R,FACCOUNT,TNI_ACCOUNT_FERC,XBYYYYY01,NINT_DIV_INCOME | B208: Interest and Dividend Income | D208: 0 | E208: 0 | F208: 480.74 | H208: 0
A209: %,R,FACCOUNT,TNI_ACCOUNT_FERC,XBYYYYY01,NFUNDS_UDC | B209: Allow for Other FUDC | D209: 0 | E209: 0 | F209: 0
A210: %,V42100000 | B210: Misc Non Operating Income | C210: 42100000 | D210: 134.73 | E210: =D210-H210 -> 7.63 | F210: 1191.09 | H210: 127.1
A211: %,R,FACCOUNT,TNI_ACCOUNT_FERC,XBYYYYY01,NMISC_NONOP_INCOME | B211: Misc Nonoperating Income | D211: 134.73 | E211: 7.63 | F211: 1191.09 | H211: 127.1
A212: %,R,FACCOUNT,TNI_ACCOUNT_FERC,XBYYYYY01,NDISP_PROP_GAIN | B212: Gain Disposition of Property | D212: 0 | E212: 0 | F212: 0
B213: Total Other Income | D213: =D198+D199+D200+D204+D205+D206+D208+D209+D211+D212 -> 134.73 | E213: =E198+E199+E200+E204+E205+E206+E208+E209+E211+E212 -> 7.63 | F213: 1671.83
A215: %,V42121000 | B215: Loss on Disposition of Asset | C215: 42121000 | D215: 0 | E215: =D215-H215 -> -7758.34 | F215: 36548.84 | H215: 7758.34
A216: %,FACCOUNT,TNI_ACCOUNT_FERC,XBYYYYY01,NDISP_PROP_LOSS | B216: Loss on Disposal of Property | D216: 0 | E216: =D216-H216 -> -7758.34 | F216: 36548.84 | H216: 7758.34
A217: %,FACCOUNT,TNI_ACCOUNT_FERC,XBYYYYY01,NAMORT_MISC | B217: Misc Amortization | D217: 0 | E217: 0 | F217: 0
A218: %,V42610000 | B218: Other Inc_Exp-Donations | C218: 42610000 | D218: 21000 | E218: =D218-H218 -> 7845 | F218: 152351.72 | H218: 13155
A219: %,FACCOUNT,TNI_ACCOUNT_FERC,XBYYYYY01,NDONATIONS | B219: Other Inc Exp Donations | D219: 21000 | E219: 7845 | F219: 152351.72 | H219: 13155
A220: %,FACCOUNT,TNI_ACCOUNT_FERC,XBYYYYY01,NINSURANCE_LIFE | B220: Corporate Owned Life Ins | D220: 0 | E220: 0 | F220: 0
A221: %,FACCOUNT,TNI_ACCOUNT_FERC,XBYYYYY01,NPENALTIES | B221: Penalties | D221: 0 | E221: 0 | F221: 0
A222: %,V42640000 | B222: Oth Inc_Exp Political Contrib | C222: 42640000 | D222: 0 | E222: =D222-H222 -> 0 | F222: 17495.63 | H222: 0
A223: %,FACCOUNT,TNI_ACCOUNT_FERC,XBYYYYY01,NCIVIC_POL_EXP | B223: Other Inc Exp PoliticalContrib | D223: 0 | E223: 0 | F223: 17495.63 | H223: 0
A224: %,V42654000 | B224: Other Misc Exp Deduction | C224: 42654000 | D224: -4581.66 | E224: =D224-H224 -> -9806.37 | F224: 1270.74 | H224: 5224.71
A225: %,FACCOUNT,TNI_ACCOUNT_FERC,XBYYYYY01,NOTHER_DEDUCTIONS | B225: Other Inc Deductions | D225: -4581.66 | E225: -9806.37 | F225: 1270.74 | H225: 5224.71
B226: Total Other Income Deductions | D226: =D216+D217+D219+D220+D221+D223+D225 -> 16418.34 | E226: =E216+E217+E219+E220+E221+E223+E225 -> -9719.71 | F226: 207666.93
A228: %,V40823300 | B228: Non Util Sales and Use Tax | C228: 40823300 | D228: 0 | E228: =D228-H228 -> 0 | F228: 20000 | H228: 0
A229: %,FACCOUNT,TNI_ACCOUNT_FERC,XBYYYYY01,NTAX_NON_INC | B229: NonUtility Taxes | D229: 0 | E229: =D229-H229 -> 0 | F229: 20000 | H229: 0
A231: %,V40921000 | B231: Non Util Cur Fed Exp | C231: 40921000 | D231: -3314 | E231: =D231-H231 -> 22355 | F231: -62295 | H231: -25669
... 32 more rows

Sheet Jul22
A1: %,LACTUALS,UPOSTED_TRAN_AMT | B1: %,ATF,FDESCR,UDESCR | C1: %,ATT,FACCOUNT | D1: %,LACTUALS,UPOSTED_TRAN_AMT,SPER,FBOOK_CODE,VR | E1: %,C | F1: %,LACTUALS,UPOSTED_TRAN_AMT,SYTD,FBOOK_CODE,VR | H1: %,LACTUALS,UPOSTED_TRAN_AMT,SPER-1,FBOOK_CODE,VR
B2: NiSource Corporate Services Co | H2: FOR
B3: Income Statement-FERC | H3: CALC
B4: Regulatory View - FERC Account
B5: For the Month Ended July 31, 2022 | H5: PURPOSES
D7: Current | E7: Change from | F7: Year-To- | H7: Prior
D8: Month | E8: Prior Month | F8: Date | H8: Month
B10: Operating Revenues
A12: %,R,FACCOUNT,TNI_ACCOUNT_FERC,XBYYYYY01,NGAS_RESID_REV | B12: Gas Residential Sales | D12: 0 | E12: =D12-H12 -> 0 | F12: 0
A13: %,R,FACCOUNT,TNI_ACCOUNT_FERC,XBYYYYY01,NGAS_COMM_INDUST_REV | B13: Gas Comm & Indust Revenues | D13: 0 | E13: =D13-H13 -> 0 | F13: 0
A14: %,R,FACCOUNT,TNI_ACCOUNT_FERC,XBYYYYY01,NGAS_SALES_RESALE | B14: Gas Sales for Resale | D14: 0 | E14: =D14-H14 -> 0 | F14: 0
A15: %,R,FACCOUNT,TNI_ACCOUNT_FERC,XBYYYYY01,NGAS_INTERDEPT_SALES | B15: Gas Interdepartmental Sales | D15: 0 | E15: =D15-H15 -> 0 | F15: 0
A16: %,R,FACCOUNT,TNI_ACCOUNT_FERC,XBYYYYY01,NGAS_INTRACO_TRANSFER | B16: Gas Intercompany Transfers | D16: 0 | E16: =D16-H16 -> 0 | F16: 0
A17: xx | B17: Total Sales of Gas | D17: =D12+D13+D14+D15+D16 -> 0 | E17: =E12+E13+E14+E15+E16 -> 0 | F17: =F12+F13+F14+F15+F16 -> 0
A19: %,R,FACCOUNT,TNI_ACCOUNT_FERC,XBYYYYY01,NELE_RESID_REV | B19: Electric Residential Revenues | D19: 0 | E19: =D19-H19 -> 0 | F19: 0
A20: %,R,FACCOUNT,TNI_ACCOUNT_FERC,XBYYYYY01,NELE_COMM_IND_REV | B20: Elec Comm & Indust Rev | D20: 0 | E20: 0 | F20: 0
A21: %,R,FACCOUNT,TNI_ACCOUNT_FERC,XBYYYYY01,NELE_STREET_HWY_LIGHT | B21: Public Street & Hwy Lighting | D21: 0 | E21: 0 | F21: 0
A22: %,R,FACCOUNT,TNI_ACCOUNT_FERC,XBYYYYY01,NELE_OTH_SALES_PUBLIC | B22: Elec Oth Sales to Public Auth | D22: 0 | E22: 0 | F22: 0
A23: %,R,FACCOUNT,TNI_ACCOUNT_FERC,XBYYYYY01,NELE_RAILROAD | B23: Sales to Railroads & Railways | D23: 0 | E23: 0 | F23: 0
A24: %,R,FACCOUNT,TNI_ACCOUNT_FERC,XBYYYYY01,NELE_SALES_RESALE | B24: Electric Sales for Resale | D24: 0 | E24: 0 | F24: 0
A25: %,R,FACCOUNT,TNI_ACCOUNT_FERC,XBYYYYY01,NELE_INTERDEPT_SALES | B25: Elec Interdepartmental Sales | D25: 0 | E25: 0 | F25: 0
A26: xx | B26: Total Sales of Electricity | D26: =D19+D20+D21+D22+D23+D24+D25 -> 0 | E26: =E19+E20+E21+E22+E23+E24+E25 -> 0 | F26: =F19+F20+F21+F22+F23+F24+F25 -> 0
A28: %,R,FACCOUNT,TNI_ACCOUNT_FERC,XBYYYYY01,NFORFEITED_DISC_GAS | B28: Forfeited Discounts - Gas | D28: 0 | E28: =D28-H28 -> 0 | F28: 0
A29: %,R,FACCOUNT,TNI_ACCOUNT_FERC,XBYYYYY01,NFORFEITED_DISC_ELE | B29: Forfeited Discounts - Ele | D29: 0 | E29: =D29-H29 -> 0 | F29: 0
B30: Total Forfeited Discounts | D30: =D28+D29 -> 0 | E30: =E28+E29 -> 0 | F30: =F28+F29 -> 0
A32: %,R,FACCOUNT,TNI_ACCOUNT_FERC,XBYYYYY01,NMISC_SERV_REVS_GAS | B32: Misc Service Revenues - Gas | D32: 0 | E32: =D32-H32 -> 0 | F32: 0
A33: %,R,FACCOUNT,TNI_ACCOUNT_FERC,XBYYYYY01,NMISC_SERV_REVS_ELE | B33: Misc Service Revenues - Ele | D33: 0 | E33: =D33-H33 -> 0 | F33: 0
B34: Total Miscellaneous Service Revenues | D34: =D32+D33 -> 0 | E34: =E32+E33 -> 0 | F34: =F32+F33 -> 0
A36: %,R,FACCOUNT,TNI_ACCOUNT_FERC,XBYYYYY01,NRENT_ELE_PROP | B36: Rent from Electricity Property | D36: 0 | E36: =D36-H36 -> 0 | F36: 0
A37: %,R,FACCOUNT,TNI_ACCOUNT_FERC,XBYYYYY01,NOTH_ELE_REV | B37: Other Electric Revenues | D37: 0 | E37: 0 | F37: 0
A38: %,R,FACCOUNT,TNI_ACCOUNT_FERC,XBYYYYY01,NOTH_ELE_TRANS_REV | B38: Rev Transm of Elec of Oth | D38: 0 | E38: 0 | F38: 0
A39: %,V45700000 | B39: Non Util IC Rev Direct | C39: 45700000 | D39: 12309257.54 | E39: -558042.91 | F39: 92611646.75 | H39: 12867300.45
A40: %,V45700030 | B40: Non Util IC Rev Indirect | C40: 45700030 | D40: 30103791.85 | E40: 3196087.94 | F40: 187435073.8 | H40: 26907703.91
A41: %,V45700040 | B41: Non Util IC Rev Interest | C41: 45700040 | D41: 281741.62 | E41: 97577.79 | F41: 1282475.7 | H41: 184163.83
A42: %,V45810000 | B42: Non Util Non-Affill Revenue | C42: 45810000 | D42: 167556.02 | E42: -542651.24 | F42: 9803542.94 | H42: 710207.26
A43: %,R,FACCOUNT,TNI_ACCOUNT_FERC,XBYYYYY01,NOTH_REV_SERVICE_CO | B43: Nonutility Revenues - Serv Co | D43: 42862347.03 | E43: 2192971.58 | F43: 291132739.2 | H43: 40669375.45
A44: %,R,FACCOUNT,TNI_ACCOUNT_FERC,XBYYYYY01,NREG_ELE_TRANS_REV | B44: Regional Transm Service Rev | D44: 0 | E44: 0 | F44: 0
A45: %,R,FACCOUNT,TNI_ACCOUNT_FERC,XBYYYYY01,NTRANSPORT_GATH_REV | B45: Rev Transp Gas of Oth - Gather | D45: 0 | E45: 0 | F45: 0
A46: %,R,FACCOUNT,TNI_ACCOUNT_FERC,XBYYYYY01,NTRANSPORT_TRANS_REV | B46: Rev Transp Gas of Oth - Transm | D46: 0 | E46: 0 | F46: 0
A47: %,R,FACCOUNT,TNI_ACCOUNT_FERC,XBYYYYY01,NTRANSPORT_DISTR_REV | B47: Rev Transp Gas of Oth - Distr | D47: 0 | E47: 0 | F47: 0
A48: %,R,FACCOUNT,TNI_ACCOUNT_FERC,XBYYYYY01,NSTORE_GAS_REV | B48: Rev from Storing Gas of Oth | D48: 0 | E48: 0 | F48: 0
A49: %,R,FACCOUNT,TNI_ACCOUNT_FERC,XBYYYYY01,NSALES_EXTRACT_GAS | B49: Sales - Prod Extracted from NG | D49: 0 | E49: 0 | F49: 0
A50: %,R,FACCOUNT,TNI_ACCOUNT_FERC,XBYYYYY01,NGAS_OIL_SALES | B50: Incidental Gasoline & Oil Sale | D50: 0 | E50: 0 | F50: 0
A51: %,R,FACCOUNT,TNI_ACCOUNT_FERC,XBYYYYY01,NRENT_GAS_PROP | B51: Rent from Gas Property | D51: 0 | E51: 0 | F51: 0
A52: %,R,FACCOUNT,TNI_ACCOUNT_FERC,XBYYYYY01,NOTH_GAS_REV | B52: Other Gas Revenues | D52: 0 | E52: 0 | F52: 0
A53: %,R,FACCOUNT,TNI_ACCOUNT_FERC,XBYYYYY01,NGAS_PROV_RATE_REFUND | B53: Gas Provision of Rate Refunds | D53: 0 | E53: 0 | F53: 0
B54: Total Other Operating Revenues | D54: =D30+D34+D36+D37+D38+D43+D44+D45+D46+D47+D48+D49+D50+D51+D52+D53 -> 42862347.03 | E54: =E30+E34+E36+E37+E38+E43+E44+E45+E46+E47+E48+E49+E50+E51+E52+E53 -> 2192971.58 | F54: =F30+F34+F36+F37+F38+F43+F44+F45+F46+F47+F48+F49+F50+F51+F52+F53 -> 291132739.2
A55: xx | B55: Total Operating Revenues | D55: =D17+D26+D54 -> 42862347.03 | E55: =E17+E26+E54 -> 2192971.58 | F55: =F17+F26+F54 -> 291132739.2
B57: Operating Expenses
B59: Operation Expenses
A61: %,FACCOUNT,TNI_ACCOUNT_FERC,XBYYYYY01,NOP_MANUF_GAS | B61: Manufac Gas Production - Oper | D61: 0 | E61: =D61-H61 -> 0 | F61: 0
A62: %,FACCOUNT,TNI_ACCOUNT_FERC,XBYYYYY01,NOP_NTRLGAS_PROD_GTH | B62: NG Production & Gather - Oper | D62: 0 | E62: =D62-H62 -> 0 | F62: 0
A63: %,FACCOUNT,TNI_ACCOUNT_FERC,XBYYYYY01,NOP_PROD_EXTRACT | B63: Products Extraction - Oper | D63: 0 | E63: =D63-H63 -> 0 | F63: 0
A65: %,V80500100 | B65: Propane Purchases | C65: 80500100 | D65: 0 | E65: =D65-H65 -> 0 | F65: 0 | H65: 0
A66: %,NOP_NG_PURCH_OTHER | B66: Other Gas Purchases | D66: 0 | E66: 0 | F66: 0 | H66: 0
A67: %,V80720000 | B67: Oper-Purch Gas Measrg Stations | C67: 80720000 | D67: 501678.91 | E67: 30459.85 | F67: 3222647.97 | H67: 471219.06
A68: %,V80751000 | B68: Purch Gas Exp - Mgmt Fee | C68: 80751000 | D68: 79899.62 | E68: 2865.11 | F68: 577669.75 | H68: 77034.51
A69: %,NOP_NG_PURCH_EXPENSE | B69: Purchased Gas Expenses | D69: 581578.53 | E69: 33324.96 | F69: 3800317.72 | H69: 548253.57
A70: %,FACCOUNT,TNI_ACCOUNT_FERC,XBYYYYY01,NOP_OTH_GAS_SUPPLY | B70: Other Gas Supply - Operations | D70: 581578.53 | E70: 33324.96 | F70: 3800317.72 | H70: 548253.57
A71: %,V50000000 | B71: Op Superv_Eng-Steam | C71: 50000000 | D71: 9301.09 | E71: -405.55 | F71: 68093.19 | H71: 9706.64
A72: %,FACCOUNT,TNI_ACCOUNT_FERC,XBYYYYY01,NOP_STEAM_POWER | B72: Steam Power - Operations | D72: 9301.09 | E72: -405.55 | F72: 68093.19 | H72: 9706.64
A73: %,FACCOUNT,TNI_ACCOUNT_FERC,XBYYYYY01,NOP_HYDRAULIC_POWER | B73: Hydraulic Power - Operations | D73: 0 | E73: 0 | F73: 0
A74: %,FACCOUNT,TNI_ACCOUNT_FERC,XBYYYYY01,NOP_SOLAR_GENERATION | B74: Solar Generation - Operations | D74: 0 | E74: 0 | F74: 0
A75: %,V54800000 | B75: Generation Exp | C75: 54800000 | D75: 0 | E75: 0 | F75: 0 | H75: 0
A76: %,FACCOUNT,TNI_ACCOUNT_FERC,XBYYYYY01,NOP_OTHER_POWER | B76: Other Power - Operations | D76: 0 | E76: 0 | F76: 0 | H76: 0
A77: %,V55700000 | B77: Other Exp | C77: 55700000 | D77: 1531.17 | E77: 79.53 | F77: 7473.85 | H77: 1451.64
A78: %,FACCOUNT,TNI_ACCOUNT_FERC,XBYYYYY01,NOP_OTH_POWER_SUPPLY | B78: Other Power Supply - Oper | D78: 1531.17 | E78: 79.53 | F78: 7473.85 | H78: 1451.64
A79: %,FACCOUNT,TNI_ACCOUNT_FERC,XBYYYYY01,NOP_NG_STOR_TERM_PROC | B79: NG Stor, Term & Proc - Oper | D79: 0 | E79: 0 | F79: 0
A81: %,V85900000 | B81: Gas Transmission Exp | C81: 85900000 | D81: 0 | E81: =D81-H81 -> 0 | F81: 0 | H81: 0
A82: %,NOP_GAS_TRANS_EXP | B82: Transmission Exp - Oper - Gas | D82: 0 | E82: =D82-H82 -> 0 | F82: 0 | H82: 0
A83: %,FACCOUNT,TNI_ACCOUNT_FERC,XBYYYYY01,NOP_TRANS_EXP | B83: Transmission Exp - Oper | D83: 0 | E83: =D83-H83 -> 0 | F83: 0 | H83: 0
A84: %,FACCOUNT,TNI_ACCOUNT_FERC,XBYYYYY01,NOP_REG_MARKET_EXP | B84: Regional Market Exp - Oper | D84: 0 | E84: =D84-H84 -> 0 | F84: 0
A85: %,FACCOUNT,TNI_ACCOUNT_FERC,XBYYYYY01,NOP_ENERGY_STORAGE | B85: Energy Storage - Oper | D85: 0 | E85: =D85-H85 -> 0 | F85: 0
A87: %,V58000000 | B87: Op Superv_Eng-Elec Distr | C87: 58000000 | D87: 0 | E87: =D87-H87 -> -14548.08 | F87: 56007.08 | H87: 14548.08
A88: %,V58800000 | B88: Misc Distribution Exp | C88: 58800000 | D88: 120.43 | E88: 120.43 | F88: 120.43 | H88: 0
A89: %,NOP_ELEC_DISTR_EXP | B89: Distribution Exp - Oper - Elec | D89: 120.43 | E89: -14427.65 | F89: 56127.51 | H89: 14548.08
A90: %,V87000000 | B90: Op Superv-Eng-Gas Distr | C90: 87000000 | D90: 999316.38 | E90: -214418.08 | F90: 8604203.2 | H90: 1213734.46
A91: %,V87400000 | B91: Mains and Services Exp | C91: 87400000 | D91: 182935.22 | E91: 3208.98 | F91: 1200920.42 | H91: 179726.24
A92: %,V87500000 | B92: Measur-Reg Statn Exp Gen | C92: 87500000 | D92: 43080.37 | E92: 4887.93 | F92: 269447.47 | H92: 38192.44
A93: %,V87600000 | B93: Measur-Reg Statn Exp-Indus | C93: 87600000 | D93: 35248.82 | E93: 4001.02 | F93: 220457.2 | H93: 31247.8
A94: %,V87800000 | B94: Meter and House Regulator Exp | C94: 87800000 | D94: 124382.22 | E94: 9421.04 | F94: 789282 | H94: 114961.18
A95: %,V87900000 | B95: Oper Installation Service Exp | C95: 87900000 | D95: 118833.87 | E95: 8747.75 | F95: 754553.81 | H95: 110086.12
A96: %,V88000000 | B96: Operations Exp Other | C96: 88000000 | D96: 23936.22 | E96: 1143.43 | F96: 153427.52 | H96: 22792.79
A97: %,NOP_GAS_DISTR_EXP | B97: Distribution Exp - Oper - Gas | D97: 1527733.1 | E97: -183007.93 | F97: 11992291.62 | H97: 1710741.03
A98: %,FACCOUNT,TNI_ACCOUNT_FERC,XBYYYYY01,NOP_DISTR_EXP | B98: Distribution Exp - Oper | D98: 1527853.53 | E98: -197435.58 | F98: 12048419.13 | H98: 1725289.11
A99: %,V90100000 | B99: Customer Acnt Supervision | C99: 90100000 | D99: 0 | E99: 0 | F99: 3680.14 | H99: 0
A100: %,V90300000 | B100: Cust Records Collection Exp | C100: 90300000 | D100: 2101552.8 | E100: 23091.15 | F100: 15175150.6 | H100: 2078461.65
A101: %,FACCOUNT,TNI_ACCOUNT_FERC,XBYYYYY01,NOP_CUST_ACCTS_EXP | B101: Customer Accounts - Oper | D101: 2101552.8 | E101: 23091.15 | F101: 15178830.74 | H101: 2078461.65
A102: %,V90700000 | B102: Cust Serv Info Exp Supv | C102: 90700000 | D102: 0 | E102: 0 | F102: 0 | H102: 0
A103: %,V90800000 | B103: Customer Assistance Exp | C103: 90800000 | D103: -1445.71 | E103: -146.06 | F103: -5584.15 | H103: -1299.65
A104: %,V91000000 | B104: Misc Cust Serv and Info Exp | C104: 91000000 | D104: 367355.37 | E104: 11814.1 | F104: 2485562.83 | H104: 355541.27
A105: %,FACCOUNT,TNI_ACCOUNT_FERC,XBYYYYY01,NOP_CUSTOMER_SERV_EXP | B105: Cust Serv & Info Exp - Oper | D105: 365909.66 | E105: 11668.04 | F105: 2479978.68 | H105: 354241.62
A106: %,V91200000 | B106: Demonstrating and Selling Exp | C106: 91200000 | D106: 1677.27 | E106: 1112.46 | F106: 5860.86 | H106: 564.81
A107: %,V91300000 | B107: Sales Advertising Exp | C107: 91300000 | D107: 80044.69 | E107: 11455.41 | F107: 246495.07 | H107: 68589.28
A108: %,V91600000 | B108: Misc Sales Exp | C108: 91600000 | D108: 0 | E108: 0 | F108: 304.01 | H108: 0
A109: %,FACCOUNT,TNI_ACCOUNT_FERC,XBYYYYY01,NOP_SALES_EXP | B109: Sales Expenses - Oper | D109: 81721.96 | E109: 12567.87 | F109: 252659.94 | H109: 69154.09
A110: %,V92000000 | B110: A_G Salaries | C110: 92000000 | D110: 10720003.68 | E110: -3549.71 | F110: 75724882.91 | H110: 10723553.39
A111: %,V92001000 | B111: Discretionary and Spot Awards | C111: 92001000 | D111: 759006.1 | E111: 707769.29 | F111: 2267567.92 | H111: 51236.81
A112: %,V92002000 | B112: Stock Compensation Expense | C112: 92002000 | D112: 1649806 | E112: 75032 | F112: 10526367.25 | H112: 1574774
A113: %,V92100000 | B113: Office Supplies and Exp | C113: 92100000 | D113: 282303.21 | E113: -253168.76 | F113: 3144749.22 | H113: 535471.97
A114: %,V92101000 | B114: Employee Expenses | C114: 92101000 | D114: 362577.76 | E114: -161463.58 | F114: 2076092.82 | H114: 524041.34
A115: %,V92300000 | B115: Outside Service Employed | C115: 92300000 | D115: 10468725.63 | E115: 1262022.32 | F115: 74358918.7 | H115: 9206703.31
A116: %,V92400000 | B116: Property Insurance | C116: 92400000 | D116: 4147.47 | E116: -90.31 | F116: 29020.81 | H116: 4237.78
A117: %,V92500000 | B117: Injuries and Damages | C117: 92500000 | D117: 89267 | E117: -76361.87 | F117: 1075556.66 | H117: 165628.87
A118: %,V92600000 | B118: Employee Pensions and Benefits | C118: 92600000 | D118: 3232334.8 | E118: 1160169.51 | F118: 18668675.58 | H118: 2072165.29
A119: %,V92601000 | B119: Non Service Pension & OPEB | C119: 92601000 | D119: -16989.58 | E119: -1024404 | F119: -94855.21 | H119: 1007414.42
A120: %,V92800000 | B120: Regulatory Commission Exp | C120: 92800000 | D120: 0 | E120: -6856.62 | F120: 7853.13 | H120: 6856.62
A121: %,V93010000 | B121: General Advertising Exp | C121: 93010000 | D121: 23943.39 | E121: -32130.14 | F121: 351412.85 | H121: 56073.53
A122: %,V93020000 | B122: Misc General Exp | C122: 93020000 | D122: 196105.69 | E122: 384274.64 | F122: 813611.05 | H122: -188168.95
A123: %,V93020495 | B123: CMA Care-Misc General Exp | C123: 93020495 | D123: 0 | E123: 0 | F123: 0 | H123: 0
A124: %,V93100000 | B124: Rents Admin and General | C124: 93100000 | D124: 1285163.6 | E124: -49139.37 | F124: 9118204.42 | H124: 1334302.97
A125: %,FACCOUNT,TNI_ACCOUNT_FERC,XBYYYYY01,NOP_ADMIN_GEN | B125: Admin & General Exp - Oper | D125: 29056394.75 | E125: 1982103.4 | F125: 198068058.1 | H125: 27074291.35
B126: Total Operation Expenses | D126: =D61+D62+D63+D70+D72+D73+D74+D76+D78+D79+D83+D85+D84+D98+D101+D105+D109+D125 -> 33725843.49 | E126: =E61+E62+E63+E70+E72+E73+E74+E76+E78+E79+E83+E85+E84+E98+E101+E105+E109+E125 -> 1864993.82 | F126: =F61+F62+F63+F70+F72+F73+F74+F76+F78+F79+F83+F85+F84+F98+F101+F105+F109+F125 -> 231903831.4
B128: Maintenance Expenses
A131: %,V76400000 | B131: Gath Maint Field Lines | C131: 76400000 | D131: 0 | E131: =D131-H131 -> 0 | F131: 0 | H131: 0
A132: %,NMAINT_NG_PROD_GTH | B132: NG Production & Gather - Maint | D132: 0 | E132: =D132-H132 -> 0 | F132: 0 | H132: 0
A133: %,FACCOUNT,TNI_ACCOUNT_FERC,XBYYYYY01,NMAINT_PROD_EXP | B133: Production Expenses - Maint | D133: 0 | E133: =D133-H133 -> 0 | F133: 0 | H133: 0
A134: %,FACCOUNT,TNI_ACCOUNT_FERC,XBYYYYY01,NMAINT_NG_STOR_PROC | B134: NG Stor, Term & Proc - Maint | D134: 0 | E134: =D134-H134 -> 0 | F134: 0
A136: %,V56920000 | B136: Maint of Computer Software | C136: 56920000 | D136: 0 | E136: =D136-H136 -> 0 | F136: 0 | H136: 0
A137: %,NMAINT_ELEC_TRANS_EXP | B137: Transmission Exp - Maint-Elec | D137: 0 | E137: =D137-H137 -> 0 | F137: 0 | H137: 0
A138: %,FACCOUNT,TNI_ACCOUNT_FERC,XBYYYYY01,NMAINT_TRANS_EXP | B138: Transmission Exp - Maint | D138: 0 | E138: =D138-H138 -> 0 | F138: 0 | H138: 0
A139: %,FACCOUNT,TNI_ACCOUNT_FERC,XBYYYYY01,NMAINT_ENERGY_STORAGE | B139: Energy Storage - Maint | D139: 0 | E139: =D139-H139 -> 0 | F139: 0
A141: %,V59700000 | B141: Maint of Meters | C141: 59700000 | D141: 0 | E141: =D141-H141 -> 0 | F141: 0 | H141: 0
A142: %,NMAINT_ELEC_DISTR_EXP | B142: Distribution Exp - Maint-Elec | D142: 0 | E142: 0 | F142: 0 | H142: 0
A143: %,V88700000 | B143: Maint of Mains | C143: 88700000 | D143: 64488.95 | E143: 191160.02 | F143: 448545.69 | H143: -126671.07
A144: %,V88900000 | B144: Maint Msr-Reg Statn Equi Gen | C144: 88900000 | D144: 43080.37 | E144: 4887.93 | F144: 269447.47 | H144: 38192.44
A145: %,V89000000 | B145: Maint Meas_Reg Stn Equip-Distr | C145: 89000000 | D145: 37676.74 | E145: 1882.79 | F145: 244966.82 | H145: 35793.95
A146: %,V89200000 | B146: Maint of Services | C146: 89200000 | D146: 106439.69 | E146: 60365.53 | F146: 349318.07 | H146: 46074.16
A147: %,V89300000 | B147: Maint Meters_House Regulators | C147: 89300000 | D147: 11492.66 | E147: -1836.66 | F147: 72726.68 | H147: 13329.32
A148: %,V89400000 | B148: Other Maint Equipment | C148: 89400000 | D148: 49878.87 | E148: -7666.51 | F148: 472482.52 | H148: 57545.38
A149: %,NMAINT_GAS_DISTR_EXP | B149: Distribution Exp - Maint-Gas | D149: 313057.28 | E149: 248793.1 | F149: 1857487.25 | H149: 64264.18
A150: %,FACCOUNT,TNI_ACCOUNT_FERC,XBYYYYY01,NMAINT_DISTR_EXP | B150: Distribution Exp - Maint | D150: 313057.28 | E150: 248793.1 | F150: 1857487.25 | H150: 64264.18
A151: %,V93200000 | B151: Maint General Plant | C151: 93200000 | D151: 3970231.13 | E151: 529689.09 | F151: 24191907.79 | H151: 3440542.04
A152: %,FACCOUNT,TNI_ACCOUNT_FERC,XBYYYYY01,NMAINT_ADMIN_GEN | B152: Maintenance Gen and Admin | D152: 3970231.13 | E152: 529689.09 | F152: 24191907.79 | H152: 3440542.04
B153: Total Maintenance Expenses | D153: =D133+D134+D138+D139+D150+D152 -> 4283288.41 | E153: =E133+E134+E138+E139+E150+E152 -> 778482.19 | F153: =F133+F134+F138+F139+F150+F152 -> 26049395.04
A155: %,V40300000 | B155: Dep Exp | C155: 40300000 | D155: 2813191.31 | E155: =D155-H155 -> -690974.44 | F155: 19364269 | H155: 3504165.75
A156: %,FACCOUNT,TNI_ACCOUNT_FERC,XBYYYYY01,NDEPRECIATION_EXPENSE | B156: Depreciation Expense | D156: 2813191.31 | E156: =D156-H156 -> -690974.44 | F156: 19364269 | H156: 3504165.75
A157: %,FACCOUNT,TNI_ACCOUNT_FERC,XBYYYYY01,NDEPRECIATION_ARO_EXP | B157: Depreciation Expense for AROs | D157: 0 | E157: =D157-H157 -> 0 | F157: 0
A159: %,V40434000 | B159: Cloude Amortizaiton Expense | C159: 40434000 | D159: 101495.63 | E159: =D159-H159 -> -3173.77 | F159: 728821.4 | H159: 104669.4
A160: %,NAMORT_LMT_TERM_PROP | B160: Amort of Limited-Term Property | D160: 101495.63 | E160: -3173.77 | F160: 728821.4 | H160: 104669.4
A161: %,V40500000 | B161: Amortization of Oth Plant | C161: 40500000 | D161: 346164.91 | E161: 31959.33 | F161: 2826501.62 | H161: 314205.58
A162: %,NAMORT_OTH_PROP | B162: Amort of Other Property | D162: 346164.91 | E162: 31959.33 | F162: 2826501.62 | H162: 314205.58
A163: %,FACCOUNT,TNI_ACCOUNT_FERC,XBYYYYY01,NAMORT_DEPL_UTIL | B163: Amort & Deplet of Util Plant | D163: 447660.54 | E163: 28785.56 | F163: 3555323.02 | H163: 418874.98
A164: %,FACCOUNT,TNI_ACCOUNT_FERC,XBYYYYY01,NAMORT_UTIL_ADJ | B164: Amort of Gas Plant Acq Adj | D164: 0 | E164: 0 | F164: 0
A165: %,FACCOUNT,TNI_ACCOUNT_FERC,XBYYYYY01,NAMORT_CONV_EXP | B165: Amort of Conversion Exp | D165: 0 | E165: 0 | F165: 0
A166: %,FACCOUNT,TNI_ACCOUNT_FERC,XBYYYYY01,NREG_DEBITS | B166: Reg Debits | D166: 0 | E166: 0 | F166: 0
A167: %,FACCOUNT,TNI_ACCOUNT_FERC,XBYYYYY01,NREG_CREDITS | B167: Reg Credits | D167: 0 | E167: 0 | F167: 0
A168: %,V40813100 | B168: Tax Exp-License_Franchise | C168: 40813100 | D168: 64915.69 | E168: 64915.69 | F168: 65215.69 | H168: 0
A169: %,V40813200 | B169: Tax Exp-Property | C169: 40813200 | D169: 20000 | E169: 0 | F169: 140000 | H169: 20000
A170: %,V40813300 | B170: Tax Exp-Sales and Use Tax | C170: 40813300 | D170: 1.39 | E170: 1.39 | F170: 1.39 | H170: 0
A171: %,V40813600 | B171: Tax Exp-State and Local-Oth | C171: 40813600 | D171: 354.72 | E171: -22.31 | F171: 5231.86 | H171: 377.03
A172: %,V40814500 | B172: Tax Exp-Payroll FICA-OASDI | C172: 40814500 | D172: 815206.42 | E172: 37787.99 | F172: 5155624.99 | H172: 777418.43
A173: %,V40814600 | B173: Tax Exp-Payroll FICA-Medicar | C173: 40814600 | D173: 194184.14 | E173: 9590.52 | F173: 1714678.64 | H173: 184593.62
A174: %,V40814700 | B174: Tax Exp-FUTA Employer | C174: 40814700 | D174: 1698.73 | E174: 166.58 | F174: 12864.66 | H174: 1532.15
A175: %,V40814800 | B175: Tax Exp-SUTA Employer | C175: 40814800 | D175: 6651.99 | E175: 396.85 | F175: 256360.1 | H175: 6255.14
A176: %,FACCOUNT,TNI_ACCOUNT_FERC,XBYYYYY01,NOTHER_TAXES_FERC | B176: Other Taxes FERC | D176: 1103013.08 | E176: 112836.71 | F176: 7349977.33 | H176: 990176.37
A178: %,V40912000 | B178: Util Cur ST Exp | C178: 40912000 | D178: 617 | E178: =D178-H178 -> 112 | F178: 10096 | H178: 505
A179: %,FACCOUNT,TNI_ACCOUNT_FERC,XBYYYYY01,NINC_TAX_EXP_ST | B179: Income Taxes - State | D179: 617 | E179: =D179-H179 -> 112 | F179: 10096 | H179: 505
A180: %,V40911000 | B180: Util Cur Fed Exp | C180: 40911000 | D180: 4043 | E180: =D180-H180 -> 729 | F180: 66338 | H180: 3314
A181: %,FACCOUNT,TNI_ACCOUNT_FERC,XBYYYYY01,NINC_TAX_EXP_FED | B181: Income Taxes - Federal | D181: 4043 | E181: =D181-H181 -> 729 | F181: 66338 | H181: 3314
B182: Total Utilities Current Fed State | D182: =D179+D181 -> 4660 | E182: =E179+E181 -> 841 | F182: =F179+F181 -> 76434
A184: %,V41011000 | B184: Util Def Fed Exp-Dr | C184: 41011000 | D184: -532505 | E184: =D184-H184 -> -1210468 | F184: 8133243 | H184: 677963
A185: %,V41012000 | B185: Util Def ST Exp-Dr | C185: 41012000 | D185: -76116 | E185: =D185-H185 -> -173004 | F185: 1150831 | H185: 96888
A186: %,FACCOUNT,TNI_ACCOUNT_FERC,XBYYYYY01,NDEFERRED_INC_TAX | B186: Deferred Income Taxes | D186: -608621 | E186: =D186-H186 -> -1383472 | F186: 9284074 | H186: 774851
A188: %,V41111000 | B188: Util Def Fed Exp-Cr | C188: 41111000 | D188: 558967 | E188: =D188-H188 -> 1210467 | F188: -7936366 | H188: -651500
A189: %,V41112000 | B189: Util Def ST Exp-Cr | C189: 41112000 | D189: 80147 | E189: 173003 | F189: -1138677 | H189: -92856
A190: %,FACCOUNT,TNI_ACCOUNT_FERC,XBYYYYY01,NDEFERRED_INC_TAX_CR | B190: Prov Deferred Inc Tax - Cr | D190: 639114 | E190: 1383470 | F190: -9075043 | H190: -744356
A191: %,FACCOUNT,TNI_ACCOUNT_FERC,XBYYYYY01,NTAX_CRED_ADJ_INVEST | B191: Investment Tax Credit Adj | D191: 0 | E191: 0 | F191: 0
A192: %,FACCOUNT,TNI_ACCOUNT_FERC,XBYYYYY01,NTAX_CRED_GAIN_DISP | B192: Gain from Disposition of Plant | D192: 0 | E192: 0 | F192: 0
A193: %,FACCOUNT,TNI_ACCOUNT_FERC,XBYYYYY01,NTAX_CRED_LOSS_DISP | B193: Loss from Disposition of Plant | D193: 0 | E193: 0 | F193: 0
A194: %,FACCOUNT,TNI_ACCOUNT_FERC,XBYYYYY01,NACCRETION_EXP | B194: Accretion Expenses | D194: 0 | E194: 0 | F194: 0
B195: Total Operating Expenses | D195: =D126+D153+D156+D157+D163+D164+D165+D166+D167+D176+D182+D186+D190+D191+D192+D193+D194 -> 42408149.83 | E195: =E126+E153+E156+E157+E163+E164+E165+E166+E167+E176+E182+E186+E190+E191+E192+E193+E194 -> 2094962.84 | F195: =F126+F153+F156+F157+F163+F164+F165+F166+F167+F176+F182+F186+F190+F191+F192+F193+F194 -> 288508260.7
B198: Net Utility Operating Income(Loss) | D198: =D55-D195 -> 454197.2 | E198: =E55-E195 -> 98008.74 | F198: =F55-F195 -> 2624478.47
B201: Other Income & Deductions
A203: %,R,FACCOUNT,TNI_ACCOUNT_FERC,XBYYYYY01,NMERCH_REV | B203: Revenues from Merchandising | D203: 0 | E203: =D203-H203 -> 0 | F203: 0
A204: %,R,FACCOUNT,TNI_ACCOUNT_FERC,XBYYYYY01,NMERCH_EXP | B204: Costs and Exp Merch Job | D204: 0 | E204: =D204-H204 -> 0 | F204: 0
A205: %,R,FACCOUNT,TNI_ACCOUNT_FERC,XBYYYYY01,NOPS_NON_UTIL_REV | B205: NonUtility Revenues | D205: 0 | E205: =D205-H205 -> 0 | F205: 0
A207: %,V41715000 | B207: Non Util Operating Exp | C207: 41715000 | D207: 0 | E207: =D207-H207 -> 0 | F207: 0 | H207: 0
A208: %,NNON_UTIL_EXP_OPS | B208: Non-Utility Expense OPS | D208: 0 | E208: 0 | F208: 0 | H208: 0
A209: %,R,FACCOUNT,TNI_ACCOUNT_FERC,XBYYYYY01,NOPS_NON_UTIL_EXP | B209: NonUtility Unaffil | D209: 0 | E209: 0 | F209: 0 | H209: 0
A210: %,R,FACCOUNT,TNI_ACCOUNT_FERC,XBYYYYY01,NRENT_REV_NONOPS | B210: Nonoperating Rental Revenue | D210: 0 | E210: 0 | F210: 0
A211: %,R,FACCOUNT,TNI_ACCOUNT_FERC,XBYYYYY01,NEARNINGS_OF_SUBS | B211: Earnings of Subsidiaries | D211: 0 | E211: 0 | F211: 0
A212: %,V41902000 | B212: Interest Income Money Pool | C212: 41902000 | D212: 0 | E212: 0 | F212: 480.74 | H212: 0
A213: %,R,FACCOUNT,TNI_ACCOUNT_FERC,XBYYYYY01,NINT_DIV_INCOME | B213: Interest and Dividend Income | D213: 0 | E213: 0 | F213: 480.74 | H213: 0
A214: %,R,FACCOUNT,TNI_ACCOUNT_FERC,XBYYYYY01,NFUNDS_UDC | B214: Allow for Other FUDC | D214: 0 | E214: 0 | F214: 0
A215: %,V42100000 | B215: Misc Non Operating Income | C215: 42100000 | D215: 159.24 | E215: 24.51 | F215: 1350.33 | H215: 134.73
A216: %,R,FACCOUNT,TNI_ACCOUNT_FERC,XBYYYYY01,NMISC_NONOP_INCOME | B216: Misc Nonoperating Income | D216: 159.24 | E216: 24.51 | F216: 1350.33 | H216: 134.73
A217: %,R,FACCOUNT,TNI_ACCOUNT_FERC,XBYYYYY01,NDISP_PROP_GAIN | B217: Gain Disposition of Property | D217: 0 | E217: 0 | F217: 0
B218: Total Other Income | D218: =D203+D204+D205+D209+D210+D211+D213+D214+D216+D217 -> 159.24 | E218: =E203+E204+E205+E209+E210+E211+E213+E214+E216+E217 -> 24.51 | F218: =F203+F204+F205+F209+F210+F211+F213+F214+F216+F217 -> 1831.07
A220: %,V42121000 | B220: Loss on Disposition of Asset | C220: 42121000 | D220: 0 | E220: =D220-H220 -> 0 | F220: 36548.84 | H220: 0
A221: %,FACCOUNT,TNI_ACCOUNT_FERC,XBYYYYY01,NDISP_PROP_LOSS | B221: Loss on Disposal of Property | D221: 0 | E221: 0 | F221: 36548.84 | H221: 0
A222: %,FACCOUNT,TNI_ACCOUNT_FERC,XBYYYYY01,NAMORT_MISC | B222: Misc Amortization | D222: 0 | E222: 0 | F222: 0
A223: %,V42610000 | B223: Other Inc_Exp-Donations | C223: 42610000 | D223: 15000 | E223: -6000 | F223: 167351.72 | H223: 21000
A224: %,FACCOUNT,TNI_ACCOUNT_FERC,XBYYYYY01,NDONATIONS | B224: Other Inc Exp Donations | D224: 15000 | E224: -6000 | F224: 167351.72 | H224: 21000
A225: %,FACCOUNT,TNI_ACCOUNT_FERC,XBYYYYY01,NINSURANCE_LIFE | B225: Corporate Owned Life Ins | D225: 0 | E225: 0 | F225: 0
A226: %,FACCOUNT,TNI_ACCOUNT_FERC,XBYYYYY01,NPENALTIES | B226: Penalties | D226: 0 | E226: 0 | F226: 0
A227: %,V42640000 | B227: Oth Inc_Exp Political Contrib | C227: 42640000 | D227: 0 | E227: 0 | F227: 17495.63 | H227: 0
A228: %,FACCOUNT,TNI_ACCOUNT_FERC,XBYYYYY01,NCIVIC_POL_EXP | B228: Other Inc Exp PoliticalContrib | D228: 0 | E228: 0 | F228: 17495.63 | H228: 0
A229: %,V42654000 | B229: Other Misc Exp Deduction | C229: 42654000 | D229: 5028.47 | E229: 9610.13 | F229: 6299.21 | H229: -4581.66
A230: %,FACCOUNT,TNI_ACCOUNT_FERC,XBYYYYY01,NOTHER_DEDUCTIONS | B230: Other Inc Deductions | D230: 5028.47 | E230: 9610.13 | F230: 6299.21 | H230: -4581.66
... 36 more rows

Sheet Aug22
A1: %,LACTUALS,UPOSTED_TRAN_AMT | B1: %,ATF,FDESCR,UDESCR | C1: %,ATT,FACCOUNT | D1: %,LACTUALS,UPOSTED_TRAN_AMT,SPER,FBOOK_CODE,VR | E1: %,C | F1: %,LACTUALS,UPOSTED_TRAN_AMT,SYTD,FBOOK_CODE,VR | H1: %,LACTUALS,UPOSTED_TRAN_AMT,SPER-1,FBOOK_CODE,VR
B2: NiSource Corporate Services Co | H2: FOR
B3: Income Statement-FERC | H3: CALC
B4: Regulatory View - FERC Account
B5: For the Month Ended August 31, 2022 | H5: PURPOSES
D7: Current | E7: Change from | F7: Year-To- | H7: Prior
D8: Month | E8: Prior Month | F8: Date | H8: Month
B10: Operating Revenues
A12: %,R,FACCOUNT,TNI_ACCOUNT_FERC,XBYYYYY01,NGAS_RESID_REV | B12: Gas Residential Sales | D12: 0 | E12: =D12-H12 -> 0 | F12: 0
A13: %,R,FACCOUNT,TNI_ACCOUNT_FERC,XBYYYYY01,NGAS_COMM_INDUST_REV | B13: Gas Comm & Indust Revenues | D13: 0 | E13: =D13-H13 -> 0 | F13: 0
A14: %,R,FACCOUNT,TNI_ACCOUNT_FERC,XBYYYYY01,NGAS_SALES_RESALE | B14: Gas Sales for Resale | D14: 0 | E14: =D14-H14 -> 0 | F14: 0
A15: %,R,FACCOUNT,TNI_ACCOUNT_FERC,XBYYYYY01,NGAS_INTERDEPT_SALES | B15: Gas Interdepartmental Sales | D15: 0 | E15: =D15-H15 -> 0 | F15: 0
A16: %,R,FACCOUNT,TNI_ACCOUNT_FERC,XBYYYYY01,NGAS_INTRACO_TRANSFER | B16: Gas Intercompany Transfers | D16: 0 | E16: =D16-H16 -> 0 | F16: 0
A17: xx | B17: Total Sales of Gas | D17: =D12+D13+D14+D15+D16 -> 0 | E17: =E12+E13+E14+E15+E16 -> 0 | F17: =F12+F13+F14+F15+F16 -> 0
A19: %,R,FACCOUNT,TNI_ACCOUNT_FERC,XBYYYYY01,NELE_RESID_REV | B19: Electric Residential Revenues | D19: 0 | E19: =D19-H19 -> 0 | F19: 0
A20: %,R,FACCOUNT,TNI_ACCOUNT_FERC,XBYYYYY01,NELE_COMM_IND_REV | B20: Elec Comm & Indust Rev | D20: 0 | E20: 0 | F20: 0
A21: %,R,FACCOUNT,TNI_ACCOUNT_FERC,XBYYYYY01,NELE_STREET_HWY_LIGHT | B21: Public Street & Hwy Lighting | D21: 0 | E21: 0 | F21: 0
A22: %,R,FACCOUNT,TNI_ACCOUNT_FERC,XBYYYYY01,NELE_OTH_SALES_PUBLIC | B22: Elec Oth Sales to Public Auth | D22: 0 | E22: 0 | F22: 0
A23: %,R,FACCOUNT,TNI_ACCOUNT_FERC,XBYYYYY01,NELE_RAILROAD | B23: Sales to Railroads & Railways | D23: 0 | E23: 0 | F23: 0
A24: %,R,FACCOUNT,TNI_ACCOUNT_FERC,XBYYYYY01,NELE_SALES_RESALE | B24: Electric Sales for Resale | D24: 0 | E24: 0 | F24: 0
A25: %,R,FACCOUNT,TNI_ACCOUNT_FERC,XBYYYYY01,NELE_INTERDEPT_SALES | B25: Elec Interdepartmental Sales | D25: 0 | E25: 0 | F25: 0
A26: xx | B26: Total Sales of Electricity | D26: =D19+D20+D21+D22+D23+D24+D25 -> 0 | E26: =E19+E20+E21+E22+E23+E24+E25 -> 0 | F26: =F19+F20+F21+F22+F23+F24+F25 -> 0
A28: %,R,FACCOUNT,TNI_ACCOUNT_FERC,XBYYYYY01,NFORFEITED_DISC_GAS | B28: Forfeited Discounts - Gas | D28: 0 | E28: =D28-H28 -> 0 | F28: 0
A29: %,R,FACCOUNT,TNI_ACCOUNT_FERC,XBYYYYY01,NFORFEITED_DISC_ELE | B29: Forfeited Discounts - Ele | D29: 0 | E29: =D29-H29 -> 0 | F29: 0
B30: Total Forfeited Discounts | D30: =D28+D29 -> 0 | E30: =E28+E29 -> 0 | F30: =F28+F29 -> 0
A32: %,R,FACCOUNT,TNI_ACCOUNT_FERC,XBYYYYY01,NMISC_SERV_REVS_GAS | B32: Misc Service Revenues - Gas | D32: 0 | E32: =D32-H32 -> 0 | F32: 0
A33: %,R,FACCOUNT,TNI_ACCOUNT_FERC,XBYYYYY01,NMISC_SERV_REVS_ELE | B33: Misc Service Revenues - Ele | D33: 0 | E33: =D33-H33 -> 0 | F33: 0
B34: Total Miscellaneous Service Revenues | D34: =D32+D33 -> 0 | E34: =E32+E33 -> 0 | F34: =F32+F33 -> 0
A36: %,R,FACCOUNT,TNI_ACCOUNT_FERC,XBYYYYY01,NRENT_ELE_PROP | B36: Rent from Electricity Property | D36: 0 | E36: =D36-H36 -> 0 | F36: 0
A37: %,R,FACCOUNT,TNI_ACCOUNT_FERC,XBYYYYY01,NOTH_ELE_REV | B37: Other Electric Revenues | D37: 0 | E37: 0 | F37: 0
A38: %,R,FACCOUNT,TNI_ACCOUNT_FERC,XBYYYYY01,NOTH_ELE_TRANS_REV | B38: Rev Transm of Elec of Oth | D38: 0 | E38: 0 | F38: 0
A39: %,V45700000 | B39: Non Util IC Rev Direct | C39: 45700000 | D39: 10411928.17 | E39: -1897329.37 | F39: 103023574.9 | H39: 12309257.54
A40: %,V45700030 | B40: Non Util IC Rev Indirect | C40: 45700030 | D40: 23966385.46 | E40: -6137406.39 | F40: 211401459.3 | H40: 30103791.85
A41: %,V45700040 | B41: Non Util IC Rev Interest | C41: 45700040 | D41: 295090.31 | E41: 13348.69 | F41: 1577566.01 | H41: 281741.62
A42: %,V45810000 | B42: Non Util Non-Affill Revenue | C42: 45810000 | D42: 399093.4 | E42: 231537.38 | F42: 10202636.34 | H42: 167556.02
A43: %,R,FACCOUNT,TNI_ACCOUNT_FERC,XBYYYYY01,NOTH_REV_SERVICE_CO | B43: Nonutility Revenues - Serv Co | D43: 35072497.34 | E43: -7789849.69 | F43: 326205236.6 | H43: 42862347.03
A44: %,R,FACCOUNT,TNI_ACCOUNT_FERC,XBYYYYY01,NREG_ELE_TRANS_REV | B44: Regional Transm Service Rev | D44: 0 | E44: 0 | F44: 0
A45: %,R,FACCOUNT,TNI_ACCOUNT_FERC,XBYYYYY01,NTRANSPORT_GATH_REV | B45: Rev Transp Gas of Oth - Gather | D45: 0 | E45: 0 | F45: 0
A46: %,R,FACCOUNT,TNI_ACCOUNT_FERC,XBYYYYY01,NTRANSPORT_TRANS_REV | B46: Rev Transp Gas of Oth - Transm | D46: 0 | E46: 0 | F46: 0
A47: %,R,FACCOUNT,TNI_ACCOUNT_FERC,XBYYYYY01,NTRANSPORT_DISTR_REV | B47: Rev Transp Gas of Oth - Distr | D47: 0 | E47: 0 | F47: 0
A48: %,R,FACCOUNT,TNI_ACCOUNT_FERC,XBYYYYY01,NSTORE_GAS_REV | B48: Rev from Storing Gas of Oth | D48: 0 | E48: 0 | F48: 0
A49: %,R,FACCOUNT,TNI_ACCOUNT_FERC,XBYYYYY01,NSALES_EXTRACT_GAS | B49: Sales - Prod Extracted from NG | D49: 0 | E49: 0 | F49: 0
A50: %,R,FACCOUNT,TNI_ACCOUNT_FERC,XBYYYYY01,NGAS_OIL_SALES | B50: Incidental Gasoline & Oil Sale | D50: 0 | E50: 0 | F50: 0
A51: %,R,FACCOUNT,TNI_ACCOUNT_FERC,XBYYYYY01,NRENT_GAS_PROP | B51: Rent from Gas Property | D51: 0 | E51: 0 | F51: 0
A52: %,R,FACCOUNT,TNI_ACCOUNT_FERC,XBYYYYY01,NOTH_GAS_REV | B52: Other Gas Revenues | D52: 0 | E52: 0 | F52: 0
A53: %,R,FACCOUNT,TNI_ACCOUNT_FERC,XBYYYYY01,NGAS_PROV_RATE_REFUND | B53: Gas Provision of Rate Refunds | D53: 0 | E53: 0 | F53: 0
B54: Total Other Operating Revenues | D54: =D30+D34+D36+D37+D38+D43+D44+D45+D46+D47+D48+D49+D50+D51+D52+D53 -> 35072497.34 | E54: =E30+E34+E36+E37+E38+E43+E44+E45+E46+E47+E48+E49+E50+E51+E52+E53 -> -7789849.69 | F54: =F30+F34+F36+F37+F38+F43+F44+F45+F46+F47+F48+F49+F50+F51+F52+F53 -> 326205236.6
A55: xx | B55: Total Operating Revenues | D55: =D17+D26+D54 -> 35072497.34 | E55: =E17+E26+E54 -> -7789849.69 | F55: =F17+F26+F54 -> 326205236.6
B57: Operating Expenses
B59: Operation Expenses
A61: %,FACCOUNT,TNI_ACCOUNT_FERC,XBYYYYY01,NOP_MANUF_GAS | B61: Manufac Gas Production - Oper | D61: 0 | E61: =D61-H61 -> 0 | F61: 0
A62: %,FACCOUNT,TNI_ACCOUNT_FERC,XBYYYYY01,NOP_NTRLGAS_PROD_GTH | B62: NG Production & Gather - Oper | D62: 0 | E62: =D62-H62 -> 0 | F62: 0
A63: %,FACCOUNT,TNI_ACCOUNT_FERC,XBYYYYY01,NOP_PROD_EXTRACT | B63: Products Extraction - Oper | D63: 0 | E63: =D63-H63 -> 0 | F63: 0
A65: %,V80500100 | B65: Propane Purchases | C65: 80500100 | D65: 0 | E65: =D65-H65 -> 0 | F65: 0 | H65: 0
A66: %,NOP_NG_PURCH_OTHER | B66: Other Gas Purchases | D66: 0 | E66: 0 | F66: 0 | H66: 0
A67: %,V80720000 | B67: Oper-Purch Gas Measrg Stations | C67: 80720000 | D67: 449425.81 | E67: -52253.1 | F67: 3672073.78 | H67: 501678.91
A68: %,V80751000 | B68: Purch Gas Exp - Mgmt Fee | C68: 80751000 | D68: 76502.32 | E68: -3397.3 | F68: 654172.07 | H68: 79899.62
A69: %,NOP_NG_PURCH_EXPENSE | B69: Purchased Gas Expenses | D69: 525928.13 | E69: -55650.4 | F69: 4326245.85 | H69: 581578.53
A70: %,FACCOUNT,TNI_ACCOUNT_FERC,XBYYYYY01,NOP_OTH_GAS_SUPPLY | B70: Other Gas Supply - Operations | D70: 525928.13 | E70: -55650.4 | F70: 4326245.85 | H70: 581578.53
A71: %,V50000000 | B71: Op Superv_Eng-Steam | C71: 50000000 | D71: 10006.73 | E71: 705.64 | F71: 78099.92 | H71: 9301.09
A72: %,FACCOUNT,TNI_ACCOUNT_FERC,XBYYYYY01,NOP_STEAM_POWER | B72: Steam Power - Operations | D72: 10006.73 | E72: 705.64 | F72: 78099.92 | H72: 9301.09
A73: %,FACCOUNT,TNI_ACCOUNT_FERC,XBYYYYY01,NOP_HYDRAULIC_POWER | B73: Hydraulic Power - Operations | D73: 0 | E73: 0 | F73: 0
A74: %,FACCOUNT,TNI_ACCOUNT_FERC,XBYYYYY01,NOP_SOLAR_GENERATION | B74: Solar Generation - Operations | D74: 0 | E74: 0 | F74: 0
A75: %,V54800000 | B75: Generation Exp | C75: 54800000 | D75: 0 | E75: 0 | F75: 0 | H75: 0
A76: %,FACCOUNT,TNI_ACCOUNT_FERC,XBYYYYY01,NOP_OTHER_POWER | B76: Other Power - Operations | D76: 0 | E76: 0 | F76: 0 | H76: 0
A77: %,V55700000 | B77: Other Exp | C77: 55700000 | D77: 2598.1 | E77: 1066.93 | F77: 10071.95 | H77: 1531.17
A78: %,FACCOUNT,TNI_ACCOUNT_FERC,XBYYYYY01,NOP_OTH_POWER_SUPPLY | B78: Other Power Supply - Oper | D78: 2598.1 | E78: 1066.93 | F78: 10071.95 | H78: 1531.17
A79: %,FACCOUNT,TNI_ACCOUNT_FERC,XBYYYYY01,NOP_NG_STOR_TERM_PROC | B79: NG Stor, Term & Proc - Oper | D79: 0 | E79: 0 | F79: 0
A81: %,V85200030 | B81: Communication System Exp | C81: 85200030 | D81: 0 | E81: =D81-H81 -> 0 | F81: 0 | H81: 0
A82: %,V85900000 | B82: Gas Transmission Exp | C82: 85900000 | D82: 0 | E82: 0 | F82: 0 | H82: 0
A83: %,NOP_GAS_TRANS_EXP | B83: Transmission Exp - Oper - Gas | D83: 0 | E83: 0 | F83: 0 | H83: 0
A84: %,FACCOUNT,TNI_ACCOUNT_FERC,XBYYYYY01,NOP_TRANS_EXP | B84: Transmission Exp - Oper | D84: 0 | E84: 0 | F84: 0 | H84: 0
A85: %,FACCOUNT,TNI_ACCOUNT_FERC,XBYYYYY01,NOP_REG_MARKET_EXP | B85: Regional Market Exp - Oper | D85: 0 | E85: 0 | F85: 0
A86: %,FACCOUNT,TNI_ACCOUNT_FERC,XBYYYYY01,NOP_ENERGY_STORAGE | B86: Energy Storage - Oper | D86: 0 | E86: 0 | F86: 0
A88: %,V58000000 | B88: Op Superv_Eng-Elec Distr | C88: 58000000 | D88: 2885.16 | E88: =D88-H88 -> 2885.16 | F88: 58892.24 | H88: 0
A89: %,V58800000 | B89: Misc Distribution Exp | C89: 58800000 | D89: 0 | E89: -120.43 | F89: 120.43 | H89: 120.43
A90: %,NOP_ELEC_DISTR_EXP | B90: Distribution Exp - Oper - Elec | D90: 2885.16 | E90: 2764.73 | F90: 59012.67 | H90: 120.43
A91: %,V87000000 | B91: Op Superv-Eng-Gas Distr | C91: 87000000 | D91: 772850.19 | E91: -226466.19 | F91: 9377053.39 | H91: 999316.38
A92: %,V87400000 | B92: Mains and Services Exp | C92: 87400000 | D92: 179632.25 | E92: -3302.97 | F92: 1380552.67 | H92: 182935.22
A93: %,V87500000 | B93: Measur-Reg Statn Exp Gen | C93: 87500000 | D93: 29684.7 | E93: -13395.67 | F93: 299132.17 | H93: 43080.37
A94: %,V87600000 | B94: Measur-Reg Statn Exp-Indus | C94: 87600000 | D94: 24289.14 | E94: -10959.68 | F94: 244746.34 | H94: 35248.82
A95: %,V87800000 | B95: Meter and House Regulator Exp | C95: 87800000 | D95: 120654.72 | E95: -3727.5 | F95: 909936.72 | H95: 124382.22
A96: %,V87900000 | B96: Oper Installation Service Exp | C96: 87900000 | D96: 115139.25 | E96: -3694.62 | F96: 869693.06 | H96: 118833.87
A97: %,V88000000 | B97: Operations Exp Other | C97: 88000000 | D97: 22959.99 | E97: -976.23 | F97: 176387.51 | H97: 23936.22
A98: %,NOP_GAS_DISTR_EXP | B98: Distribution Exp - Oper - Gas | D98: 1265210.24 | E98: -262522.86 | F98: 13257501.86 | H98: 1527733.1
A99: %,FACCOUNT,TNI_ACCOUNT_FERC,XBYYYYY01,NOP_DISTR_EXP | B99: Distribution Exp - Oper | D99: 1268095.4 | E99: -259758.13 | F99: 13316514.53 | H99: 1527853.53
A100: %,V90100000 | B100: Customer Acnt Supervision | C100: 90100000 | D100: 30.39 | E100: 30.39 | F100: 3710.53 | H100: 0
A101: %,V90300000 | B101: Cust Records Collection Exp | C101: 90300000 | D101: 2404909.61 | E101: 303356.81 | F101: 17580060.21 | H101: 2101552.8
A102: %,FACCOUNT,TNI_ACCOUNT_FERC,XBYYYYY01,NOP_CUST_ACCTS_EXP | B102: Customer Accounts - Oper | D102: 2404940 | E102: 303387.2 | F102: 17583770.74 | H102: 2101552.8
A103: %,V90700000 | B103: Cust Serv Info Exp Supv | C103: 90700000 | D103: 0 | E103: 0 | F103: 0 | H103: 0
A104: %,V90800000 | B104: Customer Assistance Exp | C104: 90800000 | D104: 2269.34 | E104: 3715.05 | F104: -3314.81 | H104: -1445.71
A105: %,V91000000 | B105: Misc Cust Serv and Info Exp | C105: 91000000 | D105: 306426.34 | E105: -60929.03 | F105: 2791989.17 | H105: 367355.37
A106: %,FACCOUNT,TNI_ACCOUNT_FERC,XBYYYYY01,NOP_CUSTOMER_SERV_EXP | B106: Cust Serv & Info Exp - Oper | D106: 308695.68 | E106: -57213.98 | F106: 2788674.36 | H106: 365909.66
A107: %,V91200000 | B107: Demonstrating and Selling Exp | C107: 91200000 | D107: 2678.17 | E107: 1000.9 | F107: 8539.03 | H107: 1677.27
A108: %,V91300000 | B108: Sales Advertising Exp | C108: 91300000 | D108: 604.99 | E108: -79439.7 | F108: 247100.06 | H108: 80044.69
A109: %,V91600000 | B109: Misc Sales Exp | C109: 91600000 | D109: 0 | E109: 0 | F109: 304.01 | H109: 0
A110: %,FACCOUNT,TNI_ACCOUNT_FERC,XBYYYYY01,NOP_SALES_EXP | B110: Sales Expenses - Oper | D110: 3283.16 | E110: -78438.8 | F110: 255943.1 | H110: 81721.96
A111: %,V92000000 | B111: A_G Salaries | C111: 92000000 | D111: 9645935.27 | E111: -1074068.41 | F111: 85370818.18 | H111: 10720003.68
A112: %,V92001000 | B112: Discretionary and Spot Awards | C112: 92001000 | D112: 241498.89 | E112: -517507.21 | F112: 2509066.81 | H112: 759006.1
A113: %,V92002000 | B113: Stock Compensation Expense | C113: 92002000 | D113: 1181415 | E113: -468391 | F113: 11707782.25 | H113: 1649806
A114: %,V92100000 | B114: Office Supplies and Exp | C114: 92100000 | D114: 355897.95 | E114: 73594.74 | F114: 3500647.17 | H114: 282303.21
A115: %,V92101000 | B115: Employee Expenses | C115: 92101000 | D115: 312403.22 | E115: -50174.54 | F115: 2388496.04 | H115: 362577.76
A116: %,V92300000 | B116: Outside Service Employed | C116: 92300000 | D116: 7755313.29 | E116: -2713412.34 | F116: 82114231.99 | H116: 10468725.63
A117: %,V92400000 | B117: Property Insurance | C117: 92400000 | D117: 4147.47 | E117: 0 | F117: 33168.28 | H117: 4147.47
A118: %,V92500000 | B118: Injuries and Damages | C118: 92500000 | D118: 14364.05 | E118: -74902.95 | F118: 1089920.71 | H118: 89267
A119: %,V92600000 | B119: Employee Pensions and Benefits | C119: 92600000 | D119: 2466879.87 | E119: -765454.93 | F119: 21135555.45 | H119: 3232334.8
A120: %,V92601000 | B120: Non Service Pension & OPEB | C120: 92601000 | D120: -16989.58 | E120: 0 | F120: -111844.79 | H120: -16989.58
A121: %,V92800000 | B121: Regulatory Commission Exp | C121: 92800000 | D121: 36.88 | E121: 36.88 | F121: 7890.01 | H121: 0
A122: %,V93010000 | B122: General Advertising Exp | C122: 93010000 | D122: 34694.09 | E122: 10750.7 | F122: 386106.94 | H122: 23943.39
A123: %,V93020000 | B123: Misc General Exp | C123: 93020000 | D123: 168774.35 | E123: -27331.34 | F123: 982385.4 | H123: 196105.69
A124: %,V93020495 | B124: CMA Care-Misc General Exp | C124: 93020495 | D124: 0 | E124: 0 | F124: 0 | H124: 0
A125: %,V93100000 | B125: Rents Admin and General | C125: 93100000 | D125: 1301095.61 | E125: 15932.01 | F125: 10419300.03 | H125: 1285163.6
A126: %,FACCOUNT,TNI_ACCOUNT_FERC,XBYYYYY01,NOP_ADMIN_GEN | B126: Admin & General Exp - Oper | D126: 23465466.36 | E126: -5590928.39 | F126: 221533524.5 | H126: 29056394.75
B127: Total Operation Expenses | D127: =D61+D62+D63+D70+D72+D73+D74+D76+D78+D79+D84+D86+D85+D99+D102+D106+D110+D126 -> 27989013.56 | E127: =E61+E62+E63+E70+E72+E73+E74+E76+E78+E79+E84+E86+E85+E99+E102+E106+E110+E126 -> -5736829.93 | F127: =F61+F62+F63+F70+F72+F73+F74+F76+F78+F79+F84+F86+F85+F99+F102+F106+F110+F126 -> 259892844.9
B129: Maintenance Expenses
A132: %,V76400000 | B132: Gath Maint Field Lines | C132: 76400000 | D132: 0 | E132: =D132-H132 -> 0 | F132: 0 | H132: 0
A133: %,NMAINT_NG_PROD_GTH | B133: NG Production & Gather - Maint | D133: 0 | E133: =D133-H133 -> 0 | F133: 0 | H133: 0
A134: %,FACCOUNT,TNI_ACCOUNT_FERC,XBYYYYY01,NMAINT_PROD_EXP | B134: Production Expenses - Maint | D134: 0 | E134: =D134-H134 -> 0 | F134: 0 | H134: 0
A135: %,FACCOUNT,TNI_ACCOUNT_FERC,XBYYYYY01,NMAINT_NG_STOR_PROC | B135: NG Stor, Term & Proc - Maint | D135: 0 | E135: =D135-H135 -> 0 | F135: 0
A137: %,V56920000 | B137: Maint of Computer Software | C137: 56920000 | D137: 0 | E137: =D137-H137 -> 0 | F137: 0 | H137: 0
A138: %,NMAINT_ELEC_TRANS_EXP | B138: Transmission Exp - Maint-Elec | D138: 0 | E138: =D138-H138 -> 0 | F138: 0 | H138: 0
A139: %,FACCOUNT,TNI_ACCOUNT_FERC,XBYYYYY01,NMAINT_TRANS_EXP | B139: Transmission Exp - Maint | D139: 0 | E139: =D139-H139 -> 0 | F139: 0 | H139: 0
A140: %,FACCOUNT,TNI_ACCOUNT_FERC,XBYYYYY01,NMAINT_ENERGY_STORAGE | B140: Energy Storage - Maint | D140: 0 | E140: =D140-H140 -> 0 | F140: 0
A142: %,V59700000 | B142: Maint of Meters | C142: 59700000 | D142: 0 | E142: =D142-H142 -> 0 | F142: 0 | H142: 0
A143: %,NMAINT_ELEC_DISTR_EXP | B143: Distribution Exp - Maint-Elec | D143: 0 | E143: 0 | F143: 0 | H143: 0
A144: %,V88700000 | B144: Maint of Mains | C144: 88700000 | D144: 63815.66 | E144: -673.29 | F144: 512361.35 | H144: 64488.95
A145: %,V88900000 | B145: Maint Msr-Reg Statn Equi Gen | C145: 88900000 | D145: 29684.71 | E145: -13395.66 | F145: 299132.18 | H145: 43080.37
A146: %,V89000000 | B146: Maint Meas_Reg Stn Equip-Distr | C146: 89000000 | D146: 26849.73 | E146: -10827.01 | F146: 271816.55 | H146: 37676.74
A147: %,V89200000 | B147: Maint of Services | C147: 89200000 | D147: 29997.24 | E147: -76442.45 | F147: 379315.31 | H147: 106439.69
A148: %,V89300000 | B148: Maint Meters_House Regulators | C148: 89300000 | D148: 9466.07 | E148: -2026.59 | F148: 82192.75 | H148: 11492.66
A149: %,V89400000 | B149: Other Maint Equipment | C149: 89400000 | D149: 68498.45 | E149: 18619.58 | F149: 540980.97 | H149: 49878.87
A150: %,NMAINT_GAS_DISTR_EXP | B150: Distribution Exp - Maint-Gas | D150: 228311.86 | E150: -84745.42 | F150: 2085799.11 | H150: 313057.28
A151: %,FACCOUNT,TNI_ACCOUNT_FERC,XBYYYYY01,NMAINT_DISTR_EXP | B151: Distribution Exp - Maint | D151: 228311.86 | E151: -84745.42 | F151: 2085799.11 | H151: 313057.28
A152: %,V93200000 | B152: Maint General Plant | C152: 93200000 | D152: 3355047.47 | E152: -615183.66 | F152: 27546955.26 | H152: 3970231.13
A153: %,FACCOUNT,TNI_ACCOUNT_FERC,XBYYYYY01,NMAINT_ADMIN_GEN | B153: Maintenance Gen and Admin | D153: 3355047.47 | E153: -615183.66 | F153: 27546955.26 | H153: 3970231.13
B154: Total Maintenance Expenses | D154: =D134+D135+D139+D140+D151+D153 -> 3583359.33 | E154: =E134+E135+E139+E140+E151+E153 -> -699929.08 | F154: =F134+F135+F139+F140+F151+F153 -> 29632754.37
A156: %,V40300000 | B156: Dep Exp | C156: 40300000 | D156: 2805385.62 | E156: =D156-H156 -> -7805.69 | F156: 22169654.62 | H156: 2813191.31
A157: %,FACCOUNT,TNI_ACCOUNT_FERC,XBYYYYY01,NDEPRECIATION_EXPENSE | B157: Depreciation Expense | D157: 2805385.62 | E157: =D157-H157 -> -7805.69 | F157: 22169654.62 | H157: 2813191.31
A158: %,FACCOUNT,TNI_ACCOUNT_FERC,XBYYYYY01,NDEPRECIATION_ARO_EXP | B158: Depreciation Expense for AROs | D158: 0 | E158: =D158-H158 -> 0 | F158: 0
A160: %,V40434000 | B160: Cloude Amortizaiton Expense | C160: 40434000 | D160: 102620.55 | E160: =D160-H160 -> 1124.92 | F160: 831441.95 | H160: 101495.63
A161: %,NAMORT_LMT_TERM_PROP | B161: Amort of Limited-Term Property | D161: 102620.55 | E161: 1124.92 | F161: 831441.95 | H161: 101495.63
A162: %,V40500000 | B162: Amortization of Oth Plant | C162: 40500000 | D162: 346122.92 | E162: -41.99 | F162: 3172624.54 | H162: 346164.91
A163: %,NAMORT_OTH_PROP | B163: Amort of Other Property | D163: 346122.92 | E163: -41.99 | F163: 3172624.54 | H163: 346164.91
A164: %,FACCOUNT,TNI_ACCOUNT_FERC,XBYYYYY01,NAMORT_DEPL_UTIL | B164: Amort & Deplet of Util Plant | D164: 448743.47 | E164: 1082.93 | F164: 4004066.49 | H164: 447660.54
A165: %,FACCOUNT,TNI_ACCOUNT_FERC,XBYYYYY01,NAMORT_UTIL_ADJ | B165: Amort of Gas Plant Acq Adj | D165: 0 | E165: 0 | F165: 0
A166: %,FACCOUNT,TNI_ACCOUNT_FERC,XBYYYYY01,NAMORT_CONV_EXP | B166: Amort of Conversion Exp | D166: 0 | E166: 0 | F166: 0
A167: %,FACCOUNT,TNI_ACCOUNT_FERC,XBYYYYY01,NREG_DEBITS | B167: Reg Debits | D167: 0 | E167: 0 | F167: 0
A168: %,FACCOUNT,TNI_ACCOUNT_FERC,XBYYYYY01,NREG_CREDITS | B168: Reg Credits | D168: 0 | E168: 0 | F168: 0
A169: %,V40813100 | B169: Tax Exp-License_Franchise | C169: 40813100 | D169: 0 | E169: -64915.69 | F169: 65215.69 | H169: 64915.69
A170: %,V40813200 | B170: Tax Exp-Property | C170: 40813200 | D170: 65722.5 | E170: 45722.5 | F170: 205722.5 | H170: 20000
A171: %,V40813300 | B171: Tax Exp-Sales and Use Tax | C171: 40813300 | D171: 0 | E171: -1.39 | F171: 1.39 | H171: 1.39
A172: %,V40813600 | B172: Tax Exp-State and Local-Oth | C172: 40813600 | D172: 226.62 | E172: -128.1 | F172: 5458.48 | H172: 354.72
A173: %,V40814500 | B173: Tax Exp-Payroll FICA-OASDI | C173: 40814500 | D173: 779749.62 | E173: -35456.8 | F173: 5935374.61 | H173: 815206.42
A174: %,V40814600 | B174: Tax Exp-Payroll FICA-Medicar | C174: 40814600 | D174: 183152.44 | E174: -11031.7 | F174: 1897831.08 | H174: 194184.14
A175: %,V40814700 | B175: Tax Exp-FUTA Employer | C175: 40814700 | D175: 970.73 | E175: -728 | F175: 13835.39 | H175: 1698.73
A176: %,V40814800 | B176: Tax Exp-SUTA Employer | C176: 40814800 | D176: 3180.97 | E176: -3471.02 | F176: 259541.07 | H176: 6651.99
A177: %,FACCOUNT,TNI_ACCOUNT_FERC,XBYYYYY01,NOTHER_TAXES_FERC | B177: Other Taxes FERC | D177: 1033002.88 | E177: -70010.2 | F177: 8382980.21 | H177: 1103013.08
A179: %,V40912000 | B179: Util Cur ST Exp | C179: 40912000 | D179: 31604 | E179: =D179-H179 -> 30987 | F179: 41700 | H179: 617
A180: %,FACCOUNT,TNI_ACCOUNT_FERC,XBYYYYY01,NINC_TAX_EXP_ST | B180: Income Taxes - State | D180: 31604 | E180: =D180-H180 -> 30987 | F180: 41700 | H180: 617
A181: %,V40911000 | B181: Util Cur Fed Exp | C181: 40911000 | D181: 189774 | E181: =D181-H181 -> 185731 | F181: 256112 | H181: 4043
A182: %,FACCOUNT,TNI_ACCOUNT_FERC,XBYYYYY01,NINC_TAX_EXP_FED | B182: Income Taxes - Federal | D182: 189774 | E182: =D182-H182 -> 185731 | F182: 256112 | H182: 4043
B183: Total Utilities Current Fed State | D183: =D180+D182 -> 221378 | E183: =E180+E182 -> 216718 | F183: =F180+F182 -> 297812
A185: %,V41011000 | B185: Util Def Fed Exp-Dr | C185: 41011000 | D185: -559531 | E185: =D185-H185 -> -27026 | F185: 7573712 | H185: -532505
A186: %,V41012000 | B186: Util Def ST Exp-Dr | C186: 41012000 | D186: -73650 | E186: =D186-H186 -> 2466 | F186: 1077181 | H186: -76116
A187: %,FACCOUNT,TNI_ACCOUNT_FERC,XBYYYYY01,NDEFERRED_INC_TAX | B187: Deferred Income Taxes | D187: -633181 | E187: =D187-H187 -> -24560 | F187: 8650893 | H187: -608621
A189: %,V41111000 | B189: Util Def Fed Exp-Cr | C189: 41111000 | D189: 450308 | E189: =D189-H189 -> -108659 | F189: -7486058 | H189: 558967
A190: %,V41112000 | B190: Util Def ST Exp-Cr | C190: 41112000 | D190: 54314 | E190: -25833 | F190: -1084363 | H190: 80147
A191: %,FACCOUNT,TNI_ACCOUNT_FERC,XBYYYYY01,NDEFERRED_INC_TAX_CR | B191: Prov Deferred Inc Tax - Cr | D191: 504622 | E191: -134492 | F191: -8570421 | H191: 639114
A192: %,FACCOUNT,TNI_ACCOUNT_FERC,XBYYYYY01,NTAX_CRED_ADJ_INVEST | B192: Investment Tax Credit Adj | D192: 0 | E192: 0 | F192: 0
A193: %,FACCOUNT,TNI_ACCOUNT_FERC,XBYYYYY01,NTAX_CRED_GAIN_DISP | B193: Gain from Disposition of Plant | D193: 0 | E193: 0 | F193: 0
A194: %,FACCOUNT,TNI_ACCOUNT_FERC,XBYYYYY01,NTAX_CRED_LOSS_DISP | B194: Loss from Disposition of Plant | D194: 0 | E194: 0 | F194: 0
A195: %,FACCOUNT,TNI_ACCOUNT_FERC,XBYYYYY01,NACCRETION_EXP | B195: Accretion Expenses | D195: 0 | E195: 0 | F195: 0
B196: Total Operating Expenses | D196: =D127+D154+D157+D158+D164+D165+D166+D167+D168+D177+D183+D187+D191+D192+D193+D194+D195 -> 35952323.86 | E196: =E127+E154+E157+E158+E164+E165+E166+E167+E168+E177+E183+E187+E191+E192+E193+E194+E195 -> -6455825.97 | F196: =F127+F154+F157+F158+F164+F165+F166+F167+F168+F177+F183+F187+F191+F192+F193+F194+F195 -> 324460584.6
B199: Net Utility Operating Income(Loss) | D199: =D55-D196 -> -879826.52 | E199: =E55-E196 -> -1334023.72 | F199: =F55-F196 -> 1744651.95
B202: Other Income & Deductions
A204: %,R,FACCOUNT,TNI_ACCOUNT_FERC,XBYYYYY01,NMERCH_REV | B204: Revenues from Merchandising | D204: 0 | E204: =D204-H204 -> 0 | F204: 0
A205: %,R,FACCOUNT,TNI_ACCOUNT_FERC,XBYYYYY01,NMERCH_EXP | B205: Costs and Exp Merch Job | D205: 0 | E205: =D205-H205 -> 0 | F205: 0
A206: %,R,FACCOUNT,TNI_ACCOUNT_FERC,XBYYYYY01,NOPS_NON_UTIL_REV | B206: NonUtility Revenues | D206: 0 | E206: =D206-H206 -> 0 | F206: 0
A208: %,V41715000 | B208: Non Util Operating Exp | C208: 41715000 | D208: 0 | E208: =D208-H208 -> 0 | F208: 0 | H208: 0
A209: %,NNON_UTIL_EXP_OPS | B209: Non-Utility Expense OPS | D209: 0 | E209: 0 | F209: 0 | H209: 0
A210: %,R,FACCOUNT,TNI_ACCOUNT_FERC,XBYYYYY01,NOPS_NON_UTIL_EXP | B210: NonUtility Unaffil | D210: 0 | E210: 0 | F210: 0 | H210: 0
A211: %,R,FACCOUNT,TNI_ACCOUNT_FERC,XBYYYYY01,NRENT_REV_NONOPS | B211: Nonoperating Rental Revenue | D211: 0 | E211: 0 | F211: 0
A212: %,R,FACCOUNT,TNI_ACCOUNT_FERC,XBYYYYY01,NEARNINGS_OF_SUBS | B212: Earnings of Subsidiaries | D212: 0 | E212: 0 | F212: 0
A213: %,V41902000 | B213: Interest Income Money Pool | C213: 41902000 | D213: 0 | E213: 0 | F213: 480.74 | H213: 0
A214: %,R,FACCOUNT,TNI_ACCOUNT_FERC,XBYYYYY01,NINT_DIV_INCOME | B214: Interest and Dividend Income | D214: 0 | E214: 0 | F214: 480.74 | H214: 0
A215: %,R,FACCOUNT,TNI_ACCOUNT_FERC,XBYYYYY01,NFUNDS_UDC | B215: Allow for Other FUDC | D215: 0 | E215: 0 | F215: 0
A216: %,V42100000 | B216: Misc Non Operating Income | C216: 42100000 | D216: 310.14 | E216: 150.9 | F216: 1660.47 | H216: 159.24
A217: %,R,FACCOUNT,TNI_ACCOUNT_FERC,XBYYYYY01,NMISC_NONOP_INCOME | B217: Misc Nonoperating Income | D217: 310.14 | E217: 150.9 | F217: 1660.47 | H217: 159.24
A218: %,R,FACCOUNT,TNI_ACCOUNT_FERC,XBYYYYY01,NDISP_PROP_GAIN | B218: Gain Disposition of Property | D218: 0 | E218: 0 | F218: 0
B219: Total Other Income | D219: =D204+D205+D206+D210+D211+D212+D214+D215+D217+D218 -> 310.14 | E219: =E204+E205+E206+E210+E211+E212+E214+E215+E217+E218 -> 150.9 | F219: =F204+F205+F206+F210+F211+F212+F214+F215+F217+F218 -> 2141.21
A221: %,V42121000 | B221: Loss on Disposition of Asset | C221: 42121000 | D221: 0 | E221: =D221-H221 -> 0 | F221: 36548.84 | H221: 0
A222: %,FACCOUNT,TNI_ACCOUNT_FERC,XBYYYYY01,NDISP_PROP_LOSS | B222: Loss on Disposal of Property | D222: 0 | E222: 0 | F222: 36548.84 | H222: 0
A223: %,FACCOUNT,TNI_ACCOUNT_FERC,XBYYYYY01,NAMORT_MISC | B223: Misc Amortization | D223: 0 | E223: 0 | F223: 0
A224: %,V42610000 | B224: Other Inc_Exp-Donations | C224: 42610000 | D224: 25154.43 | E224: 10154.43 | F224: 192506.15 | H224: 15000
A225: %,FACCOUNT,TNI_ACCOUNT_FERC,XBYYYYY01,NDONATIONS | B225: Other Inc Exp Donations | D225: 25154.43 | E225: 10154.43 | F225: 192506.15 | H225: 15000
A226: %,FACCOUNT,TNI_ACCOUNT_FERC,XBYYYYY01,NINSURANCE_LIFE | B226: Corporate Owned Life Ins | D226: 0 | E226: 0 | F226: 0
A227: %,FACCOUNT,TNI_ACCOUNT_FERC,XBYYYYY01,NPENALTIES | B227: Penalties | D227: 0 | E227: 0 | F227: 0
A228: %,V42640000 | B228: Oth Inc_Exp Political Contrib | C228: 42640000 | D228: 0 | E228: 0 | F228: 17495.63 | H228: 0
A229: %,FACCOUNT,TNI_ACCOUNT_FERC,XBYYYYY01,NCIVIC_POL_EXP | B229: Other Inc Exp PoliticalContrib | D229: 0 | E229: 0 | F229: 17495.63 | H229: 0
A230: %,V42654000 | B230: Other Misc Exp Deduction | C230: 42654000 | D230: 1674.87 | E230: -3353.6 | F230: 7974.08 | H230: 5028.47
... 37 more rows

Sheet Sep22
A1: %,LACTUALS,UPOSTED_TRAN_AMT | B1: %,ATF,FDESCR,UDESCR | C1: %,ATT,FACCOUNT | D1: %,LACTUALS,UPOSTED_TRAN_AMT,SPER,FBOOK_CODE,VR | E1: %,C | F1: %,LACTUALS,UPOSTED_TRAN_AMT,SYTD,FBOOK_CODE,VR | H1: %,LACTUALS,UPOSTED_TRAN_AMT,SPER-1,FBOOK_CODE,VR
B2: NiSource Corporate Services Co | H2: FOR
B3: Income Statement-FERC | H3: CALC
B4: Regulatory View - FERC Account
B5: For the Month Ended September 30, 2022 | H5: PURPOSES
D7: Current | E7: Change from | F7: Year-To- | H7: Prior
D8: Month | E8: Prior Month | F8: Date | H8: Month
B10: Operating Revenues
A12: %,R,FACCOUNT,TNI_ACCOUNT_FERC,XBYYYYY01,NGAS_RESID_REV | B12: Gas Residential Sales | D12: 0 | E12: =D12-H12 -> 0 | F12: 0
A13: %,R,FACCOUNT,TNI_ACCOUNT_FERC,XBYYYYY01,NGAS_COMM_INDUST_REV | B13: Gas Comm & Indust Revenues | D13: 0 | E13: =D13-H13 -> 0 | F13: 0
A14: %,R,FACCOUNT,TNI_ACCOUNT_FERC,XBYYYYY01,NGAS_SALES_RESALE | B14: Gas Sales for Resale | D14: 0 | E14: =D14-H14 -> 0 | F14: 0
A15: %,R,FACCOUNT,TNI_ACCOUNT_FERC,XBYYYYY01,NGAS_INTERDEPT_SALES | B15: Gas Interdepartmental Sales | D15: 0 | E15: =D15-H15 -> 0 | F15: 0
A16: %,R,FACCOUNT,TNI_ACCOUNT_FERC,XBYYYYY01,NGAS_INTRACO_TRANSFER | B16: Gas Intercompany Transfers | D16: 0 | E16: =D16-H16 -> 0 | F16: 0
A17: xx | B17: Total Sales of Gas | D17: =D12+D13+D14+D15+D16 -> 0 | E17: =E12+E13+E14+E15+E16 -> 0 | F17: =F12+F13+F14+F15+F16 -> 0
A19: %,R,FACCOUNT,TNI_ACCOUNT_FERC,XBYYYYY01,NELE_RESID_REV | B19: Electric Residential Revenues | D19: 0 | E19: =D19-H19 -> 0 | F19: 0
A20: %,R,FACCOUNT,TNI_ACCOUNT_FERC,XBYYYYY01,NELE_COMM_IND_REV | B20: Elec Comm & Indust Rev | D20: 0 | E20: 0 | F20: 0
A21: %,R,FACCOUNT,TNI_ACCOUNT_FERC,XBYYYYY01,NELE_STREET_HWY_LIGHT | B21: Public Street & Hwy Lighting | D21: 0 | E21: 0 | F21: 0
A22: %,R,FACCOUNT,TNI_ACCOUNT_FERC,XBYYYYY01,NELE_OTH_SALES_PUBLIC | B22: Elec Oth Sales to Public Auth | D22: 0 | E22: 0 | F22: 0
A23: %,R,FACCOUNT,TNI_ACCOUNT_FERC,XBYYYYY01,NELE_RAILROAD | B23: Sales to Railroads & Railways | D23: 0 | E23: 0 | F23: 0
A24: %,R,FACCOUNT,TNI_ACCOUNT_FERC,XBYYYYY01,NELE_SALES_RESALE | B24: Electric Sales for Resale | D24: 0 | E24: 0 | F24: 0
A25: %,R,FACCOUNT,TNI_ACCOUNT_FERC,XBYYYYY01,NELE_INTERDEPT_SALES | B25: Elec Interdepartmental Sales | D25: 0 | E25: 0 | F25: 0
A26: xx | B26: Total Sales of Electricity | D26: =D19+D20+D21+D22+D23+D24+D25 -> 0 | E26: =E19+E20+E21+E22+E23+E24+E25 -> 0 | F26: =F19+F20+F21+F22+F23+F24+F25 -> 0
A28: %,R,FACCOUNT,TNI_ACCOUNT_FERC,XBYYYYY01,NFORFEITED_DISC_GAS | B28: Forfeited Discounts - Gas | D28: 0 | E28: =D28-H28 -> 0 | F28: 0
A29: %,R,FACCOUNT,TNI_ACCOUNT_FERC,XBYYYYY01,NFORFEITED_DISC_ELE | B29: Forfeited Discounts - Ele | D29: 0 | E29: =D29-H29 -> 0 | F29: 0
B30: Total Forfeited Discounts | D30: =D28+D29 -> 0 | E30: =E28+E29 -> 0 | F30: =F28+F29 -> 0
A32: %,R,FACCOUNT,TNI_ACCOUNT_FERC,XBYYYYY01,NMISC_SERV_REVS_GAS | B32: Misc Service Revenues - Gas | D32: 0 | E32: =D32-H32 -> 0 | F32: 0
A33: %,R,FACCOUNT,TNI_ACCOUNT_FERC,XBYYYYY01,NMISC_SERV_REVS_ELE | B33: Misc Service Revenues - Ele | D33: 0 | E33: =D33-H33 -> 0 | F33: 0
B34: Total Miscellaneous Service Revenues | D34: =D32+D33 -> 0 | E34: =E32+E33 -> 0 | F34: =F32+F33 -> 0
A36: %,R,FACCOUNT,TNI_ACCOUNT_FERC,XBYYYYY01,NRENT_ELE_PROP | B36: Rent from Electricity Property | D36: 0 | E36: =D36-H36 -> 0 | F36: 0
A37: %,R,FACCOUNT,TNI_ACCOUNT_FERC,XBYYYYY01,NOTH_ELE_REV | B37: Other Electric Revenues | D37: 0 | E37: 0 | F37: 0
A38: %,R,FACCOUNT,TNI_ACCOUNT_FERC,XBYYYYY01,NOTH_ELE_TRANS_REV | B38: Rev Transm of Elec of Oth | D38: 0 | E38: 0 | F38: 0
A39: %,V45700000 | B39: Non Util IC Rev Direct | C39: 45700000 | D39: 14058295.45 | E39: 3646367.28 | F39: 117081870.4 | H39: 10411928.17
A40: %,V45700030 | B40: Non Util IC Rev Indirect | C40: 45700030 | D40: 23068787.13 | E40: -897598.33 | F40: 234470246.4 | H40: 23966385.46
A41: %,V45700040 | B41: Non Util IC Rev Interest | C41: 45700040 | D41: 280780.93 | E41: -14309.38 | F41: 1858346.94 | H41: 295090.31
A42: %,V45810000 | B42: Non Util Non-Affill Revenue | C42: 45810000 | D42: 33203.07 | E42: -365890.33 | F42: 10235839.41 | H42: 399093.4
A43: %,R,FACCOUNT,TNI_ACCOUNT_FERC,XBYYYYY01,NOTH_REV_SERVICE_CO | B43: Nonutility Revenues - Serv Co | D43: 37441066.58 | E43: 2368569.24 | F43: 363646303.1 | H43: 35072497.34
A44: %,R,FACCOUNT,TNI_ACCOUNT_FERC,XBYYYYY01,NREG_ELE_TRANS_REV | B44: Regional Transm Service Rev | D44: 0 | E44: 0 | F44: 0
A45: %,R,FACCOUNT,TNI_ACCOUNT_FERC,XBYYYYY01,NTRANSPORT_GATH_REV | B45: Rev Transp Gas of Oth - Gather | D45: 0 | E45: 0 | F45: 0
A46: %,R,FACCOUNT,TNI_ACCOUNT_FERC,XBYYYYY01,NTRANSPORT_TRANS_REV | B46: Rev Transp Gas of Oth - Transm | D46: 0 | E46: 0 | F46: 0
A47: %,R,FACCOUNT,TNI_ACCOUNT_FERC,XBYYYYY01,NTRANSPORT_DISTR_REV | B47: Rev Transp Gas of Oth - Distr | D47: 0 | E47: 0 | F47: 0
A48: %,R,FACCOUNT,TNI_ACCOUNT_FERC,XBYYYYY01,NSTORE_GAS_REV | B48: Rev from Storing Gas of Oth | D48: 0 | E48: 0 | F48: 0
A49: %,R,FACCOUNT,TNI_ACCOUNT_FERC,XBYYYYY01,NSALES_EXTRACT_GAS | B49: Sales - Prod Extracted from NG | D49: 0 | E49: 0 | F49: 0
A50: %,R,FACCOUNT,TNI_ACCOUNT_FERC,XBYYYYY01,NGAS_OIL_SALES | B50: Incidental Gasoline & Oil Sale | D50: 0 | E50: 0 | F50: 0
A51: %,R,FACCOUNT,TNI_ACCOUNT_FERC,XBYYYYY01,NRENT_GAS_PROP | B51: Rent from Gas Property | D51: 0 | E51: 0 | F51: 0
A52: %,R,FACCOUNT,TNI_ACCOUNT_FERC,XBYYYYY01,NOTH_GAS_REV | B52: Other Gas Revenues | D52: 0 | E52: 0 | F52: 0
A53: %,R,FACCOUNT,TNI_ACCOUNT_FERC,XBYYYYY01,NGAS_PROV_RATE_REFUND | B53: Gas Provision of Rate Refunds | D53: 0 | E53: 0 | F53: 0
B54: Total Other Operating Revenues | D54: =D30+D34+D36+D37+D38+D43+D44+D45+D46+D47+D48+D49+D50+D51+D52+D53 -> 37441066.58 | E54: =E30+E34+E36+E37+E38+E43+E44+E45+E46+E47+E48+E49+E50+E51+E52+E53 -> 2368569.24 | F54: =F30+F34+F36+F37+F38+F43+F44+F45+F46+F47+F48+F49+F50+F51+F52+F53 -> 363646303.1
A55: xx | B55: Total Operating Revenues | D55: =D17+D26+D54 -> 37441066.58 | E55: =E17+E26+E54 -> 2368569.24 | F55: =F17+F26+F54 -> 363646303.1
B57: Operating Expenses
B59: Operation Expenses
A61: %,FACCOUNT,TNI_ACCOUNT_FERC,XBYYYYY01,NOP_MANUF_GAS | B61: Manufac Gas Production - Oper | D61: 0 | E61: =D61-H61 -> 0 | F61: 0
A62: %,FACCOUNT,TNI_ACCOUNT_FERC,XBYYYYY01,NOP_NTRLGAS_PROD_GTH | B62: NG Production & Gather - Oper | D62: 0 | E62: =D62-H62 -> 0 | F62: 0
A63: %,FACCOUNT,TNI_ACCOUNT_FERC,XBYYYYY01,NOP_PROD_EXTRACT | B63: Products Extraction - Oper | D63: 0 | E63: =D63-H63 -> 0 | F63: 0
A65: %,V80500100 | B65: Propane Purchases | C65: 80500100 | D65: 0 | E65: =D65-H65 -> 0 | F65: 0 | H65: 0
A66: %,NOP_NG_PURCH_OTHER | B66: Other Gas Purchases | D66: 0 | E66: 0 | F66: 0 | H66: 0
A67: %,V80720000 | B67: Oper-Purch Gas Measrg Stations | C67: 80720000 | D67: 455794.19 | E67: 6368.38 | F67: 4127867.97 | H67: 449425.81
A68: %,V80751000 | B68: Purch Gas Exp - Mgmt Fee | C68: 80751000 | D68: 79286.11 | E68: 2783.79 | F68: 733458.18 | H68: 76502.32
A69: %,NOP_NG_PURCH_EXPENSE | B69: Purchased Gas Expenses | D69: 535080.3 | E69: 9152.17 | F69: 4861326.15 | H69: 525928.13
A70: %,FACCOUNT,TNI_ACCOUNT_FERC,XBYYYYY01,NOP_OTH_GAS_SUPPLY | B70: Other Gas Supply - Operations | D70: 535080.3 | E70: 9152.17 | F70: 4861326.15 | H70: 525928.13
A71: %,V50000000 | B71: Op Superv_Eng-Steam | C71: 50000000 | D71: 10524.07 | E71: 517.34 | F71: 88623.99 | H71: 10006.73
A72: %,FACCOUNT,TNI_ACCOUNT_FERC,XBYYYYY01,NOP_STEAM_POWER | B72: Steam Power - Operations | D72: 10524.07 | E72: 517.34 | F72: 88623.99 | H72: 10006.73
A73: %,FACCOUNT,TNI_ACCOUNT_FERC,XBYYYYY01,NOP_HYDRAULIC_POWER | B73: Hydraulic Power - Operations | D73: 0 | E73: 0 | F73: 0
A74: %,FACCOUNT,TNI_ACCOUNT_FERC,XBYYYYY01,NOP_SOLAR_GENERATION | B74: Solar Generation - Operations | D74: 0 | E74: 0 | F74: 0
A75: %,V54800000 | B75: Generation Exp | C75: 54800000 | D75: 0 | E75: 0 | F75: 0 | H75: 0
A76: %,FACCOUNT,TNI_ACCOUNT_FERC,XBYYYYY01,NOP_OTHER_POWER | B76: Other Power - Operations | D76: 0 | E76: 0 | F76: 0 | H76: 0
A77: %,V55700000 | B77: Other Exp | C77: 55700000 | D77: 1043.31 | E77: -1554.79 | F77: 11115.26 | H77: 2598.1
A78: %,FACCOUNT,TNI_ACCOUNT_FERC,XBYYYYY01,NOP_OTH_POWER_SUPPLY | B78: Other Power Supply - Oper | D78: 1043.31 | E78: -1554.79 | F78: 11115.26 | H78: 2598.1
A79: %,FACCOUNT,TNI_ACCOUNT_FERC,XBYYYYY01,NOP_NG_STOR_TERM_PROC | B79: NG Stor, Term & Proc - Oper | D79: 0 | E79: 0 | F79: 0
A81: %,V85200030 | B81: Communication System Exp | C81: 85200030 | D81: 0 | E81: =D81-H81 -> 0 | F81: 0 | H81: 0
A82: %,V85900000 | B82: Gas Transmission Exp | C82: 85900000 | D82: 0 | E82: 0 | F82: 0 | H82: 0
A83: %,NOP_GAS_TRANS_EXP | B83: Transmission Exp - Oper - Gas | D83: 0 | E83: 0 | F83: 0 | H83: 0
A84: %,FACCOUNT,TNI_ACCOUNT_FERC,XBYYYYY01,NOP_TRANS_EXP | B84: Transmission Exp - Oper | D84: 0 | E84: 0 | F84: 0 | H84: 0
A85: %,FACCOUNT,TNI_ACCOUNT_FERC,XBYYYYY01,NOP_REG_MARKET_EXP | B85: Regional Market Exp - Oper | D85: 0 | E85: 0 | F85: 0
A86: %,FACCOUNT,TNI_ACCOUNT_FERC,XBYYYYY01,NOP_ENERGY_STORAGE | B86: Energy Storage - Oper | D86: 0 | E86: 0 | F86: 0
A88: %,V58000000 | B88: Op Superv_Eng-Elec Distr | C88: 58000000 | D88: 10239.59 | E88: =D88-H88 -> 7354.43 | F88: 69131.83 | H88: 2885.16
A89: %,V58800000 | B89: Misc Distribution Exp | C89: 58800000 | D89: -120.43 | E89: -120.43 | F89: 0 | H89: 0
A90: %,NOP_ELEC_DISTR_EXP | B90: Distribution Exp - Oper - Elec | D90: 10119.16 | E90: 7234 | F90: 69131.83 | H90: 2885.16
A91: %,V87000000 | B91: Op Superv-Eng-Gas Distr | C91: 87000000 | D91: 1053933.9 | E91: 281083.71 | F91: 10430987.29 | H91: 772850.19
A92: %,V87400000 | B92: Mains and Services Exp | C92: 87400000 | D92: 187558.79 | E92: 7926.54 | F92: 1568111.46 | H92: 179632.25
A93: %,V87500000 | B93: Measur-Reg Statn Exp Gen | C93: 87500000 | D93: 34262.04 | E93: 4577.34 | F93: 333394.21 | H93: 29684.7
A94: %,V87600000 | B94: Measur-Reg Statn Exp-Indus | C94: 87600000 | D94: 28032.66 | E94: 3743.52 | F94: 272779 | H94: 24289.14
A95: %,V87800000 | B95: Meter and House Regulator Exp | C95: 87800000 | D95: 127757.46 | E95: 7102.74 | F95: 1037694.18 | H95: 120654.72
A96: %,V87900000 | B96: Oper Installation Service Exp | C96: 87900000 | D96: 121965.86 | E96: 6826.61 | F96: 991658.92 | H96: 115139.25
A97: %,V88000000 | B97: Operations Exp Other | C97: 88000000 | D97: 24432.02 | E97: 1472.03 | F97: 200819.53 | H97: 22959.99
A98: %,NOP_GAS_DISTR_EXP | B98: Distribution Exp - Oper - Gas | D98: 1577942.73 | E98: 312732.49 | F98: 14835444.59 | H98: 1265210.24
A99: %,FACCOUNT,TNI_ACCOUNT_FERC,XBYYYYY01,NOP_DISTR_EXP | B99: Distribution Exp - Oper | D99: 1588061.89 | E99: 319966.49 | F99: 14904576.42 | H99: 1268095.4
A100: %,V90100000 | B100: Customer Acnt Supervision | C100: 90100000 | D100: 2060.65 | E100: 2030.26 | F100: 5771.18 | H100: 30.39
A101: %,V90300000 | B101: Cust Records Collection Exp | C101: 90300000 | D101: 2115566.77 | E101: -289342.84 | F101: 19695626.98 | H101: 2404909.61
A102: %,FACCOUNT,TNI_ACCOUNT_FERC,XBYYYYY01,NOP_CUST_ACCTS_EXP | B102: Customer Accounts - Oper | D102: 2117627.42 | E102: -287312.58 | F102: 19701398.16 | H102: 2404940
A103: %,V90700000 | B103: Cust Serv Info Exp Supv | C103: 90700000 | D103: 0 | E103: 0 | F103: 0 | H103: 0
A104: %,V90800000 | B104: Customer Assistance Exp | C104: 90800000 | D104: -1229.12 | E104: -3498.46 | F104: -4543.93 | H104: 2269.34
A105: %,V91000000 | B105: Misc Cust Serv and Info Exp | C105: 91000000 | D105: 339752.83 | E105: 33326.49 | F105: 3131742 | H105: 306426.34
A106: %,FACCOUNT,TNI_ACCOUNT_FERC,XBYYYYY01,NOP_CUSTOMER_SERV_EXP | B106: Cust Serv & Info Exp - Oper | D106: 338523.71 | E106: 29828.03 | F106: 3127198.07 | H106: 308695.68
A107: %,V91200000 | B107: Demonstrating and Selling Exp | C107: 91200000 | D107: 551.32 | E107: -2126.85 | F107: 9090.35 | H107: 2678.17
A108: %,V91300000 | B108: Sales Advertising Exp | C108: 91300000 | D108: 6862.34 | E108: 6257.35 | F108: 253962.4 | H108: 604.99
A109: %,V91600000 | B109: Misc Sales Exp | C109: 91600000 | D109: 0 | E109: 0 | F109: 304.01 | H109: 0
A110: %,FACCOUNT,TNI_ACCOUNT_FERC,XBYYYYY01,NOP_SALES_EXP | B110: Sales Expenses - Oper | D110: 7413.66 | E110: 4130.5 | F110: 263356.76 | H110: 3283.16
A111: %,V92000000 | B111: A_G Salaries | C111: 92000000 | D111: 9808536.35 | E111: 162601.08 | F111: 95179354.53 | H111: 9645935.27
A112: %,V92001000 | B112: Discretionary and Spot Awards | C112: 92001000 | D112: 329745.13 | E112: 88246.24 | F112: 2838811.94 | H112: 241498.89
A113: %,V92002000 | B113: Stock Compensation Expense | C113: 92002000 | D113: -1518810 | E113: -2700225 | F113: 10188972.25 | H113: 1181415
A114: %,V92100000 | B114: Office Supplies and Exp | C114: 92100000 | D114: 387064.29 | E114: 31166.34 | F114: 3887711.46 | H114: 355897.95
A115: %,V92101000 | B115: Employee Expenses | C115: 92101000 | D115: 291239.18 | E115: -21164.04 | F115: 2679735.22 | H115: 312403.22
A116: %,V92300000 | B116: Outside Service Employed | C116: 92300000 | D116: 9685313.89 | E116: 1930000.6 | F116: 91799545.88 | H116: 7755313.29
A117: %,V92400000 | B117: Property Insurance | C117: 92400000 | D117: 4147.47 | E117: 0 | F117: 37315.75 | H117: 4147.47
A118: %,V92500000 | B118: Injuries and Damages | C118: 92500000 | D118: 83587.84 | E118: 69223.79 | F118: 1173508.55 | H118: 14364.05
A119: %,V92600000 | B119: Employee Pensions and Benefits | C119: 92600000 | D119: 3139462.55 | E119: 672582.68 | F119: 24275018 | H119: 2466879.87
A120: %,V92601000 | B120: Non Service Pension & OPEB | C120: 92601000 | D120: 387362.42 | E120: 404352 | F120: 275517.63 | H120: -16989.58
A121: %,V92800000 | B121: Regulatory Commission Exp | C121: 92800000 | D121: 140.02 | E121: 103.14 | F121: 8030.03 | H121: 36.88
A122: %,V93010000 | B122: General Advertising Exp | C122: 93010000 | D122: 56143.69 | E122: 21449.6 | F122: 442250.63 | H122: 34694.09
A123: %,V93020000 | B123: Misc General Exp | C123: 93020000 | D123: -163022.23 | E123: -331796.58 | F123: 819363.17 | H123: 168774.35
A124: %,V93020495 | B124: CMA Care-Misc General Exp | C124: 93020495 | D124: 0 | E124: 0 | F124: 0 | H124: 0
A125: %,V93100000 | B125: Rents Admin and General | C125: 93100000 | D125: 1278846.5 | E125: -22249.11 | F125: 11698146.53 | H125: 1301095.61
A126: %,FACCOUNT,TNI_ACCOUNT_FERC,XBYYYYY01,NOP_ADMIN_GEN | B126: Admin & General Exp - Oper | D126: 23769757.1 | E126: 304290.74 | F126: 245303281.6 | H126: 23465466.36
B127: Total Operation Expenses | D127: =D61+D62+D63+D70+D72+D73+D74+D76+D78+D79+D84+D86+D85+D99+D102+D106+D110+D126 -> 28368031.46 | E127: =E61+E62+E63+E70+E72+E73+E74+E76+E78+E79+E84+E86+E85+E99+E102+E106+E110+E126 -> 379017.9 | F127: =F61+F62+F63+F70+F72+F73+F74+F76+F78+F79+F84+F86+F85+F99+F102+F106+F110+F126 -> 288260876.4
B129: Maintenance Expenses
A132: %,V76400000 | B132: Gath Maint Field Lines | C132: 76400000 | D132: -59.41 | E132: =D132-H132 -> -59.41 | F132: -59.41 | H132: 0
A133: %,NMAINT_NG_PROD_GTH | B133: NG Production & Gather - Maint | D133: -59.41 | E133: =D133-H133 -> -59.41 | F133: -59.41 | H133: 0
A134: %,FACCOUNT,TNI_ACCOUNT_FERC,XBYYYYY01,NMAINT_PROD_EXP | B134: Production Expenses - Maint | D134: -59.41 | E134: =D134-H134 -> -59.41 | F134: -59.41 | H134: 0
A135: %,FACCOUNT,TNI_ACCOUNT_FERC,XBYYYYY01,NMAINT_NG_STOR_PROC | B135: NG Stor, Term & Proc - Maint | D135: 0 | E135: =D135-H135 -> 0 | F135: 0
A137: %,V56920000 | B137: Maint of Computer Software | C137: 56920000 | D137: 0 | E137: =D137-H137 -> 0 | F137: 0 | H137: 0
A138: %,NMAINT_ELEC_TRANS_EXP | B138: Transmission Exp - Maint-Elec | D138: 0 | E138: =D138-H138 -> 0 | F138: 0 | H138: 0
A139: %,FACCOUNT,TNI_ACCOUNT_FERC,XBYYYYY01,NMAINT_TRANS_EXP | B139: Transmission Exp - Maint | D139: 0 | E139: =D139-H139 -> 0 | F139: 0 | H139: 0
A140: %,FACCOUNT,TNI_ACCOUNT_FERC,XBYYYYY01,NMAINT_ENERGY_STORAGE | B140: Energy Storage - Maint | D140: 0 | E140: =D140-H140 -> 0 | F140: 0
A142: %,V59700000 | B142: Maint of Meters | C142: 59700000 | D142: 0 | E142: =D142-H142 -> 0 | F142: 0 | H142: 0
A143: %,NMAINT_ELEC_DISTR_EXP | B143: Distribution Exp - Maint-Elec | D143: 0 | E143: 0 | F143: 0 | H143: 0
A144: %,V88700000 | B144: Maint of Mains | C144: 88700000 | D144: 63995.79 | E144: 180.13 | F144: 576357.14 | H144: 63815.66
A145: %,V88900000 | B145: Maint Msr-Reg Statn Equi Gen | C145: 88900000 | D145: 34262.04 | E145: 4577.33 | F145: 333394.22 | H145: 29684.71
A146: %,V89000000 | B146: Maint Meas_Reg Stn Equip-Distr | C146: 89000000 | D146: 32846.84 | E146: 5997.11 | F146: 304663.39 | H146: 26849.73
A147: %,V89200000 | B147: Maint of Services | C147: 89200000 | D147: 33120.89 | E147: 3123.65 | F147: 412436.2 | H147: 29997.24
A148: %,V89300000 | B148: Maint Meters_House Regulators | C148: 89300000 | D148: 11038.84 | E148: 1572.77 | F148: 93231.59 | H148: 9466.07
A149: %,V89400000 | B149: Other Maint Equipment | C149: 89400000 | D149: 57469.05 | E149: -11029.4 | F149: 598450.02 | H149: 68498.45
A150: %,NMAINT_GAS_DISTR_EXP | B150: Distribution Exp - Maint-Gas | D150: 232733.45 | E150: 4421.59 | F150: 2318532.56 | H150: 228311.86
A151: %,FACCOUNT,TNI_ACCOUNT_FERC,XBYYYYY01,NMAINT_DISTR_EXP | B151: Distribution Exp - Maint | D151: 232733.45 | E151: 4421.59 | F151: 2318532.56 | H151: 228311.86
A152: %,V93200000 | B152: Maint General Plant | C152: 93200000 | D152: 3535147.38 | E152: 180099.91 | F152: 31082102.64 | H152: 3355047.47
A153: %,FACCOUNT,TNI_ACCOUNT_FERC,XBYYYYY01,NMAINT_ADMIN_GEN | B153: Maintenance Gen and Admin | D153: 3535147.38 | E153: 180099.91 | F153: 31082102.64 | H153: 3355047.47
B154: Total Maintenance Expenses | D154: =D134+D135+D139+D140+D151+D153 -> 3767821.42 | E154: =E134+E135+E139+E140+E151+E153 -> 184462.09 | F154: =F134+F135+F139+F140+F151+F153 -> 33400575.79
A156: %,V40300000 | B156: Dep Exp | C156: 40300000 | D156: 3751571.26 | E156: =D156-H156 -> 946185.64 | F156: 25921225.88 | H156: 2805385.62
A157: %,FACCOUNT,TNI_ACCOUNT_FERC,XBYYYYY01,NDEPRECIATION_EXPENSE | B157: Depreciation Expense | D157: 3751571.26 | E157: =D157-H157 -> 946185.64 | F157: 25921225.88 | H157: 2805385.62
A158: %,FACCOUNT,TNI_ACCOUNT_FERC,XBYYYYY01,NDEPRECIATION_ARO_EXP | B158: Depreciation Expense for AROs | D158: 0 | E158: =D158-H158 -> 0 | F158: 0
A160: %,V40434000 | B160: Cloude Amortizaiton Expense | C160: 40434000 | D160: 102045.21 | E160: =D160-H160 -> -575.34 | F160: 933487.16 | H160: 102620.55
A161: %,NAMORT_LMT_TERM_PROP | B161: Amort of Limited-Term Property | D161: 102045.21 | E161: -575.34 | F161: 933487.16 | H161: 102620.55
A162: %,V40500000 | B162: Amortization of Oth Plant | C162: 40500000 | D162: 346158.55 | E162: 35.63 | F162: 3518783.09 | H162: 346122.92
A163: %,NAMORT_OTH_PROP | B163: Amort of Other Property | D163: 346158.55 | E163: 35.63 | F163: 3518783.09 | H163: 346122.92
A164: %,FACCOUNT,TNI_ACCOUNT_FERC,XBYYYYY01,NAMORT_DEPL_UTIL | B164: Amort & Deplet of Util Plant | D164: 448203.76 | E164: -539.71 | F164: 4452270.25 | H164: 448743.47
A165: %,FACCOUNT,TNI_ACCOUNT_FERC,XBYYYYY01,NAMORT_UTIL_ADJ | B165: Amort of Gas Plant Acq Adj | D165: 0 | E165: 0 | F165: 0
A166: %,FACCOUNT,TNI_ACCOUNT_FERC,XBYYYYY01,NAMORT_CONV_EXP | B166: Amort of Conversion Exp | D166: 0 | E166: 0 | F166: 0
A167: %,FACCOUNT,TNI_ACCOUNT_FERC,XBYYYYY01,NREG_DEBITS | B167: Reg Debits | D167: 0 | E167: 0 | F167: 0
A168: %,FACCOUNT,TNI_ACCOUNT_FERC,XBYYYYY01,NREG_CREDITS | B168: Reg Credits | D168: 0 | E168: 0 | F168: 0
A169: %,V40813100 | B169: Tax Exp-License_Franchise | C169: 40813100 | D169: 0 | E169: 0 | F169: 65215.69 | H169: 0
A170: %,V40813200 | B170: Tax Exp-Property | C170: 40813200 | D170: 20000 | E170: -45722.5 | F170: 225722.5 | H170: 65722.5
A171: %,V40813300 | B171: Tax Exp-Sales and Use Tax | C171: 40813300 | D171: 0 | E171: 0 | F171: 1.39 | H171: 0
A172: %,V40813600 | B172: Tax Exp-State and Local-Oth | C172: 40813600 | D172: 123.61 | E172: -103.01 | F172: 5582.09 | H172: 226.62
A173: %,V40814500 | B173: Tax Exp-Payroll FICA-OASDI | C173: 40814500 | D173: 698205.22 | E173: -81544.4 | F173: 6633579.83 | H173: 779749.62
A174: %,V40814600 | B174: Tax Exp-Payroll FICA-Medicar | C174: 40814600 | D174: 168615.85 | E174: -14536.59 | F174: 2066446.93 | H174: 183152.44
A175: %,V40814700 | B175: Tax Exp-FUTA Employer | C175: 40814700 | D175: 982.53 | E175: 11.8 | F175: 14817.92 | H175: 970.73
A176: %,V40814800 | B176: Tax Exp-SUTA Employer | C176: 40814800 | D176: 2752.43 | E176: -428.54 | F176: 262293.5 | H176: 3180.97
A177: %,FACCOUNT,TNI_ACCOUNT_FERC,XBYYYYY01,NOTHER_TAXES_FERC | B177: Other Taxes FERC | D177: 890679.64 | E177: -142323.24 | F177: 9273659.85 | H177: 1033002.88
A179: %,V40912000 | B179: Util Cur ST Exp | C179: 40912000 | D179: 4168 | E179: =D179-H179 -> -27436 | F179: 45868 | H179: 31604
A180: %,FACCOUNT,TNI_ACCOUNT_FERC,XBYYYYY01,NINC_TAX_EXP_ST | B180: Income Taxes - State | D180: 4168 | E180: =D180-H180 -> -27436 | F180: 45868 | H180: 31604
A181: %,V40911000 | B181: Util Cur Fed Exp | C181: 40911000 | D181: 45077 | E181: =D181-H181 -> -144697 | F181: 301189 | H181: 189774
A182: %,FACCOUNT,TNI_ACCOUNT_FERC,XBYYYYY01,NINC_TAX_EXP_FED | B182: Income Taxes - Federal | D182: 45077 | E182: =D182-H182 -> -144697 | F182: 301189 | H182: 189774
B183: Total Utilities Current Fed State | D183: =D180+D182 -> 49245 | E183: =E180+E182 -> -172133 | F183: =F180+F182 -> 347057
A185: %,V41011000 | B185: Util Def Fed Exp-Dr | C185: 41011000 | D185: -7573712 | E185: =D185-H185 -> -7014181 | F185: 0 | H185: -559531
A186: %,V41012000 | B186: Util Def ST Exp-Dr | C186: 41012000 | D186: -1077181 | E186: =D186-H186 -> -1003531 | F186: 0 | H186: -73650
A187: %,FACCOUNT,TNI_ACCOUNT_FERC,XBYYYYY01,NDEFERRED_INC_TAX | B187: Deferred Income Taxes | D187: -8650893 | E187: =D187-H187 -> -8017712 | F187: 0 | H187: -633181
A189: %,V41111000 | B189: Util Def Fed Exp-Cr | C189: 41111000 | D189: 7486058 | E189: =D189-H189 -> 7035750 | F189: 0 | H189: 450308
A190: %,V41112000 | B190: Util Def ST Exp-Cr | C190: 41112000 | D190: 1084363 | E190: 1030049 | F190: 0 | H190: 54314
A191: %,FACCOUNT,TNI_ACCOUNT_FERC,XBYYYYY01,NDEFERRED_INC_TAX_CR | B191: Prov Deferred Inc Tax - Cr | D191: 8570421 | E191: 8065799 | F191: 0 | H191: 504622
A192: %,FACCOUNT,TNI_ACCOUNT_FERC,XBYYYYY01,NTAX_CRED_ADJ_INVEST | B192: Investment Tax Credit Adj | D192: 0 | E192: 0 | F192: 0
A193: %,FACCOUNT,TNI_ACCOUNT_FERC,XBYYYYY01,NTAX_CRED_GAIN_DISP | B193: Gain from Disposition of Plant | D193: 0 | E193: 0 | F193: 0
A194: %,FACCOUNT,TNI_ACCOUNT_FERC,XBYYYYY01,NTAX_CRED_LOSS_DISP | B194: Loss from Disposition of Plant | D194: 0 | E194: 0 | F194: 0
A195: %,FACCOUNT,TNI_ACCOUNT_FERC,XBYYYYY01,NACCRETION_EXP | B195: Accretion Expenses | D195: 0 | E195: 0 | F195: 0
B196: Total Operating Expenses | D196: =D127+D154+D157+D158+D164+D165+D166+D167+D168+D177+D183+D187+D191+D192+D193+D194+D195 -> 37195080.54 | E196: =E127+E154+E157+E158+E164+E165+E166+E167+E168+E177+E183+E187+E191+E192+E193+E194+E195 -> 1242756.68 | F196: =F127+F154+F157+F158+F164+F165+F166+F167+F168+F177+F183+F187+F191+F192+F193+F194+F195 -> 361655665.2
B199: Net Utility Operating Income(Loss) | D199: =D55-D196 -> 245986.04 | E199: =E55-E196 -> 1125812.56 | F199: =F55-F196 -> 1990637.99
B202: Other Income & Deductions
A204: %,R,FACCOUNT,TNI_ACCOUNT_FERC,XBYYYYY01,NMERCH_REV | B204: Revenues from Merchandising | D204: 0 | E204: =D204-H204 -> 0 | F204: 0
A205: %,R,FACCOUNT,TNI_ACCOUNT_FERC,XBYYYYY01,NMERCH_EXP | B205: Costs and Exp Merch Job | D205: 0 | E205: =D205-H205 -> 0 | F205: 0
A206: %,R,FACCOUNT,TNI_ACCOUNT_FERC,XBYYYYY01,NOPS_NON_UTIL_REV | B206: NonUtility Revenues | D206: 0 | E206: =D206-H206 -> 0 | F206: 0
A208: %,V41715000 | B208: Non Util Operating Exp | C208: 41715000 | D208: 0 | E208: =D208-H208 -> 0 | F208: 0 | H208: 0
A209: %,NNON_UTIL_EXP_OPS | B209: Non-Utility Expense OPS | D209: 0 | E209: 0 | F209: 0 | H209: 0
A210: %,R,FACCOUNT,TNI_ACCOUNT_FERC,XBYYYYY01,NOPS_NON_UTIL_EXP | B210: NonUtility Unaffil | D210: 0 | E210: 0 | F210: 0 | H210: 0
A211: %,R,FACCOUNT,TNI_ACCOUNT_FERC,XBYYYYY01,NRENT_REV_NONOPS | B211: Nonoperating Rental Revenue | D211: 0 | E211: 0 | F211: 0
A212: %,R,FACCOUNT,TNI_ACCOUNT_FERC,XBYYYYY01,NEARNINGS_OF_SUBS | B212: Earnings of Subsidiaries | D212: 0 | E212: 0 | F212: 0
A213: %,V41902000 | B213: Interest Income Money Pool | C213: 41902000 | D213: 0 | E213: 0 | F213: 480.74 | H213: 0
A214: %,R,FACCOUNT,TNI_ACCOUNT_FERC,XBYYYYY01,NINT_DIV_INCOME | B214: Interest and Dividend Income | D214: 0 | E214: 0 | F214: 480.74 | H214: 0
A215: %,R,FACCOUNT,TNI_ACCOUNT_FERC,XBYYYYY01,NFUNDS_UDC | B215: Allow for Other FUDC | D215: 0 | E215: 0 | F215: 0
A216: %,V42100000 | B216: Misc Non Operating Income | C216: 42100000 | D216: 52.53 | E216: -257.61 | F216: 1713 | H216: 310.14
A217: %,R,FACCOUNT,TNI_ACCOUNT_FERC,XBYYYYY01,NMISC_NONOP_INCOME | B217: Misc Nonoperating Income | D217: 52.53 | E217: -257.61 | F217: 1713 | H217: 310.14
A218: %,R,FACCOUNT,TNI_ACCOUNT_FERC,XBYYYYY01,NDISP_PROP_GAIN | B218: Gain Disposition of Property | D218: 0 | E218: 0 | F218: 0
B219: Total Other Income | D219: =D204+D205+D206+D210+D211+D212+D214+D215+D217+D218 -> 52.53 | E219: =E204+E205+E206+E210+E211+E212+E214+E215+E217+E218 -> -257.61 | F219: =F204+F205+F206+F210+F211+F212+F214+F215+F217+F218 -> 2193.74
A221: %,V42121000 | B221: Loss on Disposition of Asset | C221: 42121000 | D221: 0 | E221: =D221-H221 -> 0 | F221: 36548.84 | H221: 0
A222: %,FACCOUNT,TNI_ACCOUNT_FERC,XBYYYYY01,NDISP_PROP_LOSS | B222: Loss on Disposal of Property | D222: 0 | E222: 0 | F222: 36548.84 | H222: 0
A223: %,FACCOUNT,TNI_ACCOUNT_FERC,XBYYYYY01,NAMORT_MISC | B223: Misc Amortization | D223: 0 | E223: 0 | F223: 0
A224: %,V42610000 | B224: Other Inc_Exp-Donations | C224: 42610000 | D224: 36500 | E224: 11345.57 | F224: 229006.15 | H224: 25154.43
A225: %,FACCOUNT,TNI_ACCOUNT_FERC,XBYYYYY01,NDONATIONS | B225: Other Inc Exp Donations | D225: 36500 | E225: 11345.57 | F225: 229006.15 | H225: 25154.43
A226: %,FACCOUNT,TNI_ACCOUNT_FERC,XBYYYYY01,NINSURANCE_LIFE | B226: Corporate Owned Life Ins | D226: 0 | E226: 0 | F226: 0
A227: %,FACCOUNT,TNI_ACCOUNT_FERC,XBYYYYY01,NPENALTIES | B227: Penalties | D227: 0 | E227: 0 | F227: 0
A228: %,V42640000 | B228: Oth Inc_Exp Political Contrib | C228: 42640000 | D228: 0 | E228: 0 | F228: 17495.63 | H228: 0
A229: %,FACCOUNT,TNI_ACCOUNT_FERC,XBYYYYY01,NCIVIC_POL_EXP | B229: Other Inc Exp PoliticalContrib | D229: 0 | E229: 0 | F229: 17495.63 | H229: 0
A230: %,V42654000 | B230: Other Misc Exp Deduction | C230: 42654000 | D230: -6559.03 | E230: -8233.9 | F230: 1415.05 | H230: 1674.87
... 37 more rows

Sheet Oct22
A1: %,LACTUALS,UPOSTED_TRAN_AMT | B1: %,ATF,FDESCR,UDESCR | C1: %,ATT,FACCOUNT | D1: %,LACTUALS,UPOSTED_TRAN_AMT,SPER,FBOOK_CODE,VR | E1: %,C | F1: %,LACTUALS,UPOSTED_TRAN_AMT,SYTD,FBOOK_CODE,VR | H1: %,LACTUALS,UPOSTED_TRAN_AMT,SPER-1,FBOOK_CODE,VR
B2: NiSource Corporate Services Co | H2: FOR
B3: Income Statement-FERC | H3: CALC
B4: Regulatory View - FERC Account
B5: For the Month Ended October 31, 2022 | H5: PURPOSES
D7: Current | E7: Change from | F7: Year-To- | H7: Prior
D8: Month | E8: Prior Month | F8: Date | H8: Month
B10: Operating Revenues
A12: %,R,FACCOUNT,TNI_ACCOUNT_FERC,XBYYYYY01,NGAS_RESID_REV | B12: Gas Residential Sales | D12: 0 | E12: =D12-H12 -> 0 | F12: 0
A13: %,R,FACCOUNT,TNI_ACCOUNT_FERC,XBYYYYY01,NGAS_COMM_INDUST_REV | B13: Gas Comm & Indust Revenues | D13: 0 | E13: =D13-H13 -> 0 | F13: 0
A14: %,R,FACCOUNT,TNI_ACCOUNT_FERC,XBYYYYY01,NGAS_SALES_RESALE | B14: Gas Sales for Resale | D14: 0 | E14: =D14-H14 -> 0 | F14: 0
A15: %,R,FACCOUNT,TNI_ACCOUNT_FERC,XBYYYYY01,NGAS_INTERDEPT_SALES | B15: Gas Interdepartmental Sales | D15: 0 | E15: =D15-H15 -> 0 | F15: 0
A16: %,R,FACCOUNT,TNI_ACCOUNT_FERC,XBYYYYY01,NGAS_INTRACO_TRANSFER | B16: Gas Intercompany Transfers | D16: 0 | E16: =D16-H16 -> 0 | F16: 0
A17: xx | B17: Total Sales of Gas | D17: =D12+D13+D14+D15+D16 -> 0 | E17: =E12+E13+E14+E15+E16 -> 0 | F17: =F12+F13+F14+F15+F16 -> 0
A19: %,R,FACCOUNT,TNI_ACCOUNT_FERC,XBYYYYY01,NELE_RESID_REV | B19: Electric Residential Revenues | D19: 0 | E19: =D19-H19 -> 0 | F19: 0
A20: %,R,FACCOUNT,TNI_ACCOUNT_FERC,XBYYYYY01,NELE_COMM_IND_REV | B20: Elec Comm & Indust Rev | D20: 0 | E20: 0 | F20: 0
A21: %,R,FACCOUNT,TNI_ACCOUNT_FERC,XBYYYYY01,NELE_STREET_HWY_LIGHT | B21: Public Street & Hwy Lighting | D21: 0 | E21: 0 | F21: 0
A22: %,R,FACCOUNT,TNI_ACCOUNT_FERC,XBYYYYY01,NELE_OTH_SALES_PUBLIC | B22: Elec Oth Sales to Public Auth | D22: 0 | E22: 0 | F22: 0
A23: %,R,FACCOUNT,TNI_ACCOUNT_FERC,XBYYYYY01,NELE_RAILROAD | B23: Sales to Railroads & Railways | D23: 0 | E23: 0 | F23: 0
A24: %,R,FACCOUNT,TNI_ACCOUNT_FERC,XBYYYYY01,NELE_SALES_RESALE | B24: Electric Sales for Resale | D24: 0 | E24: 0 | F24: 0
A25: %,R,FACCOUNT,TNI_ACCOUNT_FERC,XBYYYYY01,NELE_INTERDEPT_SALES | B25: Elec Interdepartmental Sales | D25: 0 | E25: 0 | F25: 0
A26: xx | B26: Total Sales of Electricity | D26: =D19+D20+D21+D22+D23+D24+D25 -> 0 | E26: =E19+E20+E21+E22+E23+E24+E25 -> 0 | F26: =F19+F20+F21+F22+F23+F24+F25 -> 0
A28: %,R,FACCOUNT,TNI_ACCOUNT_FERC,XBYYYYY01,NFORFEITED_DISC_GAS | B28: Forfeited Discounts - Gas | D28: 0 | E28: =D28-H28 -> 0 | F28: 0
A29: %,R,FACCOUNT,TNI_ACCOUNT_FERC,XBYYYYY01,NFORFEITED_DISC_ELE | B29: Forfeited Discounts - Ele | D29: 0 | E29: =D29-H29 -> 0 | F29: 0
B30: Total Forfeited Discounts | D30: =D28+D29 -> 0 | E30: =E28+E29 -> 0 | F30: =F28+F29 -> 0
A32: %,R,FACCOUNT,TNI_ACCOUNT_FERC,XBYYYYY01,NMISC_SERV_REVS_GAS | B32: Misc Service Revenues - Gas | D32: 0 | E32: =D32-H32 -> 0 | F32: 0
A33: %,R,FACCOUNT,TNI_ACCOUNT_FERC,XBYYYYY01,NMISC_SERV_REVS_ELE | B33: Misc Service Revenues - Ele | D33: 0 | E33: =D33-H33 -> 0 | F33: 0
B34: Total Miscellaneous Service Revenues | D34: =D32+D33 -> 0 | E34: =E32+E33 -> 0 | F34: =F32+F33 -> 0
A36: %,R,FACCOUNT,TNI_ACCOUNT_FERC,XBYYYYY01,NRENT_ELE_PROP | B36: Rent from Electricity Property | D36: 0 | E36: =D36-H36 -> 0 | F36: 0
A37: %,R,FACCOUNT,TNI_ACCOUNT_FERC,XBYYYYY01,NOTH_ELE_REV | B37: Other Electric Revenues | D37: 0 | E37: 0 | F37: 0
A38: %,R,FACCOUNT,TNI_ACCOUNT_FERC,XBYYYYY01,NOTH_ELE_TRANS_REV | B38: Rev Transm of Elec of Oth | D38: 0 | E38: 0 | F38: 0
A39: %,V45700000 | B39: Non Util IC Rev Direct | C39: 45700000 | D39: 10878962.74 | E39: -3179332.71 | F39: 127960833.1 | H39: 14058295.45
A40: %,V45700030 | B40: Non Util IC Rev Indirect | C40: 45700030 | D40: 25553740.23 | E40: 2484953.1 | F40: 260023986.7 | H40: 23068787.13
A41: %,V45700040 | B41: Non Util IC Rev Interest | C41: 45700040 | D41: 354691.19 | E41: 73910.26 | F41: 2213038.13 | H41: 280780.93
A42: %,V45810000 | B42: Non Util Non-Affill Revenue | C42: 45810000 | D42: 18938.28 | E42: -14264.79 | F42: 10254777.69 | H42: 33203.07
A43: %,R,FACCOUNT,TNI_ACCOUNT_FERC,XBYYYYY01,NOTH_REV_SERVICE_CO | B43: Nonutility Revenues - Serv Co | D43: 36806332.44 | E43: -634734.14 | F43: 400452635.6 | H43: 37441066.58
A44: %,R,FACCOUNT,TNI_ACCOUNT_FERC,XBYYYYY01,NREG_ELE_TRANS_REV | B44: Regional Transm Service Rev | D44: 0 | E44: 0 | F44: 0
A45: %,R,FACCOUNT,TNI_ACCOUNT_FERC,XBYYYYY01,NTRANSPORT_GATH_REV | B45: Rev Transp Gas of Oth - Gather | D45: 0 | E45: 0 | F45: 0
A46: %,R,FACCOUNT,TNI_ACCOUNT_FERC,XBYYYYY01,NTRANSPORT_TRANS_REV | B46: Rev Transp Gas of Oth - Transm | D46: 0 | E46: 0 | F46: 0
A47: %,R,FACCOUNT,TNI_ACCOUNT_FERC,XBYYYYY01,NTRANSPORT_DISTR_REV | B47: Rev Transp Gas of Oth - Distr | D47: 0 | E47: 0 | F47: 0
A48: %,R,FACCOUNT,TNI_ACCOUNT_FERC,XBYYYYY01,NSTORE_GAS_REV | B48: Rev from Storing Gas of Oth | D48: 0 | E48: 0 | F48: 0
A49: %,R,FACCOUNT,TNI_ACCOUNT_FERC,XBYYYYY01,NSALES_EXTRACT_GAS | B49: Sales - Prod Extracted from NG | D49: 0 | E49: 0 | F49: 0
A50: %,R,FACCOUNT,TNI_ACCOUNT_FERC,XBYYYYY01,NGAS_OIL_SALES | B50: Incidental Gasoline & Oil Sale | D50: 0 | E50: 0 | F50: 0
A51: %,R,FACCOUNT,TNI_ACCOUNT_FERC,XBYYYYY01,NRENT_GAS_PROP | B51: Rent from Gas Property | D51: 0 | E51: 0 | F51: 0
A52: %,R,FACCOUNT,TNI_ACCOUNT_FERC,XBYYYYY01,NOTH_GAS_REV | B52: Other Gas Revenues | D52: 0 | E52: 0 | F52: 0
A53: %,R,FACCOUNT,TNI_ACCOUNT_FERC,XBYYYYY01,NGAS_PROV_RATE_REFUND | B53: Gas Provision of Rate Refunds | D53: 0 | E53: 0 | F53: 0
B54: Total Other Operating Revenues | D54: =D30+D34+D36+D37+D38+D43+D44+D45+D46+D47+D48+D49+D50+D51+D52+D53 -> 36806332.44 | E54: =E30+E34+E36+E37+E38+E43+E44+E45+E46+E47+E48+E49+E50+E51+E52+E53 -> -634734.14 | F54: =F30+F34+F36+F37+F38+F43+F44+F45+F46+F47+F48+F49+F50+F51+F52+F53 -> 400452635.6
A55: xx | B55: Total Operating Revenues | D55: =D17+D26+D54 -> 36806332.44 | E55: =E17+E26+E54 -> -634734.14 | F55: =F17+F26+F54 -> 400452635.6
B57: Operating Expenses
B59: Operation Expenses
A61: %,FACCOUNT,TNI_ACCOUNT_FERC,XBYYYYY01,NOP_MANUF_GAS | B61: Manufac Gas Production - Oper | D61: 0 | E61: =D61-H61 -> 0 | F61: 0
A62: %,FACCOUNT,TNI_ACCOUNT_FERC,XBYYYYY01,NOP_NTRLGAS_PROD_GTH | B62: NG Production & Gather - Oper | D62: 0 | E62: =D62-H62 -> 0 | F62: 0
A63: %,FACCOUNT,TNI_ACCOUNT_FERC,XBYYYYY01,NOP_PROD_EXTRACT | B63: Products Extraction - Oper | D63: 0 | E63: =D63-H63 -> 0 | F63: 0
A65: %,V80500100 | B65: Propane Purchases | C65: 80500100 | D65: 0 | E65: =D65-H65 -> 0 | F65: 0 | H65: 0
A66: %,NOP_NG_PURCH_OTHER | B66: Other Gas Purchases | D66: 0 | E66: 0 | F66: 0 | H66: 0
A67: %,V80720000 | B67: Oper-Purch Gas Measrg Stations | C67: 80720000 | D67: 429193.4 | E67: -26600.79 | F67: 4557061.37 | H67: 455794.19
A68: %,V80751000 | B68: Purch Gas Exp - Mgmt Fee | C68: 80751000 | D68: 84960.26 | E68: 5674.15 | F68: 818418.44 | H68: 79286.11
A69: %,NOP_NG_PURCH_EXPENSE | B69: Purchased Gas Expenses | D69: 514153.66 | E69: -20926.64 | F69: 5375479.81 | H69: 535080.3
A70: %,FACCOUNT,TNI_ACCOUNT_FERC,XBYYYYY01,NOP_OTH_GAS_SUPPLY | B70: Other Gas Supply - Operations | D70: 514153.66 | E70: -20926.64 | F70: 5375479.81 | H70: 535080.3
A71: %,V50000000 | B71: Op Superv_Eng-Steam | C71: 50000000 | D71: 8605.83 | E71: -1918.24 | F71: 97229.82 | H71: 10524.07
A72: %,V50500000 | B72: Electric Exp | C72: 50500000 | D72: 0 | E72: 0 | F72: 0 | H72: 0
A73: %,FACCOUNT,TNI_ACCOUNT_FERC,XBYYYYY01,NOP_STEAM_POWER | B73: Steam Power - Operations | D73: 8605.83 | E73: -1918.24 | F73: 97229.82 | H73: 10524.07
A74: %,FACCOUNT,TNI_ACCOUNT_FERC,XBYYYYY01,NOP_HYDRAULIC_POWER | B74: Hydraulic Power - Operations | D74: 0 | E74: 0 | F74: 0
A75: %,FACCOUNT,TNI_ACCOUNT_FERC,XBYYYYY01,NOP_SOLAR_GENERATION | B75: Solar Generation - Operations | D75: 0 | E75: 0 | F75: 0
A76: %,V54800000 | B76: Generation Exp | C76: 54800000 | D76: 0 | E76: 0 | F76: 0 | H76: 0
A77: %,FACCOUNT,TNI_ACCOUNT_FERC,XBYYYYY01,NOP_OTHER_POWER | B77: Other Power - Operations | D77: 0 | E77: 0 | F77: 0 | H77: 0
A78: %,V55700000 | B78: Other Exp | C78: 55700000 | D78: 77.8 | E78: -965.51 | F78: 11193.06 | H78: 1043.31
A79: %,FACCOUNT,TNI_ACCOUNT_FERC,XBYYYYY01,NOP_OTH_POWER_SUPPLY | B79: Other Power Supply - Oper | D79: 77.8 | E79: -965.51 | F79: 11193.06 | H79: 1043.31
A80: %,FACCOUNT,TNI_ACCOUNT_FERC,XBYYYYY01,NOP_NG_STOR_TERM_PROC | B80: NG Stor, Term & Proc - Oper | D80: 0 | E80: 0 | F80: 0
A82: %,V85200030 | B82: Communication System Exp | C82: 85200030 | D82: 0 | E82: =D82-H82 -> 0 | F82: 0 | H82: 0
A83: %,V85900000 | B83: Gas Transmission Exp | C83: 85900000 | D83: 0 | E83: 0 | F83: 0 | H83: 0
A84: %,NOP_GAS_TRANS_EXP | B84: Transmission Exp - Oper - Gas | D84: 0 | E84: 0 | F84: 0 | H84: 0
A85: %,FACCOUNT,TNI_ACCOUNT_FERC,XBYYYYY01,NOP_TRANS_EXP | B85: Transmission Exp - Oper | D85: 0 | E85: 0 | F85: 0 | H85: 0
A86: %,FACCOUNT,TNI_ACCOUNT_FERC,XBYYYYY01,NOP_REG_MARKET_EXP | B86: Regional Market Exp - Oper | D86: 0 | E86: 0 | F86: 0
A87: %,FACCOUNT,TNI_ACCOUNT_FERC,XBYYYYY01,NOP_ENERGY_STORAGE | B87: Energy Storage - Oper | D87: 0 | E87: 0 | F87: 0
A89: %,V58000000 | B89: Op Superv_Eng-Elec Distr | C89: 58000000 | D89: 6231.91 | E89: =D89-H89 -> -4007.68 | F89: 75363.74 | H89: 10239.59
A90: %,V58800000 | B90: Misc Distribution Exp | C90: 58800000 | D90: 0 | E90: 120.43 | F90: 0 | H90: -120.43
A91: %,NOP_ELEC_DISTR_EXP | B91: Distribution Exp - Oper - Elec | D91: 6231.91 | E91: -3887.25 | F91: 75363.74 | H91: 10119.16
A92: %,V87000000 | B92: Op Superv-Eng-Gas Distr | C92: 87000000 | D92: 835873.72 | E92: -218060.18 | F92: 11266861.01 | H92: 1053933.9
A93: %,V87400000 | B93: Mains and Services Exp | C93: 87400000 | D93: 187603.12 | E93: 44.33 | F93: 1755714.58 | H93: 187558.79
A94: %,V87500000 | B94: Measur-Reg Statn Exp Gen | C94: 87500000 | D94: 38621.14 | E94: 4359.1 | F94: 372015.35 | H94: 34262.04
A95: %,V87600000 | B95: Measur-Reg Statn Exp-Indus | C95: 87600000 | D95: 31599.38 | E95: 3566.72 | F95: 304378.38 | H95: 28032.66
A96: %,V87800000 | B96: Meter and House Regulator Exp | C96: 87800000 | D96: 130211.66 | E96: 2454.2 | F96: 1167905.84 | H96: 127757.46
A97: %,V87900000 | B97: Oper Installation Service Exp | C97: 87900000 | D97: 124254.21 | E97: 2288.35 | F97: 1115913.13 | H97: 121965.86
A98: %,V88000000 | B98: Operations Exp Other | C98: 88000000 | D98: 24767.29 | E98: 335.27 | F98: 225586.82 | H98: 24432.02
A99: %,NOP_GAS_DISTR_EXP | B99: Distribution Exp - Oper - Gas | D99: 1372930.52 | E99: -205012.21 | F99: 16208375.11 | H99: 1577942.73
A100: %,FACCOUNT,TNI_ACCOUNT_FERC,XBYYYYY01,NOP_DISTR_EXP | B100: Distribution Exp - Oper | D100: 1379162.43 | E100: -208899.46 | F100: 16283738.85 | H100: 1588061.89
A101: %,V90100000 | B101: Customer Acnt Supervision | C101: 90100000 | D101: 1047.59 | E101: -1013.06 | F101: 6818.77 | H101: 2060.65
A102: %,V90300000 | B102: Cust Records Collection Exp | C102: 90300000 | D102: 2304981.65 | E102: 189414.88 | F102: 22000608.63 | H102: 2115566.77
A103: %,FACCOUNT,TNI_ACCOUNT_FERC,XBYYYYY01,NOP_CUST_ACCTS_EXP | B103: Customer Accounts - Oper | D103: 2306029.24 | E103: 188401.82 | F103: 22007427.4 | H103: 2117627.42
A104: %,V90700000 | B104: Cust Serv Info Exp Supv | C104: 90700000 | D104: 0 | E104: 0 | F104: 0 | H104: 0
A105: %,V90800000 | B105: Customer Assistance Exp | C105: 90800000 | D105: 0 | E105: 1229.12 | F105: -4543.93 | H105: -1229.12
A106: %,V91000000 | B106: Misc Cust Serv and Info Exp | C106: 91000000 | D106: 445312.68 | E106: 105559.85 | F106: 3577054.68 | H106: 339752.83
A107: %,FACCOUNT,TNI_ACCOUNT_FERC,XBYYYYY01,NOP_CUSTOMER_SERV_EXP | B107: Cust Serv & Info Exp - Oper | D107: 445312.68 | E107: 106788.97 | F107: 3572510.75 | H107: 338523.71
A108: %,V91200000 | B108: Demonstrating and Selling Exp | C108: 91200000 | D108: 740.39 | E108: 189.07 | F108: 9830.74 | H108: 551.32
A109: %,V91300000 | B109: Sales Advertising Exp | C109: 91300000 | D109: 8366.19 | E109: 1503.85 | F109: 262328.59 | H109: 6862.34
A110: %,V91600000 | B110: Misc Sales Exp | C110: 91600000 | D110: 0 | E110: 0 | F110: 304.01 | H110: 0
A111: %,FACCOUNT,TNI_ACCOUNT_FERC,XBYYYYY01,NOP_SALES_EXP | B111: Sales Expenses - Oper | D111: 9106.58 | E111: 1692.92 | F111: 272463.34 | H111: 7413.66
A112: %,V92000000 | B112: A_G Salaries | C112: 92000000 | D112: 9372484.78 | E112: -436051.57 | F112: 104551839.3 | H112: 9808536.35
A113: %,V92001000 | B113: Discretionary and Spot Awards | C113: 92001000 | D113: 138673.33 | E113: -191071.8 | F113: 2977485.27 | H113: 329745.13
A114: %,V92002000 | B114: Stock Compensation Expense | C114: 92002000 | D114: 942145 | E114: 2460955 | F114: 11131117.25 | H114: -1518810
A115: %,V92100000 | B115: Office Supplies and Exp | C115: 92100000 | D115: 381552.18 | E115: -5512.11 | F115: 4269263.64 | H115: 387064.29
A116: %,V92101000 | B116: Employee Expenses | C116: 92101000 | D116: 271885.37 | E116: -19353.81 | F116: 2951620.59 | H116: 291239.18
A117: %,V92300000 | B117: Outside Service Employed | C117: 92300000 | D117: 7578005.46 | E117: -2107308.43 | F117: 99377551.34 | H117: 9685313.89
A118: %,V92400000 | B118: Property Insurance | C118: 92400000 | D118: 4147.48 | E118: 0.01 | F118: 41463.23 | H118: 4147.47
A119: %,V92500000 | B119: Injuries and Damages | C119: 92500000 | D119: 52151.35 | E119: -31436.49 | F119: 1225659.9 | H119: 83587.84
A120: %,V92600000 | B120: Employee Pensions and Benefits | C120: 92600000 | D120: 2145102.23 | E120: -994360.32 | F120: 26420120.23 | H120: 3139462.55
A121: %,V92601000 | B121: Non Service Pension & OPEB | C121: 92601000 | D121: -16989.58 | E121: -404352 | F121: 258528.05 | H121: 387362.42
A122: %,V92800000 | B122: Regulatory Commission Exp | C122: 92800000 | D122: 955.54 | E122: 815.52 | F122: 8985.57 | H122: 140.02
A123: %,V93010000 | B123: General Advertising Exp | C123: 93010000 | D123: 26524.34 | E123: -29619.35 | F123: 468774.97 | H123: 56143.69
A124: %,V93020000 | B124: Misc General Exp | C124: 93020000 | D124: 140743.36 | E124: 303765.59 | F124: 960106.53 | H124: -163022.23
A125: %,V93020495 | B125: CMA Care-Misc General Exp | C125: 93020495 | D125: 0 | E125: 0 | F125: 0 | H125: 0
A126: %,V93100000 | B126: Rents Admin and General | C126: 93100000 | D126: 1214990.34 | E126: -63856.16 | F126: 12913136.87 | H126: 1278846.5
A127: %,FACCOUNT,TNI_ACCOUNT_FERC,XBYYYYY01,NOP_ADMIN_GEN | B127: Admin & General Exp - Oper | D127: 22252371.18 | E127: -1517385.92 | F127: 267555652.8 | H127: 23769757.1
B128: Total Operation Expenses | D128: =D61+D62+D63+D70+D73+D74+D75+D77+D79+D80+D85+D87+D86+D100+D103+D107+D111+D127 -> 26914819.4 | E128: =E61+E62+E63+E70+E73+E74+E75+E77+E79+E80+E85+E87+E86+E100+E103+E107+E111+E127 -> -1453212.06 | F128: =F61+F62+F63+F70+F73+F74+F75+F77+F79+F80+F85+F87+F86+F100+F103+F107+F111+F127 -> 315175695.8
B130: Maintenance Expenses
A133: %,V76400000 | B133: Gath Maint Field Lines | C133: 76400000 | D133: 0 | E133: =D133-H133 -> 59.41 | F133: -59.41 | H133: -59.41
A134: %,NMAINT_NG_PROD_GTH | B134: NG Production & Gather - Maint | D134: 0 | E134: =D134-H134 -> 59.41 | F134: -59.41 | H134: -59.41
A135: %,FACCOUNT,TNI_ACCOUNT_FERC,XBYYYYY01,NMAINT_PROD_EXP | B135: Production Expenses - Maint | D135: 0 | E135: =D135-H135 -> 59.41 | F135: -59.41 | H135: -59.41
A136: %,FACCOUNT,TNI_ACCOUNT_FERC,XBYYYYY01,NMAINT_NG_STOR_PROC | B136: NG Stor, Term & Proc - Maint | D136: 0 | E136: =D136-H136 -> 0 | F136: 0
A138: %,V56920000 | B138: Maint of Computer Software | C138: 56920000 | D138: 0 | E138: =D138-H138 -> 0 | F138: 0 | H138: 0
A139: %,NMAINT_ELEC_TRANS_EXP | B139: Transmission Exp - Maint-Elec | D139: 0 | E139: =D139-H139 -> 0 | F139: 0 | H139: 0
A140: %,FACCOUNT,TNI_ACCOUNT_FERC,XBYYYYY01,NMAINT_TRANS_EXP | B140: Transmission Exp - Maint | D140: 0 | E140: =D140-H140 -> 0 | F140: 0 | H140: 0
A141: %,FACCOUNT,TNI_ACCOUNT_FERC,XBYYYYY01,NMAINT_ENERGY_STORAGE | B141: Energy Storage - Maint | D141: 0 | E141: =D141-H141 -> 0 | F141: 0
A143: %,V59700000 | B143: Maint of Meters | C143: 59700000 | D143: 0 | E143: =D143-H143 -> 0 | F143: 0 | H143: 0
A144: %,NMAINT_ELEC_DISTR_EXP | B144: Distribution Exp - Maint-Elec | D144: 0 | E144: 0 | F144: 0 | H144: 0
A145: %,V88700000 | B145: Maint of Mains | C145: 88700000 | D145: 65301.73 | E145: 1305.94 | F145: 641658.87 | H145: 63995.79
A146: %,V88900000 | B146: Maint Msr-Reg Statn Equi Gen | C146: 88900000 | D146: 38621.14 | E146: 4359.1 | F146: 372015.36 | H146: 34262.04
A147: %,V89000000 | B147: Maint Meas_Reg Stn Equip-Distr | C147: 89000000 | D147: 33942.19 | E147: 1095.35 | F147: 338605.58 | H147: 32846.84
A148: %,V89200000 | B148: Maint of Services | C148: 89200000 | D148: 32718.94 | E148: -401.95 | F148: 445155.14 | H148: 33120.89
A149: %,V89300000 | B149: Maint Meters_House Regulators | C149: 89300000 | D149: 11195.4 | E149: 156.56 | F149: 104426.99 | H149: 11038.84
A150: %,V89400000 | B150: Other Maint Equipment | C150: 89400000 | D150: 71750.21 | E150: 14281.16 | F150: 670200.23 | H150: 57469.05
A151: %,NMAINT_GAS_DISTR_EXP | B151: Distribution Exp - Maint-Gas | D151: 253529.61 | E151: 20796.16 | F151: 2572062.17 | H151: 232733.45
A152: %,FACCOUNT,TNI_ACCOUNT_FERC,XBYYYYY01,NMAINT_DISTR_EXP | B152: Distribution Exp - Maint | D152: 253529.61 | E152: 20796.16 | F152: 2572062.17 | H152: 232733.45
A153: %,V93200000 | B153: Maint General Plant | C153: 93200000 | D153: 3877868.61 | E153: 342721.23 | F153: 34959971.25 | H153: 3535147.38
A154: %,FACCOUNT,TNI_ACCOUNT_FERC,XBYYYYY01,NMAINT_ADMIN_GEN | B154: Maintenance Gen and Admin | D154: 3877868.61 | E154: 342721.23 | F154: 34959971.25 | H154: 3535147.38
B155: Total Maintenance Expenses | D155: =D135+D136+D140+D141+D152+D154 -> 4131398.22 | E155: =E135+E136+E140+E141+E152+E154 -> 363576.8 | F155: =F135+F136+F140+F141+F152+F154 -> 37531974.01
A157: %,V40300000 | B157: Dep Exp | C157: 40300000 | D157: 3222592.28 | E157: =D157-H157 -> -528978.98 | F157: 29143818.16 | H157: 3751571.26
A158: %,FACCOUNT,TNI_ACCOUNT_FERC,XBYYYYY01,NDEPRECIATION_EXPENSE | B158: Depreciation Expense | D158: 3222592.28 | E158: =D158-H158 -> -528978.98 | F158: 29143818.16 | H158: 3751571.26
A159: %,FACCOUNT,TNI_ACCOUNT_FERC,XBYYYYY01,NDEPRECIATION_ARO_EXP | B159: Depreciation Expense for AROs | D159: 0 | E159: =D159-H159 -> 0 | F159: 0
A161: %,V40434000 | B161: Cloude Amortizaiton Expense | C161: 40434000 | D161: 100997.62 | E161: =D161-H161 -> -1047.59 | F161: 1034484.78 | H161: 102045.21
A162: %,NAMORT_LMT_TERM_PROP | B162: Amort of Limited-Term Property | D162: 100997.62 | E162: -1047.59 | F162: 1034484.78 | H162: 102045.21
A163: %,V40500000 | B163: Amortization of Oth Plant | C163: 40500000 | D163: 384027.36 | E163: 37868.81 | F163: 3902810.45 | H163: 346158.55
A164: %,NAMORT_OTH_PROP | B164: Amort of Other Property | D164: 384027.36 | E164: 37868.81 | F164: 3902810.45 | H164: 346158.55
A165: %,FACCOUNT,TNI_ACCOUNT_FERC,XBYYYYY01,NAMORT_DEPL_UTIL | B165: Amort & Deplet of Util Plant | D165: 485024.98 | E165: 36821.22 | F165: 4937295.23 | H165: 448203.76
A166: %,FACCOUNT,TNI_ACCOUNT_FERC,XBYYYYY01,NAMORT_UTIL_ADJ | B166: Amort of Gas Plant Acq Adj | D166: 0 | E166: 0 | F166: 0
A167: %,FACCOUNT,TNI_ACCOUNT_FERC,XBYYYYY01,NAMORT_CONV_EXP | B167: Amort of Conversion Exp | D167: 0 | E167: 0 | F167: 0
A168: %,FACCOUNT,TNI_ACCOUNT_FERC,XBYYYYY01,NREG_DEBITS | B168: Reg Debits | D168: 0 | E168: 0 | F168: 0
A169: %,FACCOUNT,TNI_ACCOUNT_FERC,XBYYYYY01,NREG_CREDITS | B169: Reg Credits | D169: 0 | E169: 0 | F169: 0
A170: %,V40813100 | B170: Tax Exp-License_Franchise | C170: 40813100 | D170: 490003.82 | E170: 490003.82 | F170: 555219.51 | H170: 0
A171: %,V40813200 | B171: Tax Exp-Property | C171: 40813200 | D171: 20000 | E171: 0 | F171: 245722.5 | H171: 20000
A172: %,V40813300 | B172: Tax Exp-Sales and Use Tax | C172: 40813300 | D172: 0 | E172: 0 | F172: 1.39 | H172: 0
A173: %,V40813600 | B173: Tax Exp-State and Local-Oth | C173: 40813600 | D173: 160.89 | E173: 37.28 | F173: 5742.98 | H173: 123.61
A174: %,V40814500 | B174: Tax Exp-Payroll FICA-OASDI | C174: 40814500 | D174: 639657.25 | E174: -58547.97 | F174: 7273237.08 | H174: 698205.22
A175: %,V40814600 | B175: Tax Exp-Payroll FICA-Medicar | C175: 40814600 | D175: 155540.98 | E175: -13074.87 | F175: 2221987.91 | H175: 168615.85
A176: %,V40814700 | B176: Tax Exp-FUTA Employer | C176: 40814700 | D176: 510.87 | E176: -471.66 | F176: 15328.79 | H176: 982.53
A177: %,V40814800 | B177: Tax Exp-SUTA Employer | C177: 40814800 | D177: 2030.53 | E177: -721.9 | F177: 264324.03 | H177: 2752.43
A178: %,FACCOUNT,TNI_ACCOUNT_FERC,XBYYYYY01,NOTHER_TAXES_FERC | B178: Other Taxes FERC | D178: 1307904.34 | E178: 417224.7 | F178: 10581564.19 | H178: 890679.64
A180: %,V40912000 | B180: Util Cur ST Exp | C180: 40912000 | D180: -286984 | E180: =D180-H180 -> -291152 | F180: -241116 | H180: 4168
A181: %,FACCOUNT,TNI_ACCOUNT_FERC,XBYYYYY01,NINC_TAX_EXP_ST | B181: Income Taxes - State | D181: -286984 | E181: =D181-H181 -> -291152 | F181: -241116 | H181: 4168
A182: %,V40911000 | B182: Util Cur Fed Exp | C182: 40911000 | D182: 2077890 | E182: =D182-H182 -> 2032813 | F182: 2379079 | H182: 45077
A183: %,FACCOUNT,TNI_ACCOUNT_FERC,XBYYYYY01,NINC_TAX_EXP_FED | B183: Income Taxes - Federal | D183: 2077890 | E183: =D183-H183 -> 2032813 | F183: 2379079 | H183: 45077
B184: Total Utilities Current Fed State | D184: =D181+D183 -> 1790906 | E184: =E181+E183 -> 1741661 | F184: =F181+F183 -> 2137963
A186: %,V41011000 | B186: Util Def Fed Exp-Dr | C186: 41011000 | D186: 6155920 | E186: =D186-H186 -> 13729632 | F186: 6155920 | H186: -7573712
A187: %,V41012000 | B187: Util Def ST Exp-Dr | C187: 41012000 | D187: 1938399 | E187: =D187-H187 -> 3015580 | F187: 1938399 | H187: -1077181
A188: %,FACCOUNT,TNI_ACCOUNT_FERC,XBYYYYY01,NDEFERRED_INC_TAX | B188: Deferred Income Taxes | D188: 8094319 | E188: =D188-H188 -> 16745212 | F188: 8094319 | H188: -8650893
A190: %,V41111000 | B190: Util Def Fed Exp-Cr | C190: 41111000 | D190: -8080854 | E190: =D190-H190 -> -15566912 | F190: -8080854 | H190: 7486058
A191: %,V41112000 | B191: Util Def ST Exp-Cr | C191: 41112000 | D191: -1628105 | E191: -2712468 | F191: -1628105 | H191: 1084363
A192: %,FACCOUNT,TNI_ACCOUNT_FERC,XBYYYYY01,NDEFERRED_INC_TAX_CR | B192: Prov Deferred Inc Tax - Cr | D192: -9708959 | E192: -18279380 | F192: -9708959 | H192: 8570421
A193: %,FACCOUNT,TNI_ACCOUNT_FERC,XBYYYYY01,NTAX_CRED_ADJ_INVEST | B193: Investment Tax Credit Adj | D193: 0 | E193: 0 | F193: 0
A194: %,FACCOUNT,TNI_ACCOUNT_FERC,XBYYYYY01,NTAX_CRED_GAIN_DISP | B194: Gain from Disposition of Plant | D194: 0 | E194: 0 | F194: 0
A195: %,FACCOUNT,TNI_ACCOUNT_FERC,XBYYYYY01,NTAX_CRED_LOSS_DISP | B195: Loss from Disposition of Plant | D195: 0 | E195: 0 | F195: 0
A196: %,FACCOUNT,TNI_ACCOUNT_FERC,XBYYYYY01,NACCRETION_EXP | B196: Accretion Expenses | D196: 0 | E196: 0 | F196: 0
B197: Total Operating Expenses | D197: =D128+D155+D158+D159+D165+D166+D167+D168+D169+D178+D184+D188+D192+D193+D194+D195+D196 -> 36238005.22 | E197: =E128+E155+E158+E159+E165+E166+E167+E168+E169+E178+E184+E188+E192+E193+E194+E195+E196 -> -957075.32 | F197: =F128+F155+F158+F159+F165+F166+F167+F168+F169+F178+F184+F188+F192+F193+F194+F195+F196 -> 397893670.4
B200: Net Utility Operating Income(Loss) | D200: =D55-D197 -> 568327.22 | E200: =E55-E197 -> 322341.18 | F200: =F55-F197 -> 2558965.21
B203: Other Income & Deductions
A205: %,R,FACCOUNT,TNI_ACCOUNT_FERC,XBYYYYY01,NMERCH_REV | B205: Revenues from Merchandising | D205: 0 | E205: =D205-H205 -> 0 | F205: 0
A206: %,R,FACCOUNT,TNI_ACCOUNT_FERC,XBYYYYY01,NMERCH_EXP | B206: Costs and Exp Merch Job | D206: 0 | E206: =D206-H206 -> 0 | F206: 0
A207: %,R,FACCOUNT,TNI_ACCOUNT_FERC,XBYYYYY01,NOPS_NON_UTIL_REV | B207: NonUtility Revenues | D207: 0 | E207: =D207-H207 -> 0 | F207: 0
A209: %,V41715000 | B209: Non Util Operating Exp | C209: 41715000 | D209: 0 | E209: =D209-H209 -> 0 | F209: 0 | H209: 0
A210: %,NNON_UTIL_EXP_OPS | B210: Non-Utility Expense OPS | D210: 0 | E210: 0 | F210: 0 | H210: 0
A211: %,R,FACCOUNT,TNI_ACCOUNT_FERC,XBYYYYY01,NOPS_NON_UTIL_EXP | B211: NonUtility Unaffil | D211: 0 | E211: 0 | F211: 0 | H211: 0
A212: %,R,FACCOUNT,TNI_ACCOUNT_FERC,XBYYYYY01,NRENT_REV_NONOPS | B212: Nonoperating Rental Revenue | D212: 0 | E212: 0 | F212: 0
A213: %,R,FACCOUNT,TNI_ACCOUNT_FERC,XBYYYYY01,NEARNINGS_OF_SUBS | B213: Earnings of Subsidiaries | D213: 0 | E213: 0 | F213: 0
A214: %,V41902000 | B214: Interest Income Money Pool | C214: 41902000 | D214: 0 | E214: 0 | F214: 480.74 | H214: 0
A215: %,R,FACCOUNT,TNI_ACCOUNT_FERC,XBYYYYY01,NINT_DIV_INCOME | B215: Interest and Dividend Income | D215: 0 | E215: 0 | F215: 480.74 | H215: 0
A216: %,R,FACCOUNT,TNI_ACCOUNT_FERC,XBYYYYY01,NFUNDS_UDC | B216: Allow for Other FUDC | D216: 0 | E216: 0 | F216: 0
A217: %,V42100000 | B217: Misc Non Operating Income | C217: 42100000 | D217: 139.5 | E217: 86.97 | F217: 1852.5 | H217: 52.53
A218: %,R,FACCOUNT,TNI_ACCOUNT_FERC,XBYYYYY01,NMISC_NONOP_INCOME | B218: Misc Nonoperating Income | D218: 139.5 | E218: 86.97 | F218: 1852.5 | H218: 52.53
A219: %,R,FACCOUNT,TNI_ACCOUNT_FERC,XBYYYYY01,NDISP_PROP_GAIN | B219: Gain Disposition of Property | D219: 0 | E219: 0 | F219: 0
B220: Total Other Income | D220: =D205+D206+D207+D211+D212+D213+D215+D216+D218+D219 -> 139.5 | E220: =E205+E206+E207+E211+E212+E213+E215+E216+E218+E219 -> 86.97 | F220: =F205+F206+F207+F211+F212+F213+F215+F216+F218+F219 -> 2333.24
A222: %,V42121000 | B222: Loss on Disposition of Asset | C222: 42121000 | D222: 0 | E222: =D222-H222 -> 0 | F222: 36548.84 | H222: 0
A223: %,FACCOUNT,TNI_ACCOUNT_FERC,XBYYYYY01,NDISP_PROP_LOSS | B223: Loss on Disposal of Property | D223: 0 | E223: 0 | F223: 36548.84 | H223: 0
A224: %,FACCOUNT,TNI_ACCOUNT_FERC,XBYYYYY01,NAMORT_MISC | B224: Misc Amortization | D224: 0 | E224: 0 | F224: 0
A225: %,V42610000 | B225: Other Inc_Exp-Donations | C225: 42610000 | D225: 0 | E225: -36500 | F225: 229006.15 | H225: 36500
A226: %,FACCOUNT,TNI_ACCOUNT_FERC,XBYYYYY01,NDONATIONS | B226: Other Inc Exp Donations | D226: 0 | E226: -36500 | F226: 229006.15 | H226: 36500
A227: %,FACCOUNT,TNI_ACCOUNT_FERC,XBYYYYY01,NINSURANCE_LIFE | B227: Corporate Owned Life Ins | D227: 0 | E227: 0 | F227: 0
A228: %,FACCOUNT,TNI_ACCOUNT_FERC,XBYYYYY01,NPENALTIES | B228: Penalties | D228: 0 | E228: 0 | F228: 0
A229: %,V42640000 | B229: Oth Inc_Exp Political Contrib | C229: 42640000 | D229: 0 | E229: 0 | F229: 17495.63 | H229: 0
A230: %,FACCOUNT,TNI_ACCOUNT_FERC,XBYYYYY01,NCIVIC_POL_EXP | B230: Other Inc Exp PoliticalContrib | D230: 0 | E230: 0 | F230: 17495.63 | H230: 0
... 38 more rows

Sheet Nov22
A1: %,LACTUALS,UPOSTED_TRAN_AMT | B1: %,ATF,FDESCR,UDESCR | C1: %,ATT,FACCOUNT | D1: %,LACTUALS,UPOSTED_TRAN_AMT,SPER,FBOOK_CODE,VR | E1: %,C | F1: %,LACTUALS,UPOSTED_TRAN_AMT,SYTD,FBOOK_CODE,VR | H1: %,LACTUALS,UPOSTED_TRAN_AMT,SPER-1,FBOOK_CODE,VR
B2: NiSource Corporate Services Co | H2: FOR
B3: Income Statement-FERC | H3: CALC
B4: Regulatory View - FERC Account
B5: For the Month Ended November 30, 2022 | H5: PURPOSES
D7: Current | E7: Change from | F7: Year-To- | H7: Prior
D8: Month | E8: Prior Month | F8: Date | H8: Month
B10: Operating Revenues
A12: %,R,FACCOUNT,TNI_ACCOUNT_FERC,XBYYYYY01,NGAS_RESID_REV | B12: Gas Residential Sales | D12: 0 | E12: =D12-H12 -> 0 | F12: 0
A13: %,R,FACCOUNT,TNI_ACCOUNT_FERC,XBYYYYY01,NGAS_COMM_INDUST_REV | B13: Gas Comm & Indust Revenues | D13: 0 | E13: =D13-H13 -> 0 | F13: 0
A14: %,R,FACCOUNT,TNI_ACCOUNT_FERC,XBYYYYY01,NGAS_SALES_RESALE | B14: Gas Sales for Resale | D14: 0 | E14: =D14-H14 -> 0 | F14: 0
A15: %,R,FACCOUNT,TNI_ACCOUNT_FERC,XBYYYYY01,NGAS_INTERDEPT_SALES | B15: Gas Interdepartmental Sales | D15: 0 | E15: =D15-H15 -> 0 | F15: 0
A16: %,R,FACCOUNT,TNI_ACCOUNT_FERC,XBYYYYY01,NGAS_INTRACO_TRANSFER | B16: Gas Intercompany Transfers | D16: 0 | E16: =D16-H16 -> 0 | F16: 0
A17: xx | B17: Total Sales of Gas | D17: =D12+D13+D14+D15+D16 -> 0 | E17: =E12+E13+E14+E15+E16 -> 0 | F17: =F12+F13+F14+F15+F16 -> 0
A19: %,R,FACCOUNT,TNI_ACCOUNT_FERC,XBYYYYY01,NELE_RESID_REV | B19: Electric Residential Revenues | D19: 0 | E19: =D19-H19 -> 0 | F19: 0
A20: %,R,FACCOUNT,TNI_ACCOUNT_FERC,XBYYYYY01,NELE_COMM_IND_REV | B20: Elec Comm & Indust Rev | D20: 0 | E20: 0 | F20: 0
A21: %,R,FACCOUNT,TNI_ACCOUNT_FERC,XBYYYYY01,NELE_STREET_HWY_LIGHT | B21: Public Street & Hwy Lighting | D21: 0 | E21: 0 | F21: 0
A22: %,R,FACCOUNT,TNI_ACCOUNT_FERC,XBYYYYY01,NELE_OTH_SALES_PUBLIC | B22: Elec Oth Sales to Public Auth | D22: 0 | E22: 0 | F22: 0
A23: %,R,FACCOUNT,TNI_ACCOUNT_FERC,XBYYYYY01,NELE_RAILROAD | B23: Sales to Railroads & Railways | D23: 0 | E23: 0 | F23: 0
A24: %,R,FACCOUNT,TNI_ACCOUNT_FERC,XBYYYYY01,NELE_SALES_RESALE | B24: Electric Sales for Resale | D24: 0 | E24: 0 | F24: 0
A25: %,R,FACCOUNT,TNI_ACCOUNT_FERC,XBYYYYY01,NELE_INTERDEPT_SALES | B25: Elec Interdepartmental Sales | D25: 0 | E25: 0 | F25: 0
A26: xx | B26: Total Sales of Electricity | D26: =D19+D20+D21+D22+D23+D24+D25 -> 0 | E26: =E19+E20+E21+E22+E23+E24+E25 -> 0 | F26: =F19+F20+F21+F22+F23+F24+F25 -> 0
A28: %,R,FACCOUNT,TNI_ACCOUNT_FERC,XBYYYYY01,NFORFEITED_DISC_GAS | B28: Forfeited Discounts - Gas | D28: 0 | E28: =D28-H28 -> 0 | F28: 0
A29: %,R,FACCOUNT,TNI_ACCOUNT_FERC,XBYYYYY01,NFORFEITED_DISC_ELE | B29: Forfeited Discounts - Ele | D29: 0 | E29: =D29-H29 -> 0 | F29: 0
B30: Total Forfeited Discounts | D30: =D28+D29 -> 0 | E30: =E28+E29 -> 0 | F30: =F28+F29 -> 0
A32: %,R,FACCOUNT,TNI_ACCOUNT_FERC,XBYYYYY01,NMISC_SERV_REVS_GAS | B32: Misc Service Revenues - Gas | D32: 0 | E32: =D32-H32 -> 0 | F32: 0
A33: %,R,FACCOUNT,TNI_ACCOUNT_FERC,XBYYYYY01,NMISC_SERV_REVS_ELE | B33: Misc Service Revenues - Ele | D33: 0 | E33: =D33-H33 -> 0 | F33: 0
B34: Total Miscellaneous Service Revenues | D34: =D32+D33 -> 0 | E34: =E32+E33 -> 0 | F34: =F32+F33 -> 0
A36: %,R,FACCOUNT,TNI_ACCOUNT_FERC,XBYYYYY01,NRENT_ELE_PROP | B36: Rent from Electricity Property | D36: 0 | E36: =D36-H36 -> 0 | F36: 0
A37: %,R,FACCOUNT,TNI_ACCOUNT_FERC,XBYYYYY01,NOTH_ELE_REV | B37: Other Electric Revenues | D37: 0 | E37: 0 | F37: 0
A38: %,R,FACCOUNT,TNI_ACCOUNT_FERC,XBYYYYY01,NOTH_ELE_TRANS_REV | B38: Rev Transm of Elec of Oth | D38: 0 | E38: 0 | F38: 0
A39: %,V45700000 | B39: Non Util IC Rev Direct | C39: 45700000 | D39: 10660974.82 | E39: -217987.92 | F39: 138621807.9 | H39: 10878962.74
A40: %,V45700030 | B40: Non Util IC Rev Indirect | C40: 45700030 | D40: 22149630.19 | E40: -3404110.04 | F40: 282173616.8 | H40: 25553740.23
A41: %,V45700040 | B41: Non Util IC Rev Interest | C41: 45700040 | D41: 354041.97 | E41: -649.22 | F41: 2567080.1 | H41: 354691.19
A42: %,V45810000 | B42: Non Util Non-Affill Revenue | C42: 45810000 | D42: 0 | E42: -18938.28 | F42: 10254777.69 | H42: 18938.28
A43: %,R,FACCOUNT,TNI_ACCOUNT_FERC,XBYYYYY01,NOTH_REV_SERVICE_CO | B43: Nonutility Revenues - Serv Co | D43: 33164646.98 | E43: -3641685.46 | F43: 433617282.6 | H43: 36806332.44
A44: %,R,FACCOUNT,TNI_ACCOUNT_FERC,XBYYYYY01,NREG_ELE_TRANS_REV | B44: Regional Transm Service Rev | D44: 0 | E44: 0 | F44: 0
A45: %,R,FACCOUNT,TNI_ACCOUNT_FERC,XBYYYYY01,NTRANSPORT_GATH_REV | B45: Rev Transp Gas of Oth - Gather | D45: 0 | E45: 0 | F45: 0
A46: %,R,FACCOUNT,TNI_ACCOUNT_FERC,XBYYYYY01,NTRANSPORT_TRANS_REV | B46: Rev Transp Gas of Oth - Transm | D46: 0 | E46: 0 | F46: 0
A47: %,R,FACCOUNT,TNI_ACCOUNT_FERC,XBYYYYY01,NTRANSPORT_DISTR_REV | B47: Rev Transp Gas of Oth - Distr | D47: 0 | E47: 0 | F47: 0
A48: %,R,FACCOUNT,TNI_ACCOUNT_FERC,XBYYYYY01,NSTORE_GAS_REV | B48: Rev from Storing Gas of Oth | D48: 0 | E48: 0 | F48: 0
A49: %,R,FACCOUNT,TNI_ACCOUNT_FERC,XBYYYYY01,NSALES_EXTRACT_GAS | B49: Sales - Prod Extracted from NG | D49: 0 | E49: 0 | F49: 0
A50: %,R,FACCOUNT,TNI_ACCOUNT_FERC,XBYYYYY01,NGAS_OIL_SALES | B50: Incidental Gasoline & Oil Sale | D50: 0 | E50: 0 | F50: 0
A51: %,R,FACCOUNT,TNI_ACCOUNT_FERC,XBYYYYY01,NRENT_GAS_PROP | B51: Rent from Gas Property | D51: 0 | E51: 0 | F51: 0
A52: %,R,FACCOUNT,TNI_ACCOUNT_FERC,XBYYYYY01,NOTH_GAS_REV | B52: Other Gas Revenues | D52: 0 | E52: 0 | F52: 0
A53: %,R,FACCOUNT,TNI_ACCOUNT_FERC,XBYYYYY01,NGAS_PROV_RATE_REFUND | B53: Gas Provision of Rate Refunds | D53: 0 | E53: 0 | F53: 0
B54: Total Other Operating Revenues | D54: =D30+D34+D36+D37+D38+D43+D44+D45+D46+D47+D48+D49+D50+D51+D52+D53 -> 33164646.98 | E54: =E30+E34+E36+E37+E38+E43+E44+E45+E46+E47+E48+E49+E50+E51+E52+E53 -> -3641685.46 | F54: =F30+F34+F36+F37+F38+F43+F44+F45+F46+F47+F48+F49+F50+F51+F52+F53 -> 433617282.6
A55: xx | B55: Total Operating Revenues | D55: =D17+D26+D54 -> 33164646.98 | E55: =E17+E26+E54 -> -3641685.46 | F55: =F17+F26+F54 -> 433617282.6
B57: Operating Expenses
B59: Operation Expenses
A61: %,FACCOUNT,TNI_ACCOUNT_FERC,XBYYYYY01,NOP_MANUF_GAS | B61: Manufac Gas Production - Oper | D61: 0 | E61: =D61-H61 -> 0 | F61: 0
A62: %,FACCOUNT,TNI_ACCOUNT_FERC,XBYYYYY01,NOP_NTRLGAS_PROD_GTH | B62: NG Production & Gather - Oper | D62: 0 | E62: =D62-H62 -> 0 | F62: 0
A63: %,FACCOUNT,TNI_ACCOUNT_FERC,XBYYYYY01,NOP_PROD_EXTRACT | B63: Products Extraction - Oper | D63: 0 | E63: =D63-H63 -> 0 | F63: 0
A65: %,V80500100 | B65: Propane Purchases | C65: 80500100 | D65: 0 | E65: =D65-H65 -> 0 | F65: 0 | H65: 0
A66: %,NOP_NG_PURCH_OTHER | B66: Other Gas Purchases | D66: 0 | E66: 0 | F66: 0 | H66: 0
A67: %,V80720000 | B67: Oper-Purch Gas Measrg Stations | C67: 80720000 | D67: 471929.28 | E67: 42735.88 | F67: 5028990.65 | H67: 429193.4
A68: %,V80751000 | B68: Purch Gas Exp - Mgmt Fee | C68: 80751000 | D68: 81756.43 | E68: -3203.83 | F68: 900174.87 | H68: 84960.26
A69: %,NOP_NG_PURCH_EXPENSE | B69: Purchased Gas Expenses | D69: 553685.71 | E69: 39532.05 | F69: 5929165.52 | H69: 514153.66
A70: %,FACCOUNT,TNI_ACCOUNT_FERC,XBYYYYY01,NOP_OTH_GAS_SUPPLY | B70: Other Gas Supply - Operations | D70: 553685.71 | E70: 39532.05 | F70: 5929165.52 | H70: 514153.66
A71: %,V50000000 | B71: Op Superv_Eng-Steam | C71: 50000000 | D71: 6002.79 | E71: -2603.04 | F71: 103232.61 | H71: 8605.83
A72: %,V50500000 | B72: Electric Exp | C72: 50500000 | D72: 0 | E72: 0 | F72: 0 | H72: 0
A73: %,FACCOUNT,TNI_ACCOUNT_FERC,XBYYYYY01,NOP_STEAM_POWER | B73: Steam Power - Operations | D73: 6002.79 | E73: -2603.04 | F73: 103232.61 | H73: 8605.83
A74: %,FACCOUNT,TNI_ACCOUNT_FERC,XBYYYYY01,NOP_HYDRAULIC_POWER | B74: Hydraulic Power - Operations | D74: 0 | E74: 0 | F74: 0
A75: %,FACCOUNT,TNI_ACCOUNT_FERC,XBYYYYY01,NOP_SOLAR_GENERATION | B75: Solar Generation - Operations | D75: 0 | E75: 0 | F75: 0
A76: %,V54800000 | B76: Generation Exp | C76: 54800000 | D76: 0 | E76: 0 | F76: 0 | H76: 0
A77: %,FACCOUNT,TNI_ACCOUNT_FERC,XBYYYYY01,NOP_OTHER_POWER | B77: Other Power - Operations | D77: 0 | E77: 0 | F77: 0 | H77: 0
A78: %,V55700000 | B78: Other Exp | C78: 55700000 | D78: -11193.06 | E78: -11270.86 | F78: 0 | H78: 77.8
A79: %,FACCOUNT,TNI_ACCOUNT_FERC,XBYYYYY01,NOP_OTH_POWER_SUPPLY | B79: Other Power Supply - Oper | D79: -11193.06 | E79: -11270.86 | F79: 0 | H79: 77.8
A80: %,FACCOUNT,TNI_ACCOUNT_FERC,XBYYYYY01,NOP_NG_STOR_TERM_PROC | B80: NG Stor, Term & Proc - Oper | D80: 0 | E80: 0 | F80: 0
A82: %,V85200030 | B82: Communication System Exp | C82: 85200030 | D82: 0 | E82: =D82-H82 -> 0 | F82: 0 | H82: 0
A83: %,V85900000 | B83: Gas Transmission Exp | C83: 85900000 | D83: 0 | E83: 0 | F83: 0 | H83: 0
A84: %,NOP_GAS_TRANS_EXP | B84: Transmission Exp - Oper - Gas | D84: 0 | E84: 0 | F84: 0 | H84: 0
A85: %,FACCOUNT,TNI_ACCOUNT_FERC,XBYYYYY01,NOP_TRANS_EXP | B85: Transmission Exp - Oper | D85: 0 | E85: 0 | F85: 0 | H85: 0
A86: %,FACCOUNT,TNI_ACCOUNT_FERC,XBYYYYY01,NOP_REG_MARKET_EXP | B86: Regional Market Exp - Oper | D86: 0 | E86: 0 | F86: 0
A87: %,FACCOUNT,TNI_ACCOUNT_FERC,XBYYYYY01,NOP_ENERGY_STORAGE | B87: Energy Storage - Oper | D87: 0 | E87: 0 | F87: 0
A89: %,V58000000 | B89: Op Superv_Eng-Elec Distr | C89: 58000000 | D89: 2500.34 | E89: =D89-H89 -> -3731.57 | F89: 77864.08 | H89: 6231.91
A90: %,V58800000 | B90: Misc Distribution Exp | C90: 58800000 | D90: 0 | E90: 0 | F90: 0 | H90: 0
A91: %,NOP_ELEC_DISTR_EXP | B91: Distribution Exp - Oper - Elec | D91: 2500.34 | E91: -3731.57 | F91: 77864.08 | H91: 6231.91
A92: %,V87000000 | B92: Op Superv-Eng-Gas Distr | C92: 87000000 | D92: -921400.95 | E92: -1757274.67 | F92: 10345460.06 | H92: 835873.72
A93: %,V87400000 | B93: Mains and Services Exp | C93: 87400000 | D93: 181728.47 | E93: -5874.65 | F93: 1937443.05 | H93: 187603.12
A94: %,V87500000 | B94: Measur-Reg Statn Exp Gen | C94: 87500000 | D94: 40999.11 | E94: 2377.97 | F94: 413014.46 | H94: 38621.14
A95: %,V87600000 | B95: Measur-Reg Statn Exp-Indus | C95: 87600000 | D95: 33544.31 | E95: 1944.93 | F95: 337922.69 | H95: 31599.38
A96: %,V87800000 | B96: Meter and House Regulator Exp | C96: 87800000 | D96: 123205.45 | E96: -7006.21 | F96: 1291111.29 | H96: 130211.66
A97: %,V87900000 | B97: Oper Installation Service Exp | C97: 87900000 | D97: 117402.78 | E97: -6851.43 | F97: 1233315.91 | H97: 124254.21
A98: %,V88000000 | B98: Operations Exp Other | C98: 88000000 | D98: 23042.06 | E98: -1725.23 | F98: 248628.88 | H98: 24767.29
A99: %,NOP_GAS_DISTR_EXP | B99: Distribution Exp - Oper - Gas | D99: -401478.77 | E99: -1774409.29 | F99: 15806896.34 | H99: 1372930.52
A100: %,FACCOUNT,TNI_ACCOUNT_FERC,XBYYYYY01,NOP_DISTR_EXP | B100: Distribution Exp - Oper | D100: -398978.43 | E100: -1778140.86 | F100: 15884760.42 | H100: 1379162.43
A101: %,V90100000 | B101: Customer Acnt Supervision | C101: 90100000 | D101: 0 | E101: -1047.59 | F101: 6818.77 | H101: 1047.59
A102: %,V90300000 | B102: Cust Records Collection Exp | C102: 90300000 | D102: 2009660.73 | E102: -295320.92 | F102: 24010269.36 | H102: 2304981.65
A103: %,FACCOUNT,TNI_ACCOUNT_FERC,XBYYYYY01,NOP_CUST_ACCTS_EXP | B103: Customer Accounts - Oper | D103: 2009660.73 | E103: -296368.51 | F103: 24017088.13 | H103: 2306029.24
A104: %,V90700000 | B104: Cust Serv Info Exp Supv | C104: 90700000 | D104: 0 | E104: 0 | F104: 0 | H104: 0
A105: %,V90800000 | B105: Customer Assistance Exp | C105: 90800000 | D105: -104.45 | E105: -104.45 | F105: -4648.38 | H105: 0
A106: %,V91000000 | B106: Misc Cust Serv and Info Exp | C106: 91000000 | D106: 475514.71 | E106: 30202.03 | F106: 4052569.39 | H106: 445312.68
A107: %,FACCOUNT,TNI_ACCOUNT_FERC,XBYYYYY01,NOP_CUSTOMER_SERV_EXP | B107: Cust Serv & Info Exp - Oper | D107: 475410.26 | E107: 30097.58 | F107: 4047921.01 | H107: 445312.68
A108: %,V91200000 | B108: Demonstrating and Selling Exp | C108: 91200000 | D108: 1115.07 | E108: 374.68 | F108: 10945.81 | H108: 740.39
A109: %,V91300000 | B109: Sales Advertising Exp | C109: 91300000 | D109: 34487.99 | E109: 26121.8 | F109: 296816.58 | H109: 8366.19
A110: %,V91600000 | B110: Misc Sales Exp | C110: 91600000 | D110: 0 | E110: 0 | F110: 304.01 | H110: 0
A111: %,FACCOUNT,TNI_ACCOUNT_FERC,XBYYYYY01,NOP_SALES_EXP | B111: Sales Expenses - Oper | D111: 35603.06 | E111: 26496.48 | F111: 308066.4 | H111: 9106.58
A112: %,V92000000 | B112: A_G Salaries | C112: 92000000 | D112: 7265438.88 | E112: -2107045.9 | F112: 111817278.2 | H112: 9372484.78
A113: %,V92001000 | B113: Discretionary and Spot Awards | C113: 92001000 | D113: 27941.49 | E113: -110731.84 | F113: 3005426.76 | H113: 138673.33
A114: %,V92002000 | B114: Stock Compensation Expense | C114: 92002000 | D114: 1155047 | E114: 212902 | F114: 12286164.25 | H114: 942145
A115: %,V92100000 | B115: Office Supplies and Exp | C115: 92100000 | D115: 306482.79 | E115: -75069.39 | F115: 4575746.43 | H115: 381552.18
A116: %,V92101000 | B116: Employee Expenses | C116: 92101000 | D116: 173791.56 | E116: -98093.81 | F116: 3125412.15 | H116: 271885.37
A117: %,V92300000 | B117: Outside Service Employed | C117: 92300000 | D117: 8576599.9 | E117: 998594.44 | F117: 107954151.2 | H117: 7578005.46
A118: %,V92400000 | B118: Property Insurance | C118: 92400000 | D118: 5745.15 | E118: 1597.67 | F118: 47208.38 | H118: 4147.48
A119: %,V92500000 | B119: Injuries and Damages | C119: 92500000 | D119: 126760.8 | E119: 74609.45 | F119: 1352420.7 | H119: 52151.35
A120: %,V92600000 | B120: Employee Pensions and Benefits | C120: 92600000 | D120: 2494098.31 | E120: 348996.08 | F120: 28914218.54 | H120: 2145102.23
A121: %,V92601000 | B121: Non Service Pension & OPEB | C121: 92601000 | D121: -16989.58 | E121: 0 | F121: 241538.47 | H121: -16989.58
A122: %,V92800000 | B122: Regulatory Commission Exp | C122: 92800000 | D122: 0 | E122: -955.54 | F122: 8985.57 | H122: 955.54
A123: %,V93010000 | B123: General Advertising Exp | C123: 93010000 | D123: 34558.84 | E123: 8034.5 | F123: 503333.81 | H123: 26524.34
A124: %,V93020000 | B124: Misc General Exp | C124: 93020000 | D124: 88518.63 | E124: -52224.73 | F124: 1048625.16 | H124: 140743.36
A125: %,V93020495 | B125: CMA Care-Misc General Exp | C125: 93020495 | D125: 0 | E125: 0 | F125: 0 | H125: 0
A126: %,V93100000 | B126: Rents Admin and General | C126: 93100000 | D126: 1215751.69 | E126: 761.35 | F126: 14128888.56 | H126: 1214990.34
A127: %,FACCOUNT,TNI_ACCOUNT_FERC,XBYYYYY01,NOP_ADMIN_GEN | B127: Admin & General Exp - Oper | D127: 21453745.46 | E127: -798625.72 | F127: 289009398.2 | H127: 22252371.18
B128: Total Operation Expenses | D128: =D61+D62+D63+D70+D73+D74+D75+D77+D79+D80+D85+D87+D86+D100+D103+D107+D111+D127 -> 24123936.52 | E128: =E61+E62+E63+E70+E73+E74+E75+E77+E79+E80+E85+E87+E86+E100+E103+E107+E111+E127 -> -2790882.88 | F128: =F61+F62+F63+F70+F73+F74+F75+F77+F79+F80+F85+F87+F86+F100+F103+F107+F111+F127 -> 339299632.3
B130: Maintenance Expenses
A133: %,V76400000 | B133: Gath Maint Field Lines | C133: 76400000 | D133: 0 | E133: =D133-H133 -> 0 | F133: -59.41 | H133: 0
A134: %,NMAINT_NG_PROD_GTH | B134: NG Production & Gather - Maint | D134: 0 | E134: =D134-H134 -> 0 | F134: -59.41 | H134: 0
A135: %,FACCOUNT,TNI_ACCOUNT_FERC,XBYYYYY01,NMAINT_PROD_EXP | B135: Production Expenses - Maint | D135: 0 | E135: =D135-H135 -> 0 | F135: -59.41 | H135: 0
A136: %,FACCOUNT,TNI_ACCOUNT_FERC,XBYYYYY01,NMAINT_NG_STOR_PROC | B136: NG Stor, Term & Proc - Maint | D136: 0 | E136: =D136-H136 -> 0 | F136: 0
A138: %,V56920000 | B138: Maint of Computer Software | C138: 56920000 | D138: 0 | E138: =D138-H138 -> 0 | F138: 0 | H138: 0
A139: %,NMAINT_ELEC_TRANS_EXP | B139: Transmission Exp - Maint-Elec | D139: 0 | E139: =D139-H139 -> 0 | F139: 0 | H139: 0
A140: %,FACCOUNT,TNI_ACCOUNT_FERC,XBYYYYY01,NMAINT_TRANS_EXP | B140: Transmission Exp - Maint | D140: 0 | E140: =D140-H140 -> 0 | F140: 0 | H140: 0
A141: %,FACCOUNT,TNI_ACCOUNT_FERC,XBYYYYY01,NMAINT_ENERGY_STORAGE | B141: Energy Storage - Maint | D141: 0 | E141: =D141-H141 -> 0 | F141: 0
A143: %,V59700000 | B143: Maint of Meters | C143: 59700000 | D143: 0 | E143: =D143-H143 -> 0 | F143: 0 | H143: 0
A144: %,NMAINT_ELEC_DISTR_EXP | B144: Distribution Exp - Maint-Elec | D144: 0 | E144: 0 | F144: 0 | H144: 0
A145: %,V88700000 | B145: Maint of Mains | C145: 88700000 | D145: 59745.71 | E145: -5556.02 | F145: 701404.58 | H145: 65301.73
A146: %,V88900000 | B146: Maint Msr-Reg Statn Equi Gen | C146: 88900000 | D146: 40999.11 | E146: 2377.97 | F146: 413014.47 | H146: 38621.14
A147: %,V89000000 | B147: Maint Meas_Reg Stn Equip-Distr | C147: 89000000 | D147: 36734.67 | E147: 2792.48 | F147: 375340.25 | H147: 33942.19
A148: %,V89200000 | B148: Maint of Services | C148: 89200000 | D148: 29156.74 | E148: -3562.2 | F148: 474311.88 | H148: 32718.94
A149: %,V89300000 | B149: Maint Meters_House Regulators | C149: 89300000 | D149: 12131.48 | E149: 936.08 | F149: 116558.47 | H149: 11195.4
A150: %,V89400000 | B150: Other Maint Equipment | C150: 89400000 | D150: 66485.78 | E150: -5264.43 | F150: 736686.01 | H150: 71750.21
A151: %,NMAINT_GAS_DISTR_EXP | B151: Distribution Exp - Maint-Gas | D151: 245253.49 | E151: -8276.12 | F151: 2817315.66 | H151: 253529.61
A152: %,FACCOUNT,TNI_ACCOUNT_FERC,XBYYYYY01,NMAINT_DISTR_EXP | B152: Distribution Exp - Maint | D152: 245253.49 | E152: -8276.12 | F152: 2817315.66 | H152: 253529.61
A153: %,V93200000 | B153: Maint General Plant | C153: 93200000 | D153: 3450660.51 | E153: -427208.1 | F153: 38410631.76 | H153: 3877868.61
A154: %,FACCOUNT,TNI_ACCOUNT_FERC,XBYYYYY01,NMAINT_ADMIN_GEN | B154: Maintenance Gen and Admin | D154: 3450660.51 | E154: -427208.1 | F154: 38410631.76 | H154: 3877868.61
B155: Total Maintenance Expenses | D155: =D135+D136+D140+D141+D152+D154 -> 3695914 | E155: =E135+E136+E140+E141+E152+E154 -> -435484.22 | F155: =F135+F136+F140+F141+F152+F154 -> 41227888.01
A157: %,V40300000 | B157: Dep Exp | C157: 40300000 | D157: 3392125.56 | E157: =D157-H157 -> 169533.28 | F157: 32535943.72 | H157: 3222592.28
A158: %,FACCOUNT,TNI_ACCOUNT_FERC,XBYYYYY01,NDEPRECIATION_EXPENSE | B158: Depreciation Expense | D158: 3392125.56 | E158: =D158-H158 -> 169533.28 | F158: 32535943.72 | H158: 3222592.28
A159: %,FACCOUNT,TNI_ACCOUNT_FERC,XBYYYYY01,NDEPRECIATION_ARO_EXP | B159: Depreciation Expense for AROs | D159: 0 | E159: =D159-H159 -> 0 | F159: 0
A161: %,V40434000 | B161: Cloude Amortizaiton Expense | C161: 40434000 | D161: 91541.15 | E161: =D161-H161 -> -9456.47 | F161: 1126025.93 | H161: 100997.62
A162: %,NAMORT_LMT_TERM_PROP | B162: Amort of Limited-Term Property | D162: 91541.15 | E162: -9456.47 | F162: 1126025.93 | H162: 100997.62
A163: %,V40500000 | B163: Amortization of Oth Plant | C163: 40500000 | D163: 724654.93 | E163: 340627.57 | F163: 4627465.38 | H163: 384027.36
A164: %,NAMORT_OTH_PROP | B164: Amort of Other Property | D164: 724654.93 | E164: 340627.57 | F164: 4627465.38 | H164: 384027.36
A165: %,FACCOUNT,TNI_ACCOUNT_FERC,XBYYYYY01,NAMORT_DEPL_UTIL | B165: Amort & Deplet of Util Plant | D165: 816196.08 | E165: 331171.1 | F165: 5753491.31 | H165: 485024.98
A166: %,FACCOUNT,TNI_ACCOUNT_FERC,XBYYYYY01,NAMORT_UTIL_ADJ | B166: Amort of Gas Plant Acq Adj | D166: 0 | E166: 0 | F166: 0
A167: %,FACCOUNT,TNI_ACCOUNT_FERC,XBYYYYY01,NAMORT_CONV_EXP | B167: Amort of Conversion Exp | D167: 0 | E167: 0 | F167: 0
A168: %,FACCOUNT,TNI_ACCOUNT_FERC,XBYYYYY01,NREG_DEBITS | B168: Reg Debits | D168: 0 | E168: 0 | F168: 0
A169: %,FACCOUNT,TNI_ACCOUNT_FERC,XBYYYYY01,NREG_CREDITS | B169: Reg Credits | D169: 0 | E169: 0 | F169: 0
A170: %,V40813100 | B170: Tax Exp-License_Franchise | C170: 40813100 | D170: -245001.91 | E170: -735005.73 | F170: 310217.6 | H170: 490003.82
A171: %,V40813200 | B171: Tax Exp-Property | C171: 40813200 | D171: -82845.46 | E171: -102845.46 | F171: 162877.04 | H171: 20000
A172: %,V40813300 | B172: Tax Exp-Sales and Use Tax | C172: 40813300 | D172: 0 | E172: 0 | F172: 1.39 | H172: 0
A173: %,V40813400 | B173: Tax Exp-Gross Receipts | C173: 40813400 | D173: 150.98 | E173: 150.98 | F173: 150.98 | H173: 0
A174: %,V40813600 | B174: Tax Exp-State and Local-Oth | C174: 40813600 | D174: 134.25 | E174: -26.64 | F174: 5877.23 | H174: 160.89
A175: %,V40814500 | B175: Tax Exp-Payroll FICA-OASDI | C175: 40814500 | D175: 548932.55 | E175: -90724.7 | F175: 7822169.63 | H175: 639657.25
A176: %,V40814600 | B176: Tax Exp-Payroll FICA-Medicar | C176: 40814600 | D176: 139271.61 | E176: -16269.37 | F176: 2361259.52 | H176: 155540.98
A177: %,V40814700 | B177: Tax Exp-FUTA Employer | C177: 40814700 | D177: 93.5 | E177: -417.37 | F177: 15422.29 | H177: 510.87
A178: %,V40814800 | B178: Tax Exp-SUTA Employer | C178: 40814800 | D178: 215 | E178: -1815.53 | F178: 264539.03 | H178: 2030.53
A179: %,FACCOUNT,TNI_ACCOUNT_FERC,XBYYYYY01,NOTHER_TAXES_FERC | B179: Other Taxes FERC | D179: 360950.52 | E179: -946953.82 | F179: 10942514.71 | H179: 1307904.34
A181: %,V40912000 | B181: Util Cur ST Exp | C181: 40912000 | D181: 62387 | E181: =D181-H181 -> 349371 | F181: -178729 | H181: -286984
A182: %,FACCOUNT,TNI_ACCOUNT_FERC,XBYYYYY01,NINC_TAX_EXP_ST | B182: Income Taxes - State | D182: 62387 | E182: =D182-H182 -> 349371 | F182: -178729 | H182: -286984
A183: %,V40911000 | B183: Util Cur Fed Exp | C183: 40911000 | D183: -3243783 | E183: =D183-H183 -> -5321673 | F183: -864704 | H183: 2077890
A184: %,FACCOUNT,TNI_ACCOUNT_FERC,XBYYYYY01,NINC_TAX_EXP_FED | B184: Income Taxes - Federal | D184: -3243783 | E184: =D184-H184 -> -5321673 | F184: -864704 | H184: 2077890
B185: Total Utilities Current Fed State | D185: =D182+D184 -> -3181396 | E185: =E182+E184 -> -4972302 | F185: =F182+F184 -> -1043433
A187: %,V41011000 | B187: Util Def Fed Exp-Dr | C187: 41011000 | D187: -5316279 | E187: =D187-H187 -> -11472199 | F187: 839641 | H187: 6155920
A188: %,V41012000 | B188: Util Def ST Exp-Dr | C188: 41012000 | D188: -1251849 | E188: =D188-H188 -> -3190248 | F188: 686550 | H188: 1938399
A189: %,FACCOUNT,TNI_ACCOUNT_FERC,XBYYYYY01,NDEFERRED_INC_TAX | B189: Deferred Income Taxes | D189: -6568128 | E189: =D189-H189 -> -14662447 | F189: 1526191 | H189: 8094319
A191: %,V41111000 | B191: Util Def Fed Exp-Cr | C191: 41111000 | D191: 8080854 | E191: =D191-H191 -> 16161708 | F191: 0 | H191: -8080854
A192: %,V41112000 | B192: Util Def ST Exp-Cr | C192: 41112000 | D192: 1628105 | E192: 3256210 | F192: 0 | H192: -1628105
A193: %,FACCOUNT,TNI_ACCOUNT_FERC,XBYYYYY01,NDEFERRED_INC_TAX_CR | B193: Prov Deferred Inc Tax - Cr | D193: 9708959 | E193: 19417918 | F193: 0 | H193: -9708959
A194: %,FACCOUNT,TNI_ACCOUNT_FERC,XBYYYYY01,NTAX_CRED_ADJ_INVEST | B194: Investment Tax Credit Adj | D194: 0 | E194: 0 | F194: 0
A195: %,FACCOUNT,TNI_ACCOUNT_FERC,XBYYYYY01,NTAX_CRED_GAIN_DISP | B195: Gain from Disposition of Plant | D195: 0 | E195: 0 | F195: 0
A196: %,FACCOUNT,TNI_ACCOUNT_FERC,XBYYYYY01,NTAX_CRED_LOSS_DISP | B196: Loss from Disposition of Plant | D196: 0 | E196: 0 | F196: 0
A197: %,FACCOUNT,TNI_ACCOUNT_FERC,XBYYYYY01,NACCRETION_EXP | B197: Accretion Expenses | D197: 0 | E197: 0 | F197: 0
B198: Total Operating Expenses | D198: =D128+D155+D158+D159+D165+D166+D167+D168+D169+D179+D185+D189+D193+D194+D195+D196+D197 -> 32348557.68 | E198: =E128+E155+E158+E159+E165+E166+E167+E168+E169+E179+E185+E189+E193+E194+E195+E196+E197 -> -3889447.54 | F198: =F128+F155+F158+F159+F165+F166+F167+F168+F169+F179+F185+F189+F193+F194+F195+F196+F197 -> 430242228.1
B201: Net Utility Operating Income(Loss) | D201: =D55-D198 -> 816089.3 | E201: =E55-E198 -> 247762.08 | F201: =F55-F198 -> 3375054.51
B204: Other Income & Deductions
A206: %,R,FACCOUNT,TNI_ACCOUNT_FERC,XBYYYYY01,NMERCH_REV | B206: Revenues from Merchandising | D206: 0 | E206: =D206-H206 -> 0 | F206: 0
A207: %,R,FACCOUNT,TNI_ACCOUNT_FERC,XBYYYYY01,NMERCH_EXP | B207: Costs and Exp Merch Job | D207: 0 | E207: =D207-H207 -> 0 | F207: 0
A208: %,R,FACCOUNT,TNI_ACCOUNT_FERC,XBYYYYY01,NOPS_NON_UTIL_REV | B208: NonUtility Revenues | D208: 0 | E208: =D208-H208 -> 0 | F208: 0
A210: %,V41715000 | B210: Non Util Operating Exp | C210: 41715000 | D210: 0 | E210: =D210-H210 -> 0 | F210: 0 | H210: 0
A211: %,NNON_UTIL_EXP_OPS | B211: Non-Utility Expense OPS | D211: 0 | E211: 0 | F211: 0 | H211: 0
A212: %,R,FACCOUNT,TNI_ACCOUNT_FERC,XBYYYYY01,NOPS_NON_UTIL_EXP | B212: NonUtility Unaffil | D212: 0 | E212: 0 | F212: 0 | H212: 0
A213: %,R,FACCOUNT,TNI_ACCOUNT_FERC,XBYYYYY01,NRENT_REV_NONOPS | B213: Nonoperating Rental Revenue | D213: 0 | E213: 0 | F213: 0
A214: %,R,FACCOUNT,TNI_ACCOUNT_FERC,XBYYYYY01,NEARNINGS_OF_SUBS | B214: Earnings of Subsidiaries | D214: 0 | E214: 0 | F214: 0
A215: %,V41902000 | B215: Interest Income Money Pool | C215: 41902000 | D215: 0 | E215: 0 | F215: 480.74 | H215: 0
A216: %,R,FACCOUNT,TNI_ACCOUNT_FERC,XBYYYYY01,NINT_DIV_INCOME | B216: Interest and Dividend Income | D216: 0 | E216: 0 | F216: 480.74 | H216: 0
A217: %,R,FACCOUNT,TNI_ACCOUNT_FERC,XBYYYYY01,NFUNDS_UDC | B217: Allow for Other FUDC | D217: 0 | E217: 0 | F217: 0
A218: %,V42100000 | B218: Misc Non Operating Income | C218: 42100000 | D218: 295.12 | E218: 155.62 | F218: 2147.62 | H218: 139.5
A219: %,R,FACCOUNT,TNI_ACCOUNT_FERC,XBYYYYY01,NMISC_NONOP_INCOME | B219: Misc Nonoperating Income | D219: 295.12 | E219: 155.62 | F219: 2147.62 | H219: 139.5
A220: %,R,FACCOUNT,TNI_ACCOUNT_FERC,XBYYYYY01,NDISP_PROP_GAIN | B220: Gain Disposition of Property | D220: 0 | E220: 0 | F220: 0
B221: Total Other Income | D221: =D206+D207+D208+D212+D213+D214+D216+D217+D219+D220 -> 295.12 | E221: =E206+E207+E208+E212+E213+E214+E216+E217+E219+E220 -> 155.62 | F221: =F206+F207+F208+F212+F213+F214+F216+F217+F219+F220 -> 2628.36
A223: %,V42121000 | B223: Loss on Disposition of Asset | C223: 42121000 | D223: 0 | E223: =D223-H223 -> 0 | F223: 36548.84 | H223: 0
A224: %,FACCOUNT,TNI_ACCOUNT_FERC,XBYYYYY01,NDISP_PROP_LOSS | B224: Loss on Disposal of Property | D224: 0 | E224: 0 | F224: 36548.84 | H224: 0
A225: %,FACCOUNT,TNI_ACCOUNT_FERC,XBYYYYY01,NAMORT_MISC | B225: Misc Amortization | D225: 0 | E225: 0 | F225: 0
A226: %,V42610000 | B226: Other Inc_Exp-Donations | C226: 42610000 | D226: 25887.29 | E226: 25887.29 | F226: 254893.44 | H226: 0
A227: %,FACCOUNT,TNI_ACCOUNT_FERC,XBYYYYY01,NDONATIONS | B227: Other Inc Exp Donations | D227: 25887.29 | E227: 25887.29 | F227: 254893.44 | H227: 0
A228: %,FACCOUNT,TNI_ACCOUNT_FERC,XBYYYYY01,NINSURANCE_LIFE | B228: Corporate Owned Life Ins | D228: 0 | E228: 0 | F228: 0
A229: %,FACCOUNT,TNI_ACCOUNT_FERC,XBYYYYY01,NPENALTIES | B229: Penalties | D229: 0 | E229: 0 | F229: 0
A230: %,V42640000 | B230: Oth Inc_Exp Political Contrib | C230: 42640000 | D230: 0 | E230: 0 | F230: 17495.63 | H230: 0
... 39 more rows

Sheet Dec22
A1: %,LACTUALS,UPOSTED_TRAN_AMT | B1: %,ATF,FDESCR,UDESCR | C1: %,ATT,FACCOUNT | D1: %,LACTUALS,UPOSTED_TRAN_AMT,SPER,FBOOK_CODE,VR | E1: %,C | F1: %,LACTUALS,UPOSTED_TRAN_AMT,SYTD,FBOOK_CODE,VR | H1: %,LACTUALS,UPOSTED_TRAN_AMT,SPER-1,FBOOK_CODE,VR
B2: NiSource Corporate Services Co | H2: FOR
B3: Income Statement-FERC | H3: CALC
B4: Regulatory View - FERC Account
B5: For the Month Ended December 31, 2022 | H5: PURPOSES
D7: Current | E7: Change from | F7: Year-To- | H7: Prior
D8: Month | E8: Prior Month | F8: Date | H8: Month
B10: Operating Revenues
A12: %,R,FACCOUNT,TNI_ACCOUNT_FERC,XBYYYYY01,NGAS_RESID_REV | B12: Gas Residential Sales | D12: 0 | E12: =D12-H12 -> 0 | F12: 0
A13: %,R,FACCOUNT,TNI_ACCOUNT_FERC,XBYYYYY01,NGAS_COMM_INDUST_REV | B13: Gas Comm & Indust Revenues | D13: 0 | E13: =D13-H13 -> 0 | F13: 0
A14: %,R,FACCOUNT,TNI_ACCOUNT_FERC,XBYYYYY01,NGAS_SALES_RESALE | B14: Gas Sales for Resale | D14: 0 | E14: =D14-H14 -> 0 | F14: 0
A15: %,R,FACCOUNT,TNI_ACCOUNT_FERC,XBYYYYY01,NGAS_INTERDEPT_SALES | B15: Gas Interdepartmental Sales | D15: 0 | E15: =D15-H15 -> 0 | F15: 0
A16: %,R,FACCOUNT,TNI_ACCOUNT_FERC,XBYYYYY01,NGAS_INTRACO_TRANSFER | B16: Gas Intercompany Transfers | D16: 0 | E16: =D16-H16 -> 0 | F16: 0
A17: xx | B17: Total Sales of Gas | D17: =D12+D13+D14+D15+D16 -> 0 | E17: =E12+E13+E14+E15+E16 -> 0 | F17: =F12+F13+F14+F15+F16 -> 0
A19: %,R,FACCOUNT,TNI_ACCOUNT_FERC,XBYYYYY01,NELE_RESID_REV | B19: Electric Residential Revenues | D19: 0 | E19: =D19-H19 -> 0 | F19: 0
A20: %,R,FACCOUNT,TNI_ACCOUNT_FERC,XBYYYYY01,NELE_COMM_IND_REV | B20: Elec Comm & Indust Rev | D20: 0 | E20: 0 | F20: 0
A21: %,R,FACCOUNT,TNI_ACCOUNT_FERC,XBYYYYY01,NELE_STREET_HWY_LIGHT | B21: Public Street & Hwy Lighting | D21: 0 | E21: 0 | F21: 0
A22: %,R,FACCOUNT,TNI_ACCOUNT_FERC,XBYYYYY01,NELE_OTH_SALES_PUBLIC | B22: Elec Oth Sales to Public Auth | D22: 0 | E22: 0 | F22: 0
A23: %,R,FACCOUNT,TNI_ACCOUNT_FERC,XBYYYYY01,NELE_RAILROAD | B23: Sales to Railroads & Railways | D23: 0 | E23: 0 | F23: 0
A24: %,R,FACCOUNT,TNI_ACCOUNT_FERC,XBYYYYY01,NELE_SALES_RESALE | B24: Electric Sales for Resale | D24: 0 | E24: 0 | F24: 0
A25: %,R,FACCOUNT,TNI_ACCOUNT_FERC,XBYYYYY01,NELE_INTERDEPT_SALES | B25: Elec Interdepartmental Sales | D25: 0 | E25: 0 | F25: 0
A26: xx | B26: Total Sales of Electricity | D26: =D19+D20+D21+D22+D23+D24+D25 -> 0 | E26: =E19+E20+E21+E22+E23+E24+E25 -> 0 | F26: =F19+F20+F21+F22+F23+F24+F25 -> 0
A28: %,R,FACCOUNT,TNI_ACCOUNT_FERC,XBYYYYY01,NFORFEITED_DISC_GAS | B28: Forfeited Discounts - Gas | D28: 0 | E28: =D28-H28 -> 0 | F28: 0
A29: %,R,FACCOUNT,TNI_ACCOUNT_FERC,XBYYYYY01,NFORFEITED_DISC_ELE | B29: Forfeited Discounts - Ele | D29: 0 | E29: =D29-H29 -> 0 | F29: 0
B30: Total Forfeited Discounts | D30: =D28+D29 -> 0 | E30: =E28+E29 -> 0 | F30: =F28+F29 -> 0
A32: %,R,FACCOUNT,TNI_ACCOUNT_FERC,XBYYYYY01,NMISC_SERV_REVS_GAS | B32: Misc Service Revenues - Gas | D32: 0 | E32: =D32-H32 -> 0 | F32: 0
A33: %,R,FACCOUNT,TNI_ACCOUNT_FERC,XBYYYYY01,NMISC_SERV_REVS_ELE | B33: Misc Service Revenues - Ele | D33: 0 | E33: =D33-H33 -> 0 | F33: 0
B34: Total Miscellaneous Service Revenues | D34: =D32+D33 -> 0 | E34: =E32+E33 -> 0 | F34: =F32+F33 -> 0
A36: %,R,FACCOUNT,TNI_ACCOUNT_FERC,XBYYYYY01,NRENT_ELE_PROP | B36: Rent from Electricity Property | D36: 0 | E36: =D36-H36 -> 0 | F36: 0
A37: %,R,FACCOUNT,TNI_ACCOUNT_FERC,XBYYYYY01,NOTH_ELE_REV | B37: Other Electric Revenues | D37: 0 | E37: 0 | F37: 0
A38: %,R,FACCOUNT,TNI_ACCOUNT_FERC,XBYYYYY01,NOTH_ELE_TRANS_REV | B38: Rev Transm of Elec of Oth | D38: 0 | E38: 0 | F38: 0
A39: %,V45700000 | B39: Non Util IC Rev Direct | C39: 45700000 | D39: 14801568.06 | E39: 4140593.24 | F39: 153423376 | H39: 10660974.82
A40: %,V45700030 | B40: Non Util IC Rev Indirect | C40: 45700030 | D40: 30659633 | E40: 8510002.81 | F40: 312833249.8 | H40: 22149630.19
A41: %,V45700040 | B41: Non Util IC Rev Interest | C41: 45700040 | D41: 815989.46 | E41: 461947.49 | F41: 3383069.56 | H41: 354041.97
A42: %,V45810000 | B42: Non Util Non-Affill Revenue | C42: 45810000 | D42: 0 | E42: 0 | F42: 10254777.69 | H42: 0
A43: %,R,FACCOUNT,TNI_ACCOUNT_FERC,XBYYYYY01,NOTH_REV_SERVICE_CO | B43: Nonutility Revenues - Serv Co | D43: 46277190.52 | E43: 13112543.54 | F43: 479894473.1 | H43: 33164646.98
A44: %,R,FACCOUNT,TNI_ACCOUNT_FERC,XBYYYYY01,NREG_ELE_TRANS_REV | B44: Regional Transm Service Rev | D44: 0 | E44: 0 | F44: 0
A45: %,R,FACCOUNT,TNI_ACCOUNT_FERC,XBYYYYY01,NTRANSPORT_GATH_REV | B45: Rev Transp Gas of Oth - Gather | D45: 0 | E45: 0 | F45: 0
A46: %,R,FACCOUNT,TNI_ACCOUNT_FERC,XBYYYYY01,NTRANSPORT_TRANS_REV | B46: Rev Transp Gas of Oth - Transm | D46: 0 | E46: 0 | F46: 0
A47: %,R,FACCOUNT,TNI_ACCOUNT_FERC,XBYYYYY01,NTRANSPORT_DISTR_REV | B47: Rev Transp Gas of Oth - Distr | D47: 0 | E47: 0 | F47: 0
A48: %,R,FACCOUNT,TNI_ACCOUNT_FERC,XBYYYYY01,NSTORE_GAS_REV | B48: Rev from Storing Gas of Oth | D48: 0 | E48: 0 | F48: 0
A49: %,R,FACCOUNT,TNI_ACCOUNT_FERC,XBYYYYY01,NSALES_EXTRACT_GAS | B49: Sales - Prod Extracted from NG | D49: 0 | E49: 0 | F49: 0
A50: %,R,FACCOUNT,TNI_ACCOUNT_FERC,XBYYYYY01,NGAS_OIL_SALES | B50: Incidental Gasoline & Oil Sale | D50: 0 | E50: 0 | F50: 0
A51: %,R,FACCOUNT,TNI_ACCOUNT_FERC,XBYYYYY01,NRENT_GAS_PROP | B51: Rent from Gas Property | D51: 0 | E51: 0 | F51: 0
A52: %,R,FACCOUNT,TNI_ACCOUNT_FERC,XBYYYYY01,NOTH_GAS_REV | B52: Other Gas Revenues | D52: 0 | E52: 0 | F52: 0
A53: %,R,FACCOUNT,TNI_ACCOUNT_FERC,XBYYYYY01,NGAS_PROV_RATE_REFUND | B53: Gas Provision of Rate Refunds | D53: 0 | E53: 0 | F53: 0
B54: Total Other Operating Revenues | D54: =D30+D34+D36+D37+D38+D43+D44+D45+D46+D47+D48+D49+D50+D51+D52+D53 -> 46277190.52 | E54: =E30+E34+E36+E37+E38+E43+E44+E45+E46+E47+E48+E49+E50+E51+E52+E53 -> 13112543.54 | F54: =F30+F34+F36+F37+F38+F43+F44+F45+F46+F47+F48+F49+F50+F51+F52+F53 -> 479894473.1
A55: xx | B55: Total Operating Revenues | D55: =D17+D26+D54 -> 46277190.52 | E55: =E17+E26+E54 -> 13112543.54 | F55: =F17+F26+F54 -> 479894473.1
B57: Operating Expenses
B59: Operation Expenses
A61: %,FACCOUNT,TNI_ACCOUNT_FERC,XBYYYYY01,NOP_MANUF_GAS | B61: Manufac Gas Production - Oper | D61: 0 | E61: =D61-H61 -> 0 | F61: 0
A62: %,FACCOUNT,TNI_ACCOUNT_FERC,XBYYYYY01,NOP_NTRLGAS_PROD_GTH | B62: NG Production & Gather - Oper | D62: 0 | E62: =D62-H62 -> 0 | F62: 0
A63: %,FACCOUNT,TNI_ACCOUNT_FERC,XBYYYYY01,NOP_PROD_EXTRACT | B63: Products Extraction - Oper | D63: 0 | E63: =D63-H63 -> 0 | F63: 0
A65: %,V80500100 | B65: Propane Purchases | C65: 80500100 | D65: 0 | E65: =D65-H65 -> 0 | F65: 0 | H65: 0
A66: %,NOP_NG_PURCH_OTHER | B66: Other Gas Purchases | D66: 0 | E66: 0 | F66: 0 | H66: 0
A67: %,V80720000 | B67: Oper-Purch Gas Measrg Stations | C67: 80720000 | D67: 487471.41 | E67: 15542.13 | F67: 5516462.06 | H67: 471929.28
A68: %,V80751000 | B68: Purch Gas Exp - Mgmt Fee | C68: 80751000 | D68: 89174.44 | E68: 7418.01 | F68: 989349.31 | H68: 81756.43
A69: %,NOP_NG_PURCH_EXPENSE | B69: Purchased Gas Expenses | D69: 576645.85 | E69: 22960.14 | F69: 6505811.37 | H69: 553685.71
A70: %,FACCOUNT,TNI_ACCOUNT_FERC,XBYYYYY01,NOP_OTH_GAS_SUPPLY | B70: Other Gas Supply - Operations | D70: 576645.85 | E70: 22960.14 | F70: 6505811.37 | H70: 553685.71
